Workbook

Sheet Start Here
B1: Important Notes:
B2: 1) Make sure Macros are enabled! (there is usually a pop-up message telling you that macros have been disabled, with an option to enable them) | U2: DO NOT CHANGE THESE VALUES
B3: 2) If you experience a problem or have a question, please read the General Notes at the bottom of this worksheet. | V3: CSV Zip File Locations
U4: Location 1 | V4: http://www.solardecathlon.gov/event/sd2013_scoredata.zip
B5: After selecting a team(s) from the checklist on the right, click the button below to download the latest data and update the spreadsheet. | U5: Location 2 | V5: http://www.solardecathlon.gov/event/sd2013_scoredata.zip
B6: The data is in a zip file that will be downloaded to the local folder in which the spreadsheet is located. | N6: Choose team(s) for which data will be downloaded
O7: Lot # | P7: Team
I8: Click the button below to enable/disable | O8: 101 | P8: SCI-Arc/Caltech | Q8: 101
I9: automatic updates | O9: 102 | P9: Stevens | Q9: 102
O10: 103 | P10: Czech Republic | Q10: 103
O11: 104 | P11: Stanford | Q11: 104
O12: 105 | P12: Norwich | Q12: 105
I13: Update Frequency (minutes): | O13: 106 | P13: Team Texas | Q13: 106
I14: 15 | O14: 107 | P14: Missouri S&T | Q14: 107
O15: 108 | P15: Tidewater Virginia | Q15: 108
O16: 109 | P16: Team Austria | Q16: 109
O17: 110 | P17: Middlebury College | Q17: 110
B18: Click the button below to browse to the zip file on your computer. The zip file must already exist on your local machine. | O18: 111 | P18: U of So Cal | Q18: 111
O19: 112 | P19: North Carolina | Q19: 112
O20: 113 | P20: Kentucky/Indiana | Q20: 113
B21: Y:\6A20\Public\Sean Ong\Solar Decathlon\2013 SD spreadsheet updates\sd2013_scoredata_2013-10-11_0750_js4.zip | O21: 114 | P21: Las Vegas | Q21: 114
O22: 115 | P22: Team Capitol DC | Q22: 115
B23: Click the button below to remove all data from the spreadsheet. | O23: 116 | P23: Team Alberta | Q23: 116
O24: 117 | P24: AZ State/New Mexico | Q24: 117
O25: 118 | P25: Santa Clara | Q25: 118
O26: 119 | P26: West Virginia | Q26: 119
B27: Click the button below to either unhide or hide all teams' monitored [sub]contest (15-minute) data worksheets. | O27: 120 | P27: Team Ontario | Q27: 120
B28: These worksheets are named "Lot 101," "Lot 102," etc.
B32: General Notes:
B33: 1) Please contact the competition manager, Joe Simon, between 7 a.m. and 7 p.m. at (303) 886-8213 with questions, comments, or concerns. Outside of these hours, please send an email (sdrules@nrel.gov), text, or leave a voicemail. If you have not received a response within 12 hours of your request, contact Alicen Kandt.
B34: 2) Yellow highlighting indicates that adjustments were made to the data or score in that cell.
C35: a) There are no adjustment indicators, i.e., yellow highlighting, for [sub]contests 1, 2, 3, 4, 6-1, 6-2, 8-1, 8-2, and 10. Please refer to b) and c) below for two alternate means of reviewing adjustments for these [sub]contests.
C36: b) Please review the appropriate CSV file with a name ending in "_Adj" and/or contact the scorekeeper for original and adjusted data and an explanation of the adjustment.
B37: 3) Cells with black borders contain data that was manually entered into the scoring engine by the scorekeeper. Cells without black borders contain data was either calculated by the scoring engine, output from a datalogger, or calculated by the spreadsheet.
B38: 4) Cells shaded light grey on the "Measured Contest Data," "Lot…," and "Weather" worksheets contain data for non-scored 15-minute periods; unshaded cells contain data for scored 15-minute periods.
B39: 5) The computer used to develop and test this spreadsheet had the following specifications: Windows 7 (64-bit, SP1), Excel 2007 (SP2), 4 GB memory, Intel i5 processor. For best performance, do not have any other applications running.
B40: 6) When either the "Download Now" or "Use local file" buttons are clicked, the VBA code will create a new folder called "Downloads," paste the "XXXXXX.zip" file into this folder, and extract the files into a new subfolder called "Unzip."
B41: 7) If you get an error with code #53 or 70 when you click either the "Download Now" or "Use local file" buttons, try deleting the existing "Downloads" folder and click the respective button again. If you get the same error again, contact the competition manager.

Sheet Score Summary
B1: Last Data Update: | C1: 2013-10-11T11:30:00
A3: Note: To enable column sorting and filtering in Excel 2010, select the entire summary table (including the row containing the summary table title) and click the Filter button in the Sort & Filter group under the Data tab.
A5: Lot # | B5: Team | C5: Contest 1 Architecture | D5: Contest 2 Market Appeal | E5: Contest 3 Engineering | F5: Contest 4 Communications | G5: Contest 5 Affordability | H5: Contest 6 Comfort Zone | I5: Contest 7 Hot Water | J5: Contest 8 Appliances | K5: Contest 9 Home Entertainment | L5: Contest 10 Energy Balance | M5: Grand Total
A6: NET SCORING SUMMARY
A7: 101 | B7: SCI-Arc/Caltech | C7: 80 | D7: 83 | E7: 70 | F7: 88 | G7: 97.5737 | H7: 91.92506495 | I7: 92.74999619 | J7: 82.04112261 | K7: 91.37643288 | L7: 100 | M7: 868.6663166
A8: 102 | B8: Stevens | C8: 96 | D8: 91 | E8: 86 | F8: 81 | G8: 95.9314 | H8: 93.9403424 | I8: 100 | J8: 99.29432768 | K8: 96.50982906 | L8: 100 | M8: 939.1758991
A9: 103 | B9: Czech Republic | C9: 98 | D9: 92 | E9: 94 | F9: 85 | G9: 92.67693333 | H9: 98.69081982 | I9: 98.93750191 | J9: 98.9033269 | K9: 97.43333333 | L9: 100 | M9: 945.1419153
A10: 104 | B10: Stanford | C10: 75 | D10: 92 | E10: 91 | F10: 86 | G10: 100 | H10: 94.13287731 | I10: 99.0625 | J10: 99.43113054 | K10: 96.74871795 | L10: 100 | M10: 933.1252258
A11: 105 | B11: Norwich | C11: 75 | D11: 86 | E11: 81 | F11: 72 | G11: 100 | H11: 87.44945672 | I11: 93.75 | J11: 85.32156003 | K11: 96.40677476 | L11: 100 | M11: 876.9277915
A12: 106 | B12: Team Texas | C12: 60 | D12: 77 | E12: 50 | F12: 56 | G12: 96.5848 | H12: 77.46779626 | I12: 87.5 | J12: 97.56420917 | K12: 90.58729261 | L12: 100 | M12: 776.454098
A13: 107 | B13: Missouri S&T | C13: 65 | D13: 73 | E13: 85 | F13: 76 | G13: 97.4636 | H13: 90.75390506 | I13: 72.5 | J13: 92.36180306 | K13: 96.62600553 | L13: 100 | M13: 840.4553137
A14: 108 | B14: Tidewater Virginia
A15: 109 | B15: Team Austria | C15: 91 | D15: 93 | E15: 93 | F15: 94 | G15: 93.00721667 | H15: 93.17193997 | I15: 100 | J15: 98.9707787 | K15: 98.27173203 | L15: 100 | M15: 951.9216674
A16: 110 | B16: Middlebury College | C16: 75 | D16: 90 | E16: 79 | F16: 89 | G16: 98.6917 | H16: 97.21807745 | I16: 100 | J16: 98.03653944 | K16: 98.31617647 | L16: 100 | M16: 920.2624934
A17: 111 | B17: U of So Cal | C17: 93 | D17: 84 | E17: 80 | F17: 78 | G17: 96.3409 | H17: 85.37914577 | I17: 93.24999809 | J17: 99.66505223 | K17: 96.56816255 | L17: 100 | M17: 906.2032586
A18: 112 | B18: North Carolina | C18: 70 | D18: 82 | E18: 93 | F18: 75 | G18: 78.94943333 | H18: 95.39591966 | I18: 93.75 | J18: 93.51968142 | K18: 98.09544997 | L18: 100 | M18: 870.2104844
A19: 113 | B19: Kentucky/Indiana | C19: 65 | D19: 82 | E19: 75 | F19: 75 | G19: 100 | H19: 96.42523896 | I19: 79.81249809 | J19: 87.69969474 | K19: 95.64166667 | L19: 100 | M19: 850.0790985
A20: 114 | B20: Las Vegas | C20: 85 | D20: 94 | E20: 93 | F20: 90 | G20: 95.1371 | H20: 98.05907127 | I20: 100 | J20: 98.44059936 | K20: 97.93504274 | L20: 100 | M20: 947.5718134
A21: 115 | B21: Team Capitol DC | C21: 80 | D21: 87 | E21: 79 | F21: 87 | G21: 96.9048 | H21: 98.8218103 | I21: 93.75 | J21: 99.44848042 | K21: 98.59166667 | L21: 100 | M21: 920.2667574
A22: 116 | B22: Team Alberta | C22: 75 | D22: 91 | E22: 86 | F22: 76 | G22: 97.9553 | H22: 97.77992618 | I22: 100 | J22: 98.75606266 | K22: 97.83284314 | L22: 100 | M22: 913.574132
A23: 117 | B23: AZ State/New Mexico | C23: 85 | D23: 83 | E23: 86 | F23: 77 | G23: 95.4555 | H23: 73.52265446 | I23: 66.5625 | J23: 85.12599606 | K23: 83.74812925 | L23: 100 | M23: 823.1647798
A24: 118 | B24: Santa Clara | C24: 70 | D24: 82 | E24: 89 | F24: 71 | G24: 83.68486667 | H24: 99.48483085 | I24: 99.0625 | J24: 99.40268802 | K24: 98.79444444 | L24: 100 | M24: 888.92933
A25: 119 | B25: West Virginia | C25: 60 | D25: 75 | E25: 58 | F25: 78 | G25: 97.0588 | H25: 84.37142 | I25: 74.43749905 | J25: 84.14243077 | K25: 82.73208899 | L25: 100 | M25: 774.7422388
A26: 120 | B26: Team Ontario | C26: 70 | D26: 91 | E26: 95 | F26: 84 | G26: 99.2416 | H26: 97.6418847 | I26: 100 | J26: 95.01959665 | K26: 98.07521368 | L26: 100 | M26: 926.478295
A27: PENALTY SUMMARY
A28: 101 | B28: SCI-Arc/Caltech | C28: 0 | D28: 0 | E28: 0 | F28: 0 | G28: 0 | H28: 0 | I28: 0 | J28: 0 | K28: 0 | L28: 0 | M28: 8
A29: 102 | B29: Stevens | C29: 0 | D29: 0 | E29: 0 | F29: 0 | G29: 0 | H29: 0 | I29: 0 | J29: 0 | K29: 0 | L29: 0 | M29: 0.5
A30: 103 | B30: Czech Republic | C30: 0 | D30: 0 | E30: 0 | F30: 0 | G30: 0 | H30: 0 | I30: 0 | J30: 0 | K30: 0 | L30: 0 | M30: 10.5
A31: 104 | B31: Stanford | C31: 0 | D31: 0 | E31: 0 | F31: 0 | G31: 0 | H31: 0 | I31: 0 | J31: 0 | K31: 0 | L31: 0 | M31: 0.25
A32: 105 | B32: Norwich | C32: 0 | D32: 0 | E32: 0 | F32: 0 | G32: 0 | H32: 0 | I32: 0 | J32: 0.5 | K32: 0 | L32: 0 | M32: 0
A33: 106 | B33: Team Texas | C33: 0 | D33: 0 | E33: 0 | F33: 0 | G33: 0 | H33: 0 | I33: 0 | J33: 0 | K33: 0 | L33: 0 | M33: 16.25
A34: 107 | B34: Missouri S&T | C34: 0 | D34: 0 | E34: 0 | F34: 0 | G34: 0 | H34: 0 | I34: 0 | J34: 0 | K34: 0 | L34: 0 | M34: 8.25
A35: 108 | B35: Tidewater Virginia
A36: 109 | B36: Team Austria | C36: 0 | D36: 0 | E36: 0 | F36: 0 | G36: 0 | H36: 0 | I36: 0 | J36: 0 | K36: 0 | L36: 0 | M36: 2.5
A37: 110 | B37: Middlebury College | C37: 0 | D37: 0 | E37: 0 | F37: 0 | G37: 0 | H37: 0 | I37: 0 | J37: 0 | K37: 0 | L37: 0 | M37: 5
A38: 111 | B38: U of So Cal | C38: 0 | D38: 0 | E38: 0 | F38: 0 | G38: 0 | H38: 0 | I38: 0 | J38: 0 | K38: 0 | L38: 0 | M38: 0
A39: 112 | B39: North Carolina | C39: 0 | D39: 0 | E39: 0 | F39: 0 | G39: 0 | H39: 0 | I39: 0 | J39: 0 | K39: 0 | L39: 0 | M39: 9.5
A40: 113 | B40: Kentucky/Indiana | C40: 0 | D40: 0 | E40: 0 | F40: 0 | G40: 0 | H40: 0 | I40: 0 | J40: 0 | K40: 0 | L40: 0 | M40: 6.5
A41: 114 | B41: Las Vegas | C41: 0 | D41: 0 | E41: 0 | F41: 0 | G41: 0 | H41: 0 | I41: 0 | J41: 0 | K41: 0 | L41: 0 | M41: 4
A42: 115 | B42: Team Capitol DC | C42: 0 | D42: 0 | E42: 0 | F42: 0 | G42: 0 | H42: 0 | I42: 0 | J42: 0 | K42: 0 | L42: 0 | M42: 0.25
A43: 116 | B43: Team Alberta | C43: 0 | D43: 0 | E43: 0 | F43: 0 | G43: 0 | H43: 0 | I43: 0 | J43: 0 | K43: 0 | L43: 0 | M43: 6.75
A44: 117 | B44: AZ State/New Mexico | C44: 0 | D44: 0 | E44: 0 | F44: 0 | G44: 0 | H44: 0 | I44: 0 | J44: 0 | K44: 0 | L44: 0 | M44: 12.25
A45: 118 | B45: Santa Clara | C45: 0 | D45: 0 | E45: 0 | F45: 0 | G45: 0 | H45: 0 | I45: 0 | J45: 0 | K45: 0 | L45: 0 | M45: 3.5
A46: 119 | B46: West Virginia | C46: 0 | D46: 0 | E46: 0 | F46: 0 | G46: 0 | H46: 0 | I46: 0 | J46: 0 | K46: 0 | L46: 0 | M46: 19
A47: 120 | B47: Team Ontario | C47: 0 | D47: 0 | E47: 0 | F47: 0 | G47: 0 | H47: 0 | I47: 0 | J47: 0 | K47: 0 | L47: 0 | M47: 3.5
A48: GROSS SCORING SUMMARY
A49: 101 | B49: SCI-Arc/Caltech | C49: 80 | D49: 83 | E49: 70 | F49: 88 | G49: 97.5737 | H49: 91.92506495 | I49: 92.74999619 | J49: 82.04112261 | K49: 91.37643288 | L49: 100 | M49: 876.6663166
A50: 102 | B50: Stevens | C50: 96 | D50: 91 | E50: 86 | F50: 81 | G50: 95.9314 | H50: 93.9403424 | I50: 100 | J50: 99.29432768 | K50: 96.50982906 | L50: 100 | M50: 939.6758991
A51: 103 | B51: Czech Republic | C51: 98 | D51: 92 | E51: 94 | F51: 85 | G51: 92.67693333 | H51: 98.69081982 | I51: 98.93750191 | J51: 98.9033269 | K51: 97.43333333 | L51: 100 | M51: 955.6419153
A52: 104 | B52: Stanford | C52: 75 | D52: 92 | E52: 91 | F52: 86 | G52: 100 | H52: 94.13287731 | I52: 99.0625 | J52: 99.43113054 | K52: 96.74871795 | L52: 100 | M52: 933.3752258
A53: 105 | B53: Norwich | C53: 75 | D53: 86 | E53: 81 | F53: 72 | G53: 100 | H53: 87.44945672 | I53: 93.75 | J53: 85.82156003 | K53: 96.40677476 | L53: 100 | M53: 877.4277915
A54: 106 | B54: Team Texas | C54: 60 | D54: 77 | E54: 50 | F54: 56 | G54: 96.5848 | H54: 77.46779626 | I54: 87.5 | J54: 97.56420917 | K54: 90.58729261 | L54: 100 | M54: 792.704098
A55: 107 | B55: Missouri S&T | C55: 65 | D55: 73 | E55: 85 | F55: 76 | G55: 97.4636 | H55: 90.75390506 | I55: 72.5 | J55: 92.36180306 | K55: 96.62600553 | L55: 100 | M55: 848.7053137
A56: 108 | B56: Tidewater Virginia
A57: 109 | B57: Team Austria | C57: 91 | D57: 93 | E57: 93 | F57: 94 | G57: 93.00721667 | H57: 93.17193997 | I57: 100 | J57: 98.9707787 | K57: 98.27173203 | L57: 100 | M57: 954.4216674
A58: 110 | B58: Middlebury College | C58: 75 | D58: 90 | E58: 79 | F58: 89 | G58: 98.6917 | H58: 97.21807745 | I58: 100 | J58: 98.03653944 | K58: 98.31617647 | L58: 100 | M58: 925.2624934
A59: 111 | B59: U of So Cal | C59: 93 | D59: 84 | E59: 80 | F59: 78 | G59: 96.3409 | H59: 85.37914577 | I59: 93.24999809 | J59: 99.66505223 | K59: 96.56816255 | L59: 100 | M59: 906.2032586
A60: 112 | B60: North Carolina | C60: 70 | D60: 82 | E60: 93 | F60: 75 | G60: 78.94943333 | H60: 95.39591966 | I60: 93.75 | J60: 93.51968142 | K60: 98.09544997 | L60: 100 | M60: 879.7104844
A61: 113 | B61: Kentucky/Indiana | C61: 65 | D61: 82 | E61: 75 | F61: 75 | G61: 100 | H61: 96.42523896 | I61: 79.81249809 | J61: 87.69969474 | K61: 95.64166667 | L61: 100 | M61: 856.5790985
A62: 114 | B62: Las Vegas | C62: 85 | D62: 94 | E62: 93 | F62: 90 | G62: 95.1371 | H62: 98.05907127 | I62: 100 | J62: 98.44059936 | K62: 97.93504274 | L62: 100 | M62: 951.5718134
A63: 115 | B63: Team Capitol DC | C63: 80 | D63: 87 | E63: 79 | F63: 87 | G63: 96.9048 | H63: 98.8218103 | I63: 93.75 | J63: 99.44848042 | K63: 98.59166667 | L63: 100 | M63: 920.5167574
A64: 116 | B64: Team Alberta | C64: 75 | D64: 91 | E64: 86 | F64: 76 | G64: 97.9553 | H64: 97.77992618 | I64: 100 | J64: 98.75606266 | K64: 97.83284314 | L64: 100 | M64: 920.324132
A65: 117 | B65: AZ State/New Mexico | C65: 85 | D65: 83 | E65: 86 | F65: 77 | G65: 95.4555 | H65: 73.52265446 | I65: 66.5625 | J65: 85.12599606 | K65: 83.74812925 | L65: 100 | M65: 835.4147798
A66: 118 | B66: Santa Clara | C66: 70 | D66: 82 | E66: 89 | F66: 71 | G66: 83.68486667 | H66: 99.48483085 | I66: 99.0625 | J66: 99.40268802 | K66: 98.79444444 | L66: 100 | M66: 892.42933
A67: 119 | B67: West Virginia | C67: 60 | D67: 75 | E67: 58 | F67: 78 | G67: 97.0588 | H67: 84.37142 | I67: 74.43749905 | J67: 84.14243077 | K67: 82.73208899 | L67: 100 | M67: 793.7422388
A68: 120 | B68: Team Ontario | C68: 70 | D68: 91 | E68: 95 | F68: 84 | G68: 99.2416 | H68: 97.6418847 | I68: 100 | J68: 95.01959665 | K68: 98.07521368 | L68: 100 | M68: 929.978295

Sheet 5 Affordability
D1: Contest 5
D2: Affordability
A3: Lot # | B3: Team | D3: Estimated Cost
A4: 101 | B4: SCI-Arc/Caltech | D4: 274263
A5: 102 | B5: Stevens | D5: 290686
A6: 103 | B6: Czech Republic | D6: 307336
A7: 104 | B7: Stanford | D7: 234092
A8: 105 | B8: Norwich | D8: 168385
A9: 106 | B9: Team Texas | D9: 284152
A10: 107 | B10: Missouri S&T | D10: 275364
A11: 108 | B11: Tidewater Virginia
A12: 109 | B12: Team Austria | D12: 306293
A13: 110 | B13: Middlebury College | D13: 263083
A14: 111 | B14: U of So Cal | D14: 286591
A15: 112 | B15: North Carolina | D15: 350686
A16: 113 | B16: Kentucky/Indiana | D16: 248423
A17: 114 | B17: Las Vegas | D17: 298629
A18: 115 | B18: Team Capitol DC | D18: 280952
A19: 116 | B19: Team Alberta | D19: 270447
A20: 117 | B20: AZ State/New Mexico | D20: 295445
A21: 118 | B21: Santa Clara | D21: 335732
A22: 119 | B22: West Virginia | D22: 279412
A23: 120 | B23: Team Ontario | D23: 257584

Sheet 7 Hot Water
E1: Draw 1 of 16 | L1: Draw 2 of 16 | S1: Draw 3 of 16 | Z1: Draw 4 of 16 | AG1: Draw 5 of 16 | AN1: Draw 6 of 16 | AU1: Draw 7 of 16 | BB1: Draw 8 of 16 | BI1: Draw 9 of 16 | BP1: Draw 10 of 16 | BW1: Draw 11 of 16 | CD1: Draw 12 of 16 | CK1: Draw 13 of 16 | CR1: Draw 14 of 16 | CY1: Draw 15 of 16 | DF1: Draw 16 of 16
E2: Friday, October 4 (Day 12) @ 8:30 a.m. | L2: Saturday, October 5 (Day 13) @ 8:30 a.m. | S2: Saturday, October 5 (Day 13) @ 9:30 a.m. | Z2: Sunday, October 6 (Day 14) @ 9:30 a.m. | AG2: Monday, October 7 (Day 15) @ 2:00 p.m. | AN2: Monday, October 7 (Day 15) @ 3:30 p.m. | AU2: Monday, October 7 (Day 15) @ 5:00 p.m. | BB2: Tuesday, October 8 (Day 16) at 2:30 p.m. | BI2: Tuesday, October 8 (Day 16) @ 3:30 p.m. | BP2: Tuesday, October 8 (Day 16) at 4:30 p.m. | BW2: Wednesday, October 9 (Day 17) @ 1:30 p.m. | CD2: Wednesday, October 9 (Day 17) @ 2:30 p.m. | CK2: Wednesday, October 9 (Day 17) @ 3:30 p.m. | CR2: Thursday, October 10 (Day 18) @ 8:30 a.m. | CY2: Thursday, October 10 (Day 18) @ 9:30 a.m. | DF2: Friday, October 11 (Day 19) @ 9:30 a.m.
A3: Lot # | B3: Team | C3: Current Net Score | E3: Initial Flow Meter Reading (gal) | F3: Final Meter Reading (gal) | G3: Total Volume (gal) | H3: Average Temp (°F) | I3: Elapsed Time (m:ss) | J3: Points Earned | L3: Initial Flow Meter Reading (gal) | M3: Final Meter Reading (gal) | N3: Total Volume (gal) | O3: Average Temp (°F) | P3: Elapsed Time (m:ss) | Q3: Points Earned | S3: Initial Flow Meter Reading (gal) | T3: Final Meter Reading (gal) | U3: Total Volume (gal) | V3: Average Temp (°F) | W3: Elapsed Time (m:ss) | X3: Points Earned | Z3: Initial Flow Meter Reading (gal) | AA3: Final Meter Reading (gal) | AB3: Total Volume (gal) | AC3: Average Temp (°F) | AD3: Elapsed Time (m:ss) | AE3: Points Earned | AG3: Initial Flow Meter Reading (gal) | AH3: Final Meter Reading (gal) | AI3: Total Volume (gal) | AJ3: Average Temp (°F) | AK3: Elapsed Time (m:ss) | AL3: Points Earned | AN3: Initial Flow Meter Reading (gal) | AO3: Final Meter Reading (gal) | AP3: Total Volume (gal) | AQ3: Average Temp (°F) | AR3: Elapsed Time (m:ss) | AS3: Points Earned | AU3: Initial Flow Meter Reading (gal) | AV3: Final Meter Reading (gal) | AW3: Total Volume (gal) | AX3: Average Temp (°F) | AY3: Elapsed Time (m:ss) | AZ3: Points Earned | BB3: Initial Flow Meter Reading (gal) | BC3: Final Meter Reading (gal) | BD3: Total Volume (gal) | BE3: Average Temp (°F) | BF3: Elapsed Time (m:ss) | BG3: Points Earned | BI3: Initial Flow Meter Reading (gal) | BJ3: Final Meter Reading (gal) | BK3: Total Volume (gal) | BL3: Average Temp (°F) | BM3: Elapsed Time (m:ss) | BN3: Points Earned | BP3: Initial Flow Meter Reading (gal) | BQ3: Final Meter Reading (gal) | BR3: Total Volume (gal) | BS3: Average Temp (°F) | BT3: Elapsed Time (m:ss) | BU3: Points Earned | BW3: Initial Flow Meter Reading (gal) | BX3: Final Meter Reading (gal) | BY3: Total Volume (gal) | BZ3: Average Temp (°F) | CA3: Elapsed Time (m:ss) | CB3: Points Earned | CD3: Initial Flow Meter Reading (gal) | CE3: Final Meter Reading (gal) | CF3: Total Volume (gal) | CG3: Average Temp (°F) | CH3: Elapsed Time (m:ss) | CI3: Points Earned | CK3: Initial Flow Meter Reading (gal) | CL3: Final Meter Reading (gal) | CM3: Total Volume (gal) | CN3: Average Temp (°F) | CO3: Elapsed Time (m:ss) | CP3: Points Earned | CR3: Initial Flow Meter Reading (gal) | CS3: Final Meter Reading (gal) | CT3: Total Volume (gal) | CU3: Average Temp (°F) | CV3: Elapsed Time (m:ss) | CW3: Points Earned | CY3: Initial Flow Meter Reading (gal) | CZ3: Final Meter Reading (gal) | DA3: Total Volume (gal) | DB3: Average Temp (°F) | DC3: Elapsed Time (m:ss) | DD3: Points Earned | DF3: Initial Flow Meter Reading (gal) | DG3: Final Meter Reading (gal) | DH3: Total Volume (gal) | DI3: Average Temp (°F) | DJ3: Elapsed Time (m:ss) | DK3: Points Earned
A4: 101 | B4: SCI-Arc/Caltech | C4: 92.74999619 | E4: 988 | F4: 1000.4 | G4: =F4-E4 -> 12.4 | H4: 76.1 | I4: 0.00625 | J4: 0 | L4: 903.45 | M4: 918.8 | N4: =M4-L4 -> 15.35 | O4: 111.7 | P4: 0.005081018519 | Q4: 6.25 | S4: 939.54 | T4: 954.6 | U4: =T4-S4 -> 15.06 | V4: 109.2 | W4: 0.00505787037 | X4: 5.749998093 | Z4: 1051.8 | AA4: 1067.4 | AB4: =AA4-Z4 -> 15.6 | AC4: 111.3 | AD4: 0.004884259259 | AE4: 6.25 | AG4: 1892.4 | AH4: 1907.8 | AI4: =AH4-AG4 -> 15.4 | AJ4: 109.2 | AK4: 0.00537037037 | AL4: 5.749998093 | AN4: 1928 | AO4: 1944 | AP4: =AO4-AN4 -> 16 | AQ4: 110.3 | AR4: 0.005115740741 | AS4: 6.25 | AU4: 1963.5 | AV4: 1978.7 | AW4: =AV4-AU4 -> 15.2 | AX4: 110.5 | AY4: 0.004884259259 | AZ4: 6.25 | BB4: 1188 | BC4: 1203.5 | BD4: =BC4-BB4 -> 15.5 | BE4: 110.2 | BF4: 0.004988425926 | BG4: 6.25 | BI4: 1205.7 | BJ4: 1220.9 | BK4: =BJ4-BI4 -> 15.2 | BL4: 110.2 | BM4: 0.004895833333 | BN4: 6.25 | BP4: 1257.7 | BQ4: 1273 | BR4: =BQ4-BP4 -> 15.3 | BS4: 111.1 | BT4: 0.005451388889 | BU4: 6.25 | BW4: 1215.5 | BX4: 1231 | BY4: =BX4-BW4 -> 15.5 | BZ4: 110.3 | CA4: 0.004826388889 | CB4: 6.25 | CD4: 1252.25 | CE4: 1267.5 | CF4: =CE4-CD4 -> 15.25 | CG4: 110.1 | CH4: 0.004826388889 | CI4: 6.25 | CK4: 1286.4 | CL4: 1301.5 | CM4: =CL4-CK4 -> 15.1 | CN4: 110.4 | CO4: 0.004884259259 | CP4: 6.25 | CR4: 2628.8 | CS4: 2644.8 | CT4: =CS4-CR4 -> 16 | CU4: 112.7 | CV4: 0.005173611111 | CW4: 6.25 | CY4: 2663.75 | CZ4: 2679 | DA4: =CZ4-CY4 -> 15.25 | DB4: 111.2 | DC4: 0.00505787037 | DD4: 6.25 | DF4: 2755.3 | DG4: 2770.8 | DH4: =DG4-DF4 -> 15.5 | DI4: 112.3 | DJ4: 0.005104166667 | DK4: 6.25
A5: 102 | B5: Stevens | C5: 100 | E5: 80.1 | F5: 96 | G5: =F5-E5 -> 15.9 | H5: 113.3 | I5: 0.004664351852 | J5: 6.25 | L5: 1786.1 | M5: 1801.25 | N5: =M5-L5 -> 15.15 | O5: 117.7 | P5: 0.004699074074 | Q5: 6.25 | S5: 1803.35 | T5: 1818.45 | U5: =T5-S5 -> 15.1 | V5: 121.8 | W5: 0.004884259259 | X5: 6.25 | Z5: 1049 | AA5: 1064.4 | AB5: =AA5-Z5 -> 15.4 | AC5: 114.4 | AD5: 0.004780092593 | AE5: 6.25 | AG5: 2204.3 | AH5: 2219.5 | AI5: =AH5-AG5 -> 15.2 | AJ5: 115 | AK5: 0.004502314815 | AL5: 6.25 | AN5: 2255.7 | AO5: 2270.9 | AP5: =AO5-AN5 -> 15.2 | AQ5: 117.7 | AR5: 0.004548611111 | AS5: 6.25 | AU5: 2272.7 | AV5: 2287.8 | AW5: =AV5-AU5 -> 15.1 | AX5: 116.3 | AY5: 0.004641203704 | AZ5: 6.25 | BB5: 1150.7 | BC5: 1165.9 | BD5: =BC5-BB5 -> 15.2 | BE5: 117.1 | BF5: 0.004976851852 | BG5: 6.25 | BI5: 1186.1 | BJ5: 1201.3 | BK5: =BJ5-BI5 -> 15.2 | BL5: 117.4 | BM5: 0.004803240741 | BN5: 6.25 | BP5: 1220.8 | BQ5: 1236 | BR5: =BQ5-BP5 -> 15.2 | BS5: 115.7 | BT5: 0.004768518519 | BU5: 6.25 | BW5: 1254.3 | BX5: 1269.8 | BY5: =BX5-BW5 -> 15.5 | BZ5: 116.7 | CA5: 0.005092592593 | CB5: 6.25 | CD5: 1288 | CE5: 1303.75 | CF5: =CE5-CD5 -> 15.75 | CG5: 116.5 | CH5: 0.0059375 | CI5: 6.25 | CK5: 1324.9 | CL5: 1340.1 | CM5: =CL5-CK5 -> 15.2 | CN5: 111.5 | CO5: 0.006527777778 | CP5: 6.25 | CR5: 2669.6 | CS5: 2684.7 | CT5: =CS5-CR5 -> 15.1 | CU5: 115.4 | CV5: 0.005277777778 | CW5: 6.25 | CY5: 2704.5 | CZ5: 2719.6 | DA5: =CZ5-CY5 -> 15.1 | DB5: 115.1 | DC5: 0.005613425926 | DD5: 6.25 | DF5: 889.4 | DG5: 904.5 | DH5: =DG5-DF5 -> 15.1 | DI5: 116.1 | DJ5: 0.005046296296 | DK5: 6.25
A6: 103 | B6: Czech Republic | C6: 98.93750191 | E6: 1005 | F6: 1020 | G6: 15 | H6: 117.5 | I6: 0.004490740741 | J6: 6.25 | L6: 922.2 | M6: 937.2 | N6: 15 | O6: 113.7 | P6: 0.003969907407 | Q6: 6.25 | S6: 956.2 | T6: 971.2 | U6: 15 | V6: 108.3 | W6: 0.004328703704 | X6: 5.187501907 | Z6: 1069.8 | AA6: 1084.9 | AB6: 15.1 | AC6: 121.5 | AD6: 0.003935185185 | AE6: 6.25 | AG6: 1873.8 | AH6: 1889 | AI6: 15.2 | AJ6: 122.2 | AK6: 0.003981481481 | AL6: 6.25 | AN6: 1910.2 | AO6: 1925.7 | AP6: 15.5 | AQ6: 117.9 | AR6: 0.004016203704 | AS6: 6.25 | AU6: 1946.2 | AV6: 1961.4 | AW6: 15.2 | AX6: 116.4 | AY6: 0.003993055556 | AZ6: 6.25 | BB6: 1171 | BC6: 1186.1 | BD6: 15.1 | BE6: 1115.2 | BF6: 0.003946759259 | BG6: 6.25 | BI6: 1222.8 | BJ6: 1238 | BK6: 15.2 | BL6: 114.4 | BM6: 0.003935185185 | BN6: 6.25 | BP6: 1239.7 | BQ6: 1254.8 | BR6: 15.1 | BS6: 114.2 | BT6: 0.003888888889 | BU6: 6.25 | BW6: 1235 | BX6: 1250.1 | BY6: 15.1 | BZ6: 113.1 | CA6: 0.003912037037 | CB6: 6.25 | CD6: 1268.9 | CE6: 1284 | CF6: 15.1 | CG6: 113.6 | CH6: 0.003958333333 | CI6: 6.25 | CK6: 1303.2 | CL6: 1318.3 | CM6: 15.1 | CN6: 113.3 | CO6: 0.003888888889 | CP6: 6.25 | CR6: 2611.2 | CS6: 2626.3 | CT6: 15.1 | CU6: 112.7 | CV6: 0.004212962963 | CW6: 6.25 | CY6: 2645.8 | CZ6: 2661 | DA6: 15.2 | DB6: 111 | DC6: 0.004108796296 | DD6: 6.25 | DF6: 2738.2 | DG6: 2753.3 | DH6: 15.1 | DI6: 116.5 | DJ6: 0.003923611111 | DK6: 6.25
A7: 104 | B7: Stanford | C7: 99.0625 | E7: 58.4 | F7: 74.1 | G7: 15.7 | H7: 112.7 | I7: 0.003842592593 | J7: 6.25 | L7: 1767.8 | M7: 1783 | N7: 15.2 | O7: 112.1 | P7: 0.003483796296 | Q7: 6.25 | S7: 1820.6 | T7: 1836.2 | U7: 15.6 | V7: 112.1 | W7: 0.003541666667 | X7: 6.25 | Z7: 1030.5 | AA7: 1046 | AB7: 15.5 | AC7: 111.9 | AD7: 0.003969907407 | AE7: 6.25 | AG7: 2221 | AH7: 2236.5 | AI7: 15.5 | AJ7: 111.8 | AK7: 0.003564814815 | AL7: 6.25 | AN7: 2239 | AO7: 2254.5 | AP7: 15.5 | AQ7: 111.4 | AR7: 0.003784722222 | AS7: 6.25 | AU7: 2290 | AV7: 2305.5 | AW7: 15.5 | AX7: 111.7 | AY7: 0.003773148148 | AZ7: 6.25 | BB7: 1133.5 | BC7: 1149 | BD7: 15.5 | BE7: 112.5 | BF7: 0.004421296296 | BG7: 6.25 | BI7: 1168 | BJ7: 1183.5 | BK7: 15.5 | BL7: 110.9 | BM7: 0.004212962963 | BN7: 6.25 | BP7: 1203.3 | BQ7: 1219 | BR7: 15.7 | BS7: 110.6 | BT7: 0.003819444444 | BU7: 6.25 | BW7: 1237.5 | BX7: 1253 | BY7: 15.5 | BZ7: 111.8 | CA7: 0.004224537037 | CB7: 6.25 | CD7: 1271.5 | CE7: 1287 | CF7: 15.5 | CG7: 111.3 | CH7: 0.004548611111 | CI7: 6.25 | CK7: 1306 | CL7: 1322 | CM7: 16 | CN7: 109.2 | CO7: 0.004664351852 | CP7: 5.749998093 | CR7: 2687.5 | CS7: 2703.1 | CT7: 15.6 | CU7: 111.1 | CV7: 0.003854166667 | CW7: 6.25 | CY7: 2721.5 | CZ7: 2736.55 | DA7: 15.05 | DB7: 109.3 | DC7: 0.003738425926 | DD7: 5.812501907 | DF7: 872.5 | DG7: 888.1 | DH7: 15.6 | DI7: 111.3 | DJ7: 0.003958333333 | DK7: 6.25
A8: 105 | B8: Norwich | C8: 93.75 | E8: 975.1 | F8: 991.3 | G8: 16.2 | H8: 112.1 | I8: 0.006134259259 | J8: 6.25 | L8: 2357.5 | M8: 2373.1 | N8: 15.6 | O8: 112.5 | P8: 0.006377314815 | Q8: 6.25 | S8: 2405 | T8: 2420.3 | U8: 15.3 | V8: 112 | W8: 0.00587962963 | X8: 6.25 | Z8: 2448.9 | AA8: 2464 | AB8: 15.1 | AC8: 110.6 | AD8: 0.006157407407 | AE8: 6.25 | AG8: 1024.2 | AH8: 1039.6 | AI8: 15.4 | AJ8: 111 | AK8: 0.005902777778 | AL8: 6.25 | AN8: 1058 | AO8: 1073.4 | AP8: 15.4 | AQ8: 111.6 | AR8: 0.005821759259 | AS8: 6.25 | AU8: 1092.1 | AV8: 1107.5 | AW8: 15.4 | AX8: 110.6 | AY8: 0.005740740741 | AZ8: 6.25 | BB8: 2584.8 | BC8: 2599.9 | BD8: 15.1 | BE8: 110.5 | BF8: 0.005601851852 | BG8: 6.25 | BI8: 2617.5 | BJ8: 2633.9 | BK8: 16.4 | BL8: 110.5 | BM8: 0.006157407407 | BN8: 6.25 | BP8: 2652.5 | BQ8: 2668.1 | BR8: 15.6 | BS8: 110.9 | BT8: 0.006180555556 | BU8: 6.25 | BW8: 1343.75 | BX8: 1359.4 | BY8: 15.65 | BZ8: 116.8 | CA8: 0.00587962963 | CB8: 6.25 | CD8: 1385.8 | CE8: 1401.2 | CF8: 15.4 | CG8: 111.1 | CH8: 0.005740740741 | CI8: 6.25 | CK8: 1419.8 | CL8: 1435.2 | CM8: 15.4 | CN8: 111.5 | CO8: 0.005740740741 | CP8: 6.25 | CR8: 1365.5 | CS8: 1378.6 | CT8: 13.1 | CU8: 111.7 | CV8: 0.00693287037 | CW8: 0 | CY8: 1405.4 | CZ8: 1420.6 | DA8: 15.2 | DB8: 110.6 | DC8: 0.006377314815 | DD8: 6.25 | DF8: 2681.6 | DG8: 2698.8 | DH8: 17.2 | DI8: 111.1 | DJ8: 0.005787037037 | DK8: 6.25
A9: 106 | B9: Team Texas | C9: 87.5 | E9: 1109.1 | F9: 1133.2 | G9: 24.1 | H9: 110.8 | I9: 0.00693287037 | J9: 6.25 | L9: 1012.5 | M9: 1026.4 | N9: 13.9 | O9: 111.8 | P9: 0.006944444444 | Q9: 0 | S9: 1030.3 | T9: 1051.09 | U9: 20.79 | V9: 112.5 | W9: 0.007175925926 | X9: 0 | Z9: 2169.7 | AA9: 2185.6 | AB9: 15.9 | AC9: 118.1 | AD9: 0.006226851852 | AE9: 6.25 | AG9: 1088 | AH9: 1103.35 | AI9: 15.35 | AJ9: 115.1 | AK9: 0.006909722222 | AL9: 6.25 | AN9: 1105.2 | AO9: 1121 | AP9: 15.8 | AQ9: 114.3 | AR9: 0.006469907407 | AS9: 6.25 | AU9: 1122.7 | AV9: 1138.25 | AW9: 15.55 | AX9: 113.5 | AY9: 0.006840277778 | AZ9: 6.25 | BB9: 2307.35 | BC9: 2322.5 | BD9: 15.15 | BE9: 115.4 | BF9: 0.006365740741 | BG9: 6.25 | BI9: 2323.9 | BJ9: 2339.25 | BK9: 15.35 | BL9: 115 | BM9: 0.006886574074 | BN9: 6.25 | BP9: 2340.9 | BQ9: 2356 | BR9: 15.1 | BS9: 113.7 | BT9: 0.006770833333 | BU9: 6.25 | BW9: 2559 | BX9: 2574.8 | BY9: 15.8 | BZ9: 112.3 | CA9: 0.00693287037 | CB9: 6.25 | CD9: 2576.75 | CE9: 2592 | CF9: 15.25 | CG9: 113 | CH9: 0.006863425926 | CI9: 6.25 | CK9: 2594.1 | CL9: 2609.5 | CM9: 15.4 | CN9: 112.1 | CO9: 0.00625 | CP9: 6.25 | CR9: 1453.6 | CS9: 1469 | CT9: 15.4 | CU9: 111.1 | CV9: 0.005416666667 | CW9: 6.25 | CY9: 1470.9 | CZ9: 1486 | DA9: 15.1 | DB9: 112.3 | DC9: 0.005509259259 | DD9: 6.25 | DF9: 1488.5 | DG9: 1504 | DH9: 15.5 | DI9: 115.5 | DJ9: 0.006724537037 | DK9: 6.25
A10: 107 | B10: Missouri S&T | C10: 72.5 | E10: 994.4 | F10: 1008.8 | G10: 14.4 | H10: 122.8 | I10: 0.006944444444 | J10: 0 | L10: 2376.6 | M10: 2390 | N10: 13.4 | O10: 114.1 | P10: 0.006944444444 | Q10: 0 | S10: 2390 | T10: 2403.9 | U10: 13.9 | V10: 114.9 | W10: 0.006944444444 | X10: 0 | Z10: 2188 | AA10: 2203.5 | AB10: 15.5 | AC10: 121.3 | AD10: 0.005520833333 | AE10: 6.25 | AG10: 1007.1 | AH10: 1022.55 | AI10: 15.45 | AJ10: 124.9 | AK10: 0.004085648148 | AL10: 6.25 | AN10: 1040.9 | AO10: 1056.4 | AP10: 15.5 | AQ10: 122.2 | AR10: 0.005428240741 | AS10: 6.25 | AU10: 1074.9 | AV10: 1090.5 | AW10: 15.6 | AX10: 122.7 | AY10: 0.004513888889 | AZ10: 6.25 | BB10: 2568.05 | BC10: 2583.35 | BD10: 15.3 | BE10: 120.1 | BF10: 0.005081018519 | BG10: 6.25 | BI10: 2600.75 | BJ10: 2616 | BK10: 15.25 | BL10: 110.8 | BM10: 0.004201388889 | BN10: 6.25 | BP10: 2635.35 | BQ10: 2650.6 | BR10: 15.25 | BS10: 112 | BT10: 0.004537037037 | BU10: 6.25 | BW10: 1368.5 | BX10: 1383.75 | BY10: 15.25 | BZ10: 122.7 | CA10: 0.004328703704 | CB10: 6.25 | CD10: 1402.6 | CE10: 1417.75 | CF10: 15.15 | CG10: 124.3 | CH10: 0.004305555556 | CI10: 6.25 | CK10: 1436.4 | CL10: 1451.5 | CM10: 15.1 | CN10: 122.6 | CO10: 0.004212962963 | CP10: 6.25 | CR10: 1347.5 | CS10: 1363.6 | CT10: 16.1 | CU10: 106 | CV10: 0.005034722222 | CW10: 3.75 | CY10: 1388 | CZ10: 1403.1 | DA10: 15.1 | DB10: 84.9 | DC10: 0.00494212963 | DD10: 0 | DF10: 2698.2 | DG10: 2713.5 | DH10: 15.3 | DI10: 117.5 | DJ10: 0.00443287037 | DK10: 6.25
A11: 108 | B11: Tidewater Virginia | G11: 0 | N11: 0 | U11: 0 | AB11: 0 | AI11: 0 | AP11: 0 | AW11: 0 | BD11: 0 | BK11: 0 | BR11: 0 | BY11: 0 | CF11: 0 | CM11: 0 | CT11: 0 | DA11: 0 | DH11: 0
A12: 109 | B12: Team Austria | C12: 100 | E12: 1002.3 | F12: 1017.45 | G12: 15.15 | H12: 119.1 | I12: 0.006574074074 | J12: 6.25 | L12: 1019.1 | M12: 1034.45 | N12: 15.35 | O12: 117.7 | P12: 0.005393518519 | Q12: 6.25 | S12: 1080.5 | T12: 1096 | U12: 15.5 | V12: 118.9 | W12: 0.006550925926 | X12: 6.25 | Z12: 1856.3 | AA12: 1871.55 | AB12: 15.25 | AC12: 118.7 | AD12: 0.006469907407 | AE12: 6.25 | AG12: 2465.6 | AH12: 2480.8 | AI12: 15.2 | AJ12: 117.3 | AK12: 0.003483796296 | AL12: 6.25 | AN12: 2517.2 | AO12: 2532.9 | AP12: 15.7 | AQ12: 114.4 | AR12: 0.00693287037 | AS12: 6.25 | AU12: 2534 | AV12: 2549.1 | AW12: 15.1 | AX12: 115.9 | AY12: 0.006273148148 | AZ12: 6.25 | BB12: 1139.9 | BC12: 1155 | BD12: 15.1 | BE12: 119.3 | BF12: 0.006458333333 | BG12: 6.25 | BI12: 1191.1 | BJ12: 1206.3 | BK12: 15.2 | BL12: 120 | BM12: 0.006296296296 | BN12: 6.25 | BP12: 1223.7 | BQ12: 1239 | BR12: 15.3 | BS12: 119.7 | BT12: 0.006388888889 | BU12: 6.25 | BW12: 2374.8 | BX12: 2390 | BY12: 15.2 | BZ12: 117.7 | CA12: 0.006238425926 | CB12: 6.25 | CD12: 2408 | CE12: 2423.9 | CF12: 15.9 | CG12: 118.4 | CH12: 0.006516203704 | CI12: 6.25 | CK12: 2441.9 | CL12: 2457 | CM12: 15.1 | CN12: 118.8 | CO12: 0.006273148148 | CP12: 6.25 | CR12: 1394.3 | CS12: 1409.5 | CT12: 15.2 | CU12: 117.6 | CV12: 0.006435185185 | CW12: 6.25 | CY12: 1427.3 | CZ12: 1442.5 | DA12: 15.2 | DB12: 118.2 | DC12: 0.006469907407 | DD12: 6.25 | DF12: 1522.8 | DG12: 1538 | DH12: 15.2 | DI12: 123.8 | DJ12: 0.006331018519 | DK12: 6.25
A13: 110 | B13: Middlebury College | C13: 100 | E13: 402.7 | F13: 418.9 | G13: 16.2 | H13: 114.9 | I13: 0.005358796296 | J13: 6.25 | L13: 1152.05 | M13: 1168.65 | N13: 16.6 | O13: 114.1 | P13: 0.005578703704 | Q13: 6.25 | S13: 1187.5 | T13: 1203.2 | U13: 15.7 | V13: 112.5 | W13: 0.005162037037 | X13: 6.25 | Z13: 1099.5 | AA13: 1115.2 | AB13: 15.7 | AC13: 112.7 | AD13: 0.004930555556 | AE13: 6.25 | AG13: 1153.4 | AH13: 1169 | AI13: 15.6 | AJ13: 110.9 | AK13: 0.004861111111 | AL13: 6.25 | AN13: 1188.8 | AO13: 1204.2 | AP13: 15.4 | AQ13: 111.3 | AR13: 0.004780092593 | AS13: 6.25 | AU13: 1205.5 | AV13: 1221.25 | AW13: 15.75 | AX13: 111.1 | AY13: 0.004861111111 | AZ13: 6.25 | BB13: 1127.45 | BC13: 1143 | BD13: 15.55 | BE13: 111.7 | BF13: 0.005011574074 | BG13: 6.25 | BI13: 1162.4 | BJ13: 1178 | BK13: 15.6 | BL13: 112 | BM13: 0.005081018519 | BN13: 6.25 | BP13: 1198.4 | BQ13: 1213.5 | BR13: 15.1 | BS13: 111.1 | BT13: 0.004872685185 | BU13: 6.25 | BW13: 1732.5 | BX13: 1748.7 | BY13: 16.2 | BZ13: 114.9 | CA13: 0.005590277778 | CB13: 6.25 | CD13: 1768.4 | CE13: 1784.8 | CF13: 16.4 | CG13: 113.9 | CH13: 0.005636574074 | CI13: 6.25 | CK13: 1803.2 | CL13: 1818.8 | CM13: 15.6 | CN13: 113.1 | CO13: 0.005393518519 | CP13: 6.25 | CR13: 1359.1 | CS13: 1374.6 | CT13: 15.5 | CU13: 111.9 | CV13: 0.005138888889 | CW13: 6.25 | CY13: 1409.1 | CZ13: 1424.8 | DA13: 15.7 | DB13: 114.4 | DC13: 0.005162037037 | DD13: 6.25 | DF13: 1439.05 | DG13: 1454.8 | DH13: 15.75 | DI13: 111 | DJ13: 0.005462962963 | DK13: 6.25
A14: 111 | B14: U of So Cal | C14: 93.24999809 | E14: 971 | F14: 999.45 | G14: 28.45 | H14: 110 | I14: 0.006944444444 | J14: 6.25 | L14: 1037.35 | M14: 1061.9 | N14: 24.55 | O14: 109.1 | P14: 0.005960648148 | Q14: 5.687499046 | S14: 1063.8 | T14: 1079.55 | U14: 15.75 | V14: 113.1 | W14: 0.00380787037 | X14: 6.25 | Z14: 1838.25 | AA14: 1854.9 | AB14: 16.65 | AC14: 114.9 | AD14: 0.003761574074 | AE14: 6.25 | AG14: 2482.65 | AH14: 2498.01 | AI14: 15.36 | AJ14: 116.4 | AK14: 0.003263888889 | AL14: 6.25 | AN14: 2500.6 | AO14: 2516 | AP14: 15.4 | AQ14: 116 | AR14: 0.006377314815 | AS14: 6.25 | AU14: 2550.8 | AV14: 2566.1 | AW14: 15.3 | AX14: 115.3 | AY14: 0.003611111111 | AZ14: 6.25 | BB14: 1161.3 | BC14: 1190.6 | BD14: 29.3 | BE14: 100.1 | BF14: 0.00693287037 | BG14: 0.06249904633 | BI14: 1207.8 | BJ14: 1223.1 | BK14: 15.3 | BL14: 115.5 | BM14: 0.003530092593 | BN14: 6.25 | BP14: 1240.6 | BQ14: 1255.7 | BR14: 15.1 | BS14: 115.5 | BT14: 0.003414351852 | BU14: 6.25 | BW14: 2358.2 | BX14: 2374 | BY14: 15.8 | BZ14: 114.7 | CA14: 0.003773148148 | CB14: 6.25 | CD14: 2392 | CE14: 2407.1 | CF14: 15.1 | CG14: 114.8 | CH14: 0.003657407407 | CI14: 6.25 | CK14: 2425.9 | CL14: 2441.1 | CM14: 15.2 | CN14: 115.6 | CO14: 0.003599537037 | CP14: 6.25 | CR14: 1378.4 | CS14: 1393.5 | CT14: 15.1 | CU14: 115.5 | CV14: 0.003564814815 | CW14: 6.25 | CY14: 1411.3 | CZ14: 1426.5 | DA14: 15.2 | DB14: 116.3 | DC14: 0.003622685185 | DD14: 6.25 | DF14: 1506.4 | DG14: 1521.5 | DH14: 15.1 | DI14: 115.7 | DJ14: 0.003414351852 | DK14: 6.25
A15: 112 | B15: North Carolina | C15: 93.75 | G15: 0 | L15: 1133.95 | M15: 1150 | N15: 16.05 | O15: 116.8 | P15: 0.005821759259 | Q15: 6.25 | S15: 1169.65 | T15: 1185.83 | U15: 16.18 | V15: 115.3 | W15: 0.005821759259 | X15: 6.25 | Z15: 1118.1 | AA15: 1133.25 | AB15: 15.15 | AC15: 124.8 | AD15: 0.005590277778 | AE15: 6.25 | AG15: 1134.8 | AH15: 1150.4 | AI15: 15.6 | AJ15: 120.1 | AK15: 0.005833333333 | AL15: 6.25 | AN15: 1170.25 | AO15: 1185.5 | AP15: 15.25 | AQ15: 120.9 | AR15: 0.005729166667 | AS15: 6.25 | AU15: 1222.45 | AV15: 1237.6 | AW15: 15.15 | AX15: 121.6 | AY15: 0.005613425926 | AZ15: 6.25 | BB15: 1108.5 | BC15: 1123.7 | BD15: 15.2 | BE15: 120.3 | BF15: 0.005497685185 | BG15: 6.25 | BI15: 1144.05 | BJ15: 1159.1 | BK15: 15.05 | BL15: 118.1 | BM15: 0.005717592593 | BN15: 6.25 | BP15: 1179.25 | BQ15: 1195.5 | BR15: 16.25 | BS15: 115.6 | BT15: 0.0059375 | BU15: 6.25 | BW15: 1749.8 | BX15: 1764.9 | BY15: 15.1 | BZ15: 119.3 | CA15: 0.005613425926 | CB15: 6.25 | CD15: 1785.8 | CE15: 1801 | CF15: 15.2 | CG15: 117.9 | CH15: 0.005636574074 | CI15: 6.25 | CK15: 1819.9 | CL15: 1835.1 | CM15: 15.2 | CN15: 114.1 | CO15: 0.005717592593 | CP15: 6.25 | CR15: 1375.8 | CS15: 1391 | CT15: 15.2 | CU15: 115.7 | CV15: 0.005474537037 | CW15: 6.25 | CY15: 1392 | CZ15: 1407.1 | DA15: 15.1 | DB15: 113.9 | DC15: 0.005486111111 | DD15: 6.25 | DF15: 1421.9 | DG15: 1437.1 | DH15: 15.2 | DI15: 118.9 | DJ15: 0.005405092593 | DK15: 6.25
A16: 113 | B16: Kentucky/Indiana | C16: 79.81249809 | E16: 1721.8 | F16: 1737.6 | G16: 15.8 | H16: 111.9 | I16: 0.005810185185 | J16: 6.25 | N16: 0 | U16: 0 | Z16: 971.35 | AA16: 985.75 | AB16: 14.4 | AC16: 114 | AD16: 0.00693287037 | AE16: 0 | AG16: 2456.6 | AH16: 2475.1 | AI16: 18.5 | AJ16: 108.7 | AK16: 0.00693287037 | AL16: 5.437498093 | AN16: 2492.5 | AO16: 2507.6 | AP16: 15.1 | AQ16: 115.5 | AR16: 0.00630787037 | AS16: 6.25 | AU16: 2525 | AV16: 2540.1 | AW16: 15.1 | AX16: 114.5 | AY16: 0.00619212963 | AZ16: 6.25 | BB16: 1991.9 | BC16: 2007 | BD16: 15.1 | BE16: 116.1 | BF16: 0.006180555556 | BG16: 6.25 | BI16: 2007.5 | BJ16: 2027.7 | BK16: 20.2 | BL16: 114.4 | BM16: 0.006203703704 | BN16: 6.25 | BP16: 2059.85 | BQ16: 2074.9 | BR16: 15.05 | BS16: 109 | BT16: 0.00650462963 | BU16: 5.625 | BW16: 1334.2 | BX16: 1349.5 | BY16: 15.3 | BZ16: 132.9 | CA16: 0.005775462963 | CB16: 6.25 | CD16: 1386.6 | CE16: 1401.8 | CF16: 15.2 | CG16: 129.9 | CH16: 0.005625 | CI16: 6.25 | CK16: 1403.8 | CL16: 1419 | CM16: 15.2 | CN16: 125.7 | CO16: 0.005243055556 | CP16: 6.25 | CR16: 1319.1 | CS16: 1334.5 | CT16: 15.4 | CU16: 131.5 | CV16: 0.0046875 | CW16: 6.25 | CY16: 1368.6 | CZ16: 1384.8 | DA16: 16.2 | DB16: 131.2 | DC16: 0.005451388889 | DD16: 6.25 | DF16: 1401 | DG16: 1416.2 | DH16: 15.2 | DI16: 132.7 | DJ16: 0.006006944444 | DK16: 6.25
A17: 114 | B17: Las Vegas | C17: 100 | E17: 886.6 | F17: 902.05 | G17: 15.45 | H17: 119.7 | I17: 0.004131944444 | J17: 6.25 | L17: 1423.7 | M17: 1439.1 | N17: 15.4 | O17: 119.6 | P17: 0.004513888889 | Q17: 6.25 | S17: 1474 | T17: 1489.5 | U17: 15.5 | V17: 125.9 | W17: 0.004861111111 | X17: 6.25 | Z17: 2440.6 | AA17: 2456.6 | AB17: 16 | AC17: 127.1 | AD17: 0.00431712963 | AE17: 6.25 | AG17: 1544.5 | AH17: 1560.1 | AI17: 15.6 | AJ17: 121.9 | AK17: 0.004664351852 | AL17: 6.25 | AN17: 1578.1 | AO17: 1594 | AP17: 15.9 | AQ17: 125.7 | AR17: 0.004872685185 | AS17: 6.25 | AU17: 1611.4 | AV17: 1627 | AW17: 15.6 | AX17: 122.3 | AY17: 0.004606481481 | AZ17: 6.25 | BB17: 1256.8 | BC17: 1272 | BD17: 15.2 | BE17: 123.7 | BF17: 0.004467592593 | BG17: 6.25 | BI17: 1273 | BJ17: 1288.5 | BK17: 15.5 | BL17: 126.8 | BM17: 0.004363425926 | BN17: 6.25 | BP17: 1322.5 | BQ17: 1338 | BR17: 15.5 | BS17: 125 | BT17: 0.004247685185 | BU17: 6.25 | BW17: 1257 | BX17: 1272.5 | BY17: 15.5 | BZ17: 120.1 | CA17: 0.004340277778 | CB17: 6.25 | CD17: 1291 | CE17: 1306 | CF17: 15 | CG17: 118.7 | CH17: 0.004201388889 | CI17: 6.25 | CK17: 1325 | CL17: 1340 | CM17: 15 | CN17: 125.6 | CO17: 0.004375 | CP17: 6.25 | CR17: 1437.75 | CS17: 1453.25 | CT17: 15.5 | CU17: 112.7 | CV17: 0.004328703704 | CW17: 6.25 | CY17: 1471 | CZ17: 1488 | DA17: 17 | DB17: 113.2 | DC17: 0.004756944444 | DD17: 6.25 | DF17: 1443.5 | DG17: 1460 | DH17: 16.5 | DI17: 124.3 | DJ17: 0.004895833333 | DK17: 6.25
A18: 115 | B18: Team Capitol DC | C18: 93.75 | E18: 1747.3 | F18: 1765.9 | G18: 18.6 | H18: 110.7 | I18: 0.004328703704 | J18: 6.25 | L18: 2413.85 | M18: 2429 | N18: 15.15 | O18: 110.3 | P18: 0.004155092593 | Q18: 6.25 | S18: 2430.65 | T18: 2445.85 | U18: 15.2 | V18: 110.6 | W18: 0.003831018519 | X18: 6.25 | Z18: 986.75 | AA18: 1002 | AB18: 15.25 | AC18: 110.7 | AD18: 0.003715277778 | AE18: 6.25 | AG18: 2476.8 | AH18: 2492 | AI18: 15.2 | AJ18: 110.1 | AK18: 0.004270833333 | AL18: 6.25 | AN18: 2509.3 | AO18: 2524.5 | AP18: 15.2 | AQ18: 110.8 | AR18: 0.004270833333 | AS18: 6.25 | AU18: 2541.9 | AV18: 2557 | AW18: 15.1 | AX18: 110.6 | AY18: 0.004293981481 | AZ18: 6.25 | BB18: 1981 | BC18: 1991 | BD18: 10 | BE18: 110.7 | BF18: 0.003831018519 | BG18: 0 | BI18: 2024.25 | BJ18: 2040 | BK18: 15.75 | BL18: 111 | BM18: 0.004386574074 | BN18: 6.25 | BP18: 2041.3 | BQ18: 2056.65 | BR18: 15.35 | BS18: 110.7 | BT18: 0.004247685185 | BU18: 6.25 | BW18: 1351.1 | BX18: 1367 | BY18: 15.9 | BZ18: 111.7 | CA18: 0.003819444444 | CB18: 6.25 | CD18: 1368.2 | CE18: 1384.05 | CF18: 15.85 | CG18: 111.7 | CH18: 0.003854166667 | CI18: 6.25 | CK18: 1420.4 | CL18: 1436.1 | CM18: 15.7 | CN18: 111.9 | CO18: 0.00380787037 | CP18: 6.25 | CR18: 1335.8 | CS18: 1351.5 | CT18: 15.7 | CU18: 111.3 | CV18: 0.003865740741 | CW18: 6.25 | CY18: 1352.3 | CZ18: 1368.2 | DA18: 15.9 | DB18: 110.8 | DC18: 0.003900462963 | DD18: 6.25 | DF18: 1384.8 | DG18: 1400.5 | DH18: 15.7 | DI18: 114.1 | DJ18: 0.003993055556 | DK18: 6.25
A19: 116 | B19: Team Alberta | C19: 100 | E19: 866.1 | F19: 881.75 | G19: 15.65 | H19: 111.5 | I19: 0.003842592593 | J19: 6.25 | L19: 1441.05 | M19: 1456.2 | N19: 15.15 | O19: 110.5 | P19: 0.004039351852 | Q19: 6.25 | S19: 1457.55 | T19: 1473.7 | U19: 16.15 | V19: 110.3 | W19: 0.003518518519 | X19: 6.25 | Z19: 2423.7 | AA19: 2439 | AB19: 15.3 | AC19: 111.3 | AD19: 0.003912037037 | AE19: 6.25 | AG19: 1527.9 | AH19: 1543 | AI19: 15.1 | AJ19: 110.5 | AK19: 0.003726851852 | AL19: 6.25 | AN19: 1561.7 | AO19: 1576.8 | AP19: 15.1 | AQ19: 110.7 | AR19: 0.003726851852 | AS19: 6.25 | AU19: 1595.3 | AV19: 1610.4 | AW19: 15.1 | AX19: 110.3 | AY19: 0.00431712963 | AZ19: 6.25 | BB19: 1239.2 | BC19: 1254.3 | BD19: 15.1 | BE19: 110.4 | BF19: 0.003738425926 | BG19: 6.25 | BI19: 1290 | BJ19: 1305.1 | BK19: 15.1 | BL19: 111.2 | BM19: 0.003645833333 | BN19: 6.25 | BP19: 1306.6 | BQ19: 1321.6 | BR19: 15 | BS19: 112.3 | BT19: 0.003680555556 | BU19: 6.25 | BW19: 1274.6 | BX19: 1289.7 | BY19: 15.1 | BZ19: 110.2 | CA19: 0.003796296296 | CB19: 6.25 | CD19: 1308.6 | CE19: 1323.7 | CF19: 15.1 | CG19: 110.2 | CH19: 0.004166666667 | CI19: 6.25 | CK19: 1340.8 | CL19: 1356 | CM19: 15.2 | CN19: 112.1 | CO19: 0.003831018519 | CP19: 6.25 | CR19: 1454.3 | CS19: 1469.5 | CT19: 15.2 | CU19: 110.3 | CV19: 0.003981481481 | CW19: 6.25 | CY19: 1489 | CZ19: 1504.4 | DA19: 15.4 | DB19: 111.1 | DC19: 0.003773148148 | DD19: 6.25 | DF19: 1461 | DG19: 1476.3 | DH19: 15.3 | DI19: 115.5 | DJ19: 0.003888888889 | DK19: 6.25
A20: 117 | B20: AZ State/New Mexico | C20: 66.5625 | E20: 2400.8 | F20: 2411.2 | G20: 10.4 | H20: 109.2 | I20: 0.006944444444 | J20: 0 | N20: 0 | U20: 0 | Z20: 1208.1 | AA20: 1223.4 | AB20: 15.3 | AC20: 111 | AD20: 0.003726851852 | AE20: 6.25 | AG20: 1042 | AH20: 1059.6 | AI20: 17.6 | AJ20: 109 | AK20: 0.004918981481 | AL20: 5.625 | AN20: 1062 | AO20: 1079 | AP20: 17 | AQ20: 108.6 | AR20: 0.005115740741 | AS20: 5.374999046 | AU20: 1116 | AV20: 1131.5 | AW20: 15.5 | AX20: 114.1 | AY20: 0.004861111111 | AZ20: 6.25 | BB20: 1628.7 | BC20: 1643.1 | BD20: 14.4 | BE20: 115.1 | BF20: 0.006446759259 | BG20: 0 | BI20: 1663.1 | BJ20: 1678.6 | BK20: 15.5 | BL20: 116.8 | BM20: 0.004490740741 | BN20: 6.25 | BP20: 1697.1 | BQ20: 1712.7 | BR20: 15.6 | BS20: 119.3 | BT20: 0.004513888889 | BU20: 6.25 | BW20: 1274.9 | BX20: 1291.1 | BY20: 16.2 | BZ20: 112.5 | CA20: 0.004386574074 | CB20: 6.25 | CD20: 1327.1 | CE20: 1342.5 | CF20: 15.4 | CG20: 113.9 | CH20: 0.002881944444 | CI20: 6.25 | CK20: 1344.3 | CL20: 1360 | CM20: 15.7 | CN20: 113.9 | CO20: 0.004236111111 | CP20: 6.25 | CR20: 1837.8 | CS20: 1862.6 | CT20: 24.8 | CU20: 109.5 | CV20: 0.006898148148 | CW20: 5.9375 | CY20: 1900.7 | CZ20: 1917.1 | DA20: 16.4 | DB20: 109.4 | DC20: 0.004548611111 | DD20: 5.875000954 | DF20: 1919.1 | DG20: 1923.2 | DH20: 4.1 | DI20: 110 | DJ20: 0.004456018519 | DK20: 0
A21: 118 | B21: Santa Clara | C21: 99.0625 | E21: 2320.3 | F21: 2335.6 | G21: 15.3 | H21: 121.3 | I21: 0.005798611111 | J21: 6.25 | L21: 2098.95 | M21: 2114.2 | N21: 15.25 | O21: 115 | P21: 0.005694444444 | Q21: 6.25 | S21: 2133.7 | T21: 2149.2 | U21: 15.5 | V21: 111.8 | W21: 0.005810185185 | X21: 6.25 | Z21: 1492.65 | AA21: 1507.7 | AB21: 15.05 | AC21: 117.3 | AD21: 0.005520833333 | AE21: 6.25 | AG21: 1084.3 | AH21: 1100 | AI21: 15.7 | AJ21: 111 | AK21: 0.005613425926 | AL21: 6.25 | AN21: 1119.3 | AO21: 1135.05 | AP21: 15.75 | AQ21: 115.7 | AR21: 0.00599537037 | AS21: 6.25 | AU21: 1153.7 | AV21: 1169.1 | AW21: 15.4 | AX21: 112.3 | AY21: 0.005914351852 | AZ21: 6.25 | BB21: 1127.05 | BC21: 1245.6 | BD21: 118.55 | BE21: 108.5 | BF21: 0.00693287037 | BG21: 5.3125 | BI21: 1263.95 | BJ21: 1279 | BK21: 15.05 | BL21: 117.9 | BM21: 0.005601851852 | BN21: 6.25 | BP21: 1298.15 | BQ21: 1313.5 | BR21: 15.35 | BS21: 117.2 | BT21: 0.005740740741 | BU21: 6.25 | BW21: 2095 | BX21: 2110.5 | BY21: 15.5 | BZ21: 113.3 | CA21: 0.005925925926 | CB21: 6.25 | CD21: 2129.1 | CE21: 2144.5 | CF21: 15.4 | CG21: 114.7 | CH21: 0.005775462963 | CI21: 6.25 | CK21: 2164.75 | CL21: 2180 | CM21: 15.25 | CN21: 115.5 | CO21: 0.005821759259 | CP21: 6.25 | CR21: 2460.8 | CS21: 2475.8 | CT21: 15 | CU21: 112.7 | CV21: 0.005625 | CW21: 6.25 | CY21: 2495.1 | CZ21: 2510.1 | DA21: 15 | DB21: 115.9 | DC21: 0.005590277778 | DD21: 6.25 | DF21: 2550.7 | DG21: 2566 | DH21: 15.3 | DI21: 119.55 | DJ21: 0.005659722222 | DK21: 6.25
A22: 119 | B22: West Virginia | C22: 74.43749905 | G22: 0 | L22: 1003.4 | M22: 1011.1 | N22: 7.7 | O22: 115 | P22: 0.007152777778 | Q22: 0 | S22: 1013.9 | T22: 1028.2 | U22: 14.3 | V22: 108 | W22: 0.006481481481 | X22: 0 | AB22: 0 | AG22: 1023.35 | AH22: 1038.9 | AI22: 15.55 | AJ22: 125.6 | AK22: 0.004513888889 | AL22: 6.25 | AN22: 1080.7 | AO22: 1096.9 | AP22: 16.2 | AQ22: 123 | AR22: 0.005486111111 | AS22: 6.25 | AU22: 1099.25 | AV22: 1114.5 | AW22: 15.25 | AX22: 122.5 | AY22: 0.005185185185 | AZ22: 6.25 | BB22: 1646.8 | BC22: 1662 | BD22: 15.2 | BE22: 123.6 | BF22: 0.004606481481 | BG22: 6.25 | BI22: 1680.2 | BJ22: 1695.5 | BK22: 15.3 | BL22: 122.5 | BM22: 0.004351851852 | BN22: 6.25 | BP22: 1714.8 | BQ22: 1730 | BR22: 15.2 | BS22: 118.3 | BT22: 0.004363425926 | BU22: 6.25 | BW22: 1292.7 | BX22: 1308.2 | BY22: 15.5 | BZ22: 121.11 | CA22: 0.004270833333 | CB22: 6.25 | CD22: 1309.6 | CE22: 1325.1 | CF22: 15.5 | CG22: 116.8 | CH22: 0.004178240741 | CI22: 6.25 | CK22: 1361.2 | CL22: 1376.3 | CM22: 15.1 | CN22: 118.5 | CO22: 0.004155092593 | CP22: 6.25 | CR22: 1864.5 | CS22: 1879.6 | CT22: 15.1 | CU22: 109.1 | CV22: 0.004166666667 | CW22: 5.687499046 | CY22: 1882.3 | CZ22: 1897.5 | DA22: 15.2 | DB22: 127.7 | DC22: 0.004351851852 | DD22: 6.25 | DF22: 1925.35 | DG22: 1940.5 | DH22: 15.15 | DI22: 121.6 | DJ22: 0.004340277778 | DK22: 6.25
A23: 120 | B23: Team Ontario | C23: 100 | E23: 2337.8 | F23: 2354.1 | G23: =F23-E23 -> 16.3 | H23: 110.4 | I23: 0.006215277778 | J23: 6.25 | L23: 2117 | M23: 2133.1 | N23: =M23-L23 -> 16.1 | O23: 110.5 | P23: 0.0059375 | Q23: 6.25 | S23: 2151.7 | T23: 2167.4 | U23: =T23-S23 -> 15.7 | V23: 110.3 | W23: 0.005949074074 | X23: 6.25 | Z23: 1510.5 | AA23: 1526.6 | AB23: =AA23-Z23 -> 16.1 | AC23: 110.6 | AD23: 0.006354166667 | AE23: 6.25 | AG23: 1066.05 | AH23: 1082.3 | AI23: =AH23-AG23 -> 16.25 | AJ23: 111.3 | AK23: 0.006643518519 | AL23: 6.25 | AN23: 1101.75 | AO23: 1118 | AP23: =AO23-AN23 -> 16.25 | AQ23: 111.3 | AR23: 0.00650462963 | AS23: 6.25 | AU23: 1136.5 | AV23: 1152.45 | AW23: =AV23-AU23 -> 15.95 | AX23: 118.1 | AY23: 0.00693287037 | AZ23: 6.25 | BB23: 1247.35 | BC23: 1263.3 | BD23: =BC23-BB23 -> 15.95 | BE23: 110.7 | BF23: 0.006446759259 | BG23: 6.25 | BI23: 1280.35 | BJ23: 1296.3 | BK23: =BJ23-BI23 -> 15.95 | BL23: 110.9 | BM23: 0.006261574074 | BN23: 6.25 | BP23: 1315.2 | BQ23: 1331.3 | BR23: =BQ23-BP23 -> 16.1 | BS23: 111 | BT23: 0.006319444444 | BU23: 6.25 | BW23: 2076.55 | BX23: 2092.1 | BY23: =BX23-BW23 -> 15.55 | BZ23: 110.9 | CA23: 0.006238425926 | CB23: 6.25 | CD23: 2112.2 | CE23: 2128.2 | CF23: =CE23-CD23 -> 16 | CG23: 110.8 | CH23: 0.006388888889 | CI23: 6.25 | CK23: 2146.2 | CL23: 2162.1 | CM23: =CL23-CK23 -> 15.9 | CN23: 111 | CO23: 0.006400462963 | CP23: 6.25 | CR23: 2478.2 | CS23: 2494.1 | CT23: =CS23-CR23 -> 15.9 | CU23: 111 | CV23: 0.006516203704 | CW23: 6.25 | CY23: 2513.1 | CZ23: 2529.3 | DA23: =CZ23-CY23 -> 16.2 | DB23: 110.8 | DC23: 0.006446759259 | DD23: 6.25 | DF23: 2532.05 | DG23: 2548.4 | DH23: =DG23-DF23 -> 16.35 | DI23: 117.2 | DJ23: 0.006921296296 | DK23: 6.25

Sheet 8-3, 8-4 Laundry
F1: Load 1 of 8 (ORANGE) | P1: Load 2 of 8 (ORANGE) | Z1: Load 3 of 8 (ORANGE) | AJ1: Load 4 of 8 (ORANGE) | AT1: Load 5 of 8 (BLUE) | BD1: Load 6 of 8 (ORANGE) | BN1: Load 7 of 8 (BLUE) | BX1: Load 8 of 8 (ORANGE)
F2: Friday, October 4 (Day 12) @ 7:30 a.m. | P2: Saturday, October 5 (Day 13) @ 7:30 a.m. | Z2: Sunday, October 6 (Day 14) @ 7:30 a.m. | AJ2: Monday, October 7 (Day 15) @ 1:00 p.m. | AT2: Monday, October 7 (Day 15) @ 1:00 p.m. | BD2: Wednesday, October 9 (Day 17) @ 10:30 a.m. | BN2: Wednesday, October 9 (Day 17) @ 10:30 a.m. | BX2: Friday, October 11 (Day 19) @ 7:30 a.m.
A3: Lot # | B3: Team | C3: Current Gross Clothes Washer Score | D3: Current Gross Clothes Dryer Score | F3: Start Weight (lb) | G3: Audible Indication | H3: Visible Indication | I3: Clothes Washer Points Earned | J3: Machine Dry | K3: Air Dry | L3: End Weight (lb) | M3: % of Original Weight | N3: Clothes Dryer Points Earned | P3: Start Weight (lb) | Q3: Audible Indication | R3: Visible Indication | S3: Clothes Washer Points Earned | T3: Machine Dry | U3: Air Dry | V3: End Weight (lb) | W3: % of Original Weight | X3: Clothes Dryer Points Earned | Z3: Start Weight (lb) | AA3: Audible Indication | AB3: Visible Indication | AC3: Clothes Washer Points Earned | AD3: Machine Dry | AE3: Air Dry | AF3: End Weight (lb) | AG3: % of Original Weight | AH3: Clothes Dryer Points Earned | AJ3: Start Weight (lb) | AK3: Audible Indication | AL3: Visible Indication | AM3: Clothes Washer Points Earned | AN3: Machine Dry | AO3: Air Dry | AP3: End Weight (lb) | AQ3: % of Original Weight | AR3: Clothes Dryer Points Earned | AT3: Start Weight (lb) | AU3: Audible Indication | AV3: Visible Indication | AW3: Clothes Washer Points Earned | AX3: Machine Dry | AY3: Air Dry | AZ3: End Weight (lb) | BA3: % of Original Weight | BB3: Clothes Dryer Points Earned | BD3: Start Weight (lb) | BE3: Audible Indication | BF3: Visible Indication | BG3: Clothes Washer Points Earned | BH3: Machine Dry | BI3: Air Dry | BJ3: End Weight (lb) | BK3: % of Original Weight | BL3: Clothes Dryer Points Earned | BN3: Start Weight (lb) | BO3: Audible Indication | BP3: Visible Indication | BQ3: Clothes Washer Points Earned | BR3: Machine Dry | BS3: Air Dry | BT3: End Weight (lb) | BU3: % of Original Weight | BV3: Clothes Dryer Points Earned | BX3: Start Weight (lb) | BY3: Audible Indication | BZ3: Visible Indication | CA3: Clothes Washer Points Earned | CB3: Machine Dry | CC3: Air Dry | CD3: End Weight (lb) | CE3: % of Original Weight | CF3: Clothes Dryer Points Earned
A4: 101 | B4: SCI-Arc/Caltech | C4: 20 | D4: 40 | F4: 5.71 | G4: N | H4: Y | I4: 2.5 | J4: Y | K4: N | L4: 5.56 | M4: =IFERROR(L4/F4,"") -> 0.9737302977 | N4: 5 | P4: 5.57 | Q4: Y | R4: Y | S4: 2.5 | T4: Y | U4: N | V4: 5.56 | W4: =IFERROR(V4/P4,"") -> 0.9982046679 | X4: 5 | Z4: 5.55 | AA4: N | AB4: Y | AC4: 2.5 | AD4: Y | AE4: N | AF4: 5.51 | AG4: =IFERROR(AF4/Z4,"") -> 0.9927927928 | AH4: 5 | AJ4: 5.52 | AK4: Y | AL4: Y | AM4: 2.5 | AN4: Y | AO4: N | AP4: 5.51 | AQ4: =IFERROR(AP4/AJ4,"") -> 0.9981884058 | AR4: 5 | AT4: 5.48 | AU4: Y | AV4: Y | AW4: 2.5 | AX4: Y | AY4: N | AZ4: 5.39 | BA4: =IFERROR(AZ4/AT4,"") -> 0.9835766423 | BB4: 5 | BD4: 5.56 | BE4: Y | BF4: N | BG4: 2.5 | BH4: Y | BI4: N | BJ4: 5.53 | BK4: =IFERROR(BJ4/BD4,"") -> 0.9946043165 | BL4: 5 | BN4: 5.42 | BO4: Y | BP4: N | BQ4: 2.5 | BR4: Y | BS4: N | BT4: 5.4 | BU4: =IFERROR(BT4/BN4,"") -> 0.9963099631 | BV4: 5 | BX4: 5.56 | BY4: N | BZ4: Y | CA4: 2.5 | CB4: Y | CC4: N | CD4: 5.55 | CE4: =IFERROR(CD4/BX4,"") -> 0.9982014388 | CF4: 5
A5: 102 | B5: Stevens | C5: 20 | D5: 40 | F5: 5.63 | G5: Y | H5: Y | I5: 2.5 | J5: Y | K5: N | L5: 5.51 | M5: =IFERROR(L5/F5,"") -> 0.9786856128 | N5: 5 | P5: 5.53 | Q5: Y | R5: Y | S5: 2.5 | T5: Y | U5: N | V5: 5.49 | W5: =IFERROR(V5/P5,"") -> 0.9927667269 | X5: 5 | Z5: 5.44 | AA5: Y | AB5: Y | AC5: 2.5 | AD5: Y | AE5: N | AF5: 5.42 | AG5: =IFERROR(AF5/Z5,"") -> 0.9963235294 | AH5: 5 | AJ5: 5.42 | AK5: Y | AL5: Y | AM5: 2.5 | AN5: Y | AO5: N | AP5: 5.4 | AQ5: =IFERROR(AP5/AJ5,"") -> 0.9963099631 | AR5: 5 | AT5: 5.06 | AU5: Y | AV5: Y | AW5: 2.5 | AX5: Y | AY5: N | AZ5: 4.98 | BA5: =IFERROR(AZ5/AT5,"") -> 0.9841897233 | BB5: 5 | BD5: 5.5 | BE5: Y | BF5: N | BG5: 2.5 | BH5: Y | BI5: N | BJ5: 5.44 | BK5: =IFERROR(BJ5/BD5,"") -> 0.9890909091 | BL5: 5 | BN5: 5.02 | BO5: Y | BP5: N | BQ5: 2.5 | BR5: Y | BS5: N | BT5: 5.01 | BU5: =IFERROR(BT5/BN5,"") -> 0.9980079681 | BV5: 5 | BX5: 5.47 | BY5: Y | BZ5: Y | CA5: 2.5 | CB5: Y | CC5: N | CD5: 5.43 | CE5: =IFERROR(CD5/BX5,"") -> 0.9926873857 | CF5: 5
A6: 103 | B6: Czech Republic | C6: 20 | D6: 38.97196135 | F6: 5.51 | G6: N | H6: Y | I6: 2.5 | J6: Y | K6: N | L6: 5.41 | M6: 0.9818511797 | N6: 5 | P6: 5.42 | Q6: N | R6: Y | S6: 2.5 | T6: Y | U6: N | V6: 5.42 | W6: 1 | X6: 5 | Z6: 5.41 | AA6: N | AB6: Y | AC6: 2.5 | AD6: Y | AE6: N | AF6: 5.32 | AG6: 0.9833641405 | AH6: 5 | AJ6: 5.38 | AK6: N | AL6: Y | AM6: 2.5 | AN6: Y | AO6: N | AP6: 5.31 | AQ6: 0.9869888476 | AR6: 5 | AT6: 5.22 | AU6: N | AV6: Y | AW6: 2.5 | AX6: Y | AY6: N | AZ6: 5.13 | BA6: 0.9827586207 | BB6: 5 | BD6: 5.37 | BE6: N | BF6: Y | BG6: 2.5 | BH6: Y | BI6: N | BJ6: 5.29 | BK6: 0.9851024209 | BL6: 5 | BN6: 5.19 | BO6: N | BP6: Y | BQ6: 2.5 | BR6: Y | BS6: N | BT6: 5.11 | BU6: 0.9845857418 | BV6: 5 | BX6: 5.35 | BY6: N | BZ6: Y | CA6: 2.5 | CB6: Y | CC6: N | CD6: 5.46 | CE6: 1.020560748 | CF6: 3.971961351
A7: 104 | B7: Stanford | C7: 20 | D7: 40 | F7: 5.67 | G7: Y | H7: Y | I7: 2.5 | J7: Y | K7: N | L7: 5.35 | M7: 0.9435626102 | N7: 5 | P7: 5.47 | Q7: Y | R7: Y | S7: 2.5 | T7: Y | U7: N | V7: 5.42 | W7: 0.9908592322 | X7: 5 | Z7: 5.42 | AA7: Y | AB7: Y | AC7: 2.5 | AD7: Y | AE7: N | AF7: 5.41 | AG7: 0.9981549815 | AH7: 5 | AJ7: 5.41 | AK7: Y | AL7: Y | AM7: 2.5 | AN7: Y | AO7: N | AP7: 5.39 | AQ7: 0.9963031423 | AR7: 5 | AT7: 5.22 | AU7: Y | AV7: Y | AW7: 2.5 | AX7: Y | AY7: N | AZ7: 5.11 | BA7: 0.9789272031 | BB7: 5 | BD7: 5.46 | BE7: N | BF7: Y | BG7: 2.5 | BH7: Y | BI7: N | BJ7: 5.43 | BK7: 0.9945054945 | BL7: 5 | BN7: 5.15 | BO7: Y | BP7: N | BQ7: 2.5 | BR7: Y | BS7: N | BT7: 5.13 | BU7: 0.9961165049 | BV7: 5 | BX7: 5.45 | BY7: Y | BZ7: Y | CA7: 2.5 | CB7: Y | CC7: N | CD7: 5.42 | CE7: 0.9944954128 | CF7: 5
A8: 105 | B8: Norwich | C8: 20 | D8: 29.45560047 | F8: 5.7 | G8: N | H8: Y | I8: 2.5 | J8: Y | K8: N | L8: 6.05 | M8: 1.061403509 | N8: 1.929821112 | P8: 5.7 | Q8: N | R8: Y | S8: 2.5 | T8: Y | U8: Y | V8: 5.79 | W8: 1.015789474 | X8: 4.210524951 | Z8: 5.7 | AA8: N | AB8: Y | AC8: 2.5 | AD8: Y | AE8: N | AF8: 5.81 | AG8: 1.019298246 | AH8: 4.035086516 | AJ8: 5.8 | AK8: N | AL8: Y | AM8: 2.5 | AN8: N | AO8: Y | AP8: 5.54 | AQ8: 0.9551724138 | AR8: 5 | AT8: 5.38 | AU8: N | AV8: Y | AW8: 2.5 | AX8: N | AY8: Y | AZ8: 5.36 | BA8: 0.9962825279 | BB8: 5 | BD8: 5.6 | BE8: Y | BF8: Y | BG8: 2.5 | BH8: N | BI8: Y | BJ8: 5.72 | BK8: 1.021428571 | BL8: 3.928572432 | BN8: 5.39 | BO8: Y | BP8: Y | BQ8: 2.5 | BR8: Y | BS8: Y | BT8: 5.6 | BU8: 1.038961039 | BV8: 3.05194765 | BX8: 5.74 | BY8: N | BZ8: Y | CA8: 2.5 | CB8: N | CC8: Y | CD8: 6.05 | CE8: 1.054006969 | CF8: 2.299647805
A9: 106 | B9: Team Texas | C9: 20 | D9: 39.34457216 | F9: 5.75 | G9: Y | H9: Y | I9: 2.5 | J9: Y | K9: N | L9: 5.45 | M9: 0.947826087 | N9: 5 | P9: 5.51 | Q9: N | R9: Y | S9: 2.5 | T9: Y | U9: N | V9: 5.44 | W9: 0.9872958258 | X9: 5 | Z9: 5.42 | AA9: N | AB9: Y | AC9: 2.5 | AD9: Y | AE9: N | AF9: 5.29 | AG9: 0.9760147601 | AH9: 5 | AJ9: 5.4 | AK9: N | AL9: Y | AM9: 2.5 | AN9: Y | AO9: N | AP9: 5.32 | AQ9: 0.9851851852 | AR9: 5 | AT9: 4.98 | AU9: N | AV9: Y | AW9: 2.5 | AX9: Y | AY9: N | AZ9: 4.85 | BA9: 0.9738955823 | BB9: 5 | BD9: 5.5 | BE9: N | BF9: Y | BG9: 2.5 | BH9: Y | BI9: N | BJ9: 5.49 | BK9: 0.9981818182 | BL9: 5 | BN9: 4.87 | BO9: N | BP9: Y | BQ9: 2.5 | BR9: Y | BS9: N | BT9: 4.85 | BU9: 0.9958932238 | BV9: 5 | BX9: 5.34 | BY9: N | BZ9: Y | CA9: 2.5 | CB9: Y | CC9: N | CD9: 5.41 | CE9: 1.013108614 | CF9: 4.344572165
A10: 107 | B10: Missouri S&T | C10: 20 | D10: 39.81982 | F10: 5.78 | G10: Y | H10: Y | I10: 2.5 | J10: Y | K10: N | L10: 5.55 | M10: 0.9602076125 | N10: 5 | P10: 5.55 | Q10: Y | R10: Y | S10: 2.5 | T10: Y | U10: N | V10: 5.57 | W10: 1.003603604 | X10: 4.819819998 | Z10: 5.55 | AA10: Y | AB10: N | AC10: 2.5 | AD10: Y | AE10: N | AF10: 5.52 | AG10: 0.9945945946 | AH10: 5 | AJ10: 5.53 | AK10: N | AL10: Y | AM10: 2.5 | AN10: Y | AO10: N | AP10: 5.53 | AQ10: 1 | AR10: 5 | AT10: 5.35 | AU10: N | AV10: Y | AW10: 2.5 | AX10: Y | AY10: N | AZ10: 5.31 | BA10: 0.9925233645 | BB10: 5 | BD10: 5.61 | BE10: Y | BF10: Y | BG10: 2.5 | BH10: Y | BI10: N | BJ10: 5.53 | BK10: 0.9857397504 | BL10: 5 | BN10: 5.34 | BO10: Y | BP10: Y | BQ10: 2.5 | BR10: Y | BS10: N | BT10: 5.24 | BU10: 0.9812734082 | BV10: 5 | BX10: 5.59 | BY10: Y | BZ10: Y | CA10: 2.5 | CB10: Y | CC10: N | CD10: 5.51 | CE10: 0.9856887299 | CF10: 5
A11: 108 | B11: Tidewater Virginia
A12: 109 | B12: Team Austria | C12: 20 | D12: 39.17724084 | F12: 5.63 | G12: Y | H12: N | I12: 2.5 | J12: Y | K12: N | L12: 5.41 | M12: 0.9609236234 | N12: 5 | P12: 5.43 | Q12: N | R12: Y | S12: 2.5 | T12: Y | U12: N | V12: 5.41 | W12: 0.9963167587 | X12: 5 | Z12: 5.4 | AA12: N | AB12: Y | AC12: 2.5 | AD12: Y | AE12: N | AF12: 5.38 | AG12: 0.9962962963 | AH12: 5 | AJ12: 5.39 | AK12: N | AL12: Y | AM12: 2.5 | AN12: Y | AO12: N | AP12: 5.42 | AQ12: 1.005565863 | AR12: 4.721704911 | AT12: 5.15 | AU12: N | AV12: Y | AW12: 2.5 | AX12: Y | AY12: N | AZ12: 5.14 | BA12: 0.9980582524 | BB12: 5 | BD12: 5.42 | BE12: N | BF12: Y | BG12: 2.5 | BH12: Y | BI12: N | BJ12: 5.41 | BK12: 0.9981549815 | BL12: 5 | BN12: 5.17 | BO12: N | BP12: Y | BQ12: 2.5 | BR12: Y | BS12: N | BT12: 5.1 | BU12: 0.9864603482 | BV12: 5 | BX12: 5.51 | BY12: Y | BZ12: Y | CA12: 2.5 | CB12: Y | CC12: N | CD12: 5.57 | CE12: 1.010889292 | CF12: 4.455535932
A13: 110 | B13: Middlebury College | C13: 20 | D13: 39.54295985 | F13: 5.55 | G13: Y | H13: Y | I13: 2.5 | J13: Y | K13: N | L13: 5.32 | M13: 0.9585585586 | N13: 5 | P13: 5.54 | Q13: Y | R13: Y | S13: 2.5 | T13: Y | U13: N | V13: 5.51 | W13: 0.9945848375 | X13: 5 | Z13: 5.47 | AA13: Y | AB13: Y | AC13: 2.5 | AD13: Y | AE13: N | AF13: 5.52 | AG13: 1.009140768 | AH13: 4.542959848 | AJ13: 5.51 | AK13: Y | AL13: N | AM13: 2.5 | AN13: Y | AO13: N | AP13: 5.35 | AQ13: 0.9709618875 | AR13: 5 | AT13: 5.42 | AU13: N | AV13: Y | AW13: 2.5 | AX13: Y | AY13: N | AZ13: 5.31 | BA13: 0.979704797 | BB13: 5 | BD13: 5.46 | BE13: N | BF13: Y | BG13: 2.5 | BH13: Y | BI13: N | BJ13: 5.45 | BK13: 0.9981684982 | BL13: 5 | BN13: 5.43 | BO13: N | BP13: Y | BQ13: 2.5 | BR13: Y | BS13: N | BT13: 5.42 | BU13: 0.9981583794 | BV13: 5 | BX13: 5.51 | BY13: Y | BZ13: Y | CA13: 2.5 | CB13: Y | CC13: N | CD13: 5.5 | CE13: 0.998185118 | CF13: 5
A14: 111 | B14: U of So Cal | C14: 20 | D14: 40 | F14: 5.55 | G14: Y | H14: Y | I14: 2.5 | J14: Y | K14: N | L14: 5.47 | M14: 0.9855855856 | N14: 5 | P14: 5.48 | Q14: Y | R14: Y | S14: 2.5 | T14: Y | U14: N | V14: 5.47 | W14: 0.9981751825 | X14: 5 | Z14: 5.45 | AA14: Y | AB14: Y | AC14: 2.5 | AD14: Y | AE14: N | AF14: 5.39 | AG14: 0.9889908257 | AH14: 5 | AJ14: 5.4 | AK14: Y | AL14: Y | AM14: 2.5 | AN14: Y | AO14: N | AP14: 5.34 | AQ14: 0.9888888889 | AR14: 5 | AT14: 4.98 | AU14: Y | AV14: Y | AW14: 2.5 | AX14: Y | AY14: N | AZ14: 4.92 | BA14: 0.9879518072 | BB14: 5 | BD14: 5.41 | BE14: Y | BF14: Y | BG14: 2.5 | BH14: Y | BI14: N | BJ14: 5.39 | BK14: 0.9963031423 | BL14: 5 | BN14: 4.96 | BO14: Y | BP14: Y | BQ14: 2.5 | BR14: Y | BS14: N | BT14: 4.95 | BU14: 0.997983871 | BV14: 5 | BX14: 5.44 | BY14: Y | BZ14: Y | CA14: 2.5 | CB14: Y | CC14: N | CD14: 5.38 | CE14: 0.9889705882 | CF14: 5
A15: 112 | B15: North Carolina | C15: 20 | D15: 40 | F15: 5.68 | G15: Y | H15: Y | I15: 2.5 | J15: Y | K15: N | L15: 5.43 | M15: 0.9559859155 | N15: 5 | P15: 5.48 | Q15: Y | R15: Y | S15: 2.5 | T15: Y | U15: N | V15: 5.44 | W15: 0.9927007299 | X15: 5 | Z15: 5.46 | AA15: Y | AB15: Y | AC15: 2.5 | AD15: Y | AE15: N | AF15: 5.3 | AG15: 0.9706959707 | AH15: 5 | AJ15: 5.44 | AK15: Y | AL15: N | AM15: 2.5 | AN15: Y | AO15: N | AP15: 5.41 | AQ15: 0.9944852941 | AR15: 5 | AT15: 4.93 | AU15: N | AV15: Y | AW15: 2.5 | AX15: Y | AY15: N | AZ15: 4.83 | BA15: 0.9797160243 | BB15: 5 | BD15: 5.49 | BE15: Y | BF15: Y | BG15: 2.5 | BH15: Y | BI15: N | BJ15: 5.44 | BK15: 0.9908925319 | BL15: 5 | BN15: 4.9 | BO15: Y | BP15: Y | BQ15: 2.5 | BR15: Y | BS15: N | BT15: 4.85 | BU15: 0.9897959184 | BV15: 5 | BX15: 6.34 | BY15: Y | BZ15: Y | CA15: 2.5 | CB15: Y | CC15: N | CD15: 5.62 | CE15: 0.8864353312 | CF15: 5
A16: 113 | B16: Kentucky/Indiana | C16: 17.5 | D16: 35 | F16: 5.74 | G16: N | H16: Y | I16: 2.5 | J16: Y | K16: N | L16: 5.5 | M16: 0.9581881533 | N16: 5 | Z16: 5.52 | AA16: Y | AB16: N | AC16: 2.5 | AD16: Y | AE16: N | AF16: 5.46 | AG16: 0.9891304348 | AH16: 5 | AJ16: 5.46 | AK16: N | AL16: Y | AM16: 2.5 | AN16: Y | AO16: N | AP16: 5.46 | AQ16: 1 | AR16: 5 | AT16: 5.27 | AU16: N | AV16: Y | AW16: 2.5 | AX16: Y | AY16: N | AZ16: 5.2 | BA16: 0.9867172676 | BB16: 5 | BD16: 5.52 | BE16: Y | BF16: Y | BG16: 2.5 | BH16: Y | BI16: N | BJ16: 5.47 | BK16: 0.990942029 | BL16: 5 | BN16: 5.27 | BO16: Y | BP16: Y | BQ16: 2.5 | BR16: Y | BS16: N | BT16: 5.13 | BU16: 0.9734345351 | BV16: 5 | BX16: 5.53 | BY16: N | BZ16: Y | CA16: 2.5 | CB16: Y | CC16: N | CD16: 5.5 | CE16: 0.9945750452 | CF16: 5
A17: 114 | B17: Las Vegas | C17: 20 | D17: 40 | F17: 5.65 | G17: Y | H17: Y | I17: 2.5 | J17: Y | K17: N | L17: 5.61 | M17: 0.992920354 | N17: 5 | P17: 5.6 | Q17: Y | R17: N | S17: 2.5 | T17: Y | U17: N | V17: 5.46 | W17: 0.975 | X17: 5 | Z17: 5.47 | AA17: Y | AB17: Y | AC17: 2.5 | AD17: Y | AE17: N | AF17: 5.45 | AG17: 0.9963436929 | AH17: 5 | AJ17: 5.45 | AK17: Y | AL17: Y | AM17: 2.5 | AN17: Y | AO17: N | AP17: 5.43 | AQ17: 0.9963302752 | AR17: 5 | AT17: 5.35 | AU17: Y | AV17: Y | AW17: 2.5 | AX17: Y | AY17: N | AZ17: 5.29 | BA17: 0.9887850467 | BB17: 5 | BD17: 5.51 | BE17: Y | BF17: Y | BG17: 2.5 | BH17: Y | BI17: N | BJ17: 5.48 | BK17: 0.9945553539 | BL17: 5 | BN17: 5.33 | BO17: Y | BP17: Y | BQ17: 2.5 | BR17: Y | BS17: N | BT17: 5.3 | BU17: 0.9943714822 | BV17: 5 | BX17: 5.51 | BY17: Y | BZ17: N | CA17: 2.5 | CB17: Y | CC17: N | CD17: 5.48 | CE17: 0.9945553539 | CF17: 5
A18: 115 | B18: Team Capitol DC | C18: 20 | D18: 40 | F18: 5.75 | G18: Y | H18: N | I18: 2.5 | J18: Y | K18: N | L18: 5.54 | M18: 0.9634782609 | N18: 5 | P18: 5.58 | Q18: N | R18: Y | S18: 2.5 | T18: Y | U18: N | V18: 5.52 | W18: 0.9892473118 | X18: 5 | Z18: 5.51 | AA18: N | AB18: Y | AC18: 2.5 | AD18: Y | AE18: N | AF18: 5.5 | AG18: 0.998185118 | AH18: 5 | AJ18: 5.53 | AK18: Y | AL18: Y | AM18: 2.5 | AN18: Y | AO18: Y | AP18: 5.48 | AQ18: 0.9909584087 | AR18: 5 | AT18: 5.04 | AU18: Y | AV18: Y | AW18: 2.5 | AX18: Y | AY18: N | AZ18: 4.95 | BA18: 0.9821428571 | BB18: 5 | BD18: 5.58 | BE18: Y | BF18: Y | BG18: 2.5 | BH18: Y | BI18: N | BJ18: 5.52 | BK18: 0.9892473118 | BL18: 5 | BN18: 5.02 | BO18: Y | BP18: Y | BQ18: 2.5 | BR18: Y | BS18: N | BT18: 4.96 | BU18: 0.9880478088 | BV18: 5 | BX18: 6.61 | BY18: Y | BZ18: N | CA18: 2.5 | CB18: Y | CC18: N | CD18: 5.5 | CE18: 0.8320726172 | CF18: 5
A19: 116 | B19: Team Alberta | C19: 20 | D19: 40 | F19: 5.73 | G19: N | H19: Y | I19: 2.5 | J19: Y | K19: N | L19: 5.58 | M19: 0.9738219895 | N19: 5 | P19: 5.57 | Q19: N | R19: Y | S19: 2.5 | T19: Y | U19: N | V19: 5.52 | W19: 0.9910233393 | X19: 5 | Z19: 5.5 | AA19: N | AB19: Y | AC19: 2.5 | AD19: Y | AE19: N | AF19: 5.44 | AG19: 0.9890909091 | AH19: 5 | AJ19: 5.45 | AK19: N | AL19: Y | AM19: 2.5 | AN19: Y | AO19: N | AP19: 5.35 | AQ19: 0.9816513761 | AR19: 5 | AT19: 5 | AU19: N | AV19: Y | AW19: 2.5 | AX19: Y | AY19: N | AZ19: 4.92 | BA19: 0.984 | BB19: 5 | BD19: 5.57 | BE19: N | BF19: Y | BG19: 2.5 | BH19: Y | BI19: N | BJ19: 5.46 | BK19: 0.9802513465 | BL19: 5 | BN19: 5.02 | BO19: N | BP19: Y | BQ19: 2.5 | BR19: Y | BS19: N | BT19: 4.93 | BU19: 0.9820717131 | BV19: 5 | BX19: 5.56 | BY19: N | BZ19: Y | CA19: 2.5 | CB19: Y | CC19: N | CD19: 5.55 | CE19: 0.9982014388 | CF19: 5
A20: 117 | B20: AZ State/New Mexico | C20: 17.5 | D20: 30 | F20: 5.72 | G20: N | H20: Y | I20: 2.5 | J20: Y | K20: Y | L20: 7.72 | M20: 1.34965035 | N20: 0 | Z20: 5.72 | AA20: Y | AB20: Y | AC20: 2.5 | AD20: Y | AE20: Y | AF20: 5.61 | AG20: 0.9807692308 | AH20: 5 | AJ20: 5.6 | AK20: Y | AL20: Y | AM20: 2.5 | AN20: Y | AO20: N | AP20: 5.47 | AQ20: 0.9767857143 | AR20: 5 | AT20: 4.93 | AU20: Y | AV20: Y | AW20: 2.5 | AX20: Y | AY20: Y | AZ20: 4.78 | BA20: 0.9695740365 | BB20: 5 | BD20: 5.54 | BE20: Y | BF20: Y | BG20: 2.5 | BH20: Y | BI20: N | BJ20: 5.48 | BK20: 0.9891696751 | BL20: 5 | BN20: 4.94 | BO20: Y | BP20: Y | BQ20: 2.5 | BR20: Y | BS20: N | BT20: 4.87 | BU20: 0.9858299595 | BV20: 5 | BX20: 5.51 | BY20: Y | BZ20: N | CA20: 2.5 | CB20: Y | CC20: N | CD20: 5.48 | CE20: 0.9945553539 | CF20: 5
A21: 118 | B21: Santa Clara | C21: 20 | D21: 40 | F21: 5.7 | G21: Y | H21: Y | I21: 2.5 | J21: Y | K21: N | L21: 5.59 | M21: 0.9807017544 | N21: 5 | P21: 5.6 | Q21: Y | R21: N | S21: 2.5 | T21: Y | U21: N | V21: 5.59 | W21: 0.9982142857 | X21: 5 | Z21: 5.55 | AA21: Y | AB21: Y | AC21: 2.5 | AD21: Y | AE21: N | AF21: 5.49 | AG21: 0.9891891892 | AH21: 5 | AJ21: 5.47 | AK21: N | AL21: Y | AM21: 2.5 | AN21: Y | AO21: N | AP21: 5.46 | AQ21: 0.9981718464 | AR21: 5 | AT21: 4.99 | AU21: N | AV21: Y | AW21: 2.5 | AX21: Y | AY21: N | AZ21: 4.97 | BA21: 0.995991984 | BB21: 5 | BD21: 5.57 | BE21: Y | BF21: Y | BG21: 2.5 | BH21: Y | BI21: N | BJ21: 5.5 | BK21: 0.987432675 | BL21: 5 | BN21: 5.03 | BO21: Y | BP21: Y | BQ21: 2.5 | BR21: Y | BS21: N | BT21: 4.96 | BU21: 0.986083499 | BV21: 5 | BX21: 5.57 | BY21: N | BZ21: Y | CA21: 2.5 | CB21: Y | CC21: N | CD21: 5.51 | CE21: 0.9892280072 | CF21: 5
A22: 119 | B22: West Virginia | C22: 17.5 | D22: 35 | P22: 5.58 | Q22: N | R22: Y | S22: 2.5 | T22: Y | U22: N | V22: 5.36 | W22: 0.9605734767 | X22: 5 | Z22: 5.36 | AA22: Y | AB22: Y | AC22: 2.5 | AD22: Y | AE22: N | AF22: 5.32 | AG22: 0.9925373134 | AH22: 5 | AJ22: 5.34 | AK22: Y | AL22: Y | AM22: 2.5 | AN22: Y | AO22: N | AP22: 5.31 | AQ22: 0.9943820225 | AR22: 5 | AT22: 4.9 | AU22: Y | AV22: Y | AW22: 2.5 | AX22: Y | AY22: N | AZ22: 4.79 | BA22: 0.9775510204 | BB22: 5 | BD22: 5.41 | BE22: Y | BF22: Y | BG22: 2.5 | BH22: Y | BI22: N | BJ22: 5.31 | BK22: 0.9815157116 | BL22: 5 | BN22: 4.86 | BO22: Y | BP22: Y | BQ22: 2.5 | BR22: Y | BS22: N | BT22: 4.8 | BU22: 0.987654321 | BV22: 5 | BX22: 5.36 | BY22: N | BZ22: Y | CA22: 2.5 | CB22: Y | CC22: N | CD22: 5.32 | CE22: 0.9925373134 | CF22: 5
A23: 120 | B23: Team Ontario | C23: 20 | D23: 40 | F23: 5.68 | G23: Y | H23: Y | I23: 2.5 | J23: Y | K23: Y | L23: 5.36 | M23: =IFERROR(L23/F23,"") -> 0.9436619718 | N23: 5 | P23: 5.44 | Q23: N | R23: Y | S23: 2.5 | T23: Y | U23: Y | V23: 5.43 | W23: =IFERROR(V23/P23,"") -> 0.9981617647 | X23: 5 | Z23: 5.45 | AA23: Y | AB23: Y | AC23: 2.5 | AD23: Y | AE23: N | AF23: 5.39 | AG23: =IFERROR(AF23/Z23,"") -> 0.9889908257 | AH23: 5 | AJ23: 5.38 | AK23: Y | AL23: Y | AM23: 2.5 | AN23: Y | AO23: Y | AP23: 5.38 | AQ23: =IFERROR(AP23/AJ23,"") -> 1 | AR23: 5 | AT23: 4.96 | AU23: Y | AV23: Y | AW23: 2.5 | AX23: N | AY23: Y | AZ23: 4.91 | BA23: =IFERROR(AZ23/AT23,"") -> 0.9899193548 | BB23: 5 | BD23: 5.47 | BE23: Y | BF23: Y | BG23: 2.5 | BH23: Y | BI23: N | BJ23: 5.34 | BK23: =IFERROR(BJ23/BD23,"") -> 0.9762340037 | BL23: 5 | BN23: 5.04 | BO23: Y | BP23: Y | BQ23: 2.5 | BR23: Y | BS23: N | BT23: 4.96 | BU23: =IFERROR(BT23/BN23,"") -> 0.9841269841 | BV23: 5 | BX23: 5.51 | BY23: Y | BZ23: Y | CA23: 2.5 | CB23: Y | CC23: N | CD23: 5.34 | CE23: =IFERROR(CD23/BX23,"") -> 0.9691470054 | CF23: 5

Sheet 8-5 Dishwasher
E1: Cycle 1 of 5 | I1: Cycle 2 of 5 | M1: Cycle 3 of 5 | Q1: Cycle 4 of 5 | U1: Cycle 5 of 5
E2: Friday, October 4 (Day 12) @ 8:00 a.m. | I2: Sunday, October 6 (Day 14) @ 8:00 a.m. | M2: Tuesday, October 8 (Day 16) @ 2:00 p.m. | Q2: Thursday, October 10 (Day 18) @ 8:00 a.m. | U2: Friday, October 11 (Day 19) @ 9:00 a.m.
A3: Lot # | B3: Team | C3: Current Gross Score | E3: Sensor #1 (°F) | F3: Sensor #2 (°F) | G3: Points Earned | I3: Sensor #1 (°F) | J3: Sensor #2 (°F) | K3: Points Earned | M3: Sensor #1 (°F) | N3: Sensor #2 (°F) | O3: Points Earned | Q3: Sensor #1 (°F) | R3: Sensor #2 (°F) | S3: Points Earned | U3: Sensor #1 (°F) | V3: Sensor #2 (°F) | W3: Points Earned
A4: 101 | B4: SCI-Arc/Caltech | C4: 8 | E4: 130 | F4: 130 | G4: 0 | I4: 130 | J4: 130 | K4: 0 | M4: 130 | N4: 130 | O4: 0 | Q4: 130 | R4: 130 | S4: 4 | U4: 130 | V4: 130 | W4: 4
A5: 102 | B5: Stevens | C5: 20 | E5: 130 | F5: 130 | G5: 4 | I5: 130 | J5: 130 | K5: 4 | M5: 130 | N5: 130 | O5: 4 | Q5: 130 | R5: 130 | S5: 4 | U5: 130 | V5: 130 | W5: 4
A6: 103 | B6: Czech Republic | C6: 20 | E6: 130 | F6: 130 | G6: 4 | I6: 130 | J6: 130 | K6: 4 | M6: 130 | N6: 130 | O6: 4 | Q6: 130 | R6: 130 | S6: 4 | U6: 130 | V6: 130 | W6: 4
A7: 104 | B7: Stanford | C7: 20 | E7: 130 | F7: 130 | G7: 4 | I7: 130 | J7: 130 | K7: 4 | M7: 130 | N7: 130 | O7: 4 | Q7: 130 | R7: 130 | S7: 4 | U7: 130 | V7: 130 | W7: 4
A8: 105 | B8: Norwich | C8: 20 | E8: 130 | F8: 130 | G8: 4 | I8: 130 | J8: 130 | K8: 4 | M8: 130 | N8: 130 | O8: 4 | Q8: 130 | R8: 130 | S8: 4 | U8: 130 | V8: 130 | W8: 4
A9: 106 | B9: Team Texas | C9: 20 | E9: 130 | F9: 130 | G9: 4 | I9: 130 | J9: 130 | K9: 4 | M9: 130 | N9: 130 | O9: 4 | Q9: 130 | R9: 130 | S9: 4 | U9: 130 | V9: 130 | W9: 4
A10: 107 | B10: Missouri S&T | C10: 16 | E10: 120 | F10: 120 | G10: 4 | I10: 105 | J10: 105 | K10: 0 | M10: 120 | N10: 120 | O10: 4 | Q10: 120 | R10: 120 | S10: 4 | U10: 130 | V10: 130 | W10: 4
A11: 108 | B11: Tidewater Virginia
A12: 109 | B12: Team Austria | C12: 20 | E12: 130 | F12: 130 | G12: 4 | I12: 130 | J12: 130 | K12: 4 | M12: 130 | N12: 130 | O12: 4 | Q12: 130 | R12: 130 | S12: 4 | U12: 120 | V12: 130 | W12: 4
A13: 110 | B13: Middlebury College | C13: 20 | E13: 130 | F13: 130 | G13: 4 | I13: 130 | J13: 130 | K13: 4 | M13: 130 | N13: 130 | O13: 4 | Q13: 130 | R13: 130 | S13: 4 | U13: 130 | V13: 130 | W13: 4
A14: 111 | B14: U of So Cal | C14: 20 | E14: 130 | F14: 130 | G14: 4 | I14: 130 | J14: 130 | K14: 4 | M14: 130 | N14: 130 | O14: 4 | Q14: 130 | R14: 130 | S14: 4 | U14: 130 | V14: 130 | W14: 4
A15: 112 | B15: North Carolina | C15: 16 | E15: 105 | F15: 105 | G15: 0 | I15: 130 | J15: 130 | K15: 4 | M15: 130 | N15: 130 | O15: 4 | Q15: 130 | R15: 130 | S15: 4 | U15: 130 | V15: 130 | W15: 4
A16: 113 | B16: Kentucky/Indiana | C16: 16 | E16: 130 | F16: 130 | G16: 4 | I16: 130 | J16: 130 | K16: 4 | M16: 130 | N16: 130 | O16: 0 | Q16: 130 | R16: 130 | S16: 4 | U16: 130 | V16: 130 | W16: 4
A17: 114 | B17: Las Vegas | C17: 20 | E17: 130 | F17: 130 | G17: 4 | I17: 130 | J17: 130 | K17: 4 | M17: 130 | N17: 130 | O17: 4 | Q17: 130 | R17: 130 | S17: 4 | U17: 130 | V17: 130 | W17: 4
A18: 115 | B18: Team Capitol DC | C18: 20 | E18: 130 | F18: 130 | G18: 4 | I18: 130 | J18: 130 | K18: 4 | M18: 130 | N18: 130 | O18: 4 | Q18: 130 | R18: 130 | S18: 4 | U18: 130 | V18: 130 | W18: 4
A19: 116 | B19: Team Alberta | C19: 20 | E19: 130 | F19: 130 | G19: 4 | I19: 130 | J19: 130 | K19: 4 | M19: 130 | N19: 130 | O19: 4 | Q19: 130 | R19: 130 | S19: 4 | U19: 130 | V19: 130 | W19: 4
A20: 117 | B20: AZ State/New Mexico | C20: 20 | E20: 130 | F20: 130 | G20: 4 | I20: 130 | J20: 130 | K20: 4 | M20: 130 | N20: 130 | O20: 4 | Q20: 130 | R20: 130 | S20: 4 | U20: 130 | V20: 130 | W20: 4
A21: 118 | B21: Santa Clara | C21: 20 | E21: 130 | F21: 130 | G21: 4 | I21: 130 | J21: 130 | K21: 4 | M21: 130 | N21: 130 | O21: 4 | Q21: 130 | R21: 130 | S21: 4 | U21: 130 | V21: 130 | W21: 4
A22: 119 | B22: West Virginia | C22: 16 | I22: 130 | J22: 130 | K22: 4 | M22: 120 | N22: 120 | O22: 4 | Q22: 130 | R22: 130 | S22: 4 | U22: 130 | V22: 130 | W22: 4
A23: 120 | B23: Team Ontario | C23: 16 | E23: 130 | F23: 130 | G23: 0 | I23: 130 | J23: 130 | K23: 4 | M23: 130 | N23: 130 | O23: 4 | Q23: 130 | R23: 130 | S23: 4 | U23: 130 | V23: 130 | W23: 4

Sheet 9-1 Lighting
E1: Thursday, October 3 (Day 11) | K1: Saturday, October 5 (Day 13) | Q1: Sunday, October 6 (Day 14) | V1: Monday, October 7 (Day 15) | AB1: Tuesday, October 8 (Day 16) | AH1: Wednesday, October 9 (Day 17) | AN1: Thursday, October 10 (Day 18)
A2: Lot # | B2: Team | C2: Current Gross Score | E2: Hour 1 of 26 (7:00 p.m.-8:00 p.m.) | F2: Hour 2 of 26 (8:00 p.m.-9:00 p.m.) | G2: Hour 3 of 26 (9:00 p.m.-10:00 p.m.) | H2: Hour 4 of 26 (10:00 p.m.-11:00 p.m.) | I2: Daily Points Earned | K2: Hour 5 of 26 (7:00 p.m.-8:00 p.m.) | L2: Hour 6 of 26 (8:00 p.m.-9:00 p.m.) | M2: Hour 7 of 26 (9:00 p.m.-10:00 p.m.) | N2: Hour 8 of 26 (10:00 p.m.-11:00 p.m.) | O2: Daily Points Earned | Q2: Hour 9 of 26 (7:30 p.m.-8:30 p.m.) | R2: Hour 10 of 26 (8:30 p.m.-9:30 p.m.) | S2: Hour 11 of 26 (9:30 p.m.-10:00 p.m.) | T2: Daily Points Earned | V2: Hour 13 of 26 (7:00 p.m.-8:00 p.m.) | W2: Hour 14 of 26 (8:00 p.m.-9:00 p.m.) | X2: Hour 15 of 26 (9:00 p.m.-10:0 p.m.) | Y2: Hour 16 of 26 (10:00 p.m.-11:00 p.m.) | Z2: Daily Points Earned | AB2: Hour 13 of 26 (7:00 p.m.-8:00 p.m.) | AC2: Hour 14 of 26 (8:00 p.m.-9:00 p.m.) | AD2: Hour 15 of 26 (9:00 p.m.-10:00 p.m.) | AE2: Hour 16 of 26 (10:00 p.m.-11:00 p.m.) | AF2: Daily Points Earned | AH2: Hour 23 of 26 (7:00 p.m.-8:00 p.m.) | AI2: Hour 24 of 26 (8:00 p.m.-9:00 p.m.) | AJ2: Hour 25 of 26 (9:00 p.m.-10:00 p.m.) | AK2: Hour 26 of 26 (10:00 p.m.-11:00 p.m.) | AL2: Daily Points Earned | AN2: Hour 23 of 26 (7:30 p.m.-7:30 p.m.) | AO2: Hour 24 of 26 (8:30 p.m.-9:30 p.m.) | AP2: Hour 25 of 26 (9:30 p.m.-10:30 p.m.) | AQ2: Daily Points Earned
A3: 101 | B3: SCI-Arc/Caltech | C3: 38.07692308 | E3: 0.75 | F3: 0.75 | G3: 0.75 | H3: 0.75 | I3: 4.615384615 | K3: 1 | L3: 1 | M3: 1 | N3: 0.75 | O3: 5.769230769 | Q3: 1 | R3: 1 | S3: 1 | T3: 4.615384615 | V3: 1 | W3: 1 | X3: 1 | Y3: 1 | Z3: 6.153846154 | AB3: 1 | AC3: 1 | AD3: 1 | AE3: 1 | AF3: 6.153846154 | AH3: 1 | AI3: 1 | AJ3: 1 | AK3: 1 | AL3: 6.153846154 | AN3: 1 | AO3: 1 | AP3: 1 | AQ3: 4.615384615
A4: 102 | B4: Stevens | C4: 39.61538462 | E4: 1 | F4: 1 | G4: 1 | H4: 1 | I4: 6.153846154 | K4: 0.75 | L4: 1 | M4: 1 | N4: 1 | O4: 5.769230769 | Q4: 1 | R4: 1 | S4: 1 | T4: 4.615384615 | V4: 1 | W4: 1 | X4: 1 | Y4: 1 | Z4: 6.153846154 | AB4: 1 | AC4: 1 | AD4: 1 | AE4: 1 | AF4: 6.153846154 | AH4: 1 | AI4: 1 | AJ4: 1 | AK4: 1 | AL4: 6.153846154 | AN4: 1 | AO4: 1 | AP4: 1 | AQ4: 4.615384615
A5: 103 | B5: Czech Republic | C5: 40 | E5: 1 | F5: 1 | G5: 1 | H5: 1 | I5: 6.153846154 | K5: 1 | L5: 1 | M5: 1 | N5: 1 | O5: 6.153846154 | Q5: 1 | R5: 1 | S5: 1 | T5: 4.615384615 | V5: 1 | W5: 1 | X5: 1 | Y5: 1 | Z5: 6.153846154 | AB5: 1 | AC5: 1 | AD5: 1 | AE5: 1 | AF5: 6.153846154 | AH5: 1 | AI5: 1 | AJ5: 1 | AK5: 1 | AL5: 6.153846154 | AN5: 1 | AO5: 1 | AP5: 1 | AQ5: 4.615384615
A6: 104 | B6: Stanford | C6: 39.61538462 | E6: 1 | F6: 1 | G6: 1 | H6: 1 | I6: 6.153846154 | K6: 0.75 | L6: 1 | M6: 1 | N6: 1 | O6: 5.769230769 | Q6: 1 | R6: 1 | S6: 1 | T6: 4.615384615 | V6: 1 | W6: 1 | X6: 1 | Y6: 1 | Z6: 6.153846154 | AB6: 1 | AC6: 1 | AD6: 1 | AE6: 1 | AF6: 6.153846154 | AH6: 1 | AI6: 1 | AJ6: 1 | AK6: 1 | AL6: 6.153846154 | AN6: 1 | AO6: 1 | AP6: 1 | AQ6: 4.615384615
A7: 105 | B7: Norwich | C7: 38.84615385 | E7: 1 | F7: 1 | G7: 1 | H7: 1 | I7: 6.153846154 | K7: 1 | L7: 1 | M7: 1 | N7: 0.5 | O7: 5.384615385 | Q7: 1 | R7: 1 | S7: 1 | T7: 4.615384615 | V7: 1 | W7: 1 | X7: 1 | Y7: 1 | Z7: 6.153846154 | AB7: 0.75 | AC7: 1 | AD7: 1 | AE7: 1 | AF7: 5.769230769 | AH7: 1 | AI7: 1 | AJ7: 1 | AK7: 1 | AL7: 6.153846154 | AN7: 1 | AO7: 1 | AP7: 1 | AQ7: 4.615384615
A8: 106 | B8: Team Texas | C8: 36.92307692 | E8: 1 | F8: 1 | G8: 1 | H8: 0.75 | I8: 5.769230769 | K8: 0.75 | L8: 0.75 | M8: 0.75 | N8: 0.75 | O8: 4.615384615 | Q8: 0.75 | R8: 1 | S8: 1 | T8: 4.230769231 | V8: 0.75 | W8: 1 | X8: 1 | Y8: 1 | Z8: 5.769230769 | AB8: 0.75 | AC8: 1 | AD8: 1 | AE8: 1 | AF8: 5.769230769 | AH8: 1 | AI8: 1 | AJ8: 1 | AK8: 1 | AL8: 6.153846154 | AN8: 1 | AO8: 1 | AP8: 1 | AQ8: 4.615384615
A9: 107 | B9: Missouri S&T | C9: 39.61538462 | E9: 1 | F9: 1 | G9: 1 | H9: 1 | I9: 6.153846154 | K9: 1 | L9: 1 | M9: 1 | N9: 0.75 | O9: 5.769230769 | Q9: 1 | R9: 1 | S9: 1 | T9: 4.615384615 | V9: 1 | W9: 1 | X9: 1 | Y9: 1 | Z9: 6.153846154 | AB9: 1 | AC9: 1 | AD9: 1 | AE9: 1 | AF9: 6.153846154 | AH9: 1 | AI9: 1 | AJ9: 1 | AK9: 1 | AL9: 6.153846154 | AN9: 1 | AO9: 1 | AP9: 1 | AQ9: 4.615384615
A10: 108 | B10: Tidewater Virginia
A11: 109 | B11: Team Austria | C11: 40 | E11: 1 | F11: 1 | G11: 1 | H11: 1 | I11: 6.153846154 | K11: 1 | L11: 1 | M11: 1 | N11: 1 | O11: 6.153846154 | Q11: 1 | R11: 1 | S11: 1 | T11: 4.615384615 | V11: 1 | W11: 1 | X11: 1 | Y11: 1 | Z11: 6.153846154 | AB11: 1 | AC11: 1 | AD11: 1 | AE11: 1 | AF11: 6.153846154 | AH11: 1 | AI11: 1 | AJ11: 1 | AK11: 1 | AL11: 6.153846154 | AN11: 1 | AO11: 1 | AP11: 1 | AQ11: 4.615384615
A12: 110 | B12: Middlebury College | C12: 40 | E12: 1 | F12: 1 | G12: 1 | H12: 1 | I12: 6.153846154 | K12: 1 | L12: 1 | M12: 1 | N12: 1 | O12: 6.153846154 | Q12: 1 | R12: 1 | S12: 1 | T12: 4.615384615 | V12: 1 | W12: 1 | X12: 1 | Y12: 1 | Z12: 6.153846154 | AB12: 1 | AC12: 1 | AD12: 1 | AE12: 1 | AF12: 6.153846154 | AH12: 1 | AI12: 1 | AJ12: 1 | AK12: 1 | AL12: 6.153846154 | AN12: 1 | AO12: 1 | AP12: 1 | AQ12: 4.615384615
A13: 111 | B13: U of So Cal | C13: 39.61538462 | E13: 1 | F13: 1 | G13: 1 | H13: 1 | I13: 6.153846154 | K13: 1 | L13: 1 | M13: 1 | N13: 1 | O13: 6.153846154 | Q13: 1 | R13: 1 | S13: 1 | T13: 4.615384615 | V13: 1 | W13: 1 | X13: 1 | Y13: 1 | Z13: 6.153846154 | AB13: 0.75 | AC13: 1 | AD13: 1 | AE13: 1 | AF13: 5.769230769 | AH13: 1 | AI13: 1 | AJ13: 1 | AK13: 1 | AL13: 6.153846154 | AN13: 1 | AO13: 1 | AP13: 1 | AQ13: 4.615384615
A14: 112 | B14: North Carolina | C14: 39.61538462 | E14: 1 | F14: 1 | G14: 1 | H14: 1 | I14: 6.153846154 | K14: 1 | L14: 1 | M14: 1 | N14: 1 | O14: 6.153846154 | Q14: 1 | R14: 1 | S14: 1 | T14: 4.615384615 | V14: 1 | W14: 1 | X14: 1 | Y14: 1 | Z14: 6.153846154 | AB14: 0.75 | AC14: 1 | AD14: 1 | AE14: 1 | AF14: 5.769230769 | AH14: 1 | AI14: 1 | AJ14: 1 | AK14: 1 | AL14: 6.153846154 | AN14: 1 | AO14: 1 | AP14: 1 | AQ14: 4.615384615
A15: 113 | B15: Kentucky/Indiana | C15: 40 | E15: 1 | F15: 1 | G15: 1 | H15: 1 | I15: 6.153846154 | K15: 1 | L15: 1 | M15: 1 | N15: 1 | O15: 6.153846154 | Q15: 1 | R15: 1 | S15: 1 | T15: 4.615384615 | V15: 1 | W15: 1 | X15: 1 | Y15: 1 | Z15: 6.153846154 | AB15: 1 | AC15: 1 | AD15: 1 | AE15: 1 | AF15: 6.153846154 | AH15: 1 | AI15: 1 | AJ15: 1 | AK15: 1 | AL15: 6.153846154 | AN15: 1 | AO15: 1 | AP15: 1 | AQ15: 4.615384615
A16: 114 | B16: Las Vegas | C16: 38.84615385 | E16: 0.75 | F16: 1 | G16: 1 | H16: 1 | I16: 5.769230769 | K16: 1 | L16: 1 | M16: 1 | N16: 1 | O16: 6.153846154 | Q16: 0.75 | R16: 1 | S16: 1 | T16: 4.230769231 | V16: 1 | W16: 1 | X16: 1 | Y16: 1 | Z16: 6.153846154 | AB16: 1 | AC16: 1 | AD16: 1 | AE16: 1 | AF16: 6.153846154 | AH16: 0.75 | AI16: 1 | AJ16: 1 | AK16: 1 | AL16: 5.769230769 | AN16: 1 | AO16: 1 | AP16: 1 | AQ16: 4.615384615
A17: 115 | B17: Team Capitol DC | C17: 40 | E17: 1 | F17: 1 | G17: 1 | H17: 1 | I17: 6.153846154 | K17: 1 | L17: 1 | M17: 1 | N17: 1 | O17: 6.153846154 | Q17: 1 | R17: 1 | S17: 1 | T17: 4.615384615 | V17: 1 | W17: 1 | X17: 1 | Y17: 1 | Z17: 6.153846154 | AB17: 1 | AC17: 1 | AD17: 1 | AE17: 1 | AF17: 6.153846154 | AH17: 1 | AI17: 1 | AJ17: 1 | AK17: 1 | AL17: 6.153846154 | AN17: 1 | AO17: 1 | AP17: 1 | AQ17: 4.615384615
A18: 116 | B18: Team Alberta | C18: 40 | E18: 1 | F18: 1 | G18: 1 | H18: 1 | I18: 6.153846154 | K18: 1 | L18: 1 | M18: 1 | N18: 1 | O18: 6.153846154 | Q18: 1 | R18: 1 | S18: 1 | T18: 4.615384615 | V18: 1 | W18: 1 | X18: 1 | Y18: 1 | Z18: 6.153846154 | AB18: 1 | AC18: 1 | AD18: 1 | AE18: 1 | AF18: 6.153846154 | AH18: 1 | AI18: 1 | AJ18: 1 | AK18: 1 | AL18: 6.153846154 | AN18: 1 | AO18: 1 | AP18: 1 | AQ18: 4.615384615
A19: 117 | B19: AZ State/New Mexico | C19: 32.69230769 | K19: 1 | L19: 0.75 | M19: 1 | N19: 1 | O19: 5.769230769 | Q19: 1 | R19: 1 | S19: 1 | T19: 4.615384615 | V19: 1 | W19: 1 | X19: 1 | Y19: 0.75 | Z19: 5.769230769 | AB19: 0.75 | AC19: 1 | AD19: 1 | AE19: 1 | AF19: 5.769230769 | AH19: 1 | AI19: 1 | AJ19: 1 | AK19: 1 | AL19: 6.153846154 | AN19: 1 | AO19: 1 | AP19: 1 | AQ19: 4.615384615
A20: 118 | B20: Santa Clara | C20: 40 | E20: 1 | F20: 1 | G20: 1 | H20: 1 | I20: 6.153846154 | K20: 1 | L20: 1 | M20: 1 | N20: 1 | O20: 6.153846154 | Q20: 1 | R20: 1 | S20: 1 | T20: 4.615384615 | V20: 1 | W20: 1 | X20: 1 | Y20: 1 | Z20: 6.153846154 | AB20: 1 | AC20: 1 | AD20: 1 | AE20: 1 | AF20: 6.153846154 | AH20: 1 | AI20: 1 | AJ20: 1 | AK20: 1 | AL20: 6.153846154 | AN20: 1 | AO20: 1 | AP20: 1 | AQ20: 4.615384615
A21: 119 | B21: West Virginia | C21: 31.53846154 | K21: 0.75 | L21: 0.75 | M21: 1 | N21: 0.75 | O21: 5 | Q21: 1 | R21: 1 | S21: 0.75 | T21: 4.230769231 | V21: 0.75 | W21: 1 | X21: 1 | Y21: 1 | Z21: 5.769230769 | AB21: 0.75 | AC21: 1 | AD21: 1 | AE21: 1 | AF21: 5.769230769 | AH21: 1 | AI21: 1 | AJ21: 1 | AK21: 1 | AL21: 6.153846154 | AN21: 1 | AO21: 1 | AP21: 1 | AQ21: 4.615384615
A22: 120 | B22: Team Ontario | C22: 39.23076923 | E22: 1 | F22: 1 | G22: 0.75 | H22: 1 | I22: 5.769230769 | K22: 1 | L22: 1 | M22: 1 | N22: 1 | O22: 6.153846154 | Q22: 1 | R22: 1 | S22: 1 | T22: 4.615384615 | V22: 1 | W22: 1 | X22: 1 | Y22: 1 | Z22: 6.153846154 | AB22: 0.75 | AC22: 1 | AD22: 1 | AE22: 1 | AF22: 5.769230769 | AH22: 1 | AI22: 1 | AJ22: 1 | AK22: 1 | AL22: 6.153846154 | AN22: 1 | AO22: 1 | AP22: 1 | AQ22: 4.615384615

Sheet 9-2 Cooking
E1: Task 1 of 6 | K1: Task 2 of 6 | Q1: Task 3 of 6 | W1: Task 4 of 6 | AC1: Task 5 of 6 | AI1: Task 6 of 6
E2: Saturday, October 5 (Day 13) @ 8:00 a.m. | K2: Sunday, October 6 (Day 14) @ 8:30 a.m. | Q2: Tuesday, October 8 (Day 16) @ 5:00 p.m. | W2: Wednesday, October 9 (Day 17) @ 11:30 a.m. | AC2: Wednesday, October 9 (Day 17) @ 4:30 p.m. | AI2: Friday, October 11 (Day 19) @ 8:30 a.m.
A3: Lot # | B3: Team | C3: Current Gross Score | E3: Empty Pot Weight (oz) | F3: Initial Pot + Water Weight (oz) | G3: Final Pot + Water Weight (oz) | H3: Amount Vaporized (oz) | I3: Points Earned | K3: Empty Pot Weight (oz) | L3: Initial Pot + Water Weight (oz) | M3: Final Pot + Water Weight (oz) | N3: Amount Vaporized (oz) | O3: Points Earned | Q3: Empty Pot Weight (oz) | R3: Initial Pot + Water Weight (oz) | S3: Final Pot + Water Weight (oz) | T3: Amount Vaporized (oz) | U3: Points Earned | W3: Empty Pot Weight (oz) | X3: Initial Pot + Water Weight (oz) | Y3: Final Pot + Water Weight (oz) | Z3: Amount Vaporized (oz) | AA3: Points Earned | AC3: Empty Pot Weight (oz) | AD3: Initial Pot + Water Weight (oz) | AE3: Final Pot + Water Weight (oz) | AF3: Amount Vaporized (oz) | AG3: Points Earned | AI3: Empty Pot Weight (oz) | AJ3: Initial Pot + Water Weight (oz) | AK3: Final Pot + Water Weight (oz) | AL3: Amount Vaporized (oz) | AM3: Points Earned
A4: 101 | B4: SCI-Arc/Caltech | C4: 16.66666667 | E4: 41.4 | F4: 144.05 | G4: 54.8 | H4: =IF(OR(F4="",G4=""),"",F4-G4) -> 89.25 | I4: 3.333333333 | K4: 41.3 | L4: 140.4 | M4: 49.2 | N4: =IF(OR(L4="",M4=""),"",L4-M4) -> 91.2 | O4: 3.333333333 | Q4: 41.35 | R4: 142.3 | S4: 60.75 | T4: =IF(OR(R4="",S4=""),"",R4-S4) -> 81.55 | U4: 3.333333333 | W4: 41.35 | X4: 135.95 | Y4: 48.25 | Z4: =IF(OR(X4="",Y4=""),"",X4-Y4) -> 87.7 | AA4: 0 | AC4: 41.6 | AD4: 139.65 | AE4: 58.9 | AF4: =IF(OR(AD4="",AE4=""),"",AD4-AE4) -> 80.75 | AG4: 3.333333333 | AI4: 41.45 | AJ4: 139.9 | AK4: 54.1 | AL4: =IF(OR(AJ4="",AK4=""),"",AJ4-AK4) -> 85.8 | AM4: 3.333333333
A5: 102 | B5: Stevens | C5: 20 | E5: 56.55 | F5: 162.05 | G5: 76 | H5: =IF(OR(F5="",G5=""),"",F5-G5) -> 86.05 | I5: 3.333333333 | K5: 56.55 | L5: 163.3 | M5: 56.55 | N5: =IF(OR(L5="",M5=""),"",L5-M5) -> 106.75 | O5: 3.333333333 | Q5: 56.5 | R5: 166.75 | S5: 81.45 | T5: =IF(OR(R5="",S5=""),"",R5-S5) -> 85.3 | U5: 3.333333333 | W5: 56.6 | X5: 163.1 | Y5: 81.8 | Z5: =IF(OR(X5="",Y5=""),"",X5-Y5) -> 81.3 | AA5: 3.333333333 | AC5: 56.5 | AD5: 155 | AE5: 73.3 | AF5: =IF(OR(AD5="",AE5=""),"",AD5-AE5) -> 81.7 | AG5: 3.333333333 | AI5: 56.55 | AJ5: 153.35 | AK5: 72.1 | AL5: =IF(OR(AJ5="",AK5=""),"",AJ5-AK5) -> 81.25 | AM5: 3.333333333
A6: 103 | B6: Czech Republic | C6: 20 | E6: 56.75 | F6: 162 | G6: 75.1 | H6: 86.9 | I6: 3.333333333 | K6: 56.75 | L6: 156.55 | M6: 72 | N6: 84.55 | O6: 3.333333333 | Q6: 56.75 | R6: 167.1 | S6: 81.9 | T6: 85.2 | U6: 3.333333333 | W6: 56.85 | X6: 154.5 | Y6: 73.6 | Z6: 80.9 | AA6: 3.333333333 | AC6: 56.8 | AD6: 153.9 | AE6: 71.9 | AF6: 82 | AG6: 3.333333333 | AI6: 56.95 | AJ6: 153.1 | AK6: 65.95 | AL6: 87.15 | AM6: 3.333333333
A7: 104 | B7: Stanford | C7: 20 | E7: 51.9 | F7: 148 | G7: 59.2 | H7: 88.8 | I7: 3.333333333 | K7: 51.9 | L7: 148 | M7: 58.75 | N7: 89.25 | O7: 3.333333333 | Q7: 51.8 | R7: 148.3 | S7: 54.6 | T7: 93.7 | U7: 3.333333333 | W7: 51.75 | X7: 147.8 | Y7: 58.1 | Z7: 89.7 | AA7: 3.333333333 | AC7: 51.8 | AD7: 148.6 | AE7: 62.1 | AF7: 86.5 | AG7: 3.333333333 | AI7: 51.85 | AJ7: 148.35 | AK7: 66.75 | AL7: 81.6 | AM7: 3.333333333
A8: 105 | B8: Norwich | C8: 20 | E8: 40.9 | F8: 137.15 | G8: 54.75 | H8: 82.4 | I8: 3.333333333 | K8: 37.75 | L8: 134.15 | M8: 52.95 | N8: 81.2 | O8: 3.333333333 | Q8: 37.75 | R8: 133.85 | S8: 40.55 | T8: 93.3 | U8: 3.333333333 | W8: 37.95 | X8: 134.05 | Y8: 47 | Z8: 87.05 | AA8: 3.333333333 | AC8: 37.8 | AD8: 133.9 | AE8: 53.2 | AF8: 80.7 | AG8: 3.333333333 | AI8: 37.7 | AJ8: 133.85 | AK8: 49.25 | AL8: 84.6 | AM8: 3.333333333
A9: 106 | B9: Team Texas | C9: 16.66666667 | E9: 34.995 | F9: 122.8 | G9: 42.3 | H9: 80.5 | I9: 0 | K9: 42 | L9: 139.85 | M9: 56.75 | N9: 83.1 | O9: 3.333333333 | Q9: 42 | R9: 140 | S9: 57.05 | T9: 82.95 | U9: 3.333333333 | W9: 42.05 | X9: 140.1 | Y9: 58 | Z9: 82.1 | AA9: 3.333333333 | AC9: 42.05 | AD9: 140 | AE9: 59.15 | AF9: 80.85 | AG9: 3.333333333 | AI9: 42.05 | AJ9: 140.3 | AK9: 57.8 | AL9: 82.5 | AM9: 3.333333333
A10: 107 | B10: Missouri S&T | C10: 20 | E10: 32.4 | F10: 128.6 | G10: 32.4 | H10: 96.2 | I10: 3.333333333 | K10: 146.88 | L10: 242.9 | M10: 146.89 | N10: 96.01 | O10: 3.333333333 | Q10: 146.4 | R10: 242.5 | S10: 146.6 | T10: 95.9 | U10: 3.333333333 | W10: 146.55 | X10: 243.95 | Y10: 146.75 | Z10: 97.2 | AA10: 3.333333333 | AC10: 146.55 | AD10: 242.6 | AE10: 146.55 | AF10: 96.05 | AG10: 3.333333333 | AI10: 37.4 | AJ10: 134.4 | AK10: 37.4 | AL10: 97 | AM10: 3.333333333
A11: 108 | B11: Tidewater Virginia
A12: 109 | B12: Team Austria | C12: 20 | E12: 68.35 | F12: 165.25 | G12: 76.8 | H12: 88.45 | I12: 3.333333333 | K12: 68.3 | L12: 164.9 | M12: 81.55 | N12: 83.35 | O12: 3.333333333 | Q12: 68.3 | R12: 164.8 | S12: 80.85 | T12: 83.95 | U12: 3.333333333 | W12: 82.65 | X12: 183.25 | Y12: 98.35 | Z12: 84.9 | AA12: 3.333333333 | AC12: 82.65 | AD12: 179.85 | AE12: 90.3 | AF12: 89.55 | AG12: 3.333333333 | AI12: 6.4 | AJ12: 104.5 | AK12: 14.95 | AL12: 89.55 | AM12: 3.333333333
A13: 110 | B13: Middlebury College | C13: 20 | E13: 53.35 | F13: 150.52 | G13: 69.8 | H13: 80.72 | I13: 3.333333333 | K13: 75.85 | L13: 175.25 | M13: 81.05 | N13: 94.2 | O13: 3.333333333 | Q13: 75.8 | R13: 173.75 | S13: 76.3 | T13: 97.45 | U13: 3.333333333 | W13: 75.85 | X13: 174.85 | Y13: 75.9 | Z13: 98.95 | AA13: 3.333333333 | AC13: 75.85 | AD13: 175.85 | AE13: 81.3 | AF13: 94.55 | AG13: 3.333333333 | AI13: 75.85 | AJ13: 174.25 | AK13: 92.6 | AL13: 81.65 | AM13: 3.333333333
A14: 111 | B14: U of So Cal | C14: 17.95833349 | E14: 18.3 | F14: 116.8 | G14: 76 | H14: 40.8 | I14: 1.291666826 | K14: 61.55 | L14: 158.45 | M14: 78.2 | N14: 80.25 | O14: 3.333333333 | Q14: 61.5 | R14: 158.5 | S14: 71.2 | T14: 87.3 | U14: 3.333333333 | W14: 61.55 | X14: 157.85 | Y14: 68.65 | Z14: 89.2 | AA14: 3.333333333 | AC14: 61.55 | AD14: 157.65 | AE14: 75.85 | AF14: 81.8 | AG14: 3.333333333 | AI14: 61.55 | AJ14: 158.3 | AK14: 70.55 | AL14: 87.75 | AM14: 3.333333333
A15: 112 | B15: North Carolina | C15: 20 | E15: 43.85 | F15: 140.2 | G15: 56.65 | H15: 83.55 | I15: 3.333333333 | K15: 43.85 | L15: 140.75 | M15: 51.56 | N15: 89.19 | O15: 3.333333333 | Q15: 43.8 | R15: 140.05 | S15: 44.05 | T15: 96 | U15: 3.333333333 | W15: 43.85 | X15: 141.65 | Y15: 54.6 | Z15: 87.05 | AA15: 3.333333333 | AC15: 43.9 | AD15: 142.6 | AE15: 60.5 | AF15: 82.1 | AG15: 3.333333333 | AI15: 44.05 | AJ15: 144.4 | AK15: 54.7 | AL15: 89.7 | AM15: 3.333333333
A16: 113 | B16: Kentucky/Indiana | C16: 16.66666667 | K16: 30.55 | L16: 130.3 | M16: 47.4 | N16: 82.9 | O16: 3.333333333 | Q16: 30.6 | R16: 127.5 | S16: 42.8 | T16: 84.7 | U16: 3.333333333 | W16: 30.55 | X16: 131.55 | Y16: 30.85 | Z16: 100.7 | AA16: 3.333333333 | AC16: 30.55 | AD16: 135.8 | AE16: 43.55 | AF16: 92.25 | AG16: 3.333333333 | AI16: 30.6 | AJ16: 127.6 | AK16: 30.6 | AL16: 97 | AM16: 3.333333333
A17: 114 | B17: Las Vegas | C17: 20 | E17: 127.36 | F17: 224.96 | G17: 129.6 | H17: 95.36 | I17: 3.333333333 | K17: 127.36 | L17: 223.68 | M17: 127.36 | N17: 96.32 | O17: 3.333333333 | Q17: 127.98 | R17: 226.56 | S17: 128.64 | T17: 97.92 | U17: 3.333333333 | W17: 127.36 | X17: 229.44 | Y17: 128.34 | Z17: 101.1 | AA17: 3.333333333 | AC17: 127.34 | AD17: 227.2 | AE17: 127.36 | AF17: 99.84 | AG17: 3.333333333 | AI17: 127.04 | AJ17: 228.16 | AK17: 142.08 | AL17: 86.08 | AM17: 3.333333333
A18: 115 | B18: Team Capitol DC | C18: 20 | E18: 60.9 | F18: 172.6 | G18: 89 | H18: 83.6 | I18: 3.333333333 | K18: 60.9 | L18: 167.8 | M18: 68.3 | N18: 99.5 | O18: 3.333333333 | Q18: 60.9 | R18: 167.9 | S18: 85.55 | T18: 82.35 | U18: 3.333333333 | W18: 60.9 | X18: 165.05 | Y18: 77.1 | Z18: 87.95 | AA18: 3.333333333 | AC18: 61.1 | AD18: 168.45 | AE18: 79.4 | AF18: 89.05 | AG18: 3.333333333 | AI18: 60.9 | AJ18: 169.5 | AK18: 87.85 | AL18: 81.65 | AM18: 3.333333333
A19: 116 | B19: Team Alberta | C19: 20 | E19: 56.7 | F19: 153.7 | G19: 71.4 | H19: 82.3 | I19: 3.333333333 | K19: 57.2 | L19: 155 | M19: 72.7 | N19: 82.3 | O19: 3.333333333 | Q19: 57.2 | R19: 156.2 | S19: 72.1 | T19: 84.1 | U19: 3.333333333 | W19: 57.2 | X19: 159.7 | Y19: 78.9 | Z19: 80.8 | AA19: 3.333333333 | AC19: 57.2 | AD19: 154.1 | AE19: 71.5 | AF19: 82.6 | AG19: 3.333333333 | AI19: 57.2 | AJ19: 159 | AK19: 77 | AL19: 82 | AM19: 3.333333333
A20: 117 | B20: AZ State/New Mexico | C20: 19.26562548 | E20: 37.75 | F20: 135.15 | G20: 53 | H20: 82.15 | I20: 3.333333333 | K20: 37.8 | L20: 134.1 | M20: 51.45 | N20: 82.65 | O20: 3.333333333 | Q20: 38 | R20: 141.6 | S20: 75.7 | T20: 65.9 | U20: 2.59895881 | W20: 37.85 | X20: 141.5 | Y20: 57.4 | Z20: 84.1 | AA20: 3.333333333 | AC20: 38.05 | AD20: 141.4 | AE20: 60.2 | AF20: 81.2 | AG20: 3.333333333 | AI20: 38.2 | AJ20: 143.5 | AK20: 51.25 | AL20: 92.25 | AM20: 3.333333333
A21: 118 | B21: Santa Clara | C21: 20 | E21: 52.7 | F21: 148.8 | G21: 61.45 | H21: 87.35 | I21: 3.333333333 | K21: 52.65 | L21: 148.7 | M21: 67.05 | N21: 81.65 | O21: 3.333333333 | Q21: 52.65 | R21: 148.8 | S21: 65.2 | T21: 83.6 | U21: 3.333333333 | W21: 52.7 | X21: 148.95 | Y21: 66.55 | Z21: 82.4 | AA21: 3.333333333 | AC21: 52.7 | AD21: 148.75 | AE21: 66.25 | AF21: 82.5 | AG21: 3.333333333 | AI21: 52.7 | AJ21: 148.75 | AK21: 66.45 | AL21: 82.3 | AM21: 3.333333333
A22: 119 | B22: West Virginia | C22: 20 | E22: 42.65 | F22: 140.75 | G22: 57.05 | H22: 83.7 | I22: 3.333333333 | K22: 42.7 | L22: 139.95 | M22: 49.55 | N22: 90.4 | O22: 3.333333333 | Q22: 42.7 | R22: 140.35 | S22: 54.35 | T22: 86 | U22: 3.333333333 | W22: 42.8 | X22: 140.1 | Y22: 53.1 | Z22: 87 | AA22: 3.333333333 | AC22: 42.7 | AD22: 142.45 | AE22: 43.8 | AF22: 98.65 | AG22: 3.333333333 | AI22: 42.65 | AJ22: 141.85 | AK22: 51.05 | AL22: 90.8 | AM22: 3.333333333
A23: 120 | B23: Team Ontario | C23: 20 | E23: 68 | F23: 173 | G23: 86.25 | H23: 86.75 | I23: 3.333333333 | K23: 68.1 | L23: 170.15 | M23: 83.65 | N23: 86.5 | O23: 3.333333333 | Q23: 68.1 | R23: 168.75 | S23: 78.7 | T23: 90.05 | U23: 3.333333333 | W23: 68.1 | X23: 168.2 | Y23: 87.6 | Z23: 80.6 | AA23: 3.333333333 | AC23: 68.05 | AD23: 169 | AE23: 88.6 | AF23: 80.4 | AG23: 3.333333333 | AI23: 68.1 | AJ23: 176.4 | AK23: 91.55 | AL23: 84.85 | AM23: 3.333333333

Sheet 9-4 Home Electronics
E1: Friday, October 4 (Day 12) | J1: Saturday, October 5 (Day 13) | O1: Sunday, October 6 (Day 14) | T1: Monday, October 7 (Day 15) | AA1: Tuesday, October 8 (Day 16) | AI1: Wednesday, October 9 (Day 17) | AS1: Thursday, October 10 (Day 18) | AX1: Friday, October 11 (Day 19)
A2: Lot # | B2: Team | C2: Current Gross Score | E2: Hour 1 of 34 (7:30 a.m.-8:30 a.m.) | F2: Hour 2 of 34 (8:30 a.m.-9:30 a.m.) | G2: Hour 3 of 34 (9:30 a.m.-10:30 a.m.) | H2: Daily Points Earned | J2: Hour 4 of 34 (7:30 a.m.-8:30 a.m.) | K2: Hour 5 of 34 (8:30 p.m.-9:30 a.m.) | L2: Hour 6 of 34 (9:30 a.m.-10:30 a.m.) | M2: Daily Points Earned | O2: Hour 7 of 34 (7:30 a.m.-8:30 a.m.) | P2: Hour 8 of 34 (8:30 a.m.-9:30 a.m.) | Q2: Hour 9 of 34 (9:30 a.m.-10:30 a.m.) | R2: Daily Points Earned | T2: Hour 10 of 34 (1:30 p.m.-2:30 p.m.) | U2: Hour 11 of 34 (2:30 p.m.-3:30 p.m.) | V2: Hour 12 of 34 (3:30 p.m.-4:30 p.m.) | W2: Hour 13 of 34 (4:30 p.m.-5:30 p.m.) | X2: Hour 14 of 34 (5:30 p.m.-6:30 p.m.) | Y2: Daily Points Earned | AA2: Hour 15 of 34 (1:00 p.m.-2:00 p.m.) | AB2: Hour 16 of 34 (2:00 p.m.-3:00 p.m.) | AC2: Hour 17 of 34 (3:00 p.m.-4:00 p.m.) | AD2: Hour 18 of 34 (4:00 p.m.-5:00 p.m.) | AE2: Hour 19 of 34 (5:00 p.m.-6:00 p.m.) | AF2: Hour 20 of 34 (6:00 p.m.-7:00 p.m.) | AG2: Daily Points Earned | AI2: Hour 21 of 34 (11:00 a.m.-12:00 p.m.) | AJ2: Hour 22 of 34 (12:00 p.m.-1:00 p.m.) | AK2: Hour 23 of 34 (1:00 p.m.-2:00 p.m.) | AL2: Hour 24 of 34 (2:00 p.m.-3:00 p.m.) | AM2: Hour 25 of 34 (3:00 p.m.-4:00 p.m.) | AN2: Hour 26 of 34 (4:00 p.m.-5:00 p.m.) | AO2: Hour 27 of 34 (5:00 p.m.-6:00 p.m.) | AP2: Hour 28 of 34 (6:00 p.m.-7:00 p.m.) | AQ2: Daily Points Earned | AS2: Hour 29 of 34 (7:30 a.m.-8:30 a.m.) | AT2: Hour 30 of 34 (8:30 a.m.-9:30 a.m.) | AU2: Hour 31 of 34 (9:30 a.m.-10:30 a.m.) | AV2: Daily Points Earned | AX2: Hour 32 of 34 (7:30 a.m.-8:30 a.m.) | AY2: Hour 33 of 34 (8:30 a.m.-9:30 a.m.) | AZ2: Hour 34 of 34 (9:30 a.m.-10:30 a.m.) | BA2: Daily Points Earned
A3: 101 | B3: SCI-Arc/Caltech | C3: 24.81617647 | E3: 1 | F3: 1 | G3: 1 | H3: 2.205882353 | J3: 1 | K3: 1 | L3: 1 | M3: 2.205882353 | O3: 0.75 | P3: 1 | Q3: 1 | R3: 2.022058824 | T3: 1 | U3: 1 | V3: 1 | W3: 1 | X3: 1 | Y3: 3.676470588 | AA3: 1 | AB3: 1 | AC3: 1 | AD3: 1 | AE3: 1 | AF3: 1 | AG3: 4.411764706 | AI3: 1 | AJ3: 1 | AK3: 1 | AL3: 1 | AM3: 1 | AN3: 1 | AO3: 1 | AP3: 1 | AQ3: 5.882352941 | AS3: 1 | AT3: 1 | AU3: 1 | AV3: 2.205882353 | AX3: 1 | AY3: 1 | AZ3: 1 | BA3: 2.205882353
A4: 102 | B4: Stevens | C4: 25 | E4: 1 | F4: 1 | G4: 1 | H4: 2.205882353 | J4: 1 | K4: 1 | L4: 1 | M4: 2.205882353 | O4: 1 | P4: 1 | Q4: 1 | R4: 2.205882353 | T4: 1 | U4: 1 | V4: 1 | W4: 1 | X4: 1 | Y4: 3.676470588 | AA4: 1 | AB4: 1 | AC4: 1 | AD4: 1 | AE4: 1 | AF4: 1 | AG4: 4.411764706 | AI4: 1 | AJ4: 1 | AK4: 1 | AL4: 1 | AM4: 1 | AN4: 1 | AO4: 1 | AP4: 1 | AQ4: 5.882352941 | AS4: 1 | AT4: 1 | AU4: 1 | AV4: 2.205882353 | AX4: 1 | AY4: 1 | AZ4: 1 | BA4: 2.205882353
A5: 103 | B5: Czech Republic | C5: 25 | E5: 1 | F5: 1 | G5: 1 | H5: 2.205882353 | J5: 1 | K5: 1 | L5: 1 | M5: 2.205882353 | O5: 1 | P5: 1 | Q5: 1 | R5: 2.205882353 | T5: 1 | U5: 1 | V5: 1 | W5: 1 | X5: 1 | Y5: 3.676470588 | AA5: 1 | AB5: 1 | AC5: 1 | AD5: 1 | AE5: 1 | AF5: 1 | AG5: 4.411764706 | AI5: 1 | AJ5: 1 | AK5: 1 | AL5: 1 | AM5: 1 | AN5: 1 | AO5: 1 | AP5: 1 | AQ5: 5.882352941 | AS5: 1 | AT5: 1 | AU5: 1 | AV5: 2.205882353 | AX5: 1 | AY5: 1 | AZ5: 1 | BA5: 2.205882353
A6: 104 | B6: Stanford | C6: 25 | E6: 1 | F6: 1 | G6: 1 | H6: 2.205882353 | J6: 1 | K6: 1 | L6: 1 | M6: 2.205882353 | O6: 1 | P6: 1 | Q6: 1 | R6: 2.205882353 | T6: 1 | U6: 1 | V6: 1 | W6: 1 | X6: 1 | Y6: 3.676470588 | AA6: 1 | AB6: 1 | AC6: 1 | AD6: 1 | AE6: 1 | AF6: 1 | AG6: 4.411764706 | AI6: 1 | AJ6: 1 | AK6: 1 | AL6: 1 | AM6: 1 | AN6: 1 | AO6: 1 | AP6: 1 | AQ6: 5.882352941 | AS6: 1 | AT6: 1 | AU6: 1 | AV6: 2.205882353 | AX6: 1 | AY6: 1 | AZ6: 1 | BA6: 2.205882353
A7: 105 | B7: Norwich | C7: 24.81617647 | E7: 1 | F7: 1 | G7: 1 | H7: 2.205882353 | J7: 1 | K7: 1 | L7: 0.75 | M7: 2.022058824 | O7: 1 | P7: 1 | Q7: 1 | R7: 2.205882353 | T7: 1 | U7: 1 | V7: 1 | W7: 1 | X7: 1 | Y7: 3.676470588 | AA7: 1 | AB7: 1 | AC7: 1 | AD7: 1 | AE7: 1 | AF7: 1 | AG7: 4.411764706 | AI7: 1 | AJ7: 1 | AK7: 1 | AL7: 1 | AM7: 1 | AN7: 1 | AO7: 1 | AP7: 1 | AQ7: 5.882352941 | AS7: 1 | AT7: 1 | AU7: 1 | AV7: 2.205882353 | AX7: 1 | AY7: 1 | AZ7: 1 | BA7: 2.205882353
A8: 106 | B8: Team Texas | C8: 24.08088235 | E8: 0.5 | F8: 0.75 | G8: 1 | H8: 1.654411765 | J8: 1 | K8: 1 | L8: 1 | M8: 2.205882353 | O8: 1 | P8: 1 | Q8: 1 | R8: 2.205882353 | T8: 1 | U8: 1 | V8: 1 | W8: 1 | X8: 1 | Y8: 3.676470588 | AA8: 1 | AB8: 1 | AC8: 1 | AD8: 1 | AE8: 1 | AF8: 1 | AG8: 4.411764706 | AI8: 0.75 | AJ8: 1 | AK8: 1 | AL8: 1 | AM8: 1 | AN8: 1 | AO8: 1 | AP8: 1 | AQ8: 5.698529412 | AS8: 1 | AT8: 1 | AU8: 1 | AV8: 2.205882353 | AX8: 1 | AY8: 0.75 | AZ8: 1 | BA8: 2.022058824
A9: 107 | B9: Missouri S&T | C9: 24.81617647 | E9: 1 | F9: 1 | G9: 1 | H9: 2.205882353 | J9: 1 | K9: 1 | L9: 1 | M9: 2.205882353 | O9: 1 | P9: 1 | Q9: 1 | R9: 2.205882353 | T9: 1 | U9: 1 | V9: 1 | W9: 1 | X9: 1 | Y9: 3.676470588 | AA9: 1 | AB9: 1 | AC9: 1 | AD9: 1 | AE9: 1 | AF9: 1 | AG9: 4.411764706 | AI9: 1 | AJ9: 1 | AK9: 1 | AL9: 1 | AM9: 1 | AN9: 1 | AO9: 1 | AP9: 1 | AQ9: 5.882352941 | AS9: 1 | AT9: 1 | AU9: 1 | AV9: 2.205882353 | AX9: 0.75 | AY9: 1 | AZ9: 1 | BA9: 2.022058824
A10: 108 | B10: Tidewater Virginia
A11: 109 | B11: Team Austria | C11: 24.81617647 | E11: 0.75 | F11: 1 | G11: 1 | H11: 2.022058824 | J11: 1 | K11: 1 | L11: 1 | M11: 2.205882353 | O11: 1 | P11: 1 | Q11: 1 | R11: 2.205882353 | T11: 1 | U11: 1 | V11: 1 | W11: 1 | X11: 1 | Y11: 3.676470588 | AA11: 1 | AB11: 1 | AC11: 1 | AD11: 1 | AE11: 1 | AF11: 1 | AG11: 4.411764706 | AI11: 1 | AJ11: 1 | AK11: 1 | AL11: 1 | AM11: 1 | AN11: 1 | AO11: 1 | AP11: 1 | AQ11: 5.882352941 | AS11: 1 | AT11: 1 | AU11: 1 | AV11: 2.205882353 | AX11: 1 | AY11: 1 | AZ11: 1 | BA11: 2.205882353
A12: 110 | B12: Middlebury College | C12: 24.81617647 | E12: 1 | F12: 1 | G12: 1 | H12: 2.205882353 | J12: 1 | K12: 1 | L12: 1 | M12: 2.205882353 | O12: 1 | P12: 0.75 | Q12: 1 | R12: 2.022058824 | T12: 1 | U12: 1 | V12: 1 | W12: 1 | X12: 1 | Y12: 3.676470588 | AA12: 1 | AB12: 1 | AC12: 1 | AD12: 1 | AE12: 1 | AF12: 1 | AG12: 4.411764706 | AI12: 1 | AJ12: 1 | AK12: 1 | AL12: 1 | AM12: 1 | AN12: 1 | AO12: 1 | AP12: 1 | AQ12: 5.882352941 | AS12: 1 | AT12: 1 | AU12: 1 | AV12: 2.205882353 | AX12: 1 | AY12: 1 | AZ12: 1 | BA12: 2.205882353
A13: 111 | B13: U of So Cal | C13: 25 | E13: 1 | F13: 0.75 | G13: 1 | H13: 2.205882353 | J13: 1 | K13: 1 | L13: 1 | M13: 2.205882353 | O13: 1 | P13: 1 | Q13: 1 | R13: 2.205882353 | T13: 1 | U13: 1 | V13: 1 | W13: 1 | X13: 1 | Y13: 3.676470588 | AA13: 1 | AB13: 1 | AC13: 1 | AD13: 1 | AE13: 1 | AF13: 1 | AG13: 4.411764706 | AI13: 1 | AJ13: 1 | AK13: 1 | AL13: 1 | AM13: 1 | AN13: 1 | AO13: 1 | AP13: 1 | AQ13: 5.882352941 | AS13: 1 | AT13: 1 | AU13: 1 | AV13: 2.205882353 | AX13: 1 | AY13: 1 | AZ13: 1 | BA13: 2.205882353
A14: 112 | B14: North Carolina | C14: 24.81617647 | E14: 0.75 | F14: 1 | G14: 1 | H14: 2.022058824 | J14: 1 | K14: 1 | L14: 1 | M14: 2.205882353 | O14: 1 | P14: 1 | Q14: 1 | R14: 2.205882353 | T14: 1 | U14: 1 | V14: 1 | W14: 1 | X14: 1 | Y14: 3.676470588 | AA14: 1 | AB14: 1 | AC14: 1 | AD14: 1 | AE14: 1 | AF14: 1 | AG14: 4.411764706 | AI14: 1 | AJ14: 1 | AK14: 1 | AL14: 1 | AM14: 1 | AN14: 1 | AO14: 1 | AP14: 1 | AQ14: 5.882352941 | AS14: 1 | AT14: 1 | AU14: 1 | AV14: 2.205882353 | AX14: 1 | AY14: 1 | AZ14: 1 | BA14: 2.205882353
A15: 113 | B15: Kentucky/Indiana | C15: 25 | E15: 1 | F15: 1 | G15: 1 | H15: 2.205882353 | J15: 1 | K15: 1 | L15: 1 | M15: 2.205882353 | O15: 1 | P15: 1 | Q15: 1 | R15: 2.205882353 | T15: 1 | U15: 1 | V15: 1 | W15: 1 | X15: 1 | Y15: 3.676470588 | AA15: 1 | AB15: 1 | AC15: 1 | AD15: 1 | AE15: 1 | AF15: 1 | AG15: 4.411764706 | AI15: 1 | AJ15: 1 | AK15: 1 | AL15: 1 | AM15: 1 | AN15: 1 | AO15: 1 | AP15: 1 | AQ15: 5.882352941 | AS15: 1 | AT15: 1 | AU15: 1 | AV15: 2.205882353 | AX15: 1 | AY15: 1 | AZ15: 1 | BA15: 2.205882353
A16: 114 | B16: Las Vegas | C16: 25 | E16: 1 | F16: 1 | G16: 1 | H16: 2.205882353 | J16: 1 | K16: 1 | L16: 1 | M16: 2.205882353 | O16: 1 | P16: 1 | Q16: 1 | R16: 2.205882353 | T16: 1 | U16: 1 | V16: 1 | W16: 1 | X16: 1 | Y16: 3.676470588 | AA16: 1 | AB16: 1 | AC16: 1 | AD16: 1 | AE16: 1 | AF16: 1 | AG16: 4.411764706 | AI16: 1 | AJ16: 1 | AK16: 1 | AL16: 1 | AM16: 1 | AN16: 1 | AO16: 1 | AP16: 1 | AQ16: 5.882352941 | AS16: 1 | AT16: 1 | AU16: 1 | AV16: 2.205882353 | AX16: 1 | AY16: 1 | AZ16: 1 | BA16: 2.205882353
A17: 115 | B17: Team Capitol DC | C17: 25 | E17: 1 | F17: 1 | G17: 1 | H17: 2.205882353 | J17: 1 | K17: 1 | L17: 1 | M17: 2.205882353 | O17: 1 | P17: 1 | Q17: 1 | R17: 2.205882353 | T17: 1 | U17: 1 | V17: 1 | W17: 1 | X17: 1 | Y17: 3.676470588 | AA17: 1 | AB17: 1 | AC17: 1 | AD17: 1 | AE17: 1 | AF17: 1 | AG17: 4.411764706 | AI17: 1 | AJ17: 1 | AK17: 1 | AL17: 1 | AM17: 1 | AN17: 1 | AO17: 1 | AP17: 1 | AQ17: 5.882352941 | AS17: 1 | AT17: 1 | AU17: 1 | AV17: 2.205882353 | AX17: 1 | AY17: 1 | AZ17: 1 | BA17: 2.205882353
A18: 116 | B18: Team Alberta | C18: 24.81617647 | E18: 1 | F18: 1 | G18: 1 | H18: 2.205882353 | J18: 1 | K18: 1 | L18: 1 | M18: 2.205882353 | O18: 1 | P18: 1 | Q18: 1 | R18: 2.205882353 | T18: 0.75 | U18: 1 | V18: 1 | W18: 1 | X18: 1 | Y18: 3.492647059 | AA18: 1 | AB18: 1 | AC18: 1 | AD18: 1 | AE18: 1 | AF18: 1 | AG18: 4.411764706 | AI18: 1 | AJ18: 1 | AK18: 1 | AL18: 1 | AM18: 1 | AN18: 1 | AO18: 1 | AP18: 1 | AQ18: 5.882352941 | AS18: 1 | AT18: 1 | AU18: 1 | AV18: 2.205882353 | AX18: 1 | AY18: 1 | AZ18: 1 | BA18: 2.205882353
A19: 117 | B19: AZ State/New Mexico | C19: 24.44852941 | E19: 1 | F19: 1 | G19: 1 | H19: 2.205882353 | J19: 1 | K19: 0.25 | L19: 1 | M19: 1.654411765 | O19: 1 | P19: 1 | Q19: 1 | R19: 2.205882353 | T19: 1 | U19: 1 | V19: 1 | W19: 1 | X19: 1 | Y19: 3.676470588 | AA19: 1 | AB19: 1 | AC19: 1 | AD19: 1 | AE19: 1 | AF19: 1 | AG19: 4.411764706 | AI19: 1 | AJ19: 1 | AK19: 1 | AL19: 1 | AM19: 1 | AN19: 1 | AO19: 1 | AP19: 1 | AQ19: 5.882352941 | AS19: 1 | AT19: 1 | AU19: 1 | AV19: 2.205882353 | AX19: 1 | AY19: 1 | AZ19: 1 | BA19: 2.205882353
A20: 118 | B20: Santa Clara | C20: 25 | E20: 1 | F20: 1 | G20: 1 | H20: 2.205882353 | J20: 1 | K20: 1 | L20: 1 | M20: 2.205882353 | O20: 1 | P20: 1 | Q20: 1 | R20: 2.205882353 | T20: 1 | U20: 1 | V20: 1 | W20: 1 | X20: 1 | Y20: 3.676470588 | AA20: 1 | AB20: 1 | AC20: 1 | AD20: 1 | AE20: 1 | AF20: 1 | AG20: 4.411764706 | AI20: 1 | AJ20: 1 | AK20: 1 | AL20: 1 | AM20: 1 | AN20: 1 | AO20: 1 | AP20: 1 | AQ20: 5.882352941 | AS20: 1 | AT20: 1 | AU20: 1 | AV20: 2.205882353 | AX20: 1 | AY20: 1 | AZ20: 1 | BA20: 2.205882353
A21: 119 | B21: West Virginia | C21: 22.61029412 | J21: 0.75 | K21: 1 | L21: 1 | M21: 2.022058824 | O21: 1 | P21: 1 | Q21: 1 | R21: 2.205882353 | T21: 1 | U21: 1 | V21: 1 | W21: 1 | X21: 1 | Y21: 3.676470588 | AA21: 1 | AB21: 1 | AC21: 1 | AD21: 1 | AE21: 1 | AF21: 1 | AG21: 4.411764706 | AI21: 1 | AJ21: 1 | AK21: 1 | AL21: 1 | AM21: 1 | AN21: 1 | AO21: 1 | AP21: 1 | AQ21: 5.882352941 | AS21: 1 | AT21: 1 | AU21: 1 | AV21: 2.205882353 | AX21: 1 | AY21: 1 | AZ21: 1 | BA21: 2.205882353
A22: 120 | B22: Team Ontario | C22: 25 | E22: 1 | F22: 1 | G22: 1 | H22: 2.205882353 | J22: 1 | K22: 1 | L22: 1 | M22: 2.205882353 | O22: 1 | P22: 1 | Q22: 1 | R22: 2.205882353 | T22: 1 | U22: 1 | V22: 1 | W22: 1 | X22: 1 | Y22: 3.676470588 | AA22: 1 | AB22: 1 | AC22: 1 | AD22: 1 | AE22: 1 | AF22: 1 | AG22: 4.411764706 | AI22: 1 | AJ22: 1 | AK22: 1 | AL22: 1 | AM22: 1 | AN22: 1 | AO22: 1 | AP22: 1 | AQ22: 5.882352941 | AS22: 1 | AT22: 1 | AU22: 1 | AV22: 2.205882353 | AX22: 1 | AY22: 1 | AZ22: 1 | BA22: 2.205882353

Sheet 9-3, 9-5 Dinners, Movie
D1: Subcontest 9-3 | J1: Subcontest 9-5
D2: Dinner Parties | J2: Movie Night
D3: Thur, Oct 3 (Day 11) @ 9:00 p.m. | G3: Sat, Oct 5 (Day 13) @ 9:00 p.m. | J3: Fri, Oct 4 (Day 12) @ 8:00 p.m.
A4: Lot # | B4: Team | D4: % of Max | E4: Points Earned | G4: % of Max | H4: Points Earned | J4: % of Max | K4: Points Earned
A5: 101 | B5: SCI-Arc/Caltech | D5: =IF(E5="","",E5/5) -> 0.6633333333 | E5: 3.316666667 | G5: =IF(H5="","",H5/5) -> 0.8888888889 | H5: 4.444444444 | J5: =IF(K5="","",K5/5) -> 0.8111111111 | K5: 4.055555556
A6: 102 | B6: Stevens | D6: =IF(E6="","",E6/5) -> 0.9555555556 | E6: 4.777777778 | G6: =IF(H6="","",H6/5) -> 0.7866666667 | H6: 3.933333333 | J6: =IF(K6="","",K6/5) -> 0.6366666667 | K6: 3.183333333
A7: 103 | B7: Czech Republic | D7: 0.9844444444 | E7: 4.922222222 | G7: 0.6055555556 | H7: 3.027777778 | J7: 0.8966666667 | K7: 4.483333333
A8: 104 | B8: Stanford | D8: 0.8555555556 | E8: 4.277777778 | G8: 0.7255555556 | H8: 3.627777778 | J8: 0.8455555556 | K8: 4.227777778
A9: 105 | B9: Norwich | D9: 0.9111111111 | E9: 4.555555556 | G9: 0.8777777778 | H9: 4.388888889 | J9: 0.76 | K9: 3.8
A10: 106 | B10: Team Texas | D10: 0.8977777778 | E10: 4.488888889 | G10: 0.8444444444 | H10: 4.222222222 | J10: 0.8411111111 | K10: 4.205555556
A11: 107 | B11: Missouri S&T | D11: 0.8911111111 | E11: 4.455555556 | G11: 0.6444444444 | H11: 3.222222222 | J11: 0.9033333333 | K11: 4.516666667
A12: 108 | B12: Tidewater Virginia
A13: 109 | B13: Team Austria | D13: 0.9066666667 | E13: 4.533333333 | G13: 0.9055555556 | H13: 4.527777778 | J13: 0.8788888889 | K13: 4.394444444
A14: 110 | B14: Middlebury College | D14: 0.9944444444 | E14: 4.972222222 | G14: 0.7555555556 | H14: 3.777777778 | J14: 0.95 | K14: 4.75
A15: 111 | B15: U of So Cal | D15: 0.9188888889 | E15: 4.594444444 | G15: 0.88 | H15: 4.4 | J15: 1 | K15: 5
A16: 112 | B16: North Carolina | D16: 0.9716666667 | E16: 4.858333333 | G16: 0.9388888889 | H16: 4.694444444 | J16: 0.8222222222 | K16: 4.111111111
A17: 113 | B17: Kentucky/Indiana | D17: 0.9722222222 | E17: 4.861111111 | G17: 0.9444444444 | H17: 4.722222222 | J17: 0.8783333333 | K17: 4.391666667
A18: 114 | B18: Las Vegas | D18: 0.9222222222 | E18: 4.611111111 | G18: 0.9233333333 | H18: 4.616666667 | J18: 0.9722222222 | K18: 4.861111111
A19: 115 | B19: Team Capitol DC | D19: 0.8183333333 | E19: 4.091666667 | G19: 0.9144444444 | H19: 4.572222222 | J19: 0.9855555556 | K19: 4.927777778
A20: 116 | B20: Team Alberta | D20: 0.9055555556 | E20: 4.527777778 | G20: 0.8644444444 | H20: 4.322222222 | J20: 0.8333333333 | K20: 4.166666667
A21: 117 | B21: AZ State/New Mexico | G21: 0.6883333333 | H21: 3.441666667 | J21: 0.78 | K21: 3.9
A22: 118 | B22: Santa Clara | D22: 0.9644444444 | E22: 4.822222222 | G22: 0.9366666667 | H22: 4.683333333 | J22: 0.8577777778 | K22: 4.288888889
A23: 119 | B23: West Virginia | D23: 0 | E23: 0 | G23: 0.8566666667 | H23: 4.283333333 | J23: 0.86 | K23: 4.3
A24: 120 | B24: Team Ontario | D24: =IF(E24="","",E24/5) -> 0.8844444444 | E24: 4.422222222 | G24: =IF(H24="","",H24/5) -> 0.9455555556 | H24: 4.727777778 | J24: =IF(K24="","",K24/5) -> 0.9388888889 | K24: 4.694444444

Sheet Monitored (Sub)Contest Data
A1: 101 | B1: Subcontest 6-1 | G1: Subcontest 6-2 | J1: Subcontest 8-1 | M1: Subcontest 8-2 | P1: Contest 10
B2: Temperature | G2: Humidity | J2: Refrigerator | M2: Freezer | P2: Energy Balance
A3: ***Click the above yellow cell to select team / refresh current page***
A4: Current score > | B4: 68.49186172 | G4: 23.43320323 | J4: 4.041122606 | M4: 10
B5: Temp #1 | C5: Temp #2 | D5: Temp #3 | E5: Temp #4 | F5: Points | G5: RH #1 | H5: RH #2 | I5: Points | J5: Temp #1 | K5: Temp #2 | L5: Points | M5: Temp #1 | N5: Temp #2 | O5: Points | P5: Net Energy | Q5: Net Power | R5: Cumulative
A6: Time Stamp | B6: °F | C6: °F | D6: °F | E6: °F | F6: Earned | G6: % | H6: % | I6: Earned | J6: °F | K6: °F | L6: Earned | M6: °F | N6: °F | O6: Earned | P6: kWh | Q6: kW | R6: kWh
A7: 2013-10-03T11:00:00 | B7: 70.65 | C7: 71.02 | D7: 71.24 | G7: 63.67 | H7: 64.86 | J7: 36.18 | M7: -10.71 | P7: 0.152 | Q7: 0.608
A8: 2013-10-03T11:15:00 | B8: 71.37 | C8: 71.6 | D8: 71.9 | G8: 61.55 | H8: 62.35 | J8: 38.25 | L8: 0.01305483029 | M8: -12.22 | O8: 0.01305483029 | P8: 0.104 | Q8: 0.416 | R8: -4.76
A9: 2013-10-03T11:30:00 | B9: 71.94 | C9: 72.1 | D9: 72.45 | G9: 61.04 | H9: 62.52 | J9: 40.41 | L9: 0.01037859107 | M9: -11.6 | O9: 0.01305483029 | P9: 0.286 | Q9: 1.144 | R9: -4.474
A10: 2013-10-03T11:45:00 | B10: 72.46 | C10: 72.65 | D10: 72.91 | G10: 60.58 | H10: 61.96 | J10: 42.63 | L10: 0 | M10: -12.06 | O10: 0.01305483029 | P10: 0.35 | Q10: 1.4 | R10: -4.124
A11: 2013-10-03T12:00:00 | B11: 73.04 | C11: 73.27 | D11: 73.46 | G11: 60.44 | H11: 61.71 | J11: 44.76 | L11: 0 | M11: -12.5 | O11: 0.01305483029 | P11: 0.37 | Q11: 1.48 | R11: -3.754
A12: 2013-10-03T12:15:00 | B12: 73.58 | C12: 73.85 | D12: 73.99 | G12: 60.09 | H12: 61.38 | J12: 46.72 | L12: 0 | M12: -11.62 | O12: 0.01305483029 | P12: 0.216 | Q12: 0.864 | R12: -3.538
A13: 2013-10-03T12:30:00 | B13: 73.83 | C13: 74.23 | D13: 74.28 | G13: 59.7 | H13: 60.86 | J13: 48.4 | L13: 0 | M13: -11.52 | O13: 0.01305483029 | P13: 0.068 | Q13: 0.272 | R13: -3.47
A14: 2013-10-03T12:45:00 | B14: 73.91 | C14: 74.33 | D14: 74.38 | G14: 59.86 | H14: 60.87 | J14: 47.49 | L14: 0 | M14: -11.04 | O14: 0.01305483029 | P14: 0.148 | Q14: 0.592 | R14: -3.322
A15: 2013-10-03T13:00:00 | B15: 73.9 | C15: 74.33 | D15: 74.46 | G15: 60.24 | H15: 61.13 | J15: 44.18 | L15: 0 | M15: -9.32 | O15: 0.01305483029 | P15: 0.374 | Q15: 1.496 | R15: -2.948
A16: 2013-10-03T13:15:00 | B16: 74.11 | C16: 74.53 | D16: 74.67 | G16: 60.09 | H16: 60.99 | J16: 41.29 | L16: 0.004634458776 | M16: -7.446 | O16: 0.01305483029 | P16: 0.194 | Q16: 0.776 | R16: -2.754
A17: 2013-10-03T13:30:00 | B17: 74.24 | C17: 74.66 | D17: 74.8 | G17: 59.73 | H17: 60.64 | J17: 39.15 | L17: 0.01305483029 | M17: -6.669 | O17: 0.01305483029 | P17: 0.198 | Q17: 0.792 | R17: -2.556
A18: 2013-10-03T13:45:00 | B18: 74.29 | C18: 74.73 | D18: 74.86 | G18: 59.65 | H18: 60.52 | J18: 37.43 | L18: 0.01305483029 | M18: -6.793 | O18: 0.01305483029 | P18: 0.306 | Q18: 1.224 | R18: -2.25
A19: 2013-10-03T14:00:00 | B19: 74.42 | C19: 74.84 | D19: 75.04 | G19: 59.86 | H19: 60.67 | J19: 36.13 | L19: 0.01305483029 | M19: -7.109 | O19: 0.01305483029 | P19: 0.222 | Q19: 0.888 | R19: -2.028
A20: 2013-10-03T14:15:00 | B20: 74.5 | C20: 74.95 | D20: 75.17 | G20: 59.69 | H20: 60.49 | J20: 35.33 | L20: 0.01305483029 | M20: -7.769 | O20: 0.01305483029 | P20: 0.226 | Q20: 0.904 | R20: -1.802
A21: 2013-10-03T14:30:00 | B21: 74.66 | C21: 75.09 | D21: 75.3 | G21: 59.79 | H21: 60.58 | J21: 36.85 | L21: 0.01305483029 | M21: -10.28 | O21: 0.01305483029 | P21: 0.298 | Q21: 1.192 | R21: -1.504
A22: 2013-10-03T14:45:00 | B22: 75.07 | C22: 75.45 | D22: 75.68 | G22: 59.46 | H22: 60.31 | J22: 39.29 | L22: 0.01305483029 | M22: -12.04 | O22: 0.01305483029 | P22: 0.244 | Q22: 0.976 | R22: -1.26
A23: 2013-10-03T15:00:00 | B23: 75.36 | C23: 75.78 | D23: 75.98 | G23: 58.88 | H23: 59.87 | J23: 41.72 | L23: 0.001827668272 | M23: -11.49 | O23: 0.01305483029 | P23: 0.206 | Q23: 0.824 | R23: -1.054
A24: 2013-10-03T15:15:00 | B24: 75.46 | C24: 75.9 | D24: 76.11 | G24: 58.28 | H24: 59.27 | J24: 44.37 | L24: 0 | M24: -11.58 | O24: 0.01305483029 | P24: 0.074 | Q24: 0.296 | R24: -0.98
A25: 2013-10-03T15:30:00 | B25: 75.26 | C25: 75.75 | D25: 75.94 | G25: 58.3 | H25: 59.13 | J25: 46.77 | L25: 0 | M25: -11.66 | O25: 0.01305483029 | P25: 0.17 | Q25: 0.68 | R25: -0.81
A26: 2013-10-03T15:45:00 | B26: 75.4 | C26: 75.89 | D26: 76.09 | G26: 58.4 | H26: 59.23 | J26: 48.09 | L26: 0 | M26: -10.56 | O26: 0.01305483029 | P26: 0.242 | Q26: 0.968 | R26: -0.568
A27: 2013-10-03T16:00:00 | B27: 75.52 | C27: 76.01 | D27: 76.22 | G27: 57.75 | H27: 58.6 | J27: 46.92 | L27: 0 | M27: -7.673 | O27: 0.01305483029 | P27: -0.272 | Q27: -1.088 | R27: -0.84
A28: 2013-10-03T16:15:00 | B28: 75.74 | C28: 76.23 | D28: 76.45 | G28: 57.79 | H28: 58.49 | J28: 48.67 | L28: 0 | M28: -6.307 | O28: 0.01305483029 | P28: 0.178 | Q28: 0.712 | R28: -0.662
A29: 2013-10-03T16:30:00 | B29: 76.14 | C29: 76.6 | D29: 76.81 | G29: 57.6 | H29: 58.24 | J29: 46.83 | L29: 0 | M29: -6.804 | O29: 0.01305483029 | P29: 0.182 | Q29: 0.728 | R29: -0.48
A30: 2013-10-03T16:45:00 | B30: 76.5 | C30: 76.99 | D30: 77.19 | G30: 57.27 | H30: 57.91 | J30: 45.11 | L30: 0 | M30: -7.827 | O30: 0.01305483029 | P30: 0.146 | Q30: 0.584 | R30: -0.334
A31: 2013-10-03T17:00:00 | B31: 76.54 | C31: 77.05 | D31: 77.31 | G31: 56.75 | H31: 57.32 | J31: 43.7 | L31: 0 | M31: -8.75 | O31: 0.01305483029 | P31: 0.124 | Q31: 0.496 | R31: -0.21
A32: 2013-10-03T17:15:00 | B32: 76.54 | C32: 77.06 | D32: 77.34 | G32: 56.97 | H32: 57.49 | J32: 42.51 | L32: 0 | M32: -9.57 | O32: 0.01305483029 | P32: 0.058 | Q32: 0.232 | R32: -0.152
A33: 2013-10-03T17:30:00 | B33: 76.27 | C33: 76.81 | D33: 77.1 | G33: 56.85 | H33: 57.29 | J33: 41.45 | L33: 0.003590073349 | M33: -10.67 | O33: 0.01305483029 | P33: 0.03 | Q33: 0.12 | R33: -0.122
A34: 2013-10-03T17:45:00 | B34: 75.9 | C34: 76.49 | D34: 76.75 | G34: 57.18 | H34: 57.6 | J34: 40.49 | L34: 0.009856385911 | M34: -11.77 | O34: 0.01305483029 | P34: -0.006 | Q34: -0.024 | R34: -0.128
A35: 2013-10-03T18:00:00 | B35: 75.37 | C35: 76.02 | D35: 76.23 | G35: 57.5 | H35: 57.92 | J35: 39.61 | L35: 0.01305483029 | M35: -12.72 | O35: 0.01305483029 | P35: -0.028 | Q35: -0.112 | R35: -0.156
A36: 2013-10-03T18:15:00 | B36: 74.71 | C36: 75.43 | D36: 75.58 | G36: 58.28 | H36: 58.42 | J36: 38.83 | L36: 0.01305483029 | M36: -13.56 | O36: 0.01305483029 | P36: -0.038 | Q36: -0.152 | R36: -0.194
A37: 2013-10-03T18:30:00 | B37: 74.03 | C37: 74.76 | D37: 74.92 | G37: 59.16 | H37: 59.28 | J37: 38.38 | L37: 0.01305483029 | M37: -14.25 | O37: 0.01305483029 | P37: -0.03 | Q37: -0.12 | R37: -0.224
A38: 2013-10-03T18:45:00 | B38: 73.31 | C38: 74.11 | D38: 74.23 | G38: 59.99 | H38: 60.17 | J38: 40.15 | L38: 0.01207570806 | M38: -13.86 | O38: 0.01305483029 | P38: -0.038 | Q38: -0.152 | R38: -0.262
A39: 2013-10-03T19:00:00 | B39: 72.41 | C39: 73.43 | D39: 73.6 | G39: 62.03 | H39: 61.13 | J39: 36.64 | L39: 0.01305483029 | M39: -11.93 | O39: 0.01305483029 | P39: -0.098 | Q39: -0.392 | R39: -0.36
A40: 2013-10-03T19:15:00 | B40: 70.29 | C40: 72.47 | D40: 72.55 | G40: 66.06 | H40: 62.58 | J40: 32.88 | L40: 0.005744132298 | M40: -10.6 | O40: 0.01305483029 | P40: -0.14 | Q40: -0.56 | R40: -0.5
A41: 2013-10-03T19:30:00 | B41: 69.91 | C41: 71.92 | D41: 71.91 | G41: 67.69 | H41: 64.9 | J41: 34.2 | L41: 0.01305483029 | M41: -11.52 | O41: 0.01305483029 | P41: -0.13 | Q41: -0.52 | R41: -0.63
A42: 2013-10-03T19:45:00 | B42: 70.56 | C42: 71.71 | D42: 71.64 | F42: 0.1158853372 | G42: 67.22 | H42: 66.61 | I42: 0.01206596692 | J42: 37.04 | L42: 0.01305483029 | M42: -11.6 | O42: 0.01305483029 | P42: -0.128 | Q42: -0.512 | R42: -0.758
A43: 2013-10-03T20:00:00 | B43: 70.97 | C43: 71.86 | D43: 71.88 | F43: 0.1292318106 | G43: 67.12 | H43: 66.65 | I43: 0.01249998808 | J43: 40.65 | L43: 0.008812000484 | M43: -8.34 | O43: 0.01305483029 | P43: -0.154 | Q43: -0.616 | R43: -0.912
A44: 2013-10-03T20:15:00 | B44: 71.39 | C44: 72.29 | D44: 72.39 | F44: 0.1302083333 | G44: 67.81 | H44: 67.29 | I44: 0.00950521893 | J44: 45.29 | L44: 0 | M44: -3.337 | O44: 0.01305483029 | P44: -0.166 | Q44: -0.664 | R44: -1.078
A45: 2013-10-03T20:30:00 | B45: 71.79 | C45: 72.81 | D45: 72.84 | F45: 0.1302083333 | G45: 68.81 | H45: 68.15 | I45: 0.005164941152 | J45: 45.61 | L45: 0 | M45: 2.787 | O45: 0.01305483029 | P45: -0.2 | Q45: -0.8 | R45: -1.278
A46: 2013-10-03T20:45:00 | B46: 72.03 | C46: 73.2 | D46: 73.07 | F46: 0.1302083333 | G46: 68.9 | H46: 68.2 | I46: 0.004774298933 | J46: 45.14 | L46: 0 | M46: 4.186 | O46: 0.01305483029 | P46: -0.586 | Q46: -2.344 | R46: -1.864
A47: 2013-10-03T21:00:00 | B47: 72.29 | C47: 73.55 | D47: 73.25 | F47: 0.1302083333 | G47: 68.99 | H47: 68.53 | I47: 0.004383689827 | J47: 46.01 | L47: 0 | M47: 4.511 | O47: 0.01305483029 | P47: -0.132 | Q47: -0.528 | R47: -1.996
A48: 2013-10-03T21:15:00 | B48: 72.61 | C48: 73.93 | D48: 73.93 | F48: 0.1302083333 | G48: 69.14 | H48: 68.32 | I48: 0.003732641538 | J48: 48.14 | L48: 0 | M48: 4.028 | O48: 0.01305483029 | P48: -0.368 | Q48: -1.472 | R48: -2.364
A49: 2013-10-03T21:30:00 | B49: 73.16 | C49: 74.35 | D49: 74.29 | F49: 0.1302083333 | G49: 68.64 | H49: 68.16 | I49: 0.005902780427 | J49: 48.13 | L49: 0 | M49: 3.314 | O49: 0.01305483029 | P49: -0.816 | Q49: -3.264 | R49: -3.18
A50: 2013-10-03T21:45:00 | B50: 73.68 | C50: 74.78 | D50: 74.54 | F50: 0.1302083333 | G50: 66.89 | H50: 66.54 | I50: 0.01349826654 | J50: 46.81 | L50: 0 | M50: 2.624 | O50: 0.01305483029 | P50: -0.788 | Q50: -3.152 | R50: -3.968
A51: 2013-10-03T22:00:00 | B51: 74 | C51: 75.15 | D51: 74.77 | F51: 0.1302083333 | G51: 65.77 | H51: 65.46 | I51: 0.01835938957 | J51: 45.69 | L51: 0 | M51: 1.841 | O51: 0.01305483029 | P51: -0.554 | Q51: -2.216 | R51: -4.522
A52: 2013-10-03T22:15:00 | B52: 74.4 | C52: 75.61 | D52: 75.13 | F52: 0.1302083333 | G52: 64.37 | H52: 63.93 | I52: 0.02443575197 | J52: 44.97 | L52: 0 | M52: 1.022 | O52: 0.01305483029 | P52: -0.388 | Q52: -1.552 | R52: -4.91
A53: 2013-10-03T22:30:00 | B53: 74.67 | C53: 75.75 | D53: 75.39 | F53: 0.1302083333 | G53: 63.99 | H53: 63.87 | I53: 0.02608506216 | J53: 44.49 | L53: 0 | M53: 0.139 | O53: 0.01305483029 | P53: -0.626 | Q53: -2.504 | R53: -5.536
A54: 2013-10-03T22:45:00 | B54: 75.12 | C54: 76.07 | D54: 75.76 | F54: 0.1279296974 | G54: 63.49 | H54: 63.66 | I54: 0.02751736177 | J54: 43.72 | L54: 0 | M54: -0.269 | O54: 0.01305483029 | P54: -0.406 | Q54: -1.624 | R54: -5.942
A55: 2013-10-03T23:00:00 | B55: 75.24 | C55: 76.16 | D55: 75.91 | F55: 0.1249998808 | G55: 62.75 | H55: 63.17 | I55: 0.02964410517 | J55: 48.28 | L55: 0 | M55: -0.347 | O55: 0.01305483029 | P55: -0.782 | Q55: -3.128 | R55: -6.724
A56: 2013-10-03T23:15:00 | B56: 75.3 | C56: 76.37 | D56: 75.97 | F56: 0.1181639731 | G56: 64.07 | H56: 64.59 | I56: 0.02348091867 | J56: 53.95 | L56: 0 | M56: -0.736 | O56: 0.01305483029 | P56: -0.43 | Q56: -1.72 | R56: -7.154
A57: 2013-10-03T23:30:00 | B57: 75.08 | C57: 76.17 | D57: 75.86 | F57: 0.1246745388 | G57: 63.87 | H57: 63.87 | I57: 0.02660590741 | J57: 53.52 | L57: 0 | M57: -1.423 | O57: 0.01305483029 | P57: -0.126 | Q57: -0.504 | R57: -7.28
A58: 2013-10-03T23:45:00 | B58: 74.82 | C58: 75.98 | D58: 75.7 | F58: 0.1302083333 | G58: 63.49 | H58: 63.16 | I58: 0.02825520105 | J58: 52.12 | L58: 0 | M58: -2.263 | O58: 0.01305483029 | P58: -0.088 | Q58: -0.352 | R58: -7.368
A59: 2013-10-04 | B59: 74.63 | C59: 75.82 | D59: 75.61 | F59: 0.1302083333 | G59: 63.14 | H59: 62.64 | I59: 0.0297743082 | J59: 50.76 | L59: 0 | M59: -3.008 | O59: 0.01305483029 | P59: -0.088 | Q59: -0.352 | R59: -7.456
A60: 2013-10-04T00:15:00 | B60: 74.52 | C60: 75.71 | D60: 75.49 | F60: 0.1302083333 | G60: 62.77 | H60: 62.05 | I60: 0.03138020635 | J60: 49.51 | L60: 0 | M60: -3.774 | O60: 0.01305483029 | P60: -0.122 | Q60: -0.488 | R60: -7.578
A61: 2013-10-04T00:30:00 | B61: 74.4 | C61: 75.68 | D61: 75.41 | F61: 0.1302083333 | G61: 62.49 | H61: 61.63 | I61: 0.03259547883 | J61: 49.66 | L61: 0 | M61: -7.238 | O61: 0.01305483029 | P61: -0.072 | Q61: -0.288 | R61: -7.65
A62: 2013-10-04T00:45:00 | B62: 74.29 | C62: 75.5 | D62: 75.29 | F62: 0.1302083333 | G62: 62.29 | H62: 61.46 | I62: 0.03346353769 | J62: 50.82 | L62: 0 | M62: -9.28 | O62: 0.01305483029 | P62: -0.07 | Q62: -0.28 | R62: -7.72
A63: 2013-10-04T01:00:00 | B63: 74.19 | C63: 75.41 | D63: 75.19 | F63: 0.1302083333 | G63: 62.01 | H63: 61.2 | I63: 0.03467882673 | J63: 51.71 | L63: 0 | M63: -7.733 | O63: 0.01305483029 | P63: -0.112 | Q63: -0.448 | R63: -7.832
A64: 2013-10-04T01:15:00 | B64: 74.05 | C64: 75.23 | D64: 75.05 | F64: 0.1302083333 | G64: 61.94 | H64: 61.18 | I64: 0.03498264485 | J64: 52.7 | L64: 0 | M64: -9.5 | O64: 0.01305483029 | P64: -0.054 | Q64: -0.216 | R64: -7.886
A65: 2013-10-04T01:30:00 | B65: 73.88 | C65: 75.08 | D65: 74.91 | F65: 0.1302083333 | G65: 61.87 | H65: 61.1 | I65: 0.03528646297 | J65: 52.4 | L65: 0 | M65: -7.464 | O65: 0.01305483029 | P65: -0.096 | Q65: -0.384 | R65: -7.982
A66: 2013-10-04T01:45:00 | B66: 73.8 | C66: 74.97 | D66: 74.8 | F66: 0.1302083333 | G66: 61.77 | H66: 61.05 | I66: 0.03572048412 | J66: 50.83 | L66: 0 | M66: -7.857 | O66: 0.01305483029 | P66: -0.106 | Q66: -0.424 | R66: -8.088
A67: 2013-10-04T02:00:00 | B67: 73.67 | C67: 74.83 | D67: 74.74 | F67: 0.1302083333 | G67: 61.71 | H67: 61.02 | I67: 0.03598090675 | J67: 49.53 | L67: 0 | M67: -9.18 | O67: 0.01305483029 | P67: -0.064 | Q67: -0.256 | R67: -8.152
A68: 2013-10-04T02:15:00 | B68: 73.6 | C68: 74.72 | D68: 74.61 | F68: 0.1302083333 | G68: 61.65 | H68: 60.99 | I68: 0.03624131282 | J68: 48.59 | L68: 0 | M68: -10.09 | O68: 0.01305483029 | P68: -0.104 | Q68: -0.416 | R68: -8.256
A69: 2013-10-04T02:30:00 | B69: 73.46 | C69: 74.58 | D69: 74.52 | F69: 0.1302083333 | G69: 61.59 | H69: 60.99 | I69: 0.03650173545 | J69: 47.82 | L69: 0 | M69: -10.76 | O69: 0.01305483029 | P69: -0.456 | Q69: -1.824 | R69: -8.712
A70: 2013-10-04T02:45:00 | B70: 73.37 | C70: 74.49 | D70: 74.39 | F70: 0.1302083333 | G70: 61.44 | H70: 60.97 | I70: 0.03715278374 | J70: 47.03 | L70: 0 | M70: -11.86 | O70: 0.01305483029 | P70: -0.066 | Q70: -0.264 | R70: -8.778
A71: 2013-10-04T03:00:00 | B71: 73.26 | C71: 74.37 | D71: 74.3 | F71: 0.1302083333 | G71: 61.42 | H71: 60.92 | I71: 0.03723959128 | J71: 46.37 | L71: 0 | M71: -12.84 | O71: 0.01305483029 | P71: -0.114 | Q71: -0.456 | R71: -8.892
A72: 2013-10-04T03:15:00 | B72: 73.17 | C72: 74.28 | D72: 74.21 | F72: 0.1302083333 | G72: 61.39 | H72: 60.89 | I72: 0.03736979432 | J72: 45.74 | L72: 0 | M72: -13.59 | O72: 0.01305483029 | P72: -0.094 | Q72: -0.376 | R72: -8.986
A73: 2013-10-04T03:30:00 | B73: 73.09 | C73: 74.16 | D73: 74.09 | F73: 0.1302083333 | G73: 61.35 | H73: 60.87 | I73: 0.0375434094 | J73: 45.16 | L73: 0 | M73: -14.16 | O73: 0.01305483029 | P73: -0.07 | Q73: -0.28 | R73: -9.056
A74: 2013-10-04T03:45:00 | B74: 72.96 | C74: 74.05 | D74: 74 | F74: 0.1302083333 | G74: 61.3 | H74: 60.85 | I74: 0.03776041998 | J74: 44.59 | L74: 0 | M74: -14.67 | O74: 0.01305483029 | P74: -0.112 | Q74: -0.448 | R74: -9.168
A75: 2013-10-04T04:00:00 | B75: 72.88 | C75: 73.96 | D75: 73.88 | F75: 0.1302083333 | G75: 61.26 | H75: 60.79 | I75: 0.03793403506 | J75: 44.09 | L75: 0 | M75: -15.13 | O75: 0.01305483029 | P75: -0.094 | Q75: -0.376 | R75: -9.262
A76: 2013-10-04T04:15:00 | B76: 72.78 | C76: 73.84 | D76: 73.8 | F76: 0.1302083333 | G76: 61.25 | H76: 60.76 | I76: 0.03797743056 | J76: 43.56 | L76: 0 | M76: -15.59 | O76: 0.01305483029 | P76: -0.07 | Q76: -0.28 | R76: -9.332
A77: 2013-10-04T04:30:00 | B77: 72.66 | C77: 73.74 | D77: 73.66 | F77: 0.1302083333 | G77: 61.23 | H77: 60.77 | I77: 0.0380642381 | J77: 43.03 | L77: 0 | M77: -15.94 | O77: 0.01305483029 | P77: -0.112 | Q77: -0.448 | R77: -9.444
A78: 2013-10-04T04:45:00 | B78: 72.55 | C78: 73.61 | D78: 73.55 | F78: 0.1302083333 | G78: 61.2 | H78: 60.77 | I78: 0.03819444113 | J78: 42.51 | L78: 0 | M78: -16.32 | O78: 0.01305483029 | P78: -0.096 | Q78: -0.384 | R78: -9.54
A79: 2013-10-04T05:00:00 | B79: 72.44 | C79: 73.48 | D79: 73.43 | F79: 0.1302083333 | G79: 61.2 | H79: 60.74 | I79: 0.03819444113 | J79: 42.06 | L79: 0 | M79: -16.68 | O79: 0.01305483029 | P79: -0.068 | Q79: -0.272 | R79: -9.608
A80: 2013-10-04T05:15:00 | B80: 72.3 | C80: 73.38 | D80: 73.28 | F80: 0.1302083333 | G80: 61.2 | H80: 60.6 | I80: 0.03819444113 | J80: 41.63 | L80: 0.002415136631 | M80: -16.92 | O80: 0.01305483029 | P80: -0.102 | Q80: -0.408 | R80: -9.71
A81: 2013-10-04T05:30:00 | B81: 72.2 | C81: 73.24 | D81: 73.14 | F81: 0.1302083333 | G81: 61.17 | H81: 60.58 | I81: 0.03832466073 | J81: 41.9 | L81: 0.0006527315543 | M81: -16.13 | O81: 0.01305483029 | P81: -0.084 | Q81: -0.336 | R81: -9.794
A82: 2013-10-04T05:45:00 | B82: 72.03 | C82: 73.1 | D82: 72.96 | F82: 0.1302083333 | G82: 61.15 | H82: 60.56 | I82: 0.03841145171 | J82: 43.1 | L82: 0 | M82: -14.94 | O82: 0.01305483029 | P82: -0.054 | Q82: -0.216 | R82: -9.848
A83: 2013-10-04T06:00:00 | B83: 71.86 | C83: 72.93 | D83: 72.73 | F83: 0.1302083333 | G83: 61.09 | H83: 60.54 | I83: 0.03867187434 | J83: 44.27 | L83: 0 | M83: -14.78 | O83: 0.01305483029 | P83: -0.08 | Q83: -0.32 | R83: -9.928
A84: 2013-10-04T06:15:00 | B84: 71.65 | C84: 72.71 | D84: 72.54 | F84: 0.1302083333 | G84: 61.2 | H84: 60.59 | I84: 0.03819444113 | J84: 45.34 | L84: 0 | M84: -13.83 | O84: 0.01305483029 | P84: -0.088 | Q84: -0.352 | R84: -10.016
A85: 2013-10-04T06:30:00 | B85: 71.42 | C85: 72.44 | D85: 72.32 | F85: 0.1302083333 | G85: 61.34 | H85: 60.76 | I85: 0.03758680489 | J85: 46.21 | L85: 0 | M85: -14.34 | O85: 0.01305483029 | P85: -0.032 | Q85: -0.128 | R85: -10.048
A86: 2013-10-04T06:45:00 | B86: 71.16 | C86: 72.22 | D86: 72.05 | F86: 0.1302083333 | G86: 61.41 | H86: 60.86 | I86: 0.03728298677 | J86: 46.95 | L86: 0 | M86: -13.27 | O86: 0.01305483029 | P86: -0.062 | Q86: -0.248 | R86: -10.11
A87: 2013-10-04T07:00:00 | B87: 70.99 | C87: 72.03 | D87: 71.86 | F87: 0.129882743 | G87: 61.35 | H87: 60.87 | I87: 0.0375434094 | J87: 47.61 | L87: 0 | M87: -14.38 | O87: 0.01305483029 | P87: -0.074 | Q87: -0.296 | R87: -10.184
A88: 2013-10-04T07:15:00 | B88: 70.85 | C88: 71.93 | D88: 71.69 | F88: 0.1253254712 | G88: 61.37 | H88: 60.9 | I88: 0.03745660186 | J88: 48.16 | L88: 0 | M88: -13.98 | O88: 0.01305483029 | P88: -0.066 | Q88: -0.264 | R88: -10.25
A89: 2013-10-04T07:30:00 | B89: 70.88 | C89: 71.88 | D89: 71.66 | F89: 0.1263019939 | G89: 61.67 | H89: 61.34 | I89: 0.03615452184 | J89: 47.42 | L89: 0 | M89: -12.7 | O89: 0.01305483029 | P89: -0.054 | Q89: -0.216 | R89: -10.304
A90: 2013-10-04T07:45:00 | B90: 71.17 | C90: 72.03 | D90: 71.94 | F90: 0.1302083333 | G90: 62.58 | H90: 62.56 | I90: 0.03220485316 | J90: 45.59 | L90: 0 | M90: -10.1 | O90: 0.01305483029 | P90: -0.112 | Q90: -0.448 | R90: -10.416
A91: 2013-10-04T08:00:00 | B91: 71.76 | C91: 72.33 | D91: 72.41 | F91: 0.1302083333 | G91: 63.24 | H91: 62.91 | I91: 0.02934027049 | J91: 44.26 | L91: 0 | M91: -9.45 | O91: 0.01305483029 | P91: -0.128 | Q91: -0.512 | R91: -10.544
A92: 2013-10-04T08:15:00 | B92: 72.18 | C92: 72.55 | D92: 73.1 | F92: 0.1302083333 | G92: 64.25 | H92: 63.53 | I92: 0.02495659722 | J92: 43.33 | L92: 0 | M92: -9.74 | O92: 0.01305483029 | P92: -0.116 | Q92: -0.464 | R92: -10.66
A93: 2013-10-04T08:30:00 | B93: 72.62 | C93: 72.83 | D93: 73.59 | F93: 0.1302083333 | G93: 64.32 | H93: 64.58 | I93: 0.02352429761 | J93: 42.54 | L93: 0 | M93: -9.88 | O93: 0.01305483029 | P93: -0.53 | Q93: -2.12 | R93: -11.19
A94: 2013-10-04T08:45:00 | B94: 73.15 | C94: 73.1 | D94: 74.17 | F94: 0.1302083333 | G94: 64.43 | H94: 64.7 | I94: 0.02300348547 | J94: 41.89 | L94: 0.0007180196498 | M94: -10.24 | O94: 0.01305483029 | P94: -0.34 | Q94: -1.36 | R94: -11.53
A95: 2013-10-04T09:00:00 | B95: 74.08 | C95: 73.35 | D95: 74.77 | F95: 0.1302083333 | G95: 64.29 | H95: 64.89 | I95: 0.02217882209 | J95: 41.35 | L95: 0.004242829803 | M95: -10.48 | O95: 0.01305483029 | P95: -0.304 | Q95: -1.216 | R95: -11.834
A96: 2013-10-04T09:15:00 | B96: 74.97 | C96: 73.87 | D96: 75.64 | F96: 0.1302083333 | G96: 64.06 | H96: 66.17 | I96: 0.01662327184 | J96: 40.86 | L96: 0.00744124928 | M96: -10.52 | O96: 0.01305483029 | P96: -0.824 | Q96: -3.296 | R96: -12.658
A97: 2013-10-04T09:30:00 | B97: 75.76 | C97: 74.58 | D97: 76.49 | F97: 0.114257882 | G97: 62.88 | H97: 64.09 | I97: 0.02565105756 | J97: 40.42 | L97: 0.01031332788 | M97: -10.52 | O97: 0.01305483029 | P97: -1.16 | Q97: -4.64 | R97: -13.818
A98: 2013-10-04T09:45:00 | B98: 76.65 | C98: 75.08 | D98: 77.19 | F98: 0.09147127469 | G98: 42.17 | H98: 52.83 | I98: 0.04340277778 | J98: 39.95 | L98: 0.01305483029 | M98: -10.98 | O98: 0.01305483029 | P98: -0.562 | Q98: -2.248 | R98: -14.38
A99: 2013-10-04T10:00:00 | B99: 77.41 | C99: 75.46 | D99: 77.74 | F99: 0.07356777787 | G99: 31.48 | H99: 38.4 | I99: 0.04340277778 | J99: 39.5 | L99: 0.01305483029 | M99: -12.27 | O99: 0.01305483029 | P99: -0.602 | Q99: -2.408 | R99: -14.982
A100: 2013-10-04T10:15:00 | B100: 77.95 | C100: 76.22 | D100: 78.27 | F100: 0.05631521344 | G100: 31.56 | H100: 31.87 | I100: 0.04340277778 | J100: 39.02 | L100: 0.01305483029 | M100: -13.07 | O100: 0.01305483029 | P100: 0.115813 | Q100: 0.463252 | R100: -14.8662
A101: 2013-10-04T10:30:00 | B101: 78.42 | C101: 76.85 | D101: 78.62 | F101: 0.04492178559 | G101: 31.21 | H101: 31.09 | I101: 0.04340277778 | J101: 38.63 | L101: 0.01305483029 | M101: -13.52 | O101: 0.01305483029 | P101: 0.836 | Q101: 3.344 | R101: -14.0302
A102: 2013-10-04T10:45:00 | B102: 78.66 | C102: 77.14 | D102: 78.99 | F102: 0.03287767371 | G102: 30 | H102: 30.78 | I102: 0.04340277778 | J102: 38.29 | L102: 0.01305483029 | M102: -13.87 | O102: 0.01305483029 | P102: 0.876 | Q102: 3.504 | R102: -13.1542
A103: 2013-10-04T11:00:00 | B103: 78.88 | C103: 77.35 | D103: 79.34 | F103: 0.02148449421 | G103: 28.76 | H103: 29.08 | I103: 0.04340277778 | J103: 37.94 | L103: 0.01305483029 | M103: -14.58 | O103: 0.01305483029 | P103: 0.934 | Q103: 3.736 | R103: -12.2202
A104: 2013-10-04T11:15:00 | B104: 79.03 | C104: 77.42 | D104: 79.57 | G104: 26.41 | H104: 26.79 | J104: 37.51 | L104: 0.01305483029 | M104: -15.39 | O104: 0.01305483029 | P104: 0.938 | Q104: 3.752 | R104: -11.2822
A105: 2013-10-04T11:30:00 | B105: 79.2 | C105: 77.43 | D105: 79.63 | G105: 22.95 | H105: 24.38 | J105: 37.66 | L105: 0.01305483029 | M105: -15.49 | O105: 0.01305483029 | P105: 1.06 | Q105: 4.24 | R105: -10.2222
A106: 2013-10-04T11:45:00 | B106: 79.38 | C106: 78.23 | D106: 79.96 | G106: 24.18 | H106: 20.77 | J106: 38.96 | L106: 0.01305483029 | M106: -13.95 | O106: 0.01305483029 | P106: 0.724 | Q106: 2.896 | R106: -9.49819
A107: 2013-10-04T12:00:00 | B107: 79.46 | C107: 78.87 | D107: 80.3 | G107: 24.46 | H107: 19.65 | J107: 40.29 | L107: 0.01116187392 | M107: -13.93 | O107: 0.01305483029 | P107: 0.936 | Q107: 3.744 | R107: -8.56219
A108: 2013-10-04T12:15:00 | B108: 79.5 | C108: 79.17 | D108: 80.4 | G108: 23.19 | H108: 18.49 | J108: 41.51 | L108: 0.003198444376 | M108: -13.32 | O108: 0.01305483029 | P108: 1.152 | Q108: 4.608 | R108: -7.41019
A109: 2013-10-04T12:30:00 | B109: 79.77 | C109: 79.57 | D109: 80.5 | G109: 21.94 | H109: 18.21 | J109: 42.62 | L109: 0 | M109: -13.24 | O109: 0.01305483029 | P109: 1.15 | Q109: 4.6 | R109: -6.26019
A110: 2013-10-04T12:45:00 | B110: 80.1 | C110: 79.95 | D110: 81 | G110: 22.63 | H110: 18.68 | J110: 43.68 | L110: 0 | M110: -13.39 | O110: 0.01305483029 | P110: 1.166 | Q110: 4.664 | R110: -5.09419
A111: 2013-10-04T13:00:00 | B111: 80.2 | C111: 80.3 | D111: 81.2 | G111: 24.64 | H111: 20.13 | J111: 44.38 | L111: 0 | M111: -12.66 | O111: 0.01305483029 | P111: 1.164 | Q111: 4.656 | R111: -3.93019
A112: 2013-10-04T13:15:00 | B112: 79.98 | C112: 80.5 | D112: 81.4 | G112: 24.07 | H112: 19.28 | J112: 45.09 | L112: 0 | M112: -14.31 | O112: 0.01305483029 | P112: 1.164 | Q112: 4.656 | R112: -2.76619
A113: 2013-10-04T13:30:00 | B113: 80.4 | C113: 80.8 | D113: 81.4 | G113: 22.98 | H113: 19.94 | J113: 45.76 | L113: 0 | M113: -13.2 | O113: 0.01305483029 | P113: 1.136 | Q113: 4.544 | R113: -1.63019
A114: 2013-10-04T13:45:00 | B114: 80.8 | C114: 80.9 | D114: 81.6 | G114: 22.65 | H114: 21.21 | J114: 46.35 | L114: 0 | M114: -13.76 | O114: 0.01305483029 | P114: 1.116 | Q114: 4.464 | R114: -0.514189
A115: 2013-10-04T14:00:00 | B115: 80.8 | C115: 81.4 | D115: 82.2 | G115: 23.18 | H115: 20.04 | J115: 46.91 | L115: 0 | M115: -14.87 | O115: 0.01305483029 | P115: 1.07 | Q115: 4.28 | R115: 0.555811
A116: 2013-10-04T14:15:00 | B116: 81.2 | C116: 81.7 | D116: 82.6 | G116: 23 | H116: 17.96 | J116: 47.36 | L116: 0 | M116: -13.64 | O116: 0.01305483029 | P116: 1.058 | Q116: 4.232 | R116: 1.61381
A117: 2013-10-04T14:30:00 | B117: 81.5 | C117: 82.4 | D117: 82.9 | G117: 22.71 | H117: 17.34 | J117: 46.11 | L117: 0 | M117: -12.17 | O117: 0.01305483029 | P117: 0.996 | Q117: 3.984 | R117: 2.60981
A118: 2013-10-04T14:45:00 | B118: 81.8 | C118: 83.5 | D118: 83.7 | G118: 21.32 | H118: 16.89 | J118: 44.37 | L118: 0 | M118: -9.42 | O118: 0.01305483029 | P118: 0.498 | Q118: 1.992 | R118: 3.10781
A119: 2013-10-04T15:00:00 | B119: 82.5 | C119: 84 | D119: 85.3 | G119: 17.47 | H119: 15.25 | J119: 43.15 | L119: 0 | M119: -8.18 | O119: 0.01305483029 | P119: 0.9 | Q119: 3.6 | R119: 4.00781
A120: 2013-10-04T15:15:00 | B120: 83.2 | C120: 84.4 | D120: 88 | G120: 13.8 | H120: 13.16 | J120: 42.3 | L120: 0 | M120: -8.26 | O120: 0.01305483029 | P120: 0.9 | Q120: 3.6 | R120: 4.90781
A121: 2013-10-04T15:30:00 | B121: 83.9 | C121: 84.8 | D121: 90.3 | G121: 14.37 | H121: 14.12 | J121: 41.65 | L121: 0.00228458534 | M121: -8.33 | O121: 0.01305483029 | P121: 0.842 | Q121: 3.368 | R121: 5.74981
A122: 2013-10-04T15:45:00 | B122: 84.5 | C122: 85.4 | D122: 91.3 | G122: 13.61 | H122: 13.71 | J122: 41.08 | L122: 0.00600520998 | M122: -8.54 | O122: 0.01305483029 | P122: 0.782 | Q122: 3.128 | R122: 6.53181
A123: 2013-10-04T16:00:00 | B123: 84.8 | C123: 85.9 | D123: 90.9 | G123: 12.41 | H123: 12.6 | J123: 40.58 | L123: 0.009268917552 | M123: -8.52 | O123: 0.01305483029 | P123: 0.71 | Q123: 2.84 | R123: 7.24181
A124: 2013-10-04T16:15:00 | B124: 85.2 | C124: 86.1 | D124: 90 | G124: 11.51 | H124: 11.7 | J124: 40.14 | L124: 0.01214099615 | M124: -8.37 | O124: 0.01305483029 | P124: 0.64 | Q124: 2.56 | R124: 7.88181
A125: 2013-10-04T16:30:00 | B125: 85.5 | C125: 86.2 | D125: 90.4 | G125: 11.65 | H125: 11.2 | J125: 39.83 | L125: 0.01305483029 | M125: -8.24 | O125: 0.01305483029 | P125: 0.558 | Q125: 2.232 | R125: 8.43981
A126: 2013-10-04T16:45:00 | B126: 85.4 | C126: 86 | D126: 89.4 | G126: 10.55 | H126: 10.61 | J126: 39.46 | L126: 0.01305483029 | M126: -9.13 | O126: 0.01305483029 | P126: 0.47 | Q126: 1.88 | R126: 8.90981
A127: 2013-10-04T17:00:00 | B127: 85.1 | C127: 85.7 | D127: 89.3 | G127: 10.12 | H127: 10.32 | J127: 39.05 | L127: 0.01305483029 | M127: -10.17 | O127: 0.01305483029 | P127: 0.388 | Q127: 1.552 | R127: 9.29781
A128: 2013-10-04T17:15:00 | B128: 85 | C128: 85.6 | D128: 90.4 | G128: 9.85 | H128: 10.26 | J128: 38.71 | L128: 0.01305483029 | M128: -10.72 | O128: 0.01305483029 | P128: 0.294 | Q128: 1.176 | R128: 9.59181
A129: 2013-10-04T17:30:00 | B129: 84.8 | C129: 85.6 | D129: 89 | G129: 10.41 | H129: 10.96 | J129: 38.39 | L129: 0.01305483029 | M129: -11.15 | O129: 0.01305483029 | P129: 0.204 | Q129: 0.816 | R129: 9.79581
A130: 2013-10-04T17:45:00 | B130: 84.8 | C130: 85.7 | D130: 87 | G130: 10.34 | H130: 11.25 | J130: 38.08 | L130: 0.01305483029 | M130: -11.55 | O130: 0.01305483029 | P130: 0.066 | Q130: 0.264 | R130: 9.86181
A131: 2013-10-04T18:00:00 | B131: 84.6 | C131: 84.2 | D131: 84.6 | G131: 10.63 | H131: 11.6 | J131: 37.73 | L131: 0.01305483029 | M131: -12.42 | O131: 0.01305483029 | P131: 0.05 | Q131: 0.2 | R131: 9.91181
A132: 2013-10-04T18:15:00 | B132: 83.7 | C132: 83.8 | D132: 84.2 | G132: 11.32 | H132: 12.1 | J132: 37.45 | L132: 0.01305483029 | M132: -13.48 | O132: 0.01305483029 | P132: 0 | Q132: 0 | R132: 9.91181
A133: 2013-10-04T18:30:00 | B133: 82.9 | C133: 83.2 | D133: 83.7 | G133: 11.18 | H133: 12.37 | J133: 38.25 | L133: 0.01305483029 | M133: -13.7 | O133: 0.01305483029 | P133: -0.01 | Q133: -0.04 | R133: 9.90181
A134: 2013-10-04T18:45:00 | B134: 82 | C134: 82.5 | D134: 83.1 | G134: 11.12 | H134: 12.33 | J134: 40.12 | L134: 0.01227154744 | M134: -12.33 | O134: 0.01305483029 | P134: -0.068 | Q134: -0.272 | R134: 9.83381
A135: 2013-10-04T19:00:00 | B135: 81.4 | C135: 82 | D135: 82.6 | G135: 11.37 | H135: 12.45 | J135: 41.68 | L135: 0.002088770854 | M135: -12.88 | O135: 0.01305483029 | P135: -0.068 | Q135: -0.272 | R135: 9.76581
A136: 2013-10-04T19:15:00 | B136: 80.8 | C136: 81.5 | D136: 82.2 | G136: 12.04 | H136: 12.9 | J136: 42.86 | L136: 0 | M136: -11.9 | O136: 0.01305483029 | P136: -0.072 | Q136: -0.288 | R136: 9.69381
A137: 2013-10-04T19:30:00 | B137: 80.5 | C137: 81.2 | D137: 81.8 | G137: 12.41 | H137: 13.33 | J137: 43.84 | L137: 0 | M137: -13.13 | O137: 0.01305483029 | P137: -0.068 | Q137: -0.272 | R137: 9.62581
A138: 2013-10-04T19:45:00 | B138: 80.1 | C138: 80.7 | D138: 81.3 | G138: 12.28 | H138: 13.2 | J138: 44.65 | L138: 0 | M138: -10.58 | O138: 0.01305483029 | P138: -0.068 | Q138: -0.272 | R138: 9.55781
A139: 2013-10-04T20:00:00 | B139: 79.7 | C139: 80.4 | D139: 80.9 | G139: 12.66 | H139: 13.48 | J139: 45.6 | L139: 0 | M139: -4.512 | O139: 0.01305483029 | P139: -0.126 | Q139: -0.504 | R139: 9.43181
A140: 2013-10-04T20:15:00 | B140: 79.7 | C140: 80.4 | D140: 80.7 | G140: 14 | H140: 14.79 | J140: 46.53 | L140: 0 | M140: -4.828 | O140: 0.01305483029 | P140: -0.126 | Q140: -0.504 | R140: 9.30581
A141: 2013-10-04T20:30:00 | B141: 79.56 | C141: 80.2 | D141: 80.5 | G141: 13.67 | H141: 14.32 | J141: 44.81 | L141: 0 | M141: -6.516 | O141: 0.01305483029 | P141: -0.104 | Q141: -0.416 | R141: 9.20181
A142: 2013-10-04T20:45:00 | B142: 79.47 | C142: 80.1 | D142: 80.3 | G142: 14.32 | H142: 15.1 | J142: 43.06 | L142: 0 | M142: -8.65 | O142: 0.01305483029 | P142: -0.106 | Q142: -0.424 | R142: 9.09581
A143: 2013-10-04T21:00:00 | B143: 79.4 | C143: 80.1 | D143: 80.1 | G143: 14.49 | H143: 15.24 | J143: 41.72 | L143: 0.001827668272 | M143: -10.01 | O143: 0.01305483029 | P143: -0.104 | Q143: -0.416 | R143: 8.99181
A144: 2013-10-04T21:15:00 | B144: 79.34 | C144: 80 | D144: 79.95 | G144: 14.8 | H144: 15.64 | J144: 40.65 | L144: 0.008812000484 | M144: -11.47 | O144: 0.01305483029 | P144: -0.108 | Q144: -0.432 | R144: 8.88381
A145: 2013-10-04T21:30:00 | B145: 79.24 | C145: 79.94 | D145: 79.86 | G145: 14.99 | H145: 15.84 | J145: 39.71 | L145: 0.01305483029 | M145: -12.63 | O145: 0.01305483029 | P145: -0.106 | Q145: -0.424 | R145: 8.77781
A146: 2013-10-04T21:45:00 | B146: 79.14 | C146: 79.85 | D146: 79.79 | G146: 15.25 | H146: 16 | J146: 38.95 | L146: 0.01305483029 | M146: -13.39 | O146: 0.01305483029 | P146: -0.106 | Q146: -0.424 | R146: 8.67181
A147: 2013-10-04T22:00:00 | B147: 79.02 | C147: 79.78 | D147: 79.7 | G147: 15.39 | H147: 16.22 | J147: 38.25 | L147: 0.01305483029 | M147: -13.98 | O147: 0.01305483029 | P147: -0.528 | Q147: -2.112 | R147: 8.14381
A148: 2013-10-04T22:15:00 | B148: 78.96 | C148: 79.7 | D148: 79.61 | G148: 15.61 | H148: 16.52 | J148: 37.64 | L148: 0.01305483029 | M148: -14.58 | O148: 0.01305483029 | P148: -0.104 | Q148: -0.416 | R148: 8.03981
A149: 2013-10-04T22:30:00 | B149: 78.91 | C149: 79.67 | D149: 79.51 | G149: 15.9 | H149: 16.94 | J149: 37.91 | L149: 0.01305483029 | M149: -14.39 | O149: 0.01305483029 | P149: -0.086 | Q149: -0.344 | R149: 7.95381
A150: 2013-10-04T22:45:00 | B150: 78.89 | C150: 79.57 | D150: 79.44 | G150: 16.5 | H150: 17.32 | J150: 39.37 | L150: 0.01305483029 | M150: -13.05 | O150: 0.01305483029 | P150: -0.042 | Q150: -0.168 | R150: 7.91181
A151: 2013-10-04T23:00:00 | B151: 78.68 | C151: 79.26 | D151: 79.07 | G151: 15.91 | H151: 16.94 | J151: 40.84 | L151: 0.007571800571 | M151: -13.42 | O151: 0.01305483029 | P151: -0.014 | Q151: -0.056 | R151: 7.89781
A152: 2013-10-04T23:15:00 | B152: 78.28 | C152: 78.82 | D152: 78.58 | F152: 0.03841146827 | G152: 15.48 | H152: 16.4 | I152: 0.04340277778 | J152: 42.05 | L152: 0 | M152: -12.37 | O152: 0.01305483029 | P152: -0.124 | Q152: -0.496 | R152: 7.77381
A153: 2013-10-04T23:30:00 | B153: 76.5 | C153: 77.59 | D153: 77.46 | F153: 0.07845064004 | G153: 16.37 | H153: 16.86 | I153: 0.04340277778 | J153: 43.07 | L153: 0 | M153: -13.39 | O153: 0.01305483029 | P153: -0.198 | Q153: -0.792 | R153: 7.57581
A154: 2013-10-04T23:45:00 | B154: 74.77 | C154: 76.44 | D154: 76.3 | F154: 0.1158853372 | G154: 17.51 | H154: 17.72 | I154: 0.04340277778 | J154: 44 | L154: 0 | M154: -12.37 | O154: 0.01305483029 | P154: -0.164 | Q154: -0.656 | R154: 7.41181
A155: 2013-10-05 | B155: 73.84 | C155: 75.74 | D155: 75.51 | F155: 0.1302083333 | G155: 17.95 | H155: 17.99 | I155: 0.04340277778 | J155: 44.78 | L155: 0 | M155: -13.75 | O155: 0.01305483029 | P155: -0.16 | Q155: -0.64 | R155: 7.25181
A156: 2013-10-05T00:15:00 | B156: 73.19 | C156: 75.1 | D156: 74.91 | F156: 0.1302083333 | G156: 18.06 | H156: 18.09 | I156: 0.04340277778 | J156: 45.55 | L156: 0 | M156: -13.56 | O156: 0.01305483029 | P156: -0.142 | Q156: -0.568 | R156: 7.10981
A157: 2013-10-05T00:30:00 | B157: 72.56 | C157: 74.56 | D157: 74.34 | F157: 0.1302083333 | G157: 18.26 | H157: 18.28 | I157: 0.04340277778 | J157: 46.2 | L157: 0 | M157: -13 | O157: 0.01305483029 | P157: -0.146 | Q157: -0.584 | R157: 6.96381
A158: 2013-10-05T00:45:00 | B158: 71.95 | C158: 74 | D158: 73.8 | F158: 0.1302083333 | G158: 18.69 | H158: 18.66 | I158: 0.04340277778 | J158: 46.8 | L158: 0 | M158: -14.67 | O158: 0.01305483029 | P158: -0.14 | Q158: -0.56 | R158: 6.82381
A159: 2013-10-05T01:00:00 | B159: 71.4 | C159: 73.46 | D159: 73.33 | F159: 0.1302083333 | G159: 18.79 | H159: 18.71 | I159: 0.04340277778 | J159: 47.38 | L159: 0 | M159: -13.53 | O159: 0.01305483029 | P159: -0.144 | Q159: -0.576 | R159: 6.67981
A160: 2013-10-05T01:15:00 | B160: 70.98 | C160: 72.96 | D160: 72.97 | F160: 0.1295574009 | G160: 19.23 | H160: 19.14 | I160: 0.04340277778 | J160: 47.75 | L160: 0 | M160: -13.81 | O160: 0.01305483029 | P160: -0.156 | Q160: -0.624 | R160: 6.52381
A161: 2013-10-05T01:30:00 | B161: 70.83 | C161: 72.49 | D161: 72.62 | F161: 0.1246745388 | G161: 19.59 | H161: 19.62 | I161: 0.04340277778 | J161: 46.32 | L161: 0 | M161: -13.27 | O161: 0.01305483029 | P161: -0.136 | Q161: -0.544 | R161: 6.38781
A162: 2013-10-05T01:45:00 | B162: 70.97 | C162: 72.21 | D162: 72.62 | F162: 0.1292318106 | G162: 19.45 | H162: 19.66 | I162: 0.04340277778 | J162: 44.39 | L162: 0 | M162: -11.43 | O162: 0.01305483029 | P162: -0.114 | Q162: -0.456 | R162: 6.27381
A163: 2013-10-05T02:00:00 | B163: 70.99 | C163: 71.99 | D163: 72.59 | F163: 0.129882743 | G163: 19.03 | H163: 19.5 | I163: 0.04340277778 | J163: 42.92 | L163: 0 | M163: -10.11 | O163: 0.01305483029 | P163: -0.112 | Q163: -0.448 | R163: 6.16181
A164: 2013-10-05T02:15:00 | B164: 70.74 | C164: 71.71 | D164: 72.39 | F164: 0.1217447221 | G164: 18.92 | H164: 19.48 | I164: 0.04340277778 | J164: 41.76 | L164: 0.001566590591 | M164: -10.56 | O164: 0.01305483029 | P164: -0.144 | Q164: -0.576 | R164: 6.01781
A165: 2013-10-05T02:30:00 | B165: 70.08 | C165: 71.29 | D165: 71.87 | F165: 0.1002604763 | G165: 19.41 | H165: 19.8 | I165: 0.04340277778 | J165: 40.75 | L165: 0.00815926893 | M165: -11.19 | O165: 0.01305483029 | P165: -0.15 | Q165: -0.6 | R165: 5.86781
A166: 2013-10-05T02:45:00 | B166: 70.07 | C166: 71.21 | D166: 71.72 | F166: 0.0999348859 | G166: 19.86 | H166: 20.3 | I166: 0.04340277778 | J166: 39.81 | L166: 0.01305483029 | M166: -11.53 | O166: 0.01305483029 | P166: -0.072 | Q166: -0.288 | R166: 5.79581
A167: 2013-10-05T03:00:00 | B167: 70.99 | C167: 71.96 | D167: 72.28 | F167: 0.129882743 | G167: 19.59 | H167: 20.35 | I167: 0.04340277778 | J167: 39.04 | L167: 0.01305483029 | M167: -11.76 | O167: 0.01305483029 | P167: -0.058 | Q167: -0.232 | R167: 5.73781
A168: 2013-10-05T03:15:00 | B168: 71.56 | C168: 72.39 | D168: 72.64 | F168: 0.1302083333 | G168: 19.17 | H168: 20.21 | I168: 0.04340277778 | J168: 38.54 | L168: 0.01305483029 | M168: -13.07 | O168: 0.01305483029 | P168: -0.056 | Q168: -0.224 | R168: 5.68181
A169: 2013-10-05T03:30:00 | B169: 71.87 | C169: 72.61 | D169: 72.86 | F169: 0.1302083333 | G169: 18.88 | H169: 19.99 | I169: 0.04340277778 | J169: 39.27 | L169: 0.01305483029 | M169: -14.04 | O169: 0.01305483029 | P169: -0.054 | Q169: -0.216 | R169: 5.62781
A170: 2013-10-05T03:45:00 | B170: 71.57 | C170: 72.45 | D170: 72.66 | F170: 0.1302083333 | G170: 19.1 | H170: 19.8 | I170: 0.04340277778 | J170: 40.45 | L170: 0.01011748849 | M170: -12.8 | O170: 0.01305483029 | P170: -0.11 | Q170: -0.44 | R170: 5.51781
A171: 2013-10-05T04:00:00 | B171: 70.87 | C171: 71.95 | D171: 72.16 | F171: 0.1259766519 | G171: 19.48 | H171: 20.02 | I171: 0.04340277778 | J171: 41.59 | L171: 0.002676239213 | M171: -13.59 | O171: 0.01305483029 | P171: -0.086 | Q171: -0.344 | R171: 5.43181
A172: 2013-10-05T04:15:00 | B172: 70.92 | C172: 71.97 | D172: 72.11 | F172: 0.1276041071 | G172: 19.78 | H172: 20.51 | I172: 0.04340277778 | J172: 42.5 | L172: 0 | M172: -12.58 | O172: 0.01305483029 | P172: -0.052 | Q172: -0.208 | R172: 5.37981
A173: 2013-10-05T04:30:00 | B173: 71.33 | C173: 72.2 | D173: 72.33 | F173: 0.1302083333 | G173: 19.47 | H173: 20.52 | I173: 0.04340277778 | J173: 43.33 | L173: 0 | M173: -13.79 | O173: 0.01305483029 | P173: -0.05 | Q173: -0.2 | R173: 5.32981
A174: 2013-10-05T04:45:00 | B174: 71.53 | C174: 72.27 | D174: 72.47 | F174: 0.1302083333 | G174: 18.87 | H174: 20.16 | I174: 0.04340277778 | J174: 44.02 | L174: 0 | M174: -13.52 | O174: 0.01305483029 | P174: -0.048 | Q174: -0.192 | R174: 5.28181
A175: 2013-10-05T05:00:00 | B175: 71.69 | C175: 72.31 | D175: 72.54 | F175: 0.1302083333 | G175: 17.45 | H175: 19.13 | I175: 0.04340277778 | J175: 44.63 | L175: 0 | M175: -13.2 | O175: 0.01305483029 | P175: -0.054 | Q175: -0.216 | R175: 5.22781
A176: 2013-10-05T05:15:00 | B176: 71.79 | C176: 72.39 | D176: 72.64 | F176: 0.1302083333 | G176: 17.56 | H176: 18.82 | I176: 0.04340277778 | J176: 45.24 | L176: 0 | M176: -14.65 | O176: 0.01305483029 | P176: -0.044 | Q176: -0.176 | R176: 5.18381
A177: 2013-10-05T05:30:00 | B177: 71.83 | C177: 72.42 | D177: 72.68 | F177: 0.1302083333 | G177: 17.34 | H177: 18.84 | I177: 0.04340277778 | J177: 45.82 | L177: 0 | M177: -13.5 | O177: 0.01305483029 | P177: -0.052 | Q177: -0.208 | R177: 5.13181
A178: 2013-10-05T05:45:00 | B178: 71.92 | C178: 72.42 | D178: 72.7 | F178: 0.1302083333 | G178: 16.99 | H178: 18.52 | I178: 0.04340277778 | J178: 46.32 | L178: 0 | M178: -14.49 | O178: 0.01305483029 | P178: -0.05 | Q178: -0.2 | R178: 5.08181
A179: 2013-10-05T06:00:00 | B179: 71.98 | C179: 72.44 | D179: 72.75 | F179: 0.1302083333 | G179: 17.05 | H179: 18.4 | I179: 0.04340277778 | J179: 46.81 | L179: 0 | M179: -14.34 | O179: 0.01305483029 | P179: -0.046 | Q179: -0.184 | R179: 5.03581
A180: 2013-10-05T06:15:00 | B180: 71.85 | C180: 72.39 | D180: 72.69 | F180: 0.1302083333 | G180: 17.22 | H180: 18.32 | I180: 0.04340277778 | J180: 47.27 | L180: 0 | M180: -13.62 | O180: 0.01305483029 | P180: -0.092 | Q180: -0.368 | R180: 4.94381
A181: 2013-10-05T06:30:00 | B181: 71.05 | C181: 71.89 | D181: 72.15 | F181: 0.1302083333 | G181: 17.73 | H181: 18.47 | I181: 0.04340277778 | J181: 47.77 | L181: 0 | M181: -14.82 | O181: 0.01305483029 | P181: -0.096 | Q181: -0.384 | R181: 4.84781
A182: 2013-10-05T06:45:00 | B182: 70.64 | C182: 71.56 | D182: 71.79 | F182: 0.1184895635 | G182: 18.26 | H182: 19.08 | I182: 0.04340277778 | J182: 48.01 | L182: 0 | M182: -13.83 | O182: 0.01305483029 | P182: -0.062 | Q182: -0.248 | R182: 4.78581
A183: 2013-10-05T07:00:00 | B183: 71.06 | C183: 71.76 | D183: 72.01 | F183: 0.1302083333 | G183: 18.2 | H183: 19.27 | I183: 0.04340277778 | J183: 46.55 | L183: 0 | M183: -12.02 | O183: 0.01305483029 | P183: -0.262 | Q183: -1.048 | R183: 4.52381
A184: 2013-10-05T07:15:00 | B184: 71.56 | C184: 71.93 | D184: 72.22 | F184: 0.1302083333 | G184: 18.17 | H184: 19.34 | I184: 0.04340277778 | J184: 44.62 | L184: 0 | M184: -9.85 | O184: 0.01305483029 | P184: -0.318 | Q184: -1.272 | R184: 4.20581
A185: 2013-10-05T07:30:00 | B185: 73.06 | C185: 72.14 | D185: 72.61 | F185: 0.1302083333 | G185: 18.1 | H185: 19.4 | I185: 0.04340277778 | J185: 43.18 | L185: 0 | M185: -10.27 | O185: 0.01305483029 | P185: -0.03 | Q185: -0.12 | R185: 4.17581
A186: 2013-10-05T07:45:00 | B186: 73.56 | C186: 72.5 | D186: 73.05 | F186: 0.1302083333 | G186: 19.68 | H186: 20.73 | I186: 0.04340277778 | J186: 41.97 | L186: 0.0001958144863 | M186: -10.41 | O186: 0.01305483029 | P186: 0.012 | Q186: 0.048 | R186: 4.18781
A187: 2013-10-05T08:00:00 | B187: 73.4 | C187: 72.74 | D187: 73.37 | F187: 0.1302083333 | G187: 20.04 | H187: 21.31 | I187: 0.04340277778 | J187: 41.03 | L187: 0.006331600657 | M187: -10.62 | O187: 0.01305483029 | P187: -0.09 | Q187: -0.36 | R187: 4.09781
A188: 2013-10-05T08:15:00 | B188: 73.93 | C188: 73.11 | D188: 73.76 | F188: 0.1302083333 | G188: 21.01 | H188: 22.26 | I188: 0.04340277778 | J188: 40.09 | L188: 0.01246736193 | M188: -11 | O188: 0.01305483029 | P188: -0.486 | Q188: -1.944 | R188: 3.61181
A189: 2013-10-05T08:30:00 | B189: 74.5 | C189: 73.59 | D189: 74.11 | F189: 0.1302083333 | G189: 26.96 | H189: 25.27 | I189: 0.04340277778 | J189: 39.32 | L189: 0.01305483029 | M189: -11.2 | O189: 0.01305483029 | P189: -0.996 | Q189: -3.984 | R189: 2.61581
A190: 2013-10-05T08:45:00 | B190: 74.81 | C190: 73.98 | D190: 74.36 | F190: 0.1302083333 | G190: 32.62 | H190: 30.2 | I190: 0.04340277778 | J190: 38.69 | L190: 0.01305483029 | M190: -11.24 | O190: 0.01305483029 | P190: -0.802 | Q190: -3.208 | R190: 1.81381
A191: 2013-10-05T09:00:00 | B191: 75.02 | C191: 74.4 | D191: 74.94 | F191: 0.1302083333 | G191: 34.02 | H191: 33.58 | I191: 0.04340277778 | J191: 38.19 | L191: 0.01305483029 | M191: -12.06 | O191: 0.01305483029 | P191: -1.32 | Q191: -5.28 | R191: 0.49381
A192: 2013-10-05T09:15:00 | B192: 75.16 | C192: 74.58 | D192: 75.42 | F192: 0.1302083333 | G192: 28.43 | H192: 30.57 | I192: 0.04340277778 | J192: 38.83 | L192: 0.01305483029 | M192: -13.49 | O192: 0.01305483029 | P192: 0.058 | Q192: 0.232 | R192: 0.55181
A193: 2013-10-05T09:30:00 | B193: 75.37 | C193: 74.86 | D193: 75.4 | F193: 0.1302083333 | G193: 25.56 | H193: 27.89 | I193: 0.04340277778 | J193: 40.1 | L193: 0.01240209873 | M193: -12.34 | O193: 0.01305483029 | P193: 0.004 | Q193: 0.016 | R193: 0.55581
A194: 2013-10-05T09:45:00 | B194: 75.87 | C194: 75.49 | D194: 75.34 | F194: 0.1302083333 | G194: 25.28 | H194: 27.76 | I194: 0.04340277778 | J194: 41.34 | L194: 0.004308092999 | M194: -13.22 | O194: 0.01305483029 | P194: -0.5 | Q194: -2 | R194: 0.05581
A195: 2013-10-05T10:00:00 | B195: 75.82 | C195: 75.98 | D195: 75.37 | F195: 0.1302083333 | G195: 25.92 | H195: 28.02 | I195: 0.04340277778 | J195: 42.33 | L195: 0 | M195: -12.29 | O195: 0.01305483029 | P195: -0.828 | Q195: -3.312 | R195: -0.77219
A196: 2013-10-05T10:15:00 | B196: 75.78 | C196: 76.16 | D196: 75.56 | F196: 0.1249998808 | G196: 24.52 | H196: 26.37 | I196: 0.04340277778 | J196: 43.26 | L196: 0 | M196: -13.31 | O196: 0.01305483029 | P196: 0.334 | Q196: 1.336 | R196: -0.43819
A197: 2013-10-05T10:30:00 | B197: 75.69 | C197: 76.21 | D197: 75.49 | F197: 0.1233724256 | G197: 24.46 | H197: 25.88 | I197: 0.04340277778 | J197: 44.05 | L197: 0 | M197: -13.54 | O197: 0.01305483029 | P197: 0.708 | Q197: 2.832 | R197: 0.26981
A198: 2013-10-05T10:45:00 | B198: 75.51 | C198: 76.01 | D198: 75.45 | G198: 25.55 | H198: 26.28 | J198: 44.79 | L198: 0 | M198: -12.77 | O198: 0.01305483029 | P198: 0.942 | Q198: 3.768 | R198: 1.21181
A199: 2013-10-05T11:00:00 | B199: 75.87 | C199: 76.14 | D199: 76.03 | G199: 23.71 | H199: 24.88 | J199: 45.51 | L199: 0 | M199: -14.73 | O199: 0.01305483029 | P199: 1.082 | Q199: 4.328 | R199: 2.29381
A200: 2013-10-05T11:15:00 | B200: 76.46 | C200: 76.47 | D200: 76.63 | G200: 19.48 | H200: 20.46 | J200: 46.15 | L200: 0 | M200: -13.83 | O200: 0.01305483029 | P200: 1.118 | Q200: 4.472 | R200: 3.41181
... 638 more rows

Sheet Lot 101
A1: 101 | B1: Subcontest 6-1 | G1: Subcontest 6-2 | J1: Subcontest 8-1 | M1: Subcontest 8-2 | P1: Contest 10
B2: Temperature | G2: Humidity | J2: Refrigerator | M2: Freezer | P2: Energy Balance
A4: Current score > | B4: 68.49186172 | G4: 23.43320323 | J4: 4.041122606 | M4: 10
B5: Temp #1 | C5: Temp #2 | D5: Temp #3 | E5: Temp #4 | F5: Points | G5: RH #1 | H5: RH #2 | I5: Points | J5: Temp #1 | K5: Temp #2 | L5: Points | M5: Temp #1 | N5: Temp #2 | O5: Points | P5: Net Energy | Q5: Net Power | R5: Cumulative
A6: Time Stamp | B6: °F | C6: °F | D6: °F | E6: °F | F6: Earned | G6: % | H6: % | I6: Earned | J6: °F | K6: °F | L6: Earned | M6: °F | N6: °F | O6: Earned | P6: kWh | Q6: kW | R6: kWh
A7: 2013-10-03T11:00:00 | B7: 70.65 | C7: 71.02 | D7: 71.24 | G7: 63.67 | H7: 64.86 | J7: 36.18 | M7: -10.71 | P7: 0.152 | Q7: 0.608
A8: 2013-10-03T11:15:00 | B8: 71.37 | C8: 71.6 | D8: 71.9 | G8: 61.55 | H8: 62.35 | J8: 38.25 | L8: 0.01305483029 | M8: -12.22 | O8: 0.01305483029 | P8: 0.104 | Q8: 0.416 | R8: -4.76
A9: 2013-10-03T11:30:00 | B9: 71.94 | C9: 72.1 | D9: 72.45 | G9: 61.04 | H9: 62.52 | J9: 40.41 | L9: 0.01037859107 | M9: -11.6 | O9: 0.01305483029 | P9: 0.286 | Q9: 1.144 | R9: -4.474
A10: 2013-10-03T11:45:00 | B10: 72.46 | C10: 72.65 | D10: 72.91 | G10: 60.58 | H10: 61.96 | J10: 42.63 | L10: 0 | M10: -12.06 | O10: 0.01305483029 | P10: 0.35 | Q10: 1.4 | R10: -4.124
A11: 2013-10-03T12:00:00 | B11: 73.04 | C11: 73.27 | D11: 73.46 | G11: 60.44 | H11: 61.71 | J11: 44.76 | L11: 0 | M11: -12.5 | O11: 0.01305483029 | P11: 0.37 | Q11: 1.48 | R11: -3.754
A12: 2013-10-03T12:15:00 | B12: 73.58 | C12: 73.85 | D12: 73.99 | G12: 60.09 | H12: 61.38 | J12: 46.72 | L12: 0 | M12: -11.62 | O12: 0.01305483029 | P12: 0.216 | Q12: 0.864 | R12: -3.538
A13: 2013-10-03T12:30:00 | B13: 73.83 | C13: 74.23 | D13: 74.28 | G13: 59.7 | H13: 60.86 | J13: 48.4 | L13: 0 | M13: -11.52 | O13: 0.01305483029 | P13: 0.068 | Q13: 0.272 | R13: -3.47
A14: 2013-10-03T12:45:00 | B14: 73.91 | C14: 74.33 | D14: 74.38 | G14: 59.86 | H14: 60.87 | J14: 47.49 | L14: 0 | M14: -11.04 | O14: 0.01305483029 | P14: 0.148 | Q14: 0.592 | R14: -3.322
A15: 2013-10-03T13:00:00 | B15: 73.9 | C15: 74.33 | D15: 74.46 | G15: 60.24 | H15: 61.13 | J15: 44.18 | L15: 0 | M15: -9.32 | O15: 0.01305483029 | P15: 0.374 | Q15: 1.496 | R15: -2.948
A16: 2013-10-03T13:15:00 | B16: 74.11 | C16: 74.53 | D16: 74.67 | G16: 60.09 | H16: 60.99 | J16: 41.29 | L16: 0.004634458776 | M16: -7.446 | O16: 0.01305483029 | P16: 0.194 | Q16: 0.776 | R16: -2.754
A17: 2013-10-03T13:30:00 | B17: 74.24 | C17: 74.66 | D17: 74.8 | G17: 59.73 | H17: 60.64 | J17: 39.15 | L17: 0.01305483029 | M17: -6.669 | O17: 0.01305483029 | P17: 0.198 | Q17: 0.792 | R17: -2.556
A18: 2013-10-03T13:45:00 | B18: 74.29 | C18: 74.73 | D18: 74.86 | G18: 59.65 | H18: 60.52 | J18: 37.43 | L18: 0.01305483029 | M18: -6.793 | O18: 0.01305483029 | P18: 0.306 | Q18: 1.224 | R18: -2.25
A19: 2013-10-03T14:00:00 | B19: 74.42 | C19: 74.84 | D19: 75.04 | G19: 59.86 | H19: 60.67 | J19: 36.13 | L19: 0.01305483029 | M19: -7.109 | O19: 0.01305483029 | P19: 0.222 | Q19: 0.888 | R19: -2.028
A20: 2013-10-03T14:15:00 | B20: 74.5 | C20: 74.95 | D20: 75.17 | G20: 59.69 | H20: 60.49 | J20: 35.33 | L20: 0.01305483029 | M20: -7.769 | O20: 0.01305483029 | P20: 0.226 | Q20: 0.904 | R20: -1.802
A21: 2013-10-03T14:30:00 | B21: 74.66 | C21: 75.09 | D21: 75.3 | G21: 59.79 | H21: 60.58 | J21: 36.85 | L21: 0.01305483029 | M21: -10.28 | O21: 0.01305483029 | P21: 0.298 | Q21: 1.192 | R21: -1.504
A22: 2013-10-03T14:45:00 | B22: 75.07 | C22: 75.45 | D22: 75.68 | G22: 59.46 | H22: 60.31 | J22: 39.29 | L22: 0.01305483029 | M22: -12.04 | O22: 0.01305483029 | P22: 0.244 | Q22: 0.976 | R22: -1.26
A23: 2013-10-03T15:00:00 | B23: 75.36 | C23: 75.78 | D23: 75.98 | G23: 58.88 | H23: 59.87 | J23: 41.72 | L23: 0.001827668272 | M23: -11.49 | O23: 0.01305483029 | P23: 0.206 | Q23: 0.824 | R23: -1.054
A24: 2013-10-03T15:15:00 | B24: 75.46 | C24: 75.9 | D24: 76.11 | G24: 58.28 | H24: 59.27 | J24: 44.37 | L24: 0 | M24: -11.58 | O24: 0.01305483029 | P24: 0.074 | Q24: 0.296 | R24: -0.98
A25: 2013-10-03T15:30:00 | B25: 75.26 | C25: 75.75 | D25: 75.94 | G25: 58.3 | H25: 59.13 | J25: 46.77 | L25: 0 | M25: -11.66 | O25: 0.01305483029 | P25: 0.17 | Q25: 0.68 | R25: -0.81
A26: 2013-10-03T15:45:00 | B26: 75.4 | C26: 75.89 | D26: 76.09 | G26: 58.4 | H26: 59.23 | J26: 48.09 | L26: 0 | M26: -10.56 | O26: 0.01305483029 | P26: 0.242 | Q26: 0.968 | R26: -0.568
A27: 2013-10-03T16:00:00 | B27: 75.52 | C27: 76.01 | D27: 76.22 | G27: 57.75 | H27: 58.6 | J27: 46.92 | L27: 0 | M27: -7.673 | O27: 0.01305483029 | P27: -0.272 | Q27: -1.088 | R27: -0.84
A28: 2013-10-03T16:15:00 | B28: 75.74 | C28: 76.23 | D28: 76.45 | G28: 57.79 | H28: 58.49 | J28: 48.67 | L28: 0 | M28: -6.307 | O28: 0.01305483029 | P28: 0.178 | Q28: 0.712 | R28: -0.662
A29: 2013-10-03T16:30:00 | B29: 76.14 | C29: 76.6 | D29: 76.81 | G29: 57.6 | H29: 58.24 | J29: 46.83 | L29: 0 | M29: -6.804 | O29: 0.01305483029 | P29: 0.182 | Q29: 0.728 | R29: -0.48
A30: 2013-10-03T16:45:00 | B30: 76.5 | C30: 76.99 | D30: 77.19 | G30: 57.27 | H30: 57.91 | J30: 45.11 | L30: 0 | M30: -7.827 | O30: 0.01305483029 | P30: 0.146 | Q30: 0.584 | R30: -0.334
A31: 2013-10-03T17:00:00 | B31: 76.54 | C31: 77.05 | D31: 77.31 | G31: 56.75 | H31: 57.32 | J31: 43.7 | L31: 0 | M31: -8.75 | O31: 0.01305483029 | P31: 0.124 | Q31: 0.496 | R31: -0.21
A32: 2013-10-03T17:15:00 | B32: 76.54 | C32: 77.06 | D32: 77.34 | G32: 56.97 | H32: 57.49 | J32: 42.51 | L32: 0 | M32: -9.57 | O32: 0.01305483029 | P32: 0.058 | Q32: 0.232 | R32: -0.152
A33: 2013-10-03T17:30:00 | B33: 76.27 | C33: 76.81 | D33: 77.1 | G33: 56.85 | H33: 57.29 | J33: 41.45 | L33: 0.003590073349 | M33: -10.67 | O33: 0.01305483029 | P33: 0.03 | Q33: 0.12 | R33: -0.122
A34: 2013-10-03T17:45:00 | B34: 75.9 | C34: 76.49 | D34: 76.75 | G34: 57.18 | H34: 57.6 | J34: 40.49 | L34: 0.009856385911 | M34: -11.77 | O34: 0.01305483029 | P34: -0.006 | Q34: -0.024 | R34: -0.128
A35: 2013-10-03T18:00:00 | B35: 75.37 | C35: 76.02 | D35: 76.23 | G35: 57.5 | H35: 57.92 | J35: 39.61 | L35: 0.01305483029 | M35: -12.72 | O35: 0.01305483029 | P35: -0.028 | Q35: -0.112 | R35: -0.156
A36: 2013-10-03T18:15:00 | B36: 74.71 | C36: 75.43 | D36: 75.58 | G36: 58.28 | H36: 58.42 | J36: 38.83 | L36: 0.01305483029 | M36: -13.56 | O36: 0.01305483029 | P36: -0.038 | Q36: -0.152 | R36: -0.194
A37: 2013-10-03T18:30:00 | B37: 74.03 | C37: 74.76 | D37: 74.92 | G37: 59.16 | H37: 59.28 | J37: 38.38 | L37: 0.01305483029 | M37: -14.25 | O37: 0.01305483029 | P37: -0.03 | Q37: -0.12 | R37: -0.224
A38: 2013-10-03T18:45:00 | B38: 73.31 | C38: 74.11 | D38: 74.23 | G38: 59.99 | H38: 60.17 | J38: 40.15 | L38: 0.01207570806 | M38: -13.86 | O38: 0.01305483029 | P38: -0.038 | Q38: -0.152 | R38: -0.262
A39: 2013-10-03T19:00:00 | B39: 72.41 | C39: 73.43 | D39: 73.6 | G39: 62.03 | H39: 61.13 | J39: 36.64 | L39: 0.01305483029 | M39: -11.93 | O39: 0.01305483029 | P39: -0.098 | Q39: -0.392 | R39: -0.36
A40: 2013-10-03T19:15:00 | B40: 70.29 | C40: 72.47 | D40: 72.55 | G40: 66.06 | H40: 62.58 | J40: 32.88 | L40: 0.005744132298 | M40: -10.6 | O40: 0.01305483029 | P40: -0.14 | Q40: -0.56 | R40: -0.5
A41: 2013-10-03T19:30:00 | B41: 69.91 | C41: 71.92 | D41: 71.91 | G41: 67.69 | H41: 64.9 | J41: 34.2 | L41: 0.01305483029 | M41: -11.52 | O41: 0.01305483029 | P41: -0.13 | Q41: -0.52 | R41: -0.63
A42: 2013-10-03T19:45:00 | B42: 70.56 | C42: 71.71 | D42: 71.64 | F42: 0.1158853372 | G42: 67.22 | H42: 66.61 | I42: 0.01206596692 | J42: 37.04 | L42: 0.01305483029 | M42: -11.6 | O42: 0.01305483029 | P42: -0.128 | Q42: -0.512 | R42: -0.758
A43: 2013-10-03T20:00:00 | B43: 70.97 | C43: 71.86 | D43: 71.88 | F43: 0.1292318106 | G43: 67.12 | H43: 66.65 | I43: 0.01249998808 | J43: 40.65 | L43: 0.008812000484 | M43: -8.34 | O43: 0.01305483029 | P43: -0.154 | Q43: -0.616 | R43: -0.912
A44: 2013-10-03T20:15:00 | B44: 71.39 | C44: 72.29 | D44: 72.39 | F44: 0.1302083333 | G44: 67.81 | H44: 67.29 | I44: 0.00950521893 | J44: 45.29 | L44: 0 | M44: -3.337 | O44: 0.01305483029 | P44: -0.166 | Q44: -0.664 | R44: -1.078
A45: 2013-10-03T20:30:00 | B45: 71.79 | C45: 72.81 | D45: 72.84 | F45: 0.1302083333 | G45: 68.81 | H45: 68.15 | I45: 0.005164941152 | J45: 45.61 | L45: 0 | M45: 2.787 | O45: 0.01305483029 | P45: -0.2 | Q45: -0.8 | R45: -1.278
A46: 2013-10-03T20:45:00 | B46: 72.03 | C46: 73.2 | D46: 73.07 | F46: 0.1302083333 | G46: 68.9 | H46: 68.2 | I46: 0.004774298933 | J46: 45.14 | L46: 0 | M46: 4.186 | O46: 0.01305483029 | P46: -0.586 | Q46: -2.344 | R46: -1.864
A47: 2013-10-03T21:00:00 | B47: 72.29 | C47: 73.55 | D47: 73.25 | F47: 0.1302083333 | G47: 68.99 | H47: 68.53 | I47: 0.004383689827 | J47: 46.01 | L47: 0 | M47: 4.511 | O47: 0.01305483029 | P47: -0.132 | Q47: -0.528 | R47: -1.996
A48: 2013-10-03T21:15:00 | B48: 72.61 | C48: 73.93 | D48: 73.93 | F48: 0.1302083333 | G48: 69.14 | H48: 68.32 | I48: 0.003732641538 | J48: 48.14 | L48: 0 | M48: 4.028 | O48: 0.01305483029 | P48: -0.368 | Q48: -1.472 | R48: -2.364
A49: 2013-10-03T21:30:00 | B49: 73.16 | C49: 74.35 | D49: 74.29 | F49: 0.1302083333 | G49: 68.64 | H49: 68.16 | I49: 0.005902780427 | J49: 48.13 | L49: 0 | M49: 3.314 | O49: 0.01305483029 | P49: -0.816 | Q49: -3.264 | R49: -3.18
A50: 2013-10-03T21:45:00 | B50: 73.68 | C50: 74.78 | D50: 74.54 | F50: 0.1302083333 | G50: 66.89 | H50: 66.54 | I50: 0.01349826654 | J50: 46.81 | L50: 0 | M50: 2.624 | O50: 0.01305483029 | P50: -0.788 | Q50: -3.152 | R50: -3.968
A51: 2013-10-03T22:00:00 | B51: 74 | C51: 75.15 | D51: 74.77 | F51: 0.1302083333 | G51: 65.77 | H51: 65.46 | I51: 0.01835938957 | J51: 45.69 | L51: 0 | M51: 1.841 | O51: 0.01305483029 | P51: -0.554 | Q51: -2.216 | R51: -4.522
A52: 2013-10-03T22:15:00 | B52: 74.4 | C52: 75.61 | D52: 75.13 | F52: 0.1302083333 | G52: 64.37 | H52: 63.93 | I52: 0.02443575197 | J52: 44.97 | L52: 0 | M52: 1.022 | O52: 0.01305483029 | P52: -0.388 | Q52: -1.552 | R52: -4.91
A53: 2013-10-03T22:30:00 | B53: 74.67 | C53: 75.75 | D53: 75.39 | F53: 0.1302083333 | G53: 63.99 | H53: 63.87 | I53: 0.02608506216 | J53: 44.49 | L53: 0 | M53: 0.139 | O53: 0.01305483029 | P53: -0.626 | Q53: -2.504 | R53: -5.536
A54: 2013-10-03T22:45:00 | B54: 75.12 | C54: 76.07 | D54: 75.76 | F54: 0.1279296974 | G54: 63.49 | H54: 63.66 | I54: 0.02751736177 | J54: 43.72 | L54: 0 | M54: -0.269 | O54: 0.01305483029 | P54: -0.406 | Q54: -1.624 | R54: -5.942
A55: 2013-10-03T23:00:00 | B55: 75.24 | C55: 76.16 | D55: 75.91 | F55: 0.1249998808 | G55: 62.75 | H55: 63.17 | I55: 0.02964410517 | J55: 48.28 | L55: 0 | M55: -0.347 | O55: 0.01305483029 | P55: -0.782 | Q55: -3.128 | R55: -6.724
A56: 2013-10-03T23:15:00 | B56: 75.3 | C56: 76.37 | D56: 75.97 | F56: 0.1181639731 | G56: 64.07 | H56: 64.59 | I56: 0.02348091867 | J56: 53.95 | L56: 0 | M56: -0.736 | O56: 0.01305483029 | P56: -0.43 | Q56: -1.72 | R56: -7.154
A57: 2013-10-03T23:30:00 | B57: 75.08 | C57: 76.17 | D57: 75.86 | F57: 0.1246745388 | G57: 63.87 | H57: 63.87 | I57: 0.02660590741 | J57: 53.52 | L57: 0 | M57: -1.423 | O57: 0.01305483029 | P57: -0.126 | Q57: -0.504 | R57: -7.28
A58: 2013-10-03T23:45:00 | B58: 74.82 | C58: 75.98 | D58: 75.7 | F58: 0.1302083333 | G58: 63.49 | H58: 63.16 | I58: 0.02825520105 | J58: 52.12 | L58: 0 | M58: -2.263 | O58: 0.01305483029 | P58: -0.088 | Q58: -0.352 | R58: -7.368
A59: 2013-10-04 | B59: 74.63 | C59: 75.82 | D59: 75.61 | F59: 0.1302083333 | G59: 63.14 | H59: 62.64 | I59: 0.0297743082 | J59: 50.76 | L59: 0 | M59: -3.008 | O59: 0.01305483029 | P59: -0.088 | Q59: -0.352 | R59: -7.456
A60: 2013-10-04T00:15:00 | B60: 74.52 | C60: 75.71 | D60: 75.49 | F60: 0.1302083333 | G60: 62.77 | H60: 62.05 | I60: 0.03138020635 | J60: 49.51 | L60: 0 | M60: -3.774 | O60: 0.01305483029 | P60: -0.122 | Q60: -0.488 | R60: -7.578
A61: 2013-10-04T00:30:00 | B61: 74.4 | C61: 75.68 | D61: 75.41 | F61: 0.1302083333 | G61: 62.49 | H61: 61.63 | I61: 0.03259547883 | J61: 49.66 | L61: 0 | M61: -7.238 | O61: 0.01305483029 | P61: -0.072 | Q61: -0.288 | R61: -7.65
A62: 2013-10-04T00:45:00 | B62: 74.29 | C62: 75.5 | D62: 75.29 | F62: 0.1302083333 | G62: 62.29 | H62: 61.46 | I62: 0.03346353769 | J62: 50.82 | L62: 0 | M62: -9.28 | O62: 0.01305483029 | P62: -0.07 | Q62: -0.28 | R62: -7.72
A63: 2013-10-04T01:00:00 | B63: 74.19 | C63: 75.41 | D63: 75.19 | F63: 0.1302083333 | G63: 62.01 | H63: 61.2 | I63: 0.03467882673 | J63: 51.71 | L63: 0 | M63: -7.733 | O63: 0.01305483029 | P63: -0.112 | Q63: -0.448 | R63: -7.832
A64: 2013-10-04T01:15:00 | B64: 74.05 | C64: 75.23 | D64: 75.05 | F64: 0.1302083333 | G64: 61.94 | H64: 61.18 | I64: 0.03498264485 | J64: 52.7 | L64: 0 | M64: -9.5 | O64: 0.01305483029 | P64: -0.054 | Q64: -0.216 | R64: -7.886
A65: 2013-10-04T01:30:00 | B65: 73.88 | C65: 75.08 | D65: 74.91 | F65: 0.1302083333 | G65: 61.87 | H65: 61.1 | I65: 0.03528646297 | J65: 52.4 | L65: 0 | M65: -7.464 | O65: 0.01305483029 | P65: -0.096 | Q65: -0.384 | R65: -7.982
A66: 2013-10-04T01:45:00 | B66: 73.8 | C66: 74.97 | D66: 74.8 | F66: 0.1302083333 | G66: 61.77 | H66: 61.05 | I66: 0.03572048412 | J66: 50.83 | L66: 0 | M66: -7.857 | O66: 0.01305483029 | P66: -0.106 | Q66: -0.424 | R66: -8.088
A67: 2013-10-04T02:00:00 | B67: 73.67 | C67: 74.83 | D67: 74.74 | F67: 0.1302083333 | G67: 61.71 | H67: 61.02 | I67: 0.03598090675 | J67: 49.53 | L67: 0 | M67: -9.18 | O67: 0.01305483029 | P67: -0.064 | Q67: -0.256 | R67: -8.152
A68: 2013-10-04T02:15:00 | B68: 73.6 | C68: 74.72 | D68: 74.61 | F68: 0.1302083333 | G68: 61.65 | H68: 60.99 | I68: 0.03624131282 | J68: 48.59 | L68: 0 | M68: -10.09 | O68: 0.01305483029 | P68: -0.104 | Q68: -0.416 | R68: -8.256
A69: 2013-10-04T02:30:00 | B69: 73.46 | C69: 74.58 | D69: 74.52 | F69: 0.1302083333 | G69: 61.59 | H69: 60.99 | I69: 0.03650173545 | J69: 47.82 | L69: 0 | M69: -10.76 | O69: 0.01305483029 | P69: -0.456 | Q69: -1.824 | R69: -8.712
A70: 2013-10-04T02:45:00 | B70: 73.37 | C70: 74.49 | D70: 74.39 | F70: 0.1302083333 | G70: 61.44 | H70: 60.97 | I70: 0.03715278374 | J70: 47.03 | L70: 0 | M70: -11.86 | O70: 0.01305483029 | P70: -0.066 | Q70: -0.264 | R70: -8.778
A71: 2013-10-04T03:00:00 | B71: 73.26 | C71: 74.37 | D71: 74.3 | F71: 0.1302083333 | G71: 61.42 | H71: 60.92 | I71: 0.03723959128 | J71: 46.37 | L71: 0 | M71: -12.84 | O71: 0.01305483029 | P71: -0.114 | Q71: -0.456 | R71: -8.892
A72: 2013-10-04T03:15:00 | B72: 73.17 | C72: 74.28 | D72: 74.21 | F72: 0.1302083333 | G72: 61.39 | H72: 60.89 | I72: 0.03736979432 | J72: 45.74 | L72: 0 | M72: -13.59 | O72: 0.01305483029 | P72: -0.094 | Q72: -0.376 | R72: -8.986
A73: 2013-10-04T03:30:00 | B73: 73.09 | C73: 74.16 | D73: 74.09 | F73: 0.1302083333 | G73: 61.35 | H73: 60.87 | I73: 0.0375434094 | J73: 45.16 | L73: 0 | M73: -14.16 | O73: 0.01305483029 | P73: -0.07 | Q73: -0.28 | R73: -9.056
A74: 2013-10-04T03:45:00 | B74: 72.96 | C74: 74.05 | D74: 74 | F74: 0.1302083333 | G74: 61.3 | H74: 60.85 | I74: 0.03776041998 | J74: 44.59 | L74: 0 | M74: -14.67 | O74: 0.01305483029 | P74: -0.112 | Q74: -0.448 | R74: -9.168
A75: 2013-10-04T04:00:00 | B75: 72.88 | C75: 73.96 | D75: 73.88 | F75: 0.1302083333 | G75: 61.26 | H75: 60.79 | I75: 0.03793403506 | J75: 44.09 | L75: 0 | M75: -15.13 | O75: 0.01305483029 | P75: -0.094 | Q75: -0.376 | R75: -9.262
A76: 2013-10-04T04:15:00 | B76: 72.78 | C76: 73.84 | D76: 73.8 | F76: 0.1302083333 | G76: 61.25 | H76: 60.76 | I76: 0.03797743056 | J76: 43.56 | L76: 0 | M76: -15.59 | O76: 0.01305483029 | P76: -0.07 | Q76: -0.28 | R76: -9.332
A77: 2013-10-04T04:30:00 | B77: 72.66 | C77: 73.74 | D77: 73.66 | F77: 0.1302083333 | G77: 61.23 | H77: 60.77 | I77: 0.0380642381 | J77: 43.03 | L77: 0 | M77: -15.94 | O77: 0.01305483029 | P77: -0.112 | Q77: -0.448 | R77: -9.444
A78: 2013-10-04T04:45:00 | B78: 72.55 | C78: 73.61 | D78: 73.55 | F78: 0.1302083333 | G78: 61.2 | H78: 60.77 | I78: 0.03819444113 | J78: 42.51 | L78: 0 | M78: -16.32 | O78: 0.01305483029 | P78: -0.096 | Q78: -0.384 | R78: -9.54
A79: 2013-10-04T05:00:00 | B79: 72.44 | C79: 73.48 | D79: 73.43 | F79: 0.1302083333 | G79: 61.2 | H79: 60.74 | I79: 0.03819444113 | J79: 42.06 | L79: 0 | M79: -16.68 | O79: 0.01305483029 | P79: -0.068 | Q79: -0.272 | R79: -9.608
A80: 2013-10-04T05:15:00 | B80: 72.3 | C80: 73.38 | D80: 73.28 | F80: 0.1302083333 | G80: 61.2 | H80: 60.6 | I80: 0.03819444113 | J80: 41.63 | L80: 0.002415136631 | M80: -16.92 | O80: 0.01305483029 | P80: -0.102 | Q80: -0.408 | R80: -9.71
A81: 2013-10-04T05:30:00 | B81: 72.2 | C81: 73.24 | D81: 73.14 | F81: 0.1302083333 | G81: 61.17 | H81: 60.58 | I81: 0.03832466073 | J81: 41.9 | L81: 0.0006527315543 | M81: -16.13 | O81: 0.01305483029 | P81: -0.084 | Q81: -0.336 | R81: -9.794
A82: 2013-10-04T05:45:00 | B82: 72.03 | C82: 73.1 | D82: 72.96 | F82: 0.1302083333 | G82: 61.15 | H82: 60.56 | I82: 0.03841145171 | J82: 43.1 | L82: 0 | M82: -14.94 | O82: 0.01305483029 | P82: -0.054 | Q82: -0.216 | R82: -9.848
A83: 2013-10-04T06:00:00 | B83: 71.86 | C83: 72.93 | D83: 72.73 | F83: 0.1302083333 | G83: 61.09 | H83: 60.54 | I83: 0.03867187434 | J83: 44.27 | L83: 0 | M83: -14.78 | O83: 0.01305483029 | P83: -0.08 | Q83: -0.32 | R83: -9.928
A84: 2013-10-04T06:15:00 | B84: 71.65 | C84: 72.71 | D84: 72.54 | F84: 0.1302083333 | G84: 61.2 | H84: 60.59 | I84: 0.03819444113 | J84: 45.34 | L84: 0 | M84: -13.83 | O84: 0.01305483029 | P84: -0.088 | Q84: -0.352 | R84: -10.016
A85: 2013-10-04T06:30:00 | B85: 71.42 | C85: 72.44 | D85: 72.32 | F85: 0.1302083333 | G85: 61.34 | H85: 60.76 | I85: 0.03758680489 | J85: 46.21 | L85: 0 | M85: -14.34 | O85: 0.01305483029 | P85: -0.032 | Q85: -0.128 | R85: -10.048
A86: 2013-10-04T06:45:00 | B86: 71.16 | C86: 72.22 | D86: 72.05 | F86: 0.1302083333 | G86: 61.41 | H86: 60.86 | I86: 0.03728298677 | J86: 46.95 | L86: 0 | M86: -13.27 | O86: 0.01305483029 | P86: -0.062 | Q86: -0.248 | R86: -10.11
A87: 2013-10-04T07:00:00 | B87: 70.99 | C87: 72.03 | D87: 71.86 | F87: 0.129882743 | G87: 61.35 | H87: 60.87 | I87: 0.0375434094 | J87: 47.61 | L87: 0 | M87: -14.38 | O87: 0.01305483029 | P87: -0.074 | Q87: -0.296 | R87: -10.184
A88: 2013-10-04T07:15:00 | B88: 70.85 | C88: 71.93 | D88: 71.69 | F88: 0.1253254712 | G88: 61.37 | H88: 60.9 | I88: 0.03745660186 | J88: 48.16 | L88: 0 | M88: -13.98 | O88: 0.01305483029 | P88: -0.066 | Q88: -0.264 | R88: -10.25
A89: 2013-10-04T07:30:00 | B89: 70.88 | C89: 71.88 | D89: 71.66 | F89: 0.1263019939 | G89: 61.67 | H89: 61.34 | I89: 0.03615452184 | J89: 47.42 | L89: 0 | M89: -12.7 | O89: 0.01305483029 | P89: -0.054 | Q89: -0.216 | R89: -10.304
A90: 2013-10-04T07:45:00 | B90: 71.17 | C90: 72.03 | D90: 71.94 | F90: 0.1302083333 | G90: 62.58 | H90: 62.56 | I90: 0.03220485316 | J90: 45.59 | L90: 0 | M90: -10.1 | O90: 0.01305483029 | P90: -0.112 | Q90: -0.448 | R90: -10.416
A91: 2013-10-04T08:00:00 | B91: 71.76 | C91: 72.33 | D91: 72.41 | F91: 0.1302083333 | G91: 63.24 | H91: 62.91 | I91: 0.02934027049 | J91: 44.26 | L91: 0 | M91: -9.45 | O91: 0.01305483029 | P91: -0.128 | Q91: -0.512 | R91: -10.544
A92: 2013-10-04T08:15:00 | B92: 72.18 | C92: 72.55 | D92: 73.1 | F92: 0.1302083333 | G92: 64.25 | H92: 63.53 | I92: 0.02495659722 | J92: 43.33 | L92: 0 | M92: -9.74 | O92: 0.01305483029 | P92: -0.116 | Q92: -0.464 | R92: -10.66
A93: 2013-10-04T08:30:00 | B93: 72.62 | C93: 72.83 | D93: 73.59 | F93: 0.1302083333 | G93: 64.32 | H93: 64.58 | I93: 0.02352429761 | J93: 42.54 | L93: 0 | M93: -9.88 | O93: 0.01305483029 | P93: -0.53 | Q93: -2.12 | R93: -11.19
A94: 2013-10-04T08:45:00 | B94: 73.15 | C94: 73.1 | D94: 74.17 | F94: 0.1302083333 | G94: 64.43 | H94: 64.7 | I94: 0.02300348547 | J94: 41.89 | L94: 0.0007180196498 | M94: -10.24 | O94: 0.01305483029 | P94: -0.34 | Q94: -1.36 | R94: -11.53
A95: 2013-10-04T09:00:00 | B95: 74.08 | C95: 73.35 | D95: 74.77 | F95: 0.1302083333 | G95: 64.29 | H95: 64.89 | I95: 0.02217882209 | J95: 41.35 | L95: 0.004242829803 | M95: -10.48 | O95: 0.01305483029 | P95: -0.304 | Q95: -1.216 | R95: -11.834
A96: 2013-10-04T09:15:00 | B96: 74.97 | C96: 73.87 | D96: 75.64 | F96: 0.1302083333 | G96: 64.06 | H96: 66.17 | I96: 0.01662327184 | J96: 40.86 | L96: 0.00744124928 | M96: -10.52 | O96: 0.01305483029 | P96: -0.824 | Q96: -3.296 | R96: -12.658
A97: 2013-10-04T09:30:00 | B97: 75.76 | C97: 74.58 | D97: 76.49 | F97: 0.114257882 | G97: 62.88 | H97: 64.09 | I97: 0.02565105756 | J97: 40.42 | L97: 0.01031332788 | M97: -10.52 | O97: 0.01305483029 | P97: -1.16 | Q97: -4.64 | R97: -13.818
A98: 2013-10-04T09:45:00 | B98: 76.65 | C98: 75.08 | D98: 77.19 | F98: 0.09147127469 | G98: 42.17 | H98: 52.83 | I98: 0.04340277778 | J98: 39.95 | L98: 0.01305483029 | M98: -10.98 | O98: 0.01305483029 | P98: -0.562 | Q98: -2.248 | R98: -14.38
A99: 2013-10-04T10:00:00 | B99: 77.41 | C99: 75.46 | D99: 77.74 | F99: 0.07356777787 | G99: 31.48 | H99: 38.4 | I99: 0.04340277778 | J99: 39.5 | L99: 0.01305483029 | M99: -12.27 | O99: 0.01305483029 | P99: -0.602 | Q99: -2.408 | R99: -14.982
A100: 2013-10-04T10:15:00 | B100: 77.95 | C100: 76.22 | D100: 78.27 | F100: 0.05631521344 | G100: 31.56 | H100: 31.87 | I100: 0.04340277778 | J100: 39.02 | L100: 0.01305483029 | M100: -13.07 | O100: 0.01305483029 | P100: 0.115813 | Q100: 0.463252 | R100: -14.8662
A101: 2013-10-04T10:30:00 | B101: 78.42 | C101: 76.85 | D101: 78.62 | F101: 0.04492178559 | G101: 31.21 | H101: 31.09 | I101: 0.04340277778 | J101: 38.63 | L101: 0.01305483029 | M101: -13.52 | O101: 0.01305483029 | P101: 0.836 | Q101: 3.344 | R101: -14.0302
A102: 2013-10-04T10:45:00 | B102: 78.66 | C102: 77.14 | D102: 78.99 | F102: 0.03287767371 | G102: 30 | H102: 30.78 | I102: 0.04340277778 | J102: 38.29 | L102: 0.01305483029 | M102: -13.87 | O102: 0.01305483029 | P102: 0.876 | Q102: 3.504 | R102: -13.1542
A103: 2013-10-04T11:00:00 | B103: 78.88 | C103: 77.35 | D103: 79.34 | F103: 0.02148449421 | G103: 28.76 | H103: 29.08 | I103: 0.04340277778 | J103: 37.94 | L103: 0.01305483029 | M103: -14.58 | O103: 0.01305483029 | P103: 0.934 | Q103: 3.736 | R103: -12.2202
A104: 2013-10-04T11:15:00 | B104: 79.03 | C104: 77.42 | D104: 79.57 | G104: 26.41 | H104: 26.79 | J104: 37.51 | L104: 0.01305483029 | M104: -15.39 | O104: 0.01305483029 | P104: 0.938 | Q104: 3.752 | R104: -11.2822
A105: 2013-10-04T11:30:00 | B105: 79.2 | C105: 77.43 | D105: 79.63 | G105: 22.95 | H105: 24.38 | J105: 37.66 | L105: 0.01305483029 | M105: -15.49 | O105: 0.01305483029 | P105: 1.06 | Q105: 4.24 | R105: -10.2222
A106: 2013-10-04T11:45:00 | B106: 79.38 | C106: 78.23 | D106: 79.96 | G106: 24.18 | H106: 20.77 | J106: 38.96 | L106: 0.01305483029 | M106: -13.95 | O106: 0.01305483029 | P106: 0.724 | Q106: 2.896 | R106: -9.49819
A107: 2013-10-04T12:00:00 | B107: 79.46 | C107: 78.87 | D107: 80.3 | G107: 24.46 | H107: 19.65 | J107: 40.29 | L107: 0.01116187392 | M107: -13.93 | O107: 0.01305483029 | P107: 0.936 | Q107: 3.744 | R107: -8.56219
A108: 2013-10-04T12:15:00 | B108: 79.5 | C108: 79.17 | D108: 80.4 | G108: 23.19 | H108: 18.49 | J108: 41.51 | L108: 0.003198444376 | M108: -13.32 | O108: 0.01305483029 | P108: 1.152 | Q108: 4.608 | R108: -7.41019
A109: 2013-10-04T12:30:00 | B109: 79.77 | C109: 79.57 | D109: 80.5 | G109: 21.94 | H109: 18.21 | J109: 42.62 | L109: 0 | M109: -13.24 | O109: 0.01305483029 | P109: 1.15 | Q109: 4.6 | R109: -6.26019
A110: 2013-10-04T12:45:00 | B110: 80.1 | C110: 79.95 | D110: 81 | G110: 22.63 | H110: 18.68 | J110: 43.68 | L110: 0 | M110: -13.39 | O110: 0.01305483029 | P110: 1.166 | Q110: 4.664 | R110: -5.09419
A111: 2013-10-04T13:00:00 | B111: 80.2 | C111: 80.3 | D111: 81.2 | G111: 24.64 | H111: 20.13 | J111: 44.38 | L111: 0 | M111: -12.66 | O111: 0.01305483029 | P111: 1.164 | Q111: 4.656 | R111: -3.93019
A112: 2013-10-04T13:15:00 | B112: 79.98 | C112: 80.5 | D112: 81.4 | G112: 24.07 | H112: 19.28 | J112: 45.09 | L112: 0 | M112: -14.31 | O112: 0.01305483029 | P112: 1.164 | Q112: 4.656 | R112: -2.76619
A113: 2013-10-04T13:30:00 | B113: 80.4 | C113: 80.8 | D113: 81.4 | G113: 22.98 | H113: 19.94 | J113: 45.76 | L113: 0 | M113: -13.2 | O113: 0.01305483029 | P113: 1.136 | Q113: 4.544 | R113: -1.63019
A114: 2013-10-04T13:45:00 | B114: 80.8 | C114: 80.9 | D114: 81.6 | G114: 22.65 | H114: 21.21 | J114: 46.35 | L114: 0 | M114: -13.76 | O114: 0.01305483029 | P114: 1.116 | Q114: 4.464 | R114: -0.514189
A115: 2013-10-04T14:00:00 | B115: 80.8 | C115: 81.4 | D115: 82.2 | G115: 23.18 | H115: 20.04 | J115: 46.91 | L115: 0 | M115: -14.87 | O115: 0.01305483029 | P115: 1.07 | Q115: 4.28 | R115: 0.555811
A116: 2013-10-04T14:15:00 | B116: 81.2 | C116: 81.7 | D116: 82.6 | G116: 23 | H116: 17.96 | J116: 47.36 | L116: 0 | M116: -13.64 | O116: 0.01305483029 | P116: 1.058 | Q116: 4.232 | R116: 1.61381
A117: 2013-10-04T14:30:00 | B117: 81.5 | C117: 82.4 | D117: 82.9 | G117: 22.71 | H117: 17.34 | J117: 46.11 | L117: 0 | M117: -12.17 | O117: 0.01305483029 | P117: 0.996 | Q117: 3.984 | R117: 2.60981
A118: 2013-10-04T14:45:00 | B118: 81.8 | C118: 83.5 | D118: 83.7 | G118: 21.32 | H118: 16.89 | J118: 44.37 | L118: 0 | M118: -9.42 | O118: 0.01305483029 | P118: 0.498 | Q118: 1.992 | R118: 3.10781
A119: 2013-10-04T15:00:00 | B119: 82.5 | C119: 84 | D119: 85.3 | G119: 17.47 | H119: 15.25 | J119: 43.15 | L119: 0 | M119: -8.18 | O119: 0.01305483029 | P119: 0.9 | Q119: 3.6 | R119: 4.00781
A120: 2013-10-04T15:15:00 | B120: 83.2 | C120: 84.4 | D120: 88 | G120: 13.8 | H120: 13.16 | J120: 42.3 | L120: 0 | M120: -8.26 | O120: 0.01305483029 | P120: 0.9 | Q120: 3.6 | R120: 4.90781
A121: 2013-10-04T15:30:00 | B121: 83.9 | C121: 84.8 | D121: 90.3 | G121: 14.37 | H121: 14.12 | J121: 41.65 | L121: 0.00228458534 | M121: -8.33 | O121: 0.01305483029 | P121: 0.842 | Q121: 3.368 | R121: 5.74981
A122: 2013-10-04T15:45:00 | B122: 84.5 | C122: 85.4 | D122: 91.3 | G122: 13.61 | H122: 13.71 | J122: 41.08 | L122: 0.00600520998 | M122: -8.54 | O122: 0.01305483029 | P122: 0.782 | Q122: 3.128 | R122: 6.53181
A123: 2013-10-04T16:00:00 | B123: 84.8 | C123: 85.9 | D123: 90.9 | G123: 12.41 | H123: 12.6 | J123: 40.58 | L123: 0.009268917552 | M123: -8.52 | O123: 0.01305483029 | P123: 0.71 | Q123: 2.84 | R123: 7.24181
A124: 2013-10-04T16:15:00 | B124: 85.2 | C124: 86.1 | D124: 90 | G124: 11.51 | H124: 11.7 | J124: 40.14 | L124: 0.01214099615 | M124: -8.37 | O124: 0.01305483029 | P124: 0.64 | Q124: 2.56 | R124: 7.88181
A125: 2013-10-04T16:30:00 | B125: 85.5 | C125: 86.2 | D125: 90.4 | G125: 11.65 | H125: 11.2 | J125: 39.83 | L125: 0.01305483029 | M125: -8.24 | O125: 0.01305483029 | P125: 0.558 | Q125: 2.232 | R125: 8.43981
A126: 2013-10-04T16:45:00 | B126: 85.4 | C126: 86 | D126: 89.4 | G126: 10.55 | H126: 10.61 | J126: 39.46 | L126: 0.01305483029 | M126: -9.13 | O126: 0.01305483029 | P126: 0.47 | Q126: 1.88 | R126: 8.90981
A127: 2013-10-04T17:00:00 | B127: 85.1 | C127: 85.7 | D127: 89.3 | G127: 10.12 | H127: 10.32 | J127: 39.05 | L127: 0.01305483029 | M127: -10.17 | O127: 0.01305483029 | P127: 0.388 | Q127: 1.552 | R127: 9.29781
A128: 2013-10-04T17:15:00 | B128: 85 | C128: 85.6 | D128: 90.4 | G128: 9.85 | H128: 10.26 | J128: 38.71 | L128: 0.01305483029 | M128: -10.72 | O128: 0.01305483029 | P128: 0.294 | Q128: 1.176 | R128: 9.59181
A129: 2013-10-04T17:30:00 | B129: 84.8 | C129: 85.6 | D129: 89 | G129: 10.41 | H129: 10.96 | J129: 38.39 | L129: 0.01305483029 | M129: -11.15 | O129: 0.01305483029 | P129: 0.204 | Q129: 0.816 | R129: 9.79581
A130: 2013-10-04T17:45:00 | B130: 84.8 | C130: 85.7 | D130: 87 | G130: 10.34 | H130: 11.25 | J130: 38.08 | L130: 0.01305483029 | M130: -11.55 | O130: 0.01305483029 | P130: 0.066 | Q130: 0.264 | R130: 9.86181
A131: 2013-10-04T18:00:00 | B131: 84.6 | C131: 84.2 | D131: 84.6 | G131: 10.63 | H131: 11.6 | J131: 37.73 | L131: 0.01305483029 | M131: -12.42 | O131: 0.01305483029 | P131: 0.05 | Q131: 0.2 | R131: 9.91181
A132: 2013-10-04T18:15:00 | B132: 83.7 | C132: 83.8 | D132: 84.2 | G132: 11.32 | H132: 12.1 | J132: 37.45 | L132: 0.01305483029 | M132: -13.48 | O132: 0.01305483029 | P132: 0 | Q132: 0 | R132: 9.91181
A133: 2013-10-04T18:30:00 | B133: 82.9 | C133: 83.2 | D133: 83.7 | G133: 11.18 | H133: 12.37 | J133: 38.25 | L133: 0.01305483029 | M133: -13.7 | O133: 0.01305483029 | P133: -0.01 | Q133: -0.04 | R133: 9.90181
A134: 2013-10-04T18:45:00 | B134: 82 | C134: 82.5 | D134: 83.1 | G134: 11.12 | H134: 12.33 | J134: 40.12 | L134: 0.01227154744 | M134: -12.33 | O134: 0.01305483029 | P134: -0.068 | Q134: -0.272 | R134: 9.83381
A135: 2013-10-04T19:00:00 | B135: 81.4 | C135: 82 | D135: 82.6 | G135: 11.37 | H135: 12.45 | J135: 41.68 | L135: 0.002088770854 | M135: -12.88 | O135: 0.01305483029 | P135: -0.068 | Q135: -0.272 | R135: 9.76581
A136: 2013-10-04T19:15:00 | B136: 80.8 | C136: 81.5 | D136: 82.2 | G136: 12.04 | H136: 12.9 | J136: 42.86 | L136: 0 | M136: -11.9 | O136: 0.01305483029 | P136: -0.072 | Q136: -0.288 | R136: 9.69381
A137: 2013-10-04T19:30:00 | B137: 80.5 | C137: 81.2 | D137: 81.8 | G137: 12.41 | H137: 13.33 | J137: 43.84 | L137: 0 | M137: -13.13 | O137: 0.01305483029 | P137: -0.068 | Q137: -0.272 | R137: 9.62581
A138: 2013-10-04T19:45:00 | B138: 80.1 | C138: 80.7 | D138: 81.3 | G138: 12.28 | H138: 13.2 | J138: 44.65 | L138: 0 | M138: -10.58 | O138: 0.01305483029 | P138: -0.068 | Q138: -0.272 | R138: 9.55781
A139: 2013-10-04T20:00:00 | B139: 79.7 | C139: 80.4 | D139: 80.9 | G139: 12.66 | H139: 13.48 | J139: 45.6 | L139: 0 | M139: -4.512 | O139: 0.01305483029 | P139: -0.126 | Q139: -0.504 | R139: 9.43181
A140: 2013-10-04T20:15:00 | B140: 79.7 | C140: 80.4 | D140: 80.7 | G140: 14 | H140: 14.79 | J140: 46.53 | L140: 0 | M140: -4.828 | O140: 0.01305483029 | P140: -0.126 | Q140: -0.504 | R140: 9.30581
A141: 2013-10-04T20:30:00 | B141: 79.56 | C141: 80.2 | D141: 80.5 | G141: 13.67 | H141: 14.32 | J141: 44.81 | L141: 0 | M141: -6.516 | O141: 0.01305483029 | P141: -0.104 | Q141: -0.416 | R141: 9.20181
A142: 2013-10-04T20:45:00 | B142: 79.47 | C142: 80.1 | D142: 80.3 | G142: 14.32 | H142: 15.1 | J142: 43.06 | L142: 0 | M142: -8.65 | O142: 0.01305483029 | P142: -0.106 | Q142: -0.424 | R142: 9.09581
A143: 2013-10-04T21:00:00 | B143: 79.4 | C143: 80.1 | D143: 80.1 | G143: 14.49 | H143: 15.24 | J143: 41.72 | L143: 0.001827668272 | M143: -10.01 | O143: 0.01305483029 | P143: -0.104 | Q143: -0.416 | R143: 8.99181
A144: 2013-10-04T21:15:00 | B144: 79.34 | C144: 80 | D144: 79.95 | G144: 14.8 | H144: 15.64 | J144: 40.65 | L144: 0.008812000484 | M144: -11.47 | O144: 0.01305483029 | P144: -0.108 | Q144: -0.432 | R144: 8.88381
A145: 2013-10-04T21:30:00 | B145: 79.24 | C145: 79.94 | D145: 79.86 | G145: 14.99 | H145: 15.84 | J145: 39.71 | L145: 0.01305483029 | M145: -12.63 | O145: 0.01305483029 | P145: -0.106 | Q145: -0.424 | R145: 8.77781
A146: 2013-10-04T21:45:00 | B146: 79.14 | C146: 79.85 | D146: 79.79 | G146: 15.25 | H146: 16 | J146: 38.95 | L146: 0.01305483029 | M146: -13.39 | O146: 0.01305483029 | P146: -0.106 | Q146: -0.424 | R146: 8.67181
A147: 2013-10-04T22:00:00 | B147: 79.02 | C147: 79.78 | D147: 79.7 | G147: 15.39 | H147: 16.22 | J147: 38.25 | L147: 0.01305483029 | M147: -13.98 | O147: 0.01305483029 | P147: -0.528 | Q147: -2.112 | R147: 8.14381
A148: 2013-10-04T22:15:00 | B148: 78.96 | C148: 79.7 | D148: 79.61 | G148: 15.61 | H148: 16.52 | J148: 37.64 | L148: 0.01305483029 | M148: -14.58 | O148: 0.01305483029 | P148: -0.104 | Q148: -0.416 | R148: 8.03981
A149: 2013-10-04T22:30:00 | B149: 78.91 | C149: 79.67 | D149: 79.51 | G149: 15.9 | H149: 16.94 | J149: 37.91 | L149: 0.01305483029 | M149: -14.39 | O149: 0.01305483029 | P149: -0.086 | Q149: -0.344 | R149: 7.95381
A150: 2013-10-04T22:45:00 | B150: 78.89 | C150: 79.57 | D150: 79.44 | G150: 16.5 | H150: 17.32 | J150: 39.37 | L150: 0.01305483029 | M150: -13.05 | O150: 0.01305483029 | P150: -0.042 | Q150: -0.168 | R150: 7.91181
A151: 2013-10-04T23:00:00 | B151: 78.68 | C151: 79.26 | D151: 79.07 | G151: 15.91 | H151: 16.94 | J151: 40.84 | L151: 0.007571800571 | M151: -13.42 | O151: 0.01305483029 | P151: -0.014 | Q151: -0.056 | R151: 7.89781
A152: 2013-10-04T23:15:00 | B152: 78.28 | C152: 78.82 | D152: 78.58 | F152: 0.03841146827 | G152: 15.48 | H152: 16.4 | I152: 0.04340277778 | J152: 42.05 | L152: 0 | M152: -12.37 | O152: 0.01305483029 | P152: -0.124 | Q152: -0.496 | R152: 7.77381
A153: 2013-10-04T23:30:00 | B153: 76.5 | C153: 77.59 | D153: 77.46 | F153: 0.07845064004 | G153: 16.37 | H153: 16.86 | I153: 0.04340277778 | J153: 43.07 | L153: 0 | M153: -13.39 | O153: 0.01305483029 | P153: -0.198 | Q153: -0.792 | R153: 7.57581
A154: 2013-10-04T23:45:00 | B154: 74.77 | C154: 76.44 | D154: 76.3 | F154: 0.1158853372 | G154: 17.51 | H154: 17.72 | I154: 0.04340277778 | J154: 44 | L154: 0 | M154: -12.37 | O154: 0.01305483029 | P154: -0.164 | Q154: -0.656 | R154: 7.41181
A155: 2013-10-05 | B155: 73.84 | C155: 75.74 | D155: 75.51 | F155: 0.1302083333 | G155: 17.95 | H155: 17.99 | I155: 0.04340277778 | J155: 44.78 | L155: 0 | M155: -13.75 | O155: 0.01305483029 | P155: -0.16 | Q155: -0.64 | R155: 7.25181
A156: 2013-10-05T00:15:00 | B156: 73.19 | C156: 75.1 | D156: 74.91 | F156: 0.1302083333 | G156: 18.06 | H156: 18.09 | I156: 0.04340277778 | J156: 45.55 | L156: 0 | M156: -13.56 | O156: 0.01305483029 | P156: -0.142 | Q156: -0.568 | R156: 7.10981
A157: 2013-10-05T00:30:00 | B157: 72.56 | C157: 74.56 | D157: 74.34 | F157: 0.1302083333 | G157: 18.26 | H157: 18.28 | I157: 0.04340277778 | J157: 46.2 | L157: 0 | M157: -13 | O157: 0.01305483029 | P157: -0.146 | Q157: -0.584 | R157: 6.96381
A158: 2013-10-05T00:45:00 | B158: 71.95 | C158: 74 | D158: 73.8 | F158: 0.1302083333 | G158: 18.69 | H158: 18.66 | I158: 0.04340277778 | J158: 46.8 | L158: 0 | M158: -14.67 | O158: 0.01305483029 | P158: -0.14 | Q158: -0.56 | R158: 6.82381
A159: 2013-10-05T01:00:00 | B159: 71.4 | C159: 73.46 | D159: 73.33 | F159: 0.1302083333 | G159: 18.79 | H159: 18.71 | I159: 0.04340277778 | J159: 47.38 | L159: 0 | M159: -13.53 | O159: 0.01305483029 | P159: -0.144 | Q159: -0.576 | R159: 6.67981
A160: 2013-10-05T01:15:00 | B160: 70.98 | C160: 72.96 | D160: 72.97 | F160: 0.1295574009 | G160: 19.23 | H160: 19.14 | I160: 0.04340277778 | J160: 47.75 | L160: 0 | M160: -13.81 | O160: 0.01305483029 | P160: -0.156 | Q160: -0.624 | R160: 6.52381
A161: 2013-10-05T01:30:00 | B161: 70.83 | C161: 72.49 | D161: 72.62 | F161: 0.1246745388 | G161: 19.59 | H161: 19.62 | I161: 0.04340277778 | J161: 46.32 | L161: 0 | M161: -13.27 | O161: 0.01305483029 | P161: -0.136 | Q161: -0.544 | R161: 6.38781
A162: 2013-10-05T01:45:00 | B162: 70.97 | C162: 72.21 | D162: 72.62 | F162: 0.1292318106 | G162: 19.45 | H162: 19.66 | I162: 0.04340277778 | J162: 44.39 | L162: 0 | M162: -11.43 | O162: 0.01305483029 | P162: -0.114 | Q162: -0.456 | R162: 6.27381
A163: 2013-10-05T02:00:00 | B163: 70.99 | C163: 71.99 | D163: 72.59 | F163: 0.129882743 | G163: 19.03 | H163: 19.5 | I163: 0.04340277778 | J163: 42.92 | L163: 0 | M163: -10.11 | O163: 0.01305483029 | P163: -0.112 | Q163: -0.448 | R163: 6.16181
A164: 2013-10-05T02:15:00 | B164: 70.74 | C164: 71.71 | D164: 72.39 | F164: 0.1217447221 | G164: 18.92 | H164: 19.48 | I164: 0.04340277778 | J164: 41.76 | L164: 0.001566590591 | M164: -10.56 | O164: 0.01305483029 | P164: -0.144 | Q164: -0.576 | R164: 6.01781
A165: 2013-10-05T02:30:00 | B165: 70.08 | C165: 71.29 | D165: 71.87 | F165: 0.1002604763 | G165: 19.41 | H165: 19.8 | I165: 0.04340277778 | J165: 40.75 | L165: 0.00815926893 | M165: -11.19 | O165: 0.01305483029 | P165: -0.15 | Q165: -0.6 | R165: 5.86781
A166: 2013-10-05T02:45:00 | B166: 70.07 | C166: 71.21 | D166: 71.72 | F166: 0.0999348859 | G166: 19.86 | H166: 20.3 | I166: 0.04340277778 | J166: 39.81 | L166: 0.01305483029 | M166: -11.53 | O166: 0.01305483029 | P166: -0.072 | Q166: -0.288 | R166: 5.79581
A167: 2013-10-05T03:00:00 | B167: 70.99 | C167: 71.96 | D167: 72.28 | F167: 0.129882743 | G167: 19.59 | H167: 20.35 | I167: 0.04340277778 | J167: 39.04 | L167: 0.01305483029 | M167: -11.76 | O167: 0.01305483029 | P167: -0.058 | Q167: -0.232 | R167: 5.73781
A168: 2013-10-05T03:15:00 | B168: 71.56 | C168: 72.39 | D168: 72.64 | F168: 0.1302083333 | G168: 19.17 | H168: 20.21 | I168: 0.04340277778 | J168: 38.54 | L168: 0.01305483029 | M168: -13.07 | O168: 0.01305483029 | P168: -0.056 | Q168: -0.224 | R168: 5.68181
A169: 2013-10-05T03:30:00 | B169: 71.87 | C169: 72.61 | D169: 72.86 | F169: 0.1302083333 | G169: 18.88 | H169: 19.99 | I169: 0.04340277778 | J169: 39.27 | L169: 0.01305483029 | M169: -14.04 | O169: 0.01305483029 | P169: -0.054 | Q169: -0.216 | R169: 5.62781
A170: 2013-10-05T03:45:00 | B170: 71.57 | C170: 72.45 | D170: 72.66 | F170: 0.1302083333 | G170: 19.1 | H170: 19.8 | I170: 0.04340277778 | J170: 40.45 | L170: 0.01011748849 | M170: -12.8 | O170: 0.01305483029 | P170: -0.11 | Q170: -0.44 | R170: 5.51781
A171: 2013-10-05T04:00:00 | B171: 70.87 | C171: 71.95 | D171: 72.16 | F171: 0.1259766519 | G171: 19.48 | H171: 20.02 | I171: 0.04340277778 | J171: 41.59 | L171: 0.002676239213 | M171: -13.59 | O171: 0.01305483029 | P171: -0.086 | Q171: -0.344 | R171: 5.43181
A172: 2013-10-05T04:15:00 | B172: 70.92 | C172: 71.97 | D172: 72.11 | F172: 0.1276041071 | G172: 19.78 | H172: 20.51 | I172: 0.04340277778 | J172: 42.5 | L172: 0 | M172: -12.58 | O172: 0.01305483029 | P172: -0.052 | Q172: -0.208 | R172: 5.37981
A173: 2013-10-05T04:30:00 | B173: 71.33 | C173: 72.2 | D173: 72.33 | F173: 0.1302083333 | G173: 19.47 | H173: 20.52 | I173: 0.04340277778 | J173: 43.33 | L173: 0 | M173: -13.79 | O173: 0.01305483029 | P173: -0.05 | Q173: -0.2 | R173: 5.32981
A174: 2013-10-05T04:45:00 | B174: 71.53 | C174: 72.27 | D174: 72.47 | F174: 0.1302083333 | G174: 18.87 | H174: 20.16 | I174: 0.04340277778 | J174: 44.02 | L174: 0 | M174: -13.52 | O174: 0.01305483029 | P174: -0.048 | Q174: -0.192 | R174: 5.28181
A175: 2013-10-05T05:00:00 | B175: 71.69 | C175: 72.31 | D175: 72.54 | F175: 0.1302083333 | G175: 17.45 | H175: 19.13 | I175: 0.04340277778 | J175: 44.63 | L175: 0 | M175: -13.2 | O175: 0.01305483029 | P175: -0.054 | Q175: -0.216 | R175: 5.22781
A176: 2013-10-05T05:15:00 | B176: 71.79 | C176: 72.39 | D176: 72.64 | F176: 0.1302083333 | G176: 17.56 | H176: 18.82 | I176: 0.04340277778 | J176: 45.24 | L176: 0 | M176: -14.65 | O176: 0.01305483029 | P176: -0.044 | Q176: -0.176 | R176: 5.18381
A177: 2013-10-05T05:30:00 | B177: 71.83 | C177: 72.42 | D177: 72.68 | F177: 0.1302083333 | G177: 17.34 | H177: 18.84 | I177: 0.04340277778 | J177: 45.82 | L177: 0 | M177: -13.5 | O177: 0.01305483029 | P177: -0.052 | Q177: -0.208 | R177: 5.13181
A178: 2013-10-05T05:45:00 | B178: 71.92 | C178: 72.42 | D178: 72.7 | F178: 0.1302083333 | G178: 16.99 | H178: 18.52 | I178: 0.04340277778 | J178: 46.32 | L178: 0 | M178: -14.49 | O178: 0.01305483029 | P178: -0.05 | Q178: -0.2 | R178: 5.08181
A179: 2013-10-05T06:00:00 | B179: 71.98 | C179: 72.44 | D179: 72.75 | F179: 0.1302083333 | G179: 17.05 | H179: 18.4 | I179: 0.04340277778 | J179: 46.81 | L179: 0 | M179: -14.34 | O179: 0.01305483029 | P179: -0.046 | Q179: -0.184 | R179: 5.03581
A180: 2013-10-05T06:15:00 | B180: 71.85 | C180: 72.39 | D180: 72.69 | F180: 0.1302083333 | G180: 17.22 | H180: 18.32 | I180: 0.04340277778 | J180: 47.27 | L180: 0 | M180: -13.62 | O180: 0.01305483029 | P180: -0.092 | Q180: -0.368 | R180: 4.94381
A181: 2013-10-05T06:30:00 | B181: 71.05 | C181: 71.89 | D181: 72.15 | F181: 0.1302083333 | G181: 17.73 | H181: 18.47 | I181: 0.04340277778 | J181: 47.77 | L181: 0 | M181: -14.82 | O181: 0.01305483029 | P181: -0.096 | Q181: -0.384 | R181: 4.84781
A182: 2013-10-05T06:45:00 | B182: 70.64 | C182: 71.56 | D182: 71.79 | F182: 0.1184895635 | G182: 18.26 | H182: 19.08 | I182: 0.04340277778 | J182: 48.01 | L182: 0 | M182: -13.83 | O182: 0.01305483029 | P182: -0.062 | Q182: -0.248 | R182: 4.78581
A183: 2013-10-05T07:00:00 | B183: 71.06 | C183: 71.76 | D183: 72.01 | F183: 0.1302083333 | G183: 18.2 | H183: 19.27 | I183: 0.04340277778 | J183: 46.55 | L183: 0 | M183: -12.02 | O183: 0.01305483029 | P183: -0.262 | Q183: -1.048 | R183: 4.52381
A184: 2013-10-05T07:15:00 | B184: 71.56 | C184: 71.93 | D184: 72.22 | F184: 0.1302083333 | G184: 18.17 | H184: 19.34 | I184: 0.04340277778 | J184: 44.62 | L184: 0 | M184: -9.85 | O184: 0.01305483029 | P184: -0.318 | Q184: -1.272 | R184: 4.20581
A185: 2013-10-05T07:30:00 | B185: 73.06 | C185: 72.14 | D185: 72.61 | F185: 0.1302083333 | G185: 18.1 | H185: 19.4 | I185: 0.04340277778 | J185: 43.18 | L185: 0 | M185: -10.27 | O185: 0.01305483029 | P185: -0.03 | Q185: -0.12 | R185: 4.17581
A186: 2013-10-05T07:45:00 | B186: 73.56 | C186: 72.5 | D186: 73.05 | F186: 0.1302083333 | G186: 19.68 | H186: 20.73 | I186: 0.04340277778 | J186: 41.97 | L186: 0.0001958144863 | M186: -10.41 | O186: 0.01305483029 | P186: 0.012 | Q186: 0.048 | R186: 4.18781
A187: 2013-10-05T08:00:00 | B187: 73.4 | C187: 72.74 | D187: 73.37 | F187: 0.1302083333 | G187: 20.04 | H187: 21.31 | I187: 0.04340277778 | J187: 41.03 | L187: 0.006331600657 | M187: -10.62 | O187: 0.01305483029 | P187: -0.09 | Q187: -0.36 | R187: 4.09781
A188: 2013-10-05T08:15:00 | B188: 73.93 | C188: 73.11 | D188: 73.76 | F188: 0.1302083333 | G188: 21.01 | H188: 22.26 | I188: 0.04340277778 | J188: 40.09 | L188: 0.01246736193 | M188: -11 | O188: 0.01305483029 | P188: -0.486 | Q188: -1.944 | R188: 3.61181
A189: 2013-10-05T08:30:00 | B189: 74.5 | C189: 73.59 | D189: 74.11 | F189: 0.1302083333 | G189: 26.96 | H189: 25.27 | I189: 0.04340277778 | J189: 39.32 | L189: 0.01305483029 | M189: -11.2 | O189: 0.01305483029 | P189: -0.996 | Q189: -3.984 | R189: 2.61581
A190: 2013-10-05T08:45:00 | B190: 74.81 | C190: 73.98 | D190: 74.36 | F190: 0.1302083333 | G190: 32.62 | H190: 30.2 | I190: 0.04340277778 | J190: 38.69 | L190: 0.01305483029 | M190: -11.24 | O190: 0.01305483029 | P190: -0.802 | Q190: -3.208 | R190: 1.81381
A191: 2013-10-05T09:00:00 | B191: 75.02 | C191: 74.4 | D191: 74.94 | F191: 0.1302083333 | G191: 34.02 | H191: 33.58 | I191: 0.04340277778 | J191: 38.19 | L191: 0.01305483029 | M191: -12.06 | O191: 0.01305483029 | P191: -1.32 | Q191: -5.28 | R191: 0.49381
A192: 2013-10-05T09:15:00 | B192: 75.16 | C192: 74.58 | D192: 75.42 | F192: 0.1302083333 | G192: 28.43 | H192: 30.57 | I192: 0.04340277778 | J192: 38.83 | L192: 0.01305483029 | M192: -13.49 | O192: 0.01305483029 | P192: 0.058 | Q192: 0.232 | R192: 0.55181
A193: 2013-10-05T09:30:00 | B193: 75.37 | C193: 74.86 | D193: 75.4 | F193: 0.1302083333 | G193: 25.56 | H193: 27.89 | I193: 0.04340277778 | J193: 40.1 | L193: 0.01240209873 | M193: -12.34 | O193: 0.01305483029 | P193: 0.004 | Q193: 0.016 | R193: 0.55581
A194: 2013-10-05T09:45:00 | B194: 75.87 | C194: 75.49 | D194: 75.34 | F194: 0.1302083333 | G194: 25.28 | H194: 27.76 | I194: 0.04340277778 | J194: 41.34 | L194: 0.004308092999 | M194: -13.22 | O194: 0.01305483029 | P194: -0.5 | Q194: -2 | R194: 0.05581
A195: 2013-10-05T10:00:00 | B195: 75.82 | C195: 75.98 | D195: 75.37 | F195: 0.1302083333 | G195: 25.92 | H195: 28.02 | I195: 0.04340277778 | J195: 42.33 | L195: 0 | M195: -12.29 | O195: 0.01305483029 | P195: -0.828 | Q195: -3.312 | R195: -0.77219
A196: 2013-10-05T10:15:00 | B196: 75.78 | C196: 76.16 | D196: 75.56 | F196: 0.1249998808 | G196: 24.52 | H196: 26.37 | I196: 0.04340277778 | J196: 43.26 | L196: 0 | M196: -13.31 | O196: 0.01305483029 | P196: 0.334 | Q196: 1.336 | R196: -0.43819
A197: 2013-10-05T10:30:00 | B197: 75.69 | C197: 76.21 | D197: 75.49 | F197: 0.1233724256 | G197: 24.46 | H197: 25.88 | I197: 0.04340277778 | J197: 44.05 | L197: 0 | M197: -13.54 | O197: 0.01305483029 | P197: 0.708 | Q197: 2.832 | R197: 0.26981
A198: 2013-10-05T10:45:00 | B198: 75.51 | C198: 76.01 | D198: 75.45 | G198: 25.55 | H198: 26.28 | J198: 44.79 | L198: 0 | M198: -12.77 | O198: 0.01305483029 | P198: 0.942 | Q198: 3.768 | R198: 1.21181
A199: 2013-10-05T11:00:00 | B199: 75.87 | C199: 76.14 | D199: 76.03 | G199: 23.71 | H199: 24.88 | J199: 45.51 | L199: 0 | M199: -14.73 | O199: 0.01305483029 | P199: 1.082 | Q199: 4.328 | R199: 2.29381
A200: 2013-10-05T11:15:00 | B200: 76.46 | C200: 76.47 | D200: 76.63 | G200: 19.48 | H200: 20.46 | J200: 46.15 | L200: 0 | M200: -13.83 | O200: 0.01305483029 | P200: 1.118 | Q200: 4.472 | R200: 3.41181
A201: 2013-10-05T11:30:00 | B201: 77.51 | C201: 77.37 | D201: 77.69 | G201: 17.59 | H201: 18.69 | J201: 46.77 | L201: 0 | M201: -13.6 | O201: 0.01305483029 | P201: 1.14 | Q201: 4.56 | R201: 4.55181
... 637 more rows

Sheet Lot 102
A1: 102 | B1: Subcontest 6-1 | G1: Subcontest 6-2 | J1: Subcontest 8-1 | M1: Subcontest 8-2 | P1: Contest 10
B2: Temperature | G2: Humidity | J2: Refrigerator | M2: Freezer | P2: Energy Balance
A4: Current score > | B4: 70.5009761 | G4: 23.4393663 | J4: 9.446801567 | M4: 9.84752611
B5: Temp #1 | C5: Temp #2 | D5: Temp #3 | E5: Temp #4 | F5: Points | G5: RH #1 | H5: RH #2 | I5: Points | J5: Temp #1 | K5: Temp #2 | L5: Points | M5: Temp #1 | N5: Temp #2 | O5: Points | P5: Net Energy | Q5: Net Power | R5: Cumulative
A6: Time Stamp | B6: °F | C6: °F | D6: °F | E6: °F | F6: Earned | G6: % | H6: % | I6: Earned | J6: °F | K6: °F | L6: Earned | M6: °F | N6: °F | O6: Earned | P6: kWh | Q6: kW | R6: kWh
A7: 2013-10-03T11:00:00 | B7: 71.15 | C7: 71.04 | D7: 71.9 | G7: 56.66 | H7: 59.03 | J7: 38.26 | M7: 3.527 | P7: 0.232 | Q7: 0.928
A8: 2013-10-03T11:15:00 | B8: 71.13 | C8: 71.1 | D8: 71.85 | G8: 56.38 | H8: 59.07 | J8: 38.03 | L8: 0.01305483029 | M8: 1.618 | O8: 0.01305483029 | P8: 0.166 | Q8: 0.664 | R8: 0.166
A9: 2013-10-03T11:30:00 | B9: 71.12 | C9: 71.19 | D9: 71.87 | G9: 56.15 | H9: 59.26 | J9: 36.35 | L9: 0.01305483029 | M9: -5.746 | O9: 0.01305483029 | P9: 0.776 | Q9: 3.104 | R9: 0.942
A10: 2013-10-03T11:45:00 | B10: 71.15 | C10: 71.33 | D10: 71.88 | G10: 56.61 | H10: 59.62 | J10: 36.43 | L10: 0.01305483029 | M10: -4.262 | O10: 0.01305483029 | P10: 0.778 | Q10: 3.112 | R10: 1.72
A11: 2013-10-03T12:00:00 | B11: 71.16 | C11: 71.54 | D11: 71.92 | G11: 57.9 | H11: 60.35 | J11: 37.47 | L11: 0.01305483029 | M11: -0.323 | O11: 0.01305483029 | P11: 0.782 | Q11: 3.128 | R11: 2.502
A12: 2013-10-03T12:15:00 | B12: 71.24 | C12: 71.78 | D12: 71.93 | G12: 58.98 | H12: 60.92 | J12: 38.45 | L12: 0.01305483029 | M12: 3.468 | O12: 0.01305483029 | P12: 0.532 | Q12: 2.128 | R12: 3.034
A13: 2013-10-03T12:30:00 | B13: 71.27 | C13: 72.01 | D13: 71.98 | G13: 59.09 | H13: 60.9 | J13: 37.55 | L13: 0.01305483029 | M13: -1.756 | O13: 0.01305483029 | P13: 0.15 | Q13: 0.6 | R13: 3.184
A14: 2013-10-03T12:45:00 | B14: 71.34 | C14: 72.16 | D14: 72.03 | G14: 59.99 | H14: 61.57 | J14: 35.89 | L14: 0.01305483029 | M14: -7.984 | O14: 0.01305483029 | P14: 0.404 | Q14: 1.616 | R14: 3.588
A15: 2013-10-03T13:00:00 | B15: 71.43 | C15: 72.16 | D15: 72.13 | G15: 60.83 | H15: 62.18 | J15: 35.45 | L15: 0.01305483029 | M15: -7.875 | O15: 0.01305483029 | P15: 1.054 | Q15: 4.216 | R15: 4.642
A16: 2013-10-03T13:15:00 | B16: 71.5 | C16: 72.17 | D16: 72.18 | G16: 61.21 | H16: 62.08 | J16: 36.52 | L16: 0.01305483029 | M16: -4.058 | O16: 0.01305483029 | P16: 0.56 | Q16: 2.24 | R16: 5.202
A17: 2013-10-03T13:30:00 | B17: 71.56 | C17: 72.17 | D17: 72.24 | G17: 61.34 | H17: 61.86 | J17: 37.59 | L17: 0.01305483029 | M17: 0.054 | O17: 0.01305483029 | P17: 0.444 | Q17: 1.776 | R17: 5.646
A18: 2013-10-03T13:45:00 | B18: 71.7 | C18: 72.19 | D18: 72.32 | G18: 61.69 | H18: 61.84 | J18: 37.06 | L18: 0.01305483029 | M18: -3.031 | O18: 0.01305483029 | P18: 0.834 | Q18: 3.336 | R18: 6.48
A19: 2013-10-03T14:00:00 | B19: 71.75 | C19: 72.19 | D19: 72.42 | G19: 61.34 | H19: 62.16 | J19: 35.76 | L19: 0.01305483029 | M19: -7.851 | O19: 0.01305483029 | P19: 0.546 | Q19: 2.184 | R19: 7.026
A20: 2013-10-03T14:15:00 | B20: 71.79 | C20: 72.25 | D20: 72.46 | G20: 61.06 | H20: 62.38 | J20: 36.48 | L20: 0.01305483029 | M20: -5.154 | O20: 0.01305483029 | P20: 0.584 | Q20: 2.336 | R20: 7.61
A21: 2013-10-03T14:30:00 | B21: 71.86 | C21: 72.3 | D21: 72.51 | G21: 60.71 | H21: 62.41 | J21: 37.56 | L21: 0.01305483029 | M21: -0.855 | O21: 0.01305483029 | P21: 0.76 | Q21: 3.04 | R21: 8.37
A22: 2013-10-03T14:45:00 | B22: 71.95 | C22: 72.35 | D22: 72.6 | G22: 60.51 | H22: 62.37 | J22: 37.17 | L22: 0.01305483029 | M22: -2.651 | O22: 0.01305483029 | P22: 0.736 | Q22: 2.944 | R22: 9.106
A23: 2013-10-03T15:00:00 | B23: 72.04 | C23: 72.48 | D23: 72.7 | G23: 60.84 | H23: 62.32 | J23: 35.85 | L23: 0.01305483029 | M23: -7.416 | O23: 0.01305483029 | P23: 0.394 | Q23: 1.576 | R23: 9.5
A24: 2013-10-03T15:15:00 | B24: 72.16 | C24: 72.6 | D24: 72.76 | G24: 60.74 | H24: 62.22 | J24: 36.42 | L24: 0.01305483029 | M24: -4.696 | O24: 0.01305483029 | P24: 0.17 | Q24: 0.68 | R24: 9.67
A25: 2013-10-03T15:30:00 | B25: 72.2 | C25: 72.68 | D25: 72.86 | G25: 60.05 | H25: 62.06 | J25: 37.52 | L25: 0.01305483029 | M25: -0.568 | O25: 0.01305483029 | P25: 0.394 | Q25: 1.576 | R25: 10.064
A26: 2013-10-03T15:45:00 | B26: 72.25 | C26: 72.69 | D26: 72.9 | G26: 59.98 | H26: 61.86 | J26: 38.12 | L26: 0.01305483029 | M26: 1.251 | O26: 0.01305483029 | P26: 0.53 | Q26: 2.12 | R26: 10.594
A27: 2013-10-03T16:00:00 | B27: 72.3 | C27: 72.69 | D27: 72.96 | G27: 59.92 | H27: 61.82 | J27: 36.57 | L27: 0.01305483029 | M27: -4.937 | O27: 0.01305483029 | P27: 0.342 | Q27: 1.368 | R27: 10.936
A28: 2013-10-03T16:15:00 | B28: 72.39 | C28: 72.74 | D28: 73.05 | G28: 59.6 | H28: 61.71 | J28: 36.03 | L28: 0.01305483029 | M28: -5.583 | O28: 0.01305483029 | P28: 0.474 | Q28: 1.896 | R28: 11.41
A29: 2013-10-03T16:30:00 | B29: 72.45 | C29: 72.84 | D29: 73.11 | G29: 59.5 | H29: 61.72 | J29: 36.96 | L29: 0.01305483029 | M29: -1.925 | O29: 0.01305483029 | P29: 0.452 | Q29: 1.808 | R29: 11.862
A30: 2013-10-03T16:45:00 | B30: 72.51 | C30: 72.91 | D30: 73.17 | G30: 59.55 | H30: 61.9 | J30: 38.68 | L30: 0.01305483029 | M30: 1.141 | O30: 0.01305483029 | P30: 0.36 | Q30: 1.44 | R30: 12.222
A31: 2013-10-03T17:00:00 | B31: 72.64 | C31: 72.96 | D31: 73.23 | G31: 59.38 | H31: 61.98 | J31: 39.06 | L31: 0.01305483029 | M31: -4.13 | O31: 0.01305483029 | P31: 0.244 | Q31: 0.976 | R31: 12.466
A32: 2013-10-03T17:15:00 | B32: 72.7 | C32: 73.01 | D32: 73.34 | G32: 59.03 | H32: 61.95 | J32: 39.45 | L32: 0.01305483029 | M32: -8.88 | O32: 0.01305483029 | P32: -0.08 | Q32: -0.32 | R32: 12.386
A33: 2013-10-03T17:30:00 | B33: 72.76 | C33: 73.05 | D33: 73.4 | G33: 58.96 | H33: 61.92 | J33: 41.84 | L33: 0.001044385427 | M33: -10.11 | O33: 0.01305483029 | P33: -0.17 | Q33: -0.68 | R33: 12.216
A34: 2013-10-03T17:45:00 | B34: 72.86 | C34: 72.96 | D34: 73.45 | G34: 58.81 | H34: 61.8 | J34: 43.63 | L34: 0 | M34: -9.44 | O34: 0.01305483029 | P34: -0.286 | Q34: -1.144 | R34: 11.93
A35: 2013-10-03T18:00:00 | B35: 72.87 | C35: 72.91 | D35: 73.46 | G35: 58.68 | H35: 61.71 | J35: 44.08 | L35: 0 | M35: -8.77 | O35: 0.01305483029 | P35: -0.288 | Q35: -1.152 | R35: 11.642
A36: 2013-10-03T18:15:00 | B36: 72.88 | C36: 72.88 | D36: 73.49 | G36: 58.64 | H36: 61.84 | J36: 43.65 | L36: 0 | M36: -10.46 | O36: 0.01305483029 | P36: -0.092 | Q36: -0.368 | R36: 11.55
A37: 2013-10-03T18:30:00 | B37: 72.88 | C37: 72.76 | D37: 73.47 | G37: 58.5 | H37: 61.82 | J37: 44.85 | L37: 0 | M37: -6.252 | O37: 0.01305483029 | P37: -0.122 | Q37: -0.488 | R37: 11.428
A38: 2013-10-03T18:45:00 | B38: 72.87 | C38: 72.68 | D38: 73.46 | G38: 58.79 | H38: 61.9 | J38: 46.92 | L38: 0 | M38: 10.7 | O38: 0.005613577272 | P38: -0.084 | Q38: -0.336 | R38: 11.344
A39: 2013-10-03T19:00:00 | B39: 72.83 | C39: 72.53 | D39: 73.46 | G39: 58.72 | H39: 62.45 | J39: 47.58 | L39: 0 | M39: 13.44 | O39: 0.002036554073 | P39: -0.136 | Q39: -0.544 | R39: 11.208
A40: 2013-10-03T19:15:00 | B40: 72.18 | C40: 72.23 | D40: 73.23 | G40: 61.75 | H40: 63.23 | J40: 46.45 | L40: 0 | M40: 2.722 | O40: 0.01305483029 | P40: -0.24 | Q40: -0.96 | R40: 10.968
A41: 2013-10-03T19:30:00 | B41: 69.24 | C41: 70.17 | D41: 71.28 | G41: 68.25 | H41: 67.91 | J41: 44.83 | L41: 0 | M41: -2.124 | O41: 0.01305483029 | P41: -0.166 | Q41: -0.664 | R41: 10.802
A42: 2013-10-03T19:45:00 | B42: 67.9 | C42: 69.43 | D42: 70.79 | F42: 0.02929692467 | G42: 69.54 | H42: 68.04 | I42: 0.001996523804 | J42: 44.2 | L42: 0 | M42: 9.51 | O42: 0.007167101529 | P42: -0.342 | Q42: -1.368 | R42: 10.46
A43: 2013-10-03T20:00:00 | B43: 67.94 | C43: 69.46 | D43: 70.86 | F43: 0.03059903781 | G43: 67.75 | H43: 65.6 | I43: 0.009765625 | J43: 44.02 | L43: 0 | M43: 10.58 | O43: 0.005770235087 | P43: -0.278 | Q43: -1.112 | R43: 10.182
A44: 2013-10-03T20:15:00 | B44: 68.32 | C44: 69.51 | D44: 70.8 | F44: 0.04296874007 | G44: 67.03 | H44: 65.39 | I44: 0.0128906303 | J44: 44.31 | L44: 0 | M44: 9.54 | O44: 0.007127937387 | P44: -0.212 | Q44: -0.848 | R44: 9.97
A45: 2013-10-03T20:30:00 | B45: 69.14 | C45: 70.13 | D45: 71.29 | F45: 0.06966143847 | G45: 70.37 | H45: 70.09 | I45: 0 | J45: 45.38 | L45: 0 | M45: 8.92 | O45: 0.007937336715 | P45: -0.196 | Q45: -0.784 | R45: 9.774
A46: 2013-10-03T20:45:00 | B46: 69.9 | C46: 70.75 | D46: 71.85 | F46: 0.09440109134 | G46: 72.26 | H46: 72.15 | I46: 0 | J46: 46.96 | L46: 0 | M46: 8.2 | O46: 0.008877284844 | P46: -0.204 | Q46: -0.816 | R46: 9.57
A47: 2013-10-03T21:00:00 | B47: 70.5 | C47: 71.26 | D47: 72.26 | F47: 0.1139322917 | G47: 72.91 | H47: 73 | I47: 0 | J47: 48.1 | L47: 0 | M47: 6.184 | O47: 0.01150913836 | P47: -0.192 | Q47: -0.768 | R47: 9.378
A48: 2013-10-03T21:15:00 | B48: 70.93 | C48: 71.62 | D48: 72.55 | F48: 0.1279296974 | G48: 72.5 | H48: 72.48 | I48: 0 | J48: 52.22 | L48: 0 | M48: 5.226 | O48: 0.01275979134 | P48: -0.196 | Q48: -0.784 | R48: 9.182
A49: 2013-10-03T21:30:00 | B49: 71.32 | C49: 71.83 | D49: 72.71 | F49: 0.1302083333 | G49: 71.48 | H49: 71.26 | I49: 0 | J49: 54.44 | L49: 0 | M49: 13.97 | O49: 0.001344647171 | P49: -0.194 | Q49: -0.776 | R49: 8.988
A50: 2013-10-03T21:45:00 | B50: 71.35 | C50: 71.81 | D50: 72.69 | F50: 0.1302083333 | G50: 69.35 | H50: 69.13 | I50: 0.002821187178 | J50: 54.95 | L50: 0 | M50: 10.31 | O50: 0.006122714857 | P50: -0.198 | Q50: -0.792 | R50: 8.79
A51: 2013-10-03T22:00:00 | B51: 71.39 | C51: 71.81 | D51: 72.68 | F51: 0.1302083333 | G51: 68.33 | H51: 67.97 | I51: 0.007248255942 | J51: 54.17 | L51: 0 | M51: 5.481 | O51: 0.01242689302 | P51: -0.192 | Q51: -0.768 | R51: 8.598
A52: 2013-10-03T22:15:00 | B52: 71.32 | C52: 71.79 | D52: 72.6 | F52: 0.1302083333 | G52: 67.61 | H52: 67.32 | I52: 0.01037326124 | J52: 54.11 | L52: 0 | M52: 9.63 | O52: 0.007010443715 | P52: -0.204 | Q52: -0.816 | R52: 8.394
A53: 2013-10-03T22:30:00 | B53: 71.09 | C53: 71.76 | D53: 72.45 | F53: 0.1302083333 | G53: 67.32 | H53: 67 | I53: 0.01163194577 | J53: 53.41 | L53: 0 | M53: 5.357 | O53: 0.01258877301 | P53: -0.198 | Q53: -0.792 | R53: 8.196
A54: 2013-10-03T22:45:00 | B54: 70.93 | C54: 71.75 | D54: 72.32 | F54: 0.1279296974 | G54: 67.43 | H54: 67.04 | I54: 0.01115451256 | J54: 54.84 | L54: 0 | M54: 5.298 | O54: 0.01266579653 | P54: -0.216 | Q54: -0.864 | R54: 7.98
A55: 2013-10-03T23:00:00 | B55: 71.52 | C55: 71.96 | D55: 72.48 | F55: 0.1302083333 | G55: 67.89 | H55: 67.33 | I55: 0.00915798876 | J55: 56.28 | L55: 0 | M55: 12.7 | O55: 0.003002611215 | P55: -0.206 | Q55: -0.824 | R55: 7.774
A56: 2013-10-03T23:15:00 | B56: 71.55 | C56: 72.21 | D56: 72.82 | F56: 0.1302083333 | G56: 67.18 | H56: 67.33 | I56: 0.01158853372 | J56: 56.98 | L56: 0 | M56: 24.1 | O56: 0 | P56: -0.166 | Q56: -0.664 | R56: 7.608
A57: 2013-10-03T23:30:00 | B57: 70.82 | C57: 71.46 | D57: 72.24 | F57: 0.1243489484 | G57: 63.57 | H57: 62.6 | I57: 0.02790798744 | J57: 55.98 | L57: 0 | M57: 14.62 | O57: 0.0004960837003 | P57: -0.204 | Q57: -0.816 | R57: 7.404
A58: 2013-10-03T23:45:00 | B58: 69.83 | C58: 70.16 | D58: 71.13 | F58: 0.09212245544 | G58: 58.9 | H58: 58.47 | I58: 0.04340277778 | J58: 54.02 | L58: 0 | M58: 6.593 | O58: 0.01097519591 | P58: -0.208 | Q58: -0.832 | R58: 7.196
A59: 2013-10-04 | B59: 68.94 | C59: 69.25 | D59: 70.33 | F59: 0.06315112114 | G59: 56.2 | H59: 56.18 | I59: 0.04340277778 | J59: 52.27 | L59: 0 | M59: 2.555 | O59: 0.01305483029 | P59: -0.206 | Q59: -0.824 | R59: 6.99
A60: 2013-10-04T00:15:00 | B60: 68.21 | C60: 68.6 | D60: 69.71 | F60: 0.03938799103 | G60: 54.51 | H60: 54.59 | I60: 0.04340277778 | J60: 50.88 | L60: 0 | M60: 0.001 | O60: 0.01305483029 | P60: -0.206 | Q60: -0.824 | R60: 6.784
A61: 2013-10-04T00:30:00 | B61: 67.68 | C61: 68.1 | D61: 69.17 | F61: 0.0221354266 | G61: 54.55 | H61: 55.21 | I61: 0.04340277778 | J61: 49.76 | L61: 0 | M61: -1.852 | O61: 0.01305483029 | P61: -0.13 | Q61: -0.52 | R61: 6.654
A62: 2013-10-04T00:45:00 | B62: 67.85 | C62: 68.38 | D62: 69.34 | F62: 0.02766922116 | G62: 61.14 | H62: 63.01 | I62: 0.03033854895 | J62: 48.77 | L62: 0 | M62: -3.239 | O62: 0.01305483029 | P62: -0.084 | Q62: -0.336 | R62: 6.57
A63: 2013-10-04T01:00:00 | B63: 68.28 | C63: 68.91 | D63: 69.89 | F63: 0.04166662693 | G63: 65.6 | H63: 67.26 | I63: 0.01189235184 | J63: 47.89 | L63: 0 | M63: -4.317 | O63: 0.01305483029 | P63: -0.082 | Q63: -0.328 | R63: 6.488
A64: 2013-10-04T01:15:00 | B64: 68.6 | C64: 69.32 | D64: 70.3 | F64: 0.05208328366 | G64: 67.07 | H64: 68.43 | I64: 0.006814234787 | J64: 47.06 | L64: 0 | M64: -5.254 | O64: 0.01305483029 | P64: -0.082 | Q64: -0.328 | R64: 6.406
A65: 2013-10-04T01:30:00 | B65: 68.9 | C65: 69.67 | D65: 70.65 | F65: 0.061849008 | G65: 67.16 | H65: 67.74 | I65: 0.00980903705 | J65: 46.37 | L65: 0 | M65: -5.911 | O65: 0.01305483029 | P65: -0.082 | Q65: -0.328 | R65: 6.324
A66: 2013-10-04T01:45:00 | B66: 69.17 | C66: 69.96 | D66: 70.87 | F66: 0.07063796123 | G66: 66.75 | H66: 66.77 | I66: 0.01401911179 | J66: 45.69 | L66: 0 | M66: -6.527 | O66: 0.01305483029 | P66: -0.082 | Q66: -0.328 | R66: 6.242
A67: 2013-10-04T02:00:00 | B67: 69.4 | C67: 70.17 | D67: 71.04 | F67: 0.07812504967 | G67: 66.25 | H67: 66.07 | I67: 0.01627604167 | J67: 45.04 | L67: 0 | M67: -7.018 | O67: 0.01305483029 | P67: -0.082 | Q67: -0.328 | R67: 6.16
A68: 2013-10-04T02:15:00 | B68: 69.53 | C68: 70.32 | D68: 71.13 | F68: 0.0823567311 | G68: 65.71 | H68: 65.44 | I68: 0.01861979564 | J68: 44.46 | L68: 0 | M68: -7.441 | O68: 0.01305483029 | P68: -0.082 | Q68: -0.328 | R68: 6.078
A69: 2013-10-04T02:30:00 | B69: 69.66 | C69: 70.42 | D69: 71.25 | F69: 0.08658866088 | G69: 65.24 | H69: 64.93 | I69: 0.02065973149 | J69: 43.88 | L69: 0 | M69: -7.835 | O69: 0.01305483029 | P69: -0.082 | Q69: -0.328 | R69: 5.996
A70: 2013-10-04T02:45:00 | B70: 69.76 | C70: 70.53 | D70: 71.31 | F70: 0.08984381954 | G70: 64.82 | H70: 64.5 | I70: 0.02248264021 | J70: 43.33 | L70: 0 | M70: -8.16 | O70: 0.01305483029 | P70: -0.082 | Q70: -0.328 | R70: 5.914
A71: 2013-10-04T03:00:00 | B71: 69.88 | C71: 70.62 | D71: 71.36 | F71: 0.09374991059 | G71: 64.45 | H71: 64.14 | I71: 0.02408855491 | J71: 42.79 | L71: 0 | M71: -8.47 | O71: 0.01305483029 | P71: -0.082 | Q71: -0.328 | R71: 5.832
A72: 2013-10-04T03:15:00 | B72: 69.93 | C72: 70.71 | D72: 71.41 | F72: 0.0953776141 | G72: 64.11 | H72: 63.82 | I72: 0.02556423346 | J72: 42.26 | L72: 0 | M72: -8.73 | O72: 0.01305483029 | P72: -0.082 | Q72: -0.328 | R72: 5.75
A73: 2013-10-04T03:30:00 | B73: 70.04 | C73: 70.77 | D73: 71.48 | F73: 0.09895836314 | G73: 63.81 | H73: 63.57 | I73: 0.02686631348 | J73: 41.82 | L73: 0.001174936718 | M73: -8.96 | O73: 0.01305483029 | P73: -0.082 | Q73: -0.328 | R73: 5.668
A74: 2013-10-04T03:45:00 | B74: 70.09 | C74: 70.8 | D74: 71.51 | F74: 0.1005858183 | G74: 63.56 | H74: 63.32 | I74: 0.02795138293 | J74: 41.37 | L74: 0.004112278513 | M74: -9.22 | O74: 0.01305483029 | P74: -0.08 | Q74: -0.32 | R74: 5.588
A75: 2013-10-04T04:00:00 | B75: 70.13 | C75: 70.83 | D75: 71.54 | F75: 0.1018879314 | G75: 63.31 | H75: 63.12 | I75: 0.02903645237 | J75: 40.91 | L75: 0.007114883503 | M75: -9.46 | O75: 0.01305483029 | P75: -0.082 | Q75: -0.328 | R75: 5.506
A76: 2013-10-04T04:15:00 | B76: 70.17 | C76: 70.87 | D76: 71.56 | F76: 0.1031900446 | G76: 63.11 | H76: 62.94 | I76: 0.02990451124 | J76: 40.48 | L76: 0.009921674006 | M76: -9.69 | O76: 0.01305483029 | P76: -0.082 | Q76: -0.328 | R76: 5.424
A77: 2013-10-04T04:30:00 | B77: 70.2 | C77: 70.89 | D77: 71.59 | F77: 0.1041665673 | G77: 62.91 | H77: 62.79 | I77: 0.03077257011 | J77: 39.99 | L77: 0.01305483029 | M77: -9.98 | O77: 0.01305483029 | P77: -0.08 | Q77: -0.32 | R77: 5.344
A78: 2013-10-04T04:45:00 | B78: 70.23 | C78: 70.93 | D78: 71.59 | F78: 0.1051433384 | G78: 62.75 | H78: 62.66 | I78: 0.03146701389 | J78: 39.6 | L78: 0.01305483029 | M78: -10.16 | O78: 0.01305483029 | P78: -0.082 | Q78: -0.328 | R78: 5.262
A79: 2013-10-04T05:00:00 | B79: 70.31 | C79: 70.97 | D79: 71.6 | F79: 0.1077473164 | G79: 62.62 | H79: 62.56 | I79: 0.03203125464 | J79: 39.19 | L79: 0.01305483029 | M79: -10.39 | O79: 0.01305483029 | P79: -0.082 | Q79: -0.328 | R79: 5.18
A80: 2013-10-04T05:15:00 | B80: 70.33 | C80: 70.99 | D80: 71.62 | F80: 0.1083984971 | G80: 62.49 | H80: 62.46 | I80: 0.03259547883 | J80: 38.81 | L80: 0.01305483029 | M80: -10.62 | O80: 0.01305483029 | P80: -0.08 | Q80: -0.32 | R80: 5.1
A81: 2013-10-04T05:30:00 | B81: 70.36 | C81: 70.99 | D81: 71.65 | F81: 0.1093750199 | G81: 62.36 | H81: 62.36 | I81: 0.03315971957 | J81: 38.43 | L81: 0.01305483029 | M81: -10.81 | O81: 0.01305483029 | P81: -0.082 | Q81: -0.328 | R81: 5.018
A82: 2013-10-04T05:45:00 | B82: 70.38 | C82: 71 | D82: 71.63 | F82: 0.1100259523 | G82: 62.24 | H82: 62.27 | I82: 0.03355034524 | J82: 38.02 | L82: 0.01305483029 | M82: -11.03 | O82: 0.01305483029 | P82: -0.08 | Q82: -0.32 | R82: 4.938
A83: 2013-10-04T06:00:00 | B83: 70.35 | C83: 70.93 | D83: 71.63 | F83: 0.1090494295 | G83: 61.84 | H83: 61.71 | I83: 0.035416666 | J83: 37.62 | L83: 0.01305483029 | M83: -11.28 | O83: 0.01305483029 | P83: -0.132 | Q83: -0.528 | R83: 4.806
A84: 2013-10-04T06:15:00 | B84: 69.74 | C84: 70.02 | D84: 70.95 | F84: 0.08919263879 | G84: 59.55 | H84: 59.28 | I84: 0.04340277778 | J84: 37.25 | L84: 0.01305483029 | M84: -11.53 | O84: 0.01305483029 | P84: -0.16 | Q84: -0.64 | R84: 4.646
A85: 2013-10-04T06:30:00 | B85: 68.77 | C85: 68.99 | D85: 70 | F85: 0.05761707822 | G85: 57.45 | H85: 57.72 | I85: 0.04340277778 | J85: 36.92 | L85: 0.01305483029 | M85: -11.82 | O85: 0.01305483029 | P85: -0.178 | Q85: -0.712 | R85: 4.468
A86: 2013-10-04T06:45:00 | B86: 68.06 | C86: 68.25 | D86: 69.32 | F86: 0.03450512886 | G86: 57.12 | H86: 58.22 | I86: 0.04340277778 | J86: 36.98 | L86: 0.01305483029 | M86: -9.61 | O86: 0.01305483029 | P86: -0.15 | Q86: -0.6 | R86: 4.318
A87: 2013-10-04T07:00:00 | B87: 68.04 | C87: 68.44 | D87: 69.45 | F87: 0.03385419647 | G87: 62.29 | H87: 63.92 | I87: 0.02638889684 | J87: 38.52 | L87: 0.01305483029 | M87: 0.487 | O87: 0.01305483029 | P87: -0.102 | Q87: -0.408 | R87: 4.216
A88: 2013-10-04T07:15:00 | B88: 68.27 | C88: 68.83 | D88: 69.82 | F88: 0.04134103656 | G88: 64.46 | H88: 66.02 | I88: 0.01727432013 | J88: 40.15 | L88: 0.01207570806 | M88: 15.82 | O88: 0 | P88: -0.086 | Q88: -0.344 | R88: 4.13
A89: 2013-10-04T07:30:00 | B89: 68.59 | C89: 69.16 | D89: 70.1 | F89: 0.05175769329 | G89: 64.67 | H89: 65.68 | I89: 0.01874999868 | J89: 40.18 | L89: 0.01187989357 | M89: 5.333 | O89: 0.0126201042 | P89: -0.082 | Q89: -0.328 | R89: 4.048
A90: 2013-10-04T07:45:00 | B90: 69.04 | C90: 69.55 | D90: 70.34 | F90: 0.0664062798 | G90: 64.96 | H90: 65.22 | I90: 0.02074652248 | J90: 39.36 | L90: 0.01305483029 | M90: -1.253 | O90: 0.01305483029 | P90: -0.098 | Q90: -0.392 | R90: 3.95
A91: 2013-10-04T08:00:00 | B91: 69.52 | C91: 69.92 | D91: 70.69 | F91: 0.08203114072 | G91: 64.92 | H91: 65.34 | I91: 0.02022571034 | J91: 38.55 | L91: 0.01305483029 | M91: -4.471 | O91: 0.01305483029 | P91: -0.018 | Q91: -0.072 | R91: 3.932
A92: 2013-10-04T08:15:00 | B92: 69.96 | C92: 70.27 | D92: 71.05 | F92: 0.09635413686 | G92: 65.19 | H92: 65.44 | I92: 0.01979165607 | J92: 37.67 | L92: 0.01305483029 | M92: -6.844 | O92: 0.01305483029 | P92: -0.112 | Q92: -0.448 | R92: 3.82
A93: 2013-10-04T08:30:00 | B93: 70.4 | C93: 70.64 | D93: 71.17 | F93: 0.110677133 | G93: 65.2 | H93: 65.68 | I93: 0.01874999868 | J93: 36.96 | L93: 0.01305483029 | M93: -8.43 | O93: 0.01305483029 | P93: 0.024 | Q93: 0.096 | R93: 3.844
A94: 2013-10-04T08:45:00 | B94: 70.53 | C94: 70.7 | D94: 71.17 | F94: 0.1149088144 | G94: 64.03 | H94: 64.43 | I94: 0.0241753459 | J94: 36.36 | L94: 0.01305483029 | M94: -9.67 | O94: 0.01305483029 | P94: -1.26 | Q94: -5.04 | R94: 2.584
A95: 2013-10-04T09:00:00 | B95: 70.14 | C95: 70.55 | D95: 70.89 | F95: 0.1022135218 | G95: 64.56 | H95: 63.91 | I95: 0.02361112171 | J95: 35.86 | L95: 0.01305483029 | M95: -10.66 | O95: 0.01305483029 | P95: -1.134 | Q95: -4.536 | R95: 1.45
A96: 2013-10-04T09:15:00 | B96: 70.07 | C96: 70.99 | D96: 70.88 | F96: 0.0999348859 | G96: 65.66 | H96: 65.39 | I96: 0.01883678966 | J96: 35.32 | L96: 0.01305483029 | M96: -11.52 | O96: 0.01305483029 | P96: 0.02 | Q96: 0.08 | R96: 1.47
A97: 2013-10-04T09:30:00 | B97: 70.3 | C97: 71.27 | D97: 70.97 | F97: 0.1074219743 | G97: 58.17 | H97: 66.22 | I97: 0.0164062447 | J97: 34.88 | L97: 0.01305483029 | M97: -12.27 | O97: 0.01305483029 | P97: 0.236 | Q97: 0.944 | R97: 1.706
A98: 2013-10-04T09:45:00 | B98: 71.17 | C98: 71.52 | D98: 71.11 | F98: 0.1302083333 | G98: 42.22 | H98: 64.51 | I98: 0.02382811573 | J98: 34.55 | L98: 0.01305483029 | M98: -12.61 | O98: 0.01305483029 | P98: -0.026 | Q98: -0.104 | R98: 1.68
A99: 2013-10-04T10:00:00 | B99: 71.82 | C99: 71.74 | D99: 71.22 | F99: 0.1302083333 | G99: 31.69 | H99: 60.13 | I99: 0.04283853703 | J99: 35.51 | L99: 0.01305483029 | M99: -8.84 | O99: 0.01305483029 | P99: -0.094 | Q99: -0.376 | R99: 1.586
A100: 2013-10-04T10:15:00 | B100: 72.71 | C100: 71.98 | D100: 71.44 | F100: 0.1302083333 | G100: 26.45 | H100: 54.18 | I100: 0.04340277778 | J100: 36.75 | L100: 0.01305483029 | M100: -5.559 | O100: 0.01305483029 | P100: 0.334 | Q100: 1.336 | R100: 1.92
A101: 2013-10-04T10:30:00 | B101: 73.41 | C101: 72.19 | D101: 71.7 | F101: 0.1302083333 | G101: 25.35 | H101: 47.04 | I101: 0.04340277778 | J101: 36.3 | L101: 0.01305483029 | M101: -9.47 | O101: 0.01305483029 | P101: 0.482 | Q101: 1.928 | R101: 2.402
A102: 2013-10-04T10:45:00 | B102: 73.8 | C102: 72.5 | D102: 71.69 | F102: 0.1302083333 | G102: 25.7 | H102: 42.62 | I102: 0.04340277778 | J102: 35.3 | L102: 0.01305483029 | M102: -11.69 | O102: 0.01305483029 | P102: 0.368 | Q102: 1.472 | R102: 2.77
A103: 2013-10-04T11:00:00 | B103: 73.73 | C103: 72.89 | D103: 72.03 | F103: 0.1302083333 | G103: 26.87 | H103: 41.19 | I103: 0.04340277778 | J103: 35.74 | L103: 0.01305483029 | M103: -9.16 | O103: 0.01305483029 | P103: 0.378 | Q103: 1.512 | R103: 3.148
A104: 2013-10-04T11:15:00 | B104: 72.45 | C104: 73.29 | D104: 71.64 | G104: 23.9 | H104: 37.13 | J104: 36.81 | L104: 0.01305483029 | M104: -6.509 | O104: 0.01305483029 | P104: 0.59 | Q104: 2.36 | R104: 3.738
A105: 2013-10-04T11:30:00 | B105: 72.53 | C105: 73.7 | D105: 71.45 | G105: 22.51 | H105: 33.5 | J105: 36.24 | L105: 0.01305483029 | M105: -9.77 | O105: 0.01305483029 | P105: 0.742 | Q105: 2.968 | R105: 4.48
A106: 2013-10-04T11:45:00 | B106: 72.6 | C106: 74.13 | D106: 71.37 | G106: 23.81 | H106: 33.99 | J106: 36.67 | L106: 0.01305483029 | M106: -7.404 | O106: 0.01305483029 | P106: 0.896 | Q106: 3.584 | R106: 5.376
A107: 2013-10-04T12:00:00 | B107: 72.89 | C107: 74.46 | D107: 71.44 | G107: 24.69 | H107: 34.37 | J107: 37.34 | L107: 0.01305483029 | M107: -5.052 | O107: 0.01305483029 | P107: 0.966 | Q107: 3.864 | R107: 6.342
A108: 2013-10-04T12:15:00 | B108: 73.28 | C108: 74.73 | D108: 71.55 | G108: 23.57 | H108: 33.41 | J108: 36.51 | L108: 0.01305483029 | M108: -9.01 | O108: 0.01305483029 | P108: 0.996 | Q108: 3.984 | R108: 7.338
A109: 2013-10-04T12:30:00 | B109: 73.7 | C109: 75.02 | D109: 71.63 | G109: 22.5 | H109: 31.84 | J109: 36.84 | L109: 0.01305483029 | M109: -6.896 | O109: 0.01305483029 | P109: 1.018 | Q109: 4.072 | R109: 8.356
A110: 2013-10-04T12:45:00 | B110: 74.16 | C110: 75.41 | D110: 71.74 | G110: 22.05 | H110: 30.21 | J110: 37.49 | L110: 0.01305483029 | M110: -4.624 | O110: 0.01305483029 | P110: 1.002 | Q110: 4.008 | R110: 9.358
A111: 2013-10-04T13:00:00 | B111: 74.63 | C111: 75.75 | D111: 71.87 | G111: 21.63 | H111: 30.03 | J111: 36.62 | L111: 0.01305483029 | M111: -8.7 | O111: 0.01305483029 | P111: 0.932 | Q111: 3.728 | R111: 10.29
A112: 2013-10-04T13:15:00 | B112: 75.1 | C112: 76.27 | D112: 72.01 | G112: 21.43 | H112: 30.3 | J112: 36.84 | L112: 0.01305483029 | M112: -7.008 | O112: 0.01305483029 | P112: 1.006 | Q112: 4.024 | R112: 11.296
A113: 2013-10-04T13:30:00 | B113: 75.58 | C113: 76.86 | D113: 72.3 | G113: 21.99 | H113: 28.93 | J113: 37.59 | L113: 0.01305483029 | M113: -4.45 | O113: 0.01305483029 | P113: 0.978 | Q113: 3.912 | R113: 12.274
A114: 2013-10-04T13:45:00 | B114: 76 | C114: 76.77 | D114: 72.46 | G114: 24.46 | H114: 28.51 | J114: 36.72 | L114: 0.01305483029 | M114: -8.44 | O114: 0.01305483029 | P114: 0.968 | Q114: 3.872 | R114: 13.242
A115: 2013-10-04T14:00:00 | B115: 76.21 | C115: 77.16 | D115: 72.77 | G115: 25.46 | H115: 26.52 | J115: 36.88 | L115: 0.01305483029 | M115: -7.139 | O115: 0.01305483029 | P115: 0.88 | Q115: 3.52 | R115: 14.122
A116: 2013-10-04T14:15:00 | B116: 76.4 | C116: 79.69 | D116: 73.05 | G116: 21.88 | H116: 18.29 | J116: 37.7 | L116: 0.01305483029 | M116: -4.248 | O116: 0.01305483029 | P116: 0.904 | Q116: 3.616 | R116: 15.026
A117: 2013-10-04T14:30:00 | B117: 76.75 | C117: 81.4 | D117: 73.27 | G117: 20.39 | H117: 17.48 | J117: 36.89 | L117: 0.01305483029 | M117: -8.04 | O117: 0.01305483029 | P117: 0.866 | Q117: 3.464 | R117: 15.892
A118: 2013-10-04T14:45:00 | B118: 79.78 | C118: 82.8 | D118: 76.13 | G118: 18.25 | H118: 18.03 | J118: 36.85 | L118: 0.01305483029 | M118: -7.389 | O118: 0.01305483029 | P118: 0.844 | Q118: 3.376 | R118: 16.736
A119: 2013-10-04T15:00:00 | B119: 79.42 | C119: 83.5 | D119: 75.65 | G119: 18.74 | H119: 17.05 | J119: 37.73 | L119: 0.01305483029 | M119: -4.238 | O119: 0.01305483029 | P119: 0.78 | Q119: 3.12 | R119: 17.516
A120: 2013-10-04T15:15:00 | B120: 79.07 | C120: 84.3 | D120: 75.17 | G120: 19.07 | H120: 16.18 | J120: 37.03 | L120: 0.01305483029 | M120: -7.613 | O120: 0.01305483029 | P120: 0.724 | Q120: 2.896 | R120: 18.24
A121: 2013-10-04T15:30:00 | B121: 79.16 | C121: 84.8 | D121: 75.1 | G121: 18.62 | H121: 15.77 | J121: 36.8 | L121: 0.01305483029 | M121: -7.736 | O121: 0.01305483029 | P121: 0.69 | Q121: 2.76 | R121: 18.93
A122: 2013-10-04T15:45:00 | B122: 79.4 | C122: 85.3 | D122: 75.25 | G122: 18.22 | H122: 15.86 | J122: 37.7 | L122: 0.01305483029 | M122: -4.327 | O122: 0.01305483029 | P122: 0.544 | Q122: 2.176 | R122: 19.474
A123: 2013-10-04T16:00:00 | B123: 79.68 | C123: 85.8 | D123: 75.52 | G123: 18.3 | H123: 15.4 | J123: 37.23 | L123: 0.01305483029 | M123: -7.091 | O123: 0.01305483029 | P123: 0.538 | Q123: 2.152 | R123: 20.012
A124: 2013-10-04T16:15:00 | B124: 79.95 | C124: 86.1 | D124: 75.81 | G124: 17.92 | H124: 14.54 | J124: 36.76 | L124: 0.01305483029 | M124: -8.1 | O124: 0.01305483029 | P124: 0.49 | Q124: 1.96 | R124: 20.502
A125: 2013-10-04T16:30:00 | B125: 80.2 | C125: 86.4 | D125: 76.1 | G125: 17.2 | H125: 15.06 | J125: 37.7 | L125: 0.01305483029 | M125: -4.691 | O125: 0.01305483029 | P125: 0.408 | Q125: 1.632 | R125: 20.91
A126: 2013-10-04T16:45:00 | B126: 80.5 | C126: 86.5 | D126: 76.38 | G126: 16.24 | H126: 14.45 | J126: 37.38 | L126: 0.01305483029 | M126: -6.697 | O126: 0.01305483029 | P126: 0.316 | Q126: 1.264 | R126: 21.226
A127: 2013-10-04T17:00:00 | B127: 80.7 | C127: 86.6 | D127: 76.64 | G127: 15.59 | H127: 14.3 | J127: 36.79 | L127: 0.01305483029 | M127: -8.39 | O127: 0.01305483029 | P127: 0.256 | Q127: 1.024 | R127: 21.482
A128: 2013-10-04T17:15:00 | B128: 80.8 | C128: 86.6 | D128: 76.9 | G128: 15.67 | H128: 14.22 | J128: 37.73 | L128: 0.01305483029 | M128: -5.025 | O128: 0.01305483029 | P128: 0.174 | Q128: 0.696 | R128: 21.656
A129: 2013-10-04T17:30:00 | B129: 80.9 | C129: 86.6 | D129: 77.15 | G129: 16.29 | H129: 14.7 | J129: 37.57 | L129: 0.01305483029 | M129: -6.141 | O129: 0.01305483029 | P129: 0.086 | Q129: 0.344 | R129: 21.742
A130: 2013-10-04T17:45:00 | B130: 81 | C130: 86.2 | D130: 77.34 | G130: 16.47 | H130: 13.85 | J130: 36.82 | L130: 0.01305483029 | M130: -8.52 | O130: 0.01305483029 | P130: -0.038 | Q130: -0.152 | R130: 21.704
A131: 2013-10-04T18:00:00 | B131: 81.1 | C131: 85.7 | D131: 77.51 | G131: 16.62 | H131: 13.87 | J131: 37.62 | L131: 0.01305483029 | M131: -5.509 | O131: 0.01305483029 | P131: -0.022 | Q131: -0.088 | R131: 21.682
A132: 2013-10-04T18:15:00 | B132: 81.1 | C132: 84.9 | D132: 77.66 | G132: 17.09 | H132: 14.17 | J132: 37.72 | L132: 0.01305483029 | M132: -5.622 | O132: 0.01305483029 | P132: -0.062 | Q132: -0.248 | R132: 21.62
A133: 2013-10-04T18:30:00 | B133: 81 | C133: 83.7 | D133: 77.78 | G133: 16.59 | H133: 14.19 | J133: 36.87 | L133: 0.01305483029 | M133: -8.69 | O133: 0.01305483029 | P133: -0.052 | Q133: -0.208 | R133: 21.568
A134: 2013-10-04T18:45:00 | B134: 80.7 | C134: 82.5 | D134: 77.85 | G134: 14.52 | H134: 14.07 | J134: 37.55 | L134: 0.01305483029 | M134: -6.051 | O134: 0.01305483029 | P134: -0.1 | Q134: -0.4 | R134: 21.468
A135: 2013-10-04T19:00:00 | B135: 80.5 | C135: 81.5 | D135: 77.91 | G135: 13.82 | H135: 13.88 | J135: 37.84 | L135: 0.01305483029 | M135: -4.935 | O135: 0.01305483029 | P135: -0.14 | Q135: -0.56 | R135: 21.328
A136: 2013-10-04T19:15:00 | B136: 79.99 | C136: 81.1 | D136: 78.14 | G136: 13.77 | H136: 15.81 | J136: 36.91 | L136: 0.01305483029 | M136: -8.62 | O136: 0.01305483029 | P136: -0.25 | Q136: -1 | R136: 21.078
A137: 2013-10-04T19:30:00 | B137: 77.78 | C137: 81.5 | D137: 78.15 | G137: 15.63 | H137: 18.63 | J137: 37.61 | L137: 0.01305483029 | M137: -6.207 | O137: 0.01305483029 | P137: -0.37 | Q137: -1.48 | R137: 20.708
A138: 2013-10-04T19:45:00 | B138: 76.22 | C138: 81.1 | D138: 77.72 | G138: 17.83 | H138: 20.32 | J138: 37.63 | L138: 0.01305483029 | M138: -6.471 | O138: 0.01305483029 | P138: -0.462 | Q138: -1.848 | R138: 20.246
A139: 2013-10-04T20:00:00 | B139: 75.95 | C139: 80.6 | D139: 76.69 | G139: 19.06 | H139: 21.31 | J139: 36.82 | L139: 0.01305483029 | M139: -8.94 | O139: 0.01305483029 | P139: -0.394 | Q139: -1.576 | R139: 19.852
A140: 2013-10-04T20:15:00 | B140: 77.04 | C140: 79.96 | D140: 76.14 | G140: 18.83 | H140: 21.2 | J140: 37.84 | L140: 0.01305483029 | M140: -5.958 | O140: 0.01305483029 | P140: -0.408 | Q140: -1.632 | R140: 19.444
A141: 2013-10-04T20:30:00 | B141: 77.29 | C141: 79.33 | D141: 75.56 | G141: 20.43 | H141: 21.83 | J141: 38.04 | L141: 0.01305483029 | M141: -6.911 | O141: 0.01305483029 | P141: -0.386 | Q141: -1.544 | R141: 19.058
A142: 2013-10-04T20:45:00 | B142: 77.12 | C142: 78.7 | D142: 74.78 | G142: 23.24 | H142: 23.5 | J142: 37.07 | L142: 0.01305483029 | M142: -9.5 | O142: 0.01305483029 | P142: -0.35 | Q142: -1.4 | R142: 18.708
A143: 2013-10-04T21:00:00 | B143: 76.79 | C143: 78.1 | D143: 74.2 | G143: 24.85 | H143: 24.53 | J143: 37.94 | L143: 0.01305483029 | M143: -6.827 | O143: 0.01305483029 | P143: -0.338 | Q143: -1.352 | R143: 18.37
A144: 2013-10-04T21:15:00 | B144: 76.48 | C144: 77.53 | D144: 73.62 | G144: 26.07 | H144: 25.71 | J144: 38.47 | L144: 0.01305483029 | M144: -4.996 | O144: 0.01305483029 | P144: -0.366 | Q144: -1.464 | R144: 18.004
A145: 2013-10-04T21:30:00 | B145: 76.16 | C145: 76.15 | D145: 73.13 | G145: 26.72 | H145: 27.18 | J145: 37.34 | L145: 0.01305483029 | M145: -8.68 | O145: 0.01305483029 | P145: -0.348 | Q145: -1.392 | R145: 17.656
A146: 2013-10-04T21:45:00 | B146: 75.83 | C146: 74.63 | D146: 72.75 | G146: 28 | H146: 28.72 | J146: 37.84 | L146: 0.01305483029 | M146: -6.594 | O146: 0.01305483029 | P146: -0.338 | Q146: -1.352 | R146: 17.318
A147: 2013-10-04T22:00:00 | B147: 75.52 | C147: 73.62 | D147: 72.35 | G147: 28.73 | H147: 29.9 | J147: 38.64 | L147: 0.01305483029 | M147: -3.811 | O147: 0.01305483029 | P147: -0.35 | Q147: -1.4 | R147: 16.968
A148: 2013-10-04T22:15:00 | B148: 75.21 | C148: 72.78 | D148: 71.97 | G148: 29.5 | H148: 30.86 | J148: 37.53 | L148: 0.01305483029 | M148: -7.775 | O148: 0.01305483029 | P148: -0.35 | Q148: -1.4 | R148: 16.618
A149: 2013-10-04T22:30:00 | B149: 74.88 | C149: 72.03 | D149: 71.59 | G149: 29.96 | H149: 31.61 | J149: 37.64 | L149: 0.01305483029 | M149: -6.694 | O149: 0.01305483029 | P149: -0.34 | Q149: -1.36 | R149: 16.278
A150: 2013-10-04T22:45:00 | B150: 73.77 | C150: 71.45 | D150: 71.32 | G150: 30.6 | H150: 32.22 | J150: 38.6 | L150: 0.01305483029 | M150: -3.326 | O150: 0.01305483029 | P150: -0.396 | Q150: -1.584 | R150: 15.882
A151: 2013-10-04T23:00:00 | B151: 72.04 | C151: 71.06 | D151: 71.09 | G151: 30.44 | H151: 32.33 | J151: 37.81 | L151: 0.01305483029 | M151: -6.607 | O151: 0.01305483029 | P151: -0.258 | Q151: -1.032 | R151: 15.624
A152: 2013-10-04T23:15:00 | B152: 71.23 | C152: 70.77 | D152: 71.03 | F152: 0.1227212449 | G152: 30.49 | H152: 31.78 | I152: 0.04340277778 | J152: 37.43 | L152: 0.01305483029 | M152: -6.938 | O152: 0.01305483029 | P152: -0.176 | Q152: -0.704 | R152: 15.448
A153: 2013-10-04T23:30:00 | B153: 70.9 | C153: 70.76 | D153: 71.04 | F153: 0.1223959029 | G153: 30.9 | H153: 31.49 | I153: 0.04340277778 | J153: 38.4 | L153: 0.01305483029 | M153: -3.624 | O153: 0.01305483029 | P153: -0.07 | Q153: -0.28 | R153: 15.378
A154: 2013-10-04T23:45:00 | B154: 71.33 | C154: 71.46 | D154: 71.65 | F154: 0.1302083333 | G154: 30.71 | H154: 31.11 | I154: 0.04340277778 | J154: 38.16 | L154: 0.01305483029 | M154: -4.699 | O154: 0.01305483029 | P154: -0.068 | Q154: -0.272 | R154: 15.31
A155: 2013-10-05 | B155: 71.85 | C155: 72.09 | D155: 72.3 | F155: 0.1302083333 | G155: 30.27 | H155: 30.61 | I155: 0.04340277778 | J155: 37.28 | L155: 0.01305483029 | M155: -7.252 | O155: 0.01305483029 | P155: -0.048 | Q155: -0.192 | R155: 15.262
A156: 2013-10-05T00:15:00 | B156: 72.18 | C156: 72.44 | D156: 72.74 | F156: 0.1302083333 | G156: 29.92 | H156: 30.23 | I156: 0.04340277778 | J156: 38.09 | L156: 0.01305483029 | M156: -4.261 | O156: 0.01305483029 | P156: -0.046 | Q156: -0.184 | R156: 15.216
A157: 2013-10-05T00:30:00 | B157: 72.42 | C157: 72.7 | D157: 73.04 | F157: 0.1302083333 | G157: 29.71 | H157: 29.99 | I157: 0.04340277778 | J157: 38.46 | L157: 0.01305483029 | M157: -2.991 | O157: 0.01305483029 | P157: -0.064 | Q157: -0.256 | R157: 15.152
A158: 2013-10-05T00:45:00 | B158: 72.58 | C158: 72.89 | D158: 73.23 | F158: 0.1302083333 | G158: 29.6 | H158: 29.86 | I158: 0.04340277778 | J158: 37.29 | L158: 0.01305483029 | M158: -7.224 | O158: 0.01305483029 | P158: -0.054 | Q158: -0.216 | R158: 15.098
A159: 2013-10-05T01:00:00 | B159: 72.71 | C159: 73.03 | D159: 73.39 | F159: 0.1302083333 | G159: 29.53 | H159: 29.82 | I159: 0.04340277778 | J159: 37.75 | L159: 0.01305483029 | M159: -5.056 | O159: 0.01305483029 | P159: -0.046 | Q159: -0.184 | R159: 15.052
A160: 2013-10-05T01:15:00 | B160: 72.82 | C160: 73.15 | D160: 73.5 | F160: 0.1302083333 | G160: 29.57 | H160: 29.82 | I160: 0.04340277778 | J160: 38.55 | L160: 0.01305483029 | M160: -2.147 | O160: 0.01305483029 | P160: -0.06 | Q160: -0.24 | R160: 14.992
A161: 2013-10-05T01:30:00 | B161: 72.9 | C161: 73.2 | D161: 73.61 | F161: 0.1302083333 | G161: 29.64 | H161: 29.89 | I161: 0.04340277778 | J161: 37.54 | L161: 0.01305483029 | M161: -6.424 | O161: 0.01305483029 | P161: -0.06 | Q161: -0.24 | R161: 14.932
A162: 2013-10-05T01:45:00 | B162: 72.95 | C162: 73.27 | D162: 73.67 | F162: 0.1302083333 | G162: 29.72 | H162: 29.93 | I162: 0.04340277778 | J162: 37.43 | L162: 0.01305483029 | M162: -5.824 | O162: 0.01305483029 | P162: -0.046 | Q162: -0.184 | R162: 14.886
A163: 2013-10-05T02:00:00 | B163: 73.04 | C163: 73.33 | D163: 73.78 | F163: 0.1302083333 | G163: 29.7 | H163: 29.86 | I163: 0.04340277778 | J163: 38.42 | L163: 0.01305483029 | M163: -2.519 | O163: 0.01305483029 | P163: -0.054 | Q163: -0.216 | R163: 14.832
A164: 2013-10-05T02:15:00 | B164: 73.08 | C164: 73.36 | D164: 73.8 | F164: 0.1302083333 | G164: 29.62 | H164: 29.74 | I164: 0.04340277778 | J164: 37.95 | L164: 0.01305483029 | M164: -4.749 | O164: 0.01305483029 | P164: -0.068 | Q164: -0.272 | R164: 14.764
A165: 2013-10-05T02:30:00 | B165: 73.11 | C165: 73.4 | D165: 73.84 | F165: 0.1302083333 | G165: 29.56 | H165: 29.64 | I165: 0.04340277778 | J165: 37.21 | L165: 0.01305483029 | M165: -6.599 | O165: 0.01305483029 | P165: -0.044 | Q165: -0.176 | R165: 14.72
A166: 2013-10-05T02:45:00 | B166: 73.13 | C166: 73.42 | D166: 73.86 | F166: 0.1302083333 | G166: 29.59 | H166: 29.7 | I166: 0.04340277778 | J166: 38.11 | L166: 0.01305483029 | M166: -3.469 | O166: 0.01305483029 | P166: -0.046 | Q166: -0.184 | R166: 14.674
A167: 2013-10-05T03:00:00 | B167: 73.13 | C167: 73.44 | D167: 73.89 | F167: 0.1302083333 | G167: 29.71 | H167: 29.86 | I167: 0.04340277778 | J167: 38.35 | L167: 0.01305483029 | M167: -2.943 | O167: 0.01305483029 | P167: -0.068 | Q167: -0.272 | R167: 14.606
A168: 2013-10-05T03:15:00 | B168: 73.14 | C168: 73.47 | D168: 73.9 | F168: 0.1302083333 | G168: 29.84 | H168: 30.01 | I168: 0.04340277778 | J168: 37.18 | L168: 0.01305483029 | M168: -6.938 | O168: 0.01305483029 | P168: -0.052 | Q168: -0.208 | R168: 14.554
A169: 2013-10-05T03:30:00 | B169: 73.17 | C169: 73.47 | D169: 73.93 | F169: 0.1302083333 | G169: 29.92 | H169: 30.06 | I169: 0.04340277778 | J169: 37.77 | L169: 0.01305483029 | M169: -4.413 | O169: 0.01305483029 | P169: -0.046 | Q169: -0.184 | R169: 14.508
A170: 2013-10-05T03:45:00 | B170: 73.18 | C170: 73.46 | D170: 73.97 | F170: 0.1302083333 | G170: 30.02 | H170: 30.13 | I170: 0.04340277778 | J170: 38.5 | L170: 0.01305483029 | M170: -1.909 | O170: 0.01305483029 | P170: -0.062 | Q170: -0.248 | R170: 14.446
A171: 2013-10-05T04:00:00 | B171: 73.18 | C171: 73.46 | D171: 74.01 | F171: 0.1302083333 | G171: 30.08 | H171: 30.25 | I171: 0.04340277778 | J171: 37.45 | L171: 0.01305483029 | M171: -6.432 | O171: 0.01305483029 | P171: -0.058 | Q171: -0.232 | R171: 14.388
A172: 2013-10-05T04:15:00 | B172: 73.18 | C172: 73.47 | D172: 74.01 | F172: 0.1302083333 | G172: 30.28 | H172: 30.41 | I172: 0.04340277778 | J172: 37.43 | L172: 0.01305483029 | M172: -5.371 | O172: 0.01305483029 | P172: -0.046 | Q172: -0.184 | R172: 14.342
A173: 2013-10-05T04:30:00 | B173: 73.17 | C173: 73.46 | D173: 74.01 | F173: 0.1302083333 | G173: 30.43 | H173: 30.59 | I173: 0.04340277778 | J173: 38.41 | L173: 0.01305483029 | M173: -2.002 | O173: 0.01305483029 | P173: -0.054 | Q173: -0.216 | R173: 14.288
A174: 2013-10-05T04:45:00 | B174: 73.14 | C174: 73.47 | D174: 74.01 | F174: 0.1302083333 | G174: 30.51 | H174: 30.67 | I174: 0.04340277778 | J174: 37.86 | L174: 0.01305483029 | M174: -4.881 | O174: 0.01305483029 | P174: -0.066 | Q174: -0.264 | R174: 14.222
A175: 2013-10-05T05:00:00 | B175: 73.17 | C175: 73.46 | D175: 74.01 | F175: 0.1302083333 | G175: 30.38 | H175: 30.44 | I175: 0.04340277778 | J175: 37.2 | L175: 0.01305483029 | M175: -6.319 | O175: 0.01305483029 | P175: -0.046 | Q175: -0.184 | R175: 14.176
A176: 2013-10-05T05:15:00 | B176: 73.18 | C176: 73.46 | D176: 74.02 | F176: 0.1302083333 | G176: 30.4 | H176: 30.41 | I176: 0.04340277778 | J176: 38.12 | L176: 0.01305483029 | M176: -3.159 | O176: 0.01305483029 | P176: -0.046 | Q176: -0.184 | R176: 14.13
A177: 2013-10-05T05:30:00 | B177: 73.19 | C177: 73.46 | D177: 74.02 | F177: 0.1302083333 | G177: 30.38 | H177: 30.49 | I177: 0.04340277778 | J177: 38.24 | L177: 0.01305483029 | M177: -2.756 | O177: 0.01305483029 | P177: -0.07 | Q177: -0.28 | R177: 14.06
A178: 2013-10-05T05:45:00 | B178: 73.19 | C178: 73.48 | D178: 74.03 | F178: 0.1302083333 | G178: 30.22 | H178: 30.28 | I178: 0.04340277778 | J178: 37.16 | L178: 0.01305483029 | M178: -6.706 | O178: 0.01305483029 | P178: -0.052 | Q178: -0.208 | R178: 14.008
A179: 2013-10-05T06:00:00 | B179: 73.19 | C179: 73.48 | D179: 74.04 | F179: 0.1302083333 | G179: 30.12 | H179: 30.09 | I179: 0.04340277778 | J179: 37.75 | L179: 0.01305483029 | M179: -4.148 | O179: 0.01305483029 | P179: -0.046 | Q179: -0.184 | R179: 13.962
A180: 2013-10-05T06:15:00 | B180: 73.18 | C180: 73.46 | D180: 74.02 | F180: 0.1302083333 | G180: 29.92 | H180: 29.97 | I180: 0.04340277778 | J180: 38.5 | L180: 0.01305483029 | M180: -1.627 | O180: 0.01305483029 | P180: -0.06 | Q180: -0.24 | R180: 13.902
A181: 2013-10-05T06:30:00 | B181: 73.15 | C181: 73.43 | D181: 74.01 | F181: 0.1302083333 | G181: 29.75 | H181: 29.75 | I181: 0.04340277778 | J181: 37.42 | L181: 0.01305483029 | M181: -6.268 | O181: 0.01305483029 | P181: -0.06 | Q181: -0.24 | R181: 13.842
A182: 2013-10-05T06:45:00 | B182: 73.14 | C182: 73.42 | D182: 74.01 | F182: 0.1302083333 | G182: 29.71 | H182: 29.65 | I182: 0.04340277778 | J182: 37.42 | L182: 0.01305483029 | M182: -5.139 | O182: 0.01305483029 | P182: -0.14 | Q182: -0.56 | R182: 13.702
A183: 2013-10-05T07:00:00 | B183: 73.13 | C183: 73.41 | D183: 74.01 | F183: 0.1302083333 | G183: 29.57 | H183: 29.73 | I183: 0.04340277778 | J183: 38.4 | L183: 0.01305483029 | M183: -1.794 | O183: 0.01305483029 | P183: -0.26 | Q183: -1.04 | R183: 13.442
A184: 2013-10-05T07:15:00 | B184: 73.15 | C184: 73.4 | D184: 74.01 | F184: 0.1302083333 | G184: 29.56 | H184: 29.79 | I184: 0.04340277778 | J184: 37.9 | L184: 0.01305483029 | M184: -4.632 | O184: 0.01305483029 | P184: -0.304 | Q184: -1.216 | R184: 13.138
A185: 2013-10-05T07:30:00 | B185: 73.29 | C185: 73.5 | D185: 74.01 | F185: 0.1302083333 | G185: 29.69 | H185: 29.91 | I185: 0.04340277778 | J185: 37.22 | L185: 0.01305483029 | M185: -6.091 | O185: 0.01305483029 | P185: -0.308 | Q185: -1.232 | R185: 12.83
A186: 2013-10-05T07:45:00 | B186: 73.61 | C186: 73.65 | D186: 74.05 | F186: 0.1302083333 | G186: 29.69 | H186: 30.24 | I186: 0.04340277778 | J186: 38.08 | L186: 0.01305483029 | M186: -2.942 | O186: 0.01305483029 | P186: -0.292 | Q186: -1.168 | R186: 12.538
A187: 2013-10-05T08:00:00 | B187: 73.86 | C187: 73.87 | D187: 74.1 | F187: 0.1302083333 | G187: 29.99 | H187: 30.56 | I187: 0.04340277778 | J187: 38.32 | L187: 0.01305483029 | M187: -2.371 | O187: 0.01305483029 | P187: -0.226 | Q187: -0.904 | R187: 12.312
A188: 2013-10-05T08:15:00 | B188: 74.18 | C188: 74.11 | D188: 74.24 | F188: 0.1302083333 | G188: 30.53 | H188: 30.92 | I188: 0.04340277778 | J188: 37.18 | L188: 0.01305483029 | M188: -6.582 | O188: 0.01305483029 | P188: -0.156 | Q188: -0.624 | R188: 12.156
A189: 2013-10-05T08:30:00 | B189: 74.57 | C189: 74.4 | D189: 74.38 | F189: 0.1302083333 | G189: 32.52 | H189: 32.47 | I189: 0.04340277778 | J189: 37.71 | L189: 0.01305483029 | M189: -4.08 | O189: 0.01305483029 | P189: -0.644 | Q189: -2.576 | R189: 11.512
A190: 2013-10-05T08:45:00 | B190: 75.01 | C190: 74.78 | D190: 74.59 | F190: 0.1302083333 | G190: 40.92 | H190: 41.92 | I190: 0.04340277778 | J190: 38.53 | L190: 0.01305483029 | M190: -1.328 | O190: 0.01305483029 | P190: -1.602 | Q190: -6.408 | R190: 9.91001
A191: 2013-10-05T09:00:00 | B191: 74.87 | C191: 74.42 | D191: 74.28 | F191: 0.1302083333 | G191: 48.31 | H191: 49.78 | I191: 0.04340277778 | J191: 37.47 | L191: 0.01305483029 | M191: -5.929 | O191: 0.01305483029 | P191: -1.33 | Q191: -5.32 | R191: 8.58001
A192: 2013-10-05T09:15:00 | B192: 74.45 | C192: 74.22 | D192: 73.92 | F192: 0.1302083333 | G192: 52.59 | H192: 51.25 | I192: 0.04340277778 | J192: 37.39 | L192: 0.01305483029 | M192: -5.135 | O192: 0.01305483029 | P192: -0.038 | Q192: -0.152 | R192: 8.54201
A193: 2013-10-05T09:30:00 | B193: 73.98 | C193: 73.85 | D193: 73.44 | F193: 0.1302083333 | G193: 46.85 | H193: 46.96 | I193: 0.04340277778 | J193: 38.34 | L193: 0.01305483029 | M193: -1.735 | O193: 0.01305483029 | P193: 0.404 | Q193: 1.616 | R193: 8.94601
A194: 2013-10-05T09:45:00 | B194: 73.67 | C194: 74.69 | D194: 72.89 | F194: 0.1302083333 | G194: 33.96 | H194: 28.55 | I194: 0.04340277778 | J194: 37.87 | L194: 0.01305483029 | M194: -4.219 | O194: 0.01305483029 | P194: 0.286 | Q194: 1.144 | R194: 9.23201
A195: 2013-10-05T10:00:00 | B195: 74.13 | C195: 76.57 | D195: 72.58 | F195: 0.1116536558 | G195: 26.32 | H195: 22.2 | I195: 0.04340277778 | J195: 37.16 | L195: 0.01305483029 | M195: -6.209 | O195: 0.01305483029 | P195: 0.346 | Q195: 1.384 | R195: 9.57801
A196: 2013-10-05T10:15:00 | B196: 74.61 | C196: 76.83 | D196: 72.89 | F196: 0.1031900446 | G196: 22.02 | H196: 23.51 | I196: 0.04340277778 | J196: 37.99 | L196: 0.01305483029 | M196: -3.069 | O196: 0.01305483029 | P196: 0.398 | Q196: 1.592 | R196: 9.97601
A197: 2013-10-05T10:30:00 | B197: 74.41 | C197: 75.71 | D197: 72.51 | F197: 0.1302083333 | G197: 24.62 | H197: 26.89 | I197: 0.04340277778 | J197: 38.34 | L197: 0.01305483029 | M197: -2.278 | O197: 0.01305483029 | P197: 0.414 | Q197: 1.656 | R197: 10.39
A198: 2013-10-05T10:45:00 | B198: 74.35 | C198: 74.52 | D198: 72.27 | G198: 23.28 | H198: 27.05 | J198: 37.2 | L198: 0.01305483029 | M198: -6.692 | O198: 0.01305483029 | P198: 0.376 | Q198: 1.504 | R198: 10.766
A199: 2013-10-05T11:00:00 | B199: 75.17 | C199: 74.3 | D199: 73.75 | G199: 20.85 | H199: 26.3 | J199: 37.67 | L199: 0.01305483029 | M199: -4.23 | O199: 0.01305483029 | P199: 0.656 | Q199: 2.624 | R199: 11.422
A200: 2013-10-05T11:15:00 | B200: 75.69 | C200: 75.81 | D200: 75.99 | G200: 18.94 | H200: 20.91 | J200: 38.51 | L200: 0.01305483029 | M200: -1.361 | O200: 0.01305483029 | P200: 0.688 | Q200: 2.752 | R200: 12.11
A201: 2013-10-05T11:30:00 | B201: 75.87 | C201: 76.12 | D201: 75.17 | G201: 17.83 | H201: 20.83 | J201: 37.58 | L201: 0.01305483029 | M201: -5.999 | O201: 0.01305483029 | P201: 0.706 | Q201: 2.824 | R201: 12.816
... 637 more rows

Sheet Lot 103
A1: 103 | B1: Subcontest 6-1 | G1: Subcontest 6-2 | J1: Subcontest 8-1 | M1: Subcontest 8-2 | P1: Contest 10
B2: Temperature | G2: Humidity | J2: Refrigerator | M2: Freezer | P2: Energy Balance
A4: Current score > | B4: 73.71777296 | G4: 24.97304686 | J4: 9.938185396 | M4: 9.993180157
B5: Temp #1 | C5: Temp #2 | D5: Temp #3 | E5: Temp #4 | F5: Points | G5: RH #1 | H5: RH #2 | I5: Points | J5: Temp #1 | K5: Temp #2 | L5: Points | M5: Temp #1 | N5: Temp #2 | O5: Points | P5: Net Energy | Q5: Net Power | R5: Cumulative
A6: Time Stamp | B6: °F | C6: °F | D6: °F | E6: °F | F6: Earned | G6: % | H6: % | I6: Earned | J6: °F | K6: °F | L6: Earned | M6: °F | N6: °F | O6: Earned | P6: kWh | Q6: kW | R6: kWh
A7: 2013-10-03T11:00:00 | B7: 72.13 | C7: 71.8 | G7: 57.89 | H7: 58.35 | J7: 41.53 | M7: -5.163 | P7: 0.48 | Q7: 1.92
A8: 2013-10-03T11:15:00 | B8: 72.69 | C8: 72.23 | G8: 57.8 | H8: 58.52 | J8: 37.6 | L8: 0.01305483029 | M8: -5.909 | O8: 0.01305483029 | P8: 0.266 | Q8: 1.064 | R8: 0.266
A9: 2013-10-03T11:30:00 | B9: 73.03 | C9: 72.5 | G9: 58.01 | H9: 58.87 | J9: 36.04 | L9: 0.01305483029 | M9: -7.885 | O9: 0.01305483029 | P9: 0.836 | Q9: 3.344 | R9: 1.102
A10: 2013-10-03T11:45:00 | B10: 73.64 | C10: 73.03 | G10: 57.78 | H10: 58.6 | J10: 35.02 | L10: 0.01305483029 | M10: -9.07 | O10: 0.01305483029 | P10: 1.052 | Q10: 4.208 | R10: 2.154
A11: 2013-10-03T12:00:00 | B11: 73.88 | C11: 73.11 | G11: 57.75 | H11: 58.91 | J11: 36.34 | L11: 0.01305483029 | M11: -4.289 | O11: 0.01305483029 | P11: 1.134 | Q11: 4.536 | R11: 3.288
A12: 2013-10-03T12:15:00 | B12: 74.15 | C12: 73.56 | G12: 57.16 | H12: 58.27 | J12: 37.66 | L12: 0.01305483029 | M12: -5.528 | O12: 0.01305483029 | P12: 0.704 | Q12: 2.816 | R12: 3.992
A13: 2013-10-03T12:30:00 | B13: 73.58 | C13: 73.09 | G13: 58.94 | H13: 59.68 | J13: 37.25 | L13: 0.01305483029 | M13: -3.332 | O13: 0.01305483029 | P13: 0.31 | Q13: 1.24 | R13: 4.302
A14: 2013-10-03T12:45:00 | B14: 73.11 | C14: 72.62 | G14: 60.61 | H14: 61.37 | J14: 34.12 | L14: 0.01305483029 | M14: -6.075 | O14: 0.01305483029 | P14: 0.422 | Q14: 1.688 | R14: 4.724
A15: 2013-10-03T13:00:00 | B15: 73.05 | C15: 72.47 | G15: 60.61 | H15: 61.5 | J15: 34.83 | L15: 0.01305483029 | M15: -3.139 | O15: 0.01305483029 | P15: 1.158 | Q15: 4.632 | R15: 5.882
A16: 2013-10-03T13:15:00 | B16: 73.15 | C16: 72.66 | G16: 60.09 | H16: 60.94 | J16: 36.45 | L16: 0.01305483029 | M16: -4.508 | O16: 0.01305483029 | P16: 0.694 | Q16: 2.776 | R16: 6.576
A17: 2013-10-03T13:30:00 | B17: 73.08 | C17: 72.52 | G17: 60.23 | H17: 61.17 | J17: 34.03 | L17: 0.01305483029 | M17: -5.769 | O17: 0.01305483029 | P17: 0.606 | Q17: 2.424 | R17: 7.182
A18: 2013-10-03T13:45:00 | B18: 72.86 | C18: 72.38 | G18: 61.17 | H18: 61.96 | J18: 34.74 | L18: 0.01305483029 | M18: -2.928 | O18: 0.01305483029 | P18: 1.008 | Q18: 4.032 | R18: 8.19
A19: 2013-10-03T14:00:00 | B19: 73.09 | C19: 72.58 | G19: 61.14 | H19: 62.04 | J19: 36.43 | L19: 0.01305483029 | M19: -4.538 | O19: 0.01305483029 | P19: 0.772 | Q19: 3.088 | R19: 8.962
A20: 2013-10-03T14:15:00 | B20: 73.08 | C20: 72.51 | G20: 61.33 | H20: 62.28 | J20: 34.41 | L20: 0.01305483029 | M20: -4.189 | O20: 0.01305483029 | P20: 0.73 | Q20: 2.92 | R20: 9.692
A21: 2013-10-03T14:30:00 | B21: 73.09 | C21: 72.47 | G21: 61.42 | H21: 62.36 | J21: 35.23 | L21: 0.01305483029 | M21: -3.128 | O21: 0.01305483029 | P21: 0.948 | Q21: 3.792 | R21: 10.64
A22: 2013-10-03T14:45:00 | B22: 73.43 | C22: 72.81 | G22: 60.88 | H22: 61.84 | J22: 37.73 | L22: 0.01305483029 | M22: -5.234 | O22: 0.01305483029 | P22: 0.904 | Q22: 3.616 | R22: 11.544
A23: 2013-10-03T15:00:00 | B23: 73.42 | C23: 72.84 | G23: 61.09 | H23: 62.06 | J23: 37.2 | L23: 0.01305483029 | M23: -3.178 | O23: 0.01305483029 | P23: 0.684 | Q23: 2.736 | R23: 12.228
A24: 2013-10-03T15:15:00 | B24: 73.2 | C24: 72.63 | G24: 61.31 | H24: 62.34 | J24: 34.62 | L24: 0.01305483029 | M24: -5.51 | O24: 0.01305483029 | P24: 0.294 | Q24: 1.176 | R24: 12.522
A25: 2013-10-03T15:30:00 | B25: 72.92 | C25: 72.29 | G25: 61.64 | H25: 62.76 | J25: 36.04 | L25: 0.01305483029 | M25: -3.731 | O25: 0.01305483029 | P25: 0.512 | Q25: 2.048 | R25: 13.034
A26: 2013-10-03T15:45:00 | B26: 73.14 | C26: 72.51 | G26: 61.21 | H26: 62.26 | J26: 38.22 | L26: 0.01305483029 | M26: -3.998 | O26: 0.01305483029 | P26: 0.746 | Q26: 2.984 | R26: 13.78
A27: 2013-10-03T16:00:00 | B27: 73.48 | C27: 72.77 | G27: 60.5 | H27: 61.67 | J27: 35.71 | L27: 0.01305483029 | M27: -5.143 | O27: 0.01305483029 | P27: 0.508 | Q27: 2.032 | R27: 14.288
A28: 2013-10-03T16:15:00 | B28: 73.15 | C28: 72.54 | G28: 60.96 | H28: 62.09 | J28: 35.32 | L28: 0.01305483029 | M28: -3.409 | O28: 0.01305483029 | P28: 0.648 | Q28: 2.592 | R28: 14.936
A29: 2013-10-03T16:30:00 | B29: 73.02 | C29: 72.4 | G29: 61.69 | H29: 62.76 | J29: 37.44 | L29: 0.01305483029 | M29: -5.471 | O29: 0.01305483029 | P29: 0.598 | Q29: 2.392 | R29: 15.534
A30: 2013-10-03T16:45:00 | B30: 72.85 | C30: 72.29 | G30: 62.11 | H30: 63.07 | J30: 37.51 | L30: 0.01305483029 | M30: -3.008 | O30: 0.01305483029 | P30: 0.488 | Q30: 1.952 | R30: 16.022
A31: 2013-10-03T17:00:00 | B31: 72.69 | C31: 72.18 | G31: 62.59 | H31: 63.5 | J31: 35.19 | L31: 0.01305483029 | M31: -6.004 | O31: 0.01305483029 | P31: 0.444 | Q31: 1.776 | R31: 16.466
A32: 2013-10-03T17:15:00 | B32: 72.75 | C32: 72.04 | G32: 62.61 | H32: 63.65 | J32: 36.19 | L32: 0.01305483029 | M32: -3.506 | O32: 0.01305483029 | P32: 0.252 | Q32: 1.008 | R32: 16.718
A33: 2013-10-03T17:30:00 | B33: 72.1 | C33: 71.46 | G33: 63.55 | H33: 64.65 | J33: 38.34 | L33: 0.01305483029 | M33: -4.264 | O33: 0.01305483029 | P33: 0.204 | Q33: 0.816 | R33: 16.922
A34: 2013-10-03T17:45:00 | B34: 71.6 | C34: 70.99 | G34: 64.18 | H34: 65.16 | J34: 36.3 | L34: 0.01305483029 | M34: -4.732 | O34: 0.01305483029 | P34: 0.108 | Q34: 0.432 | R34: 17.03
A35: 2013-10-03T18:00:00 | B35: 71.15 | C35: 70.55 | G35: 65.19 | H35: 66.14 | J35: 35.54 | L35: 0.01305483029 | M35: -4.126 | O35: 0.01305483029 | P35: 0.038 | Q35: 0.152 | R35: 17.068
A36: 2013-10-03T18:15:00 | B36: 70.87 | C36: 70.16 | G36: 65.21 | H36: 66.52 | J36: 37.26 | L36: 0.01305483029 | M36: -5.173 | O36: 0.01305483029 | P36: -0.023625 | Q36: -0.0945 | R36: 17.0444
A37: 2013-10-03T18:30:00 | B37: 70.55 | C37: 69.93 | G37: 65.76 | H37: 66.84 | J37: 37.94 | L37: 0.01305483029 | M37: -3.545 | O37: 0.01305483029 | P37: -0.058 | Q37: -0.232 | R37: 16.9864
A38: 2013-10-03T18:45:00 | B38: 70.76 | C38: 70.14 | G38: 65.79 | H38: 66.72 | J38: 35.56 | L38: 0.01305483029 | M38: -6.288 | O38: 0.01305483029 | P38: -0.072 | Q38: -0.288 | R38: 16.9144
A39: 2013-10-03T19:00:00 | B39: 71.66 | C39: 71.12 | G39: 66.01 | H39: 66.62 | J39: 36.29 | L39: 0.01305483029 | M39: -3.265 | O39: 0.01305483029 | P39: -0.118 | Q39: -0.472 | R39: 16.7964
A40: 2013-10-03T19:15:00 | B40: 72.19 | C40: 71.7 | G40: 64.99 | H40: 65.75 | J40: 38.36 | L40: 0.01305483029 | M40: -4.901 | O40: 0.01305483029 | P40: -0.384 | Q40: -1.536 | R40: 16.4124
A41: 2013-10-03T19:30:00 | B41: 72.65 | C41: 72.19 | G41: 62.24 | H41: 63.02 | J41: 36.62 | L41: 0.01305483029 | M41: -4.909 | O41: 0.01305483029 | P41: -0.362 | Q41: -1.448 | R41: 16.0504
A42: 2013-10-03T19:45:00 | B42: 73.17 | C42: 72.97 | F42: 0.1302083333 | G42: 60.74 | H42: 62.02 | I42: 0.03463541468 | J42: 35.81 | L42: 0.01305483029 | M42: -4.287 | O42: 0.01305483029 | P42: -1.288 | Q42: -5.152 | R42: 14.7624
A43: 2013-10-03T20:00:00 | B43: 73.58 | C43: 73.53 | F43: 0.1302083333 | G43: 58.09 | H43: 60.27 | I43: 0.04223090079 | J43: 37.36 | L43: 0.01305483029 | M43: -5.399 | O43: 0.01305483029 | P43: -0.866 | Q43: -3.464 | R43: 13.8964
A44: 2013-10-03T20:15:00 | B44: 74.08 | C44: 74.09 | F44: 0.1302083333 | G44: 56.1 | H44: 58.28 | I44: 0.04340277778 | J44: 38.21 | L44: 0.01305483029 | M44: -3.656 | O44: 0.01305483029 | P44: -0.774 | Q44: -3.096 | R44: 13.1224
A45: 2013-10-03T20:30:00 | B45: 73.87 | C45: 74.16 | F45: 0.1302083333 | G45: 58.87 | H45: 59.6 | I45: 0.04340277778 | J45: 35.91 | L45: 0.01305483029 | M45: -6.163 | O45: 0.01305483029 | P45: -0.492 | Q45: -1.968 | R45: 12.6304
A46: 2013-10-03T20:45:00 | B46: 73.47 | C46: 73.95 | F46: 0.1302083333 | G46: 60.31 | H46: 60.63 | I46: 0.04066839814 | J46: 36.63 | L46: 0.01305483029 | M46: -3.586 | O46: 0.01305483029 | P46: -0.444 | Q46: -1.776 | R46: 12.1864
A47: 2013-10-03T21:00:00 | B47: 73.38 | C47: 73.91 | F47: 0.1302083333 | G47: 60.43 | H47: 60.87 | I47: 0.03962674075 | J47: 38.39 | L47: 0.01305483029 | M47: -4.886 | O47: 0.01305483029 | P47: -1.486 | Q47: -5.944 | R47: 10.7004
A48: 2013-10-03T21:15:00 | B48: 73.59 | C48: 73.88 | F48: 0.1302083333 | G48: 60.01 | H48: 60.2 | I48: 0.04253471891 | J48: 36.8 | L48: 0.01305483029 | M48: -5.243 | O48: 0.01305483029 | P48: -0.818 | Q48: -3.272 | R48: 9.88238
A49: 2013-10-03T21:30:00 | B49: 74.59 | C49: 74.47 | F49: 0.1302083333 | G49: 57.11 | H49: 57.82 | I49: 0.04340277778 | J49: 36.29 | L49: 0.01305483029 | M49: -3.729 | O49: 0.01305483029 | P49: -0.968 | Q49: -3.872 | R49: 8.91438
A50: 2013-10-03T21:45:00 | B50: 75.32 | C50: 75.08 | F50: 0.1302083333 | G50: 56.23 | H50: 57.01 | I50: 0.04340277778 | J50: 37.78 | L50: 0.01305483029 | M50: -5.742 | O50: 0.01305483029 | P50: -0.692 | Q50: -2.768 | R50: 8.22238
A51: 2013-10-03T22:00:00 | B51: 75.32 | C51: 74.98 | F51: 0.1302083333 | G51: 56.83 | H51: 57.69 | I51: 0.04340277778 | J51: 38.02 | L51: 0.01305483029 | M51: -3.731 | O51: 0.01305483029 | P51: -0.608 | Q51: -2.432 | R51: 7.61438
A52: 2013-10-03T22:15:00 | B52: 74.28 | C52: 73.85 | F52: 0.1302083333 | G52: 59.52 | H52: 60.23 | I52: 0.04240451588 | J52: 36.22 | L52: 0.01305483029 | M52: -5.937 | O52: 0.01305483029 | P52: -0.596 | Q52: -2.384 | R52: 7.01838
A53: 2013-10-03T22:30:00 | B53: 73.9 | C53: 73.48 | F53: 0.1302083333 | G53: 60.7 | H53: 61.27 | I53: 0.03789062301 | J53: 37.1 | L53: 0.01305483029 | M53: -4.165 | O53: 0.01305483029 | P53: -0.784 | Q53: -3.136 | R53: 6.23438
A54: 2013-10-03T22:45:00 | B54: 74.51 | C54: 74.13 | F54: 0.1302083333 | G54: 59.67 | H54: 60.4 | I54: 0.04166666004 | J54: 38.61 | L54: 0.01305483029 | M54: -4.243 | O54: 0.01305483029 | P54: -0.556 | Q54: -2.224 | R54: 5.67838
A55: 2013-10-03T23:00:00 | B55: 74.52 | C55: 74.11 | F55: 0.1302083333 | G55: 59.54 | H55: 60.23 | I55: 0.04240451588 | J55: 36.79 | L55: 0.01305483029 | M55: -5.678 | O55: 0.01305483029 | P55: -0.436 | Q55: -1.744 | R55: 5.24238
A56: 2013-10-03T23:15:00 | B56: 74.47 | C56: 74.28 | F56: 0.1302083333 | G56: 59.47 | H56: 60.09 | I56: 0.04301215212 | J56: 36.62 | L56: 0.01305483029 | M56: -3.483 | O56: 0.01305483029 | P56: -0.192 | Q56: -0.768 | R56: 5.05038
A57: 2013-10-03T23:30:00 | B57: 74.44 | C57: 74.38 | F57: 0.1302083333 | G57: 59.37 | H57: 59.59 | I57: 0.04340277778 | J57: 38.31 | L57: 0.01305483029 | M57: -5.921 | O57: 0.01305483029 | P57: -0.264 | Q57: -1.056 | R57: 4.78638
A58: 2013-10-03T23:45:00 | B58: 74.73 | C58: 74.72 | F58: 0.1302083333 | G58: 58.12 | H58: 57.66 | I58: 0.04340277778 | J58: 37.81 | L58: 0.01305483029 | M58: -4.004 | O58: 0.01305483029 | P58: -0.342 | Q58: -1.368 | R58: 4.44438
A59: 2013-10-04 | B59: 74.87 | C59: 74.86 | F59: 0.1302083333 | G59: 57.16 | H59: 56.81 | I59: 0.04340277778 | J59: 36.36 | L59: 0.01305483029 | M59: -5.442 | O59: 0.01305483029 | P59: -0.234 | Q59: -0.936 | R59: 4.21038
A60: 2013-10-04T00:15:00 | B60: 74.98 | C60: 74.93 | F60: 0.1302083333 | G60: 56.54 | H60: 56.35 | I60: 0.04340277778 | J60: 37.51 | L60: 0.01305483029 | M60: -4.891 | O60: 0.01305483029 | P60: -0.224 | Q60: -0.896 | R60: 3.98638
A61: 2013-10-04T00:30:00 | B61: 75.02 | C61: 74.98 | F61: 0.1302083333 | G61: 56.01 | H61: 55.83 | I61: 0.04340277778 | J61: 38.82 | L61: 0.01305483029 | M61: -3.83 | O61: 0.01305483029 | P61: -0.232 | Q61: -0.928 | R61: 3.75438
A62: 2013-10-04T00:45:00 | B62: 75.05 | C62: 74.99 | F62: 0.1302083333 | G62: 55.6 | H62: 55.54 | I62: 0.04340277778 | J62: 36.74 | L62: 0.01305483029 | M62: -6.026 | O62: 0.01305483029 | P62: -0.212 | Q62: -0.848 | R62: 3.54238
A63: 2013-10-04T01:00:00 | B63: 75.12 | C63: 75 | F63: 0.1302083333 | G63: 55.25 | H63: 55.38 | I63: 0.04340277778 | J63: 36.92 | L63: 0.01305483029 | M63: -3.259 | O63: 0.01305483029 | P63: -0.188 | Q63: -0.752 | R63: 3.35438
A64: 2013-10-04T01:15:00 | B64: 75.16 | C64: 75 | F64: 0.1302083333 | G64: 54.91 | H64: 55.04 | I64: 0.04340277778 | J64: 38.58 | L64: 0.01305483029 | M64: -5.801 | O64: 0.01305483029 | P64: -0.202 | Q64: -0.808 | R64: 3.15238
A65: 2013-10-04T01:30:00 | B65: 75.16 | C65: 75.01 | F65: 0.1302083333 | G65: 54.66 | H65: 54.89 | I65: 0.04340277778 | J65: 37.84 | L65: 0.01305483029 | M65: -4.189 | O65: 0.01305483029 | P65: -0.21 | Q65: -0.84 | R65: 2.94238
A66: 2013-10-04T01:45:00 | B66: 75.2 | C66: 75.05 | F66: 0.1302083333 | G66: 54.41 | H66: 54.78 | I66: 0.04340277778 | J66: 36.6 | L66: 0.01305483029 | M66: -4.923 | O66: 0.01305483029 | P66: -0.192 | Q66: -0.768 | R66: 2.75038
A67: 2013-10-04T02:00:00 | B67: 75.22 | C67: 75.05 | F67: 0.1302083333 | G67: 54.14 | H67: 54.53 | I67: 0.04340277778 | J67: 37.78 | L67: 0.01305483029 | M67: -5.269 | O67: 0.01305483029 | P67: -0.2 | Q67: -0.8 | R67: 2.55038
A68: 2013-10-04T02:15:00 | B68: 75.22 | C68: 75.05 | F68: 0.1302083333 | G68: 53.89 | H68: 54.42 | I68: 0.04340277778 | J68: 38.92 | L68: 0.01305483029 | M68: -3.414 | O68: 0.01305483029 | P68: -0.21 | Q68: -0.84 | R68: 2.34038
A69: 2013-10-04T02:30:00 | B69: 75.24 | C69: 75.05 | F69: 0.1302083333 | G69: 53.69 | H69: 54.21 | I69: 0.04340277778 | J69: 36.83 | L69: 0.01305483029 | M69: -6.042 | O69: 0.01305483029 | P69: -0.202 | Q69: -0.808 | R69: 2.13838
A70: 2013-10-04T02:45:00 | B70: 75.23 | C70: 75.06 | F70: 0.1302083333 | G70: 53.46 | H70: 54.09 | I70: 0.04340277778 | J70: 37.09 | L70: 0.01305483029 | M70: -3.445 | O70: 0.01305483029 | P70: -0.19 | Q70: -0.76 | R70: 1.94838
A71: 2013-10-04T03:00:00 | B71: 75.24 | C71: 75.05 | F71: 0.1302083333 | G71: 53.33 | H71: 54 | I71: 0.04340277778 | J71: 38.74 | L71: 0.01305483029 | M71: -5.466 | O71: 0.01305483029 | P71: -0.2 | Q71: -0.8 | R71: 1.74838
A72: 2013-10-04T03:15:00 | B72: 75.25 | C72: 75.05 | F72: 0.1302083333 | G72: 53.28 | H72: 53.97 | I72: 0.04340277778 | J72: 37.85 | L72: 0.01305483029 | M72: -4.332 | O72: 0.01305483029 | P72: -0.21 | Q72: -0.84 | R72: 1.53838
A73: 2013-10-04T03:30:00 | B73: 75.25 | C73: 75.05 | F73: 0.1302083333 | G73: 53.14 | H73: 53.92 | I73: 0.04340277778 | J73: 36.72 | L73: 0.01305483029 | M73: -4.627 | O73: 0.01305483029 | P73: -0.19 | Q73: -0.76 | R73: 1.34838
A74: 2013-10-04T03:45:00 | B74: 75.25 | C74: 75.03 | F74: 0.1302083333 | G74: 52.87 | H74: 53.68 | I74: 0.04340277778 | J74: 37.96 | L74: 0.01305483029 | M74: -5.094 | O74: 0.01305483029 | P74: -0.2 | Q74: -0.8 | R74: 1.14838
A75: 2013-10-04T04:00:00 | B75: 75.26 | C75: 75.04 | F75: 0.1302083333 | G75: 52.74 | H75: 53.54 | I75: 0.04340277778 | J75: 38.84 | L75: 0.01305483029 | M75: -3.487 | O75: 0.01305483029 | P75: -0.21 | Q75: -0.84 | R75: 0.938376
A76: 2013-10-04T04:15:00 | B76: 75.27 | C76: 75.02 | F76: 0.1302083333 | G76: 52.59 | H76: 53.51 | I76: 0.04340277778 | J76: 36.79 | L76: 0.01305483029 | M76: -6.028 | O76: 0.01305483029 | P76: -0.2 | Q76: -0.8 | R76: 0.738376
A77: 2013-10-04T04:30:00 | B77: 75.27 | C77: 75.02 | F77: 0.1302083333 | G77: 52.82 | H77: 53.84 | I77: 0.04340277778 | J77: 37.3 | L77: 0.01305483029 | M77: -3.342 | O77: 0.01305483029 | P77: -0.19 | Q77: -0.76 | R77: 0.548377
A78: 2013-10-04T04:45:00 | B78: 75.25 | C78: 75 | F78: 0.1302083333 | G78: 52.9 | H78: 54.02 | I78: 0.04340277778 | J78: 38.93 | L78: 0.01305483029 | M78: -5.083 | O78: 0.01305483029 | P78: -0.21 | Q78: -0.84 | R78: 0.338377
A79: 2013-10-04T05:00:00 | B79: 75.23 | C79: 75 | F79: 0.1302083333 | G79: 52.85 | H79: 54.22 | I79: 0.04340277778 | J79: 37.6 | L79: 0.01305483029 | M79: -4.954 | O79: 0.01305483029 | P79: -0.2 | Q79: -0.8 | R79: 0.138377
A80: 2013-10-04T05:15:00 | B80: 75.22 | C80: 74.96 | F80: 0.1302083333 | G80: 52.76 | H80: 54.25 | I80: 0.04340277778 | J80: 36.88 | L80: 0.01305483029 | M80: -3.957 | O80: 0.01305483029 | P80: -0.19 | Q80: -0.76 | R80: -0.0516235
A81: 2013-10-04T05:30:00 | B81: 75.19 | C81: 74.91 | F81: 0.1302083333 | G81: 52.54 | H81: 53.97 | I81: 0.04340277778 | J81: 38.28 | L81: 0.01305483029 | M81: -5.396 | O81: 0.01305483029 | P81: -0.2 | Q81: -0.8 | R81: -0.251623
A82: 2013-10-04T05:45:00 | B82: 75.16 | C82: 74.83 | F82: 0.1302083333 | G82: 52.11 | H82: 53.52 | I82: 0.04340277778 | J82: 38.72 | L82: 0.01305483029 | M82: -3.519 | O82: 0.01305483029 | P82: -0.2 | Q82: -0.8 | R82: -0.451623
A83: 2013-10-04T06:00:00 | B83: 75.08 | C83: 74.82 | F83: 0.1302083333 | G83: 51.58 | H83: 52.86 | I83: 0.04340277778 | J83: 36.74 | L83: 0.01305483029 | M83: -5.946 | O83: 0.01305483029 | P83: -0.188 | Q83: -0.752 | R83: -0.639624
A84: 2013-10-04T06:15:00 | B84: 75.04 | C84: 74.77 | F84: 0.1302083333 | G84: 51.33 | H84: 52.73 | I84: 0.04340277778 | J84: 37.5 | L84: 0.01305483029 | M84: -3.637 | O84: 0.01305483029 | P84: -0.19 | Q84: -0.76 | R84: -0.829624
A85: 2013-10-04T06:30:00 | B85: 75 | C85: 74.71 | F85: 0.1302083333 | G85: 51.24 | H85: 52.48 | I85: 0.04340277778 | J85: 39.08 | L85: 0.01305483029 | M85: -4.411 | O85: 0.01305483029 | P85: -0.2 | Q85: -0.8 | R85: -1.02962
A86: 2013-10-04T06:45:00 | B86: 74.92 | C86: 74.61 | F86: 0.1302083333 | G86: 50.85 | H86: 52.29 | I86: 0.04340277778 | J86: 37.43 | L86: 0.01305483029 | M86: -5.466 | O86: 0.01305483029 | P86: -0.198 | Q86: -0.792 | R86: -1.22762
A87: 2013-10-04T07:00:00 | B87: 74.81 | C87: 74.53 | F87: 0.1302083333 | G87: 50.7 | H87: 52.32 | I87: 0.04340277778 | J87: 37.06 | L87: 0.01305483029 | M87: -3.271 | O87: 0.01305483029 | P87: -0.2 | Q87: -0.8 | R87: -1.42762
A88: 2013-10-04T07:15:00 | B88: 74.78 | C88: 74.51 | F88: 0.1302083333 | G88: 50.7 | H88: 52.31 | I88: 0.04340277778 | J88: 38.61 | L88: 0.01305483029 | M88: -5.669 | O88: 0.01305483029 | P88: -0.178 | Q88: -0.712 | R88: -1.60562
A89: 2013-10-04T07:30:00 | B89: 74.9 | C89: 74.62 | F89: 0.1302083333 | G89: 51.36 | H89: 52.61 | I89: 0.04340277778 | J89: 38.46 | L89: 0.01305483029 | M89: -3.722 | O89: 0.01305483029 | P89: -0.034 | Q89: -0.136 | R89: -1.63962
A90: 2013-10-04T07:45:00 | B90: 75.27 | C90: 75.04 | F90: 0.1302083333 | G90: 51.47 | H90: 52.72 | I90: 0.04340277778 | J90: 36.8 | L90: 0.01305483029 | M90: -5.724 | O90: 0.01305483029 | P90: 0.084 | Q90: 0.336 | R90: -1.55562
A91: 2013-10-04T08:00:00 | B91: 75.19 | C91: 74.86 | F91: 0.1302083333 | G91: 52.92 | H91: 54.86 | I91: 0.04340277778 | J91: 37.77 | L91: 0.01305483029 | M91: -4.391 | O91: 0.01305483029 | P91: -0.158 | Q91: -0.632 | R91: -1.71362
A92: 2013-10-04T08:15:00 | B92: 75.54 | C92: 75.25 | F92: 0.1302083333 | G92: 51.85 | H92: 55.03 | I92: 0.04340277778 | J92: 39.1 | L92: 0.01305483029 | M92: -4.012 | O92: 0.01305483029 | P92: -0.012 | Q92: -0.048 | R92: -1.72562
A93: 2013-10-04T08:30:00 | B93: 75.58 | C93: 75.25 | F93: 0.1302083333 | G93: 53.46 | H93: 56.04 | I93: 0.04340277778 | J93: 37.13 | L93: 0.01305483029 | M93: -5.855 | O93: 0.01305483029 | P93: 0.162 | Q93: 0.648 | R93: -1.56362
A94: 2013-10-04T08:45:00 | B94: 75.55 | C94: 75.2 | F94: 0.1302083333 | G94: 55.49 | H94: 57.62 | I94: 0.04340277778 | J94: 37.21 | L94: 0.01305483029 | M94: -2.956 | O94: 0.01305483029 | P94: 0.00200004 | Q94: 0.00800016 | R94: -1.56162
A95: 2013-10-04T09:00:00 | B95: 75.3 | C95: 74.91 | F95: 0.1302083333 | G95: 56.66 | H95: 58.39 | I95: 0.04340277778 | J95: 38.85 | L95: 0.01305483029 | M95: -5.652 | O95: 0.01305483029 | P95: 0.11 | Q95: 0.44 | R95: -1.45162
A96: 2013-10-04T09:15:00 | B96: 74.98 | C96: 74.54 | F96: 0.1302083333 | G96: 57.13 | H96: 58.59 | I96: 0.04340277778 | J96: 38.18 | L96: 0.01305483029 | M96: -4.032 | O96: 0.01305483029 | P96: 0.276 | Q96: 1.104 | R96: -1.17562
A97: 2013-10-04T09:30:00 | B97: 74.93 | C97: 74.5 | F97: 0.1302083333 | G97: 46.76 | H97: 41.87 | I97: 0.04340277778 | J97: 36.82 | L97: 0.01305483029 | M97: -5.212 | O97: 0.01305483029 | P97: -0.00599995 | Q97: -0.0239998 | R97: -1.18162
A98: 2013-10-04T09:45:00 | B98: 75.19 | C98: 75.24 | F98: 0.1302083333 | G98: 38.72 | H98: 34.59 | I98: 0.04340277778 | J98: 37.98 | L98: 0.01305483029 | M98: -4.771 | O98: 0.01305483029 | P98: 0.428 | Q98: 1.712 | R98: -0.753623
A99: 2013-10-04T10:00:00 | B99: 75.72 | C99: 75.9 | F99: 0.1302083333 | G99: 31.97 | H99: 29.08 | I99: 0.04340277778 | J99: 39.11 | L99: 0.01305483029 | M99: -3.725 | O99: 0.01305483029 | P99: 0.462 | Q99: 1.848 | R99: -0.291623
A100: 2013-10-04T10:15:00 | B100: 76.07 | C100: 76.38 | F100: 0.1178386311 | G100: 26.36 | H100: 24.2 | I100: 0.04340277778 | J100: 37.02 | L100: 0.01305483029 | M100: -6.402 | O100: 0.01305483029 | P100: 0.776 | Q100: 3.104 | R100: 0.484377
A101: 2013-10-04T10:30:00 | B101: 76.35 | C101: 76.66 | F101: 0.1087238391 | G101: 22.32 | H101: 21.63 | I101: 0.04340277778 | J101: 37.13 | L101: 0.01305483029 | M101: -3.412 | O101: 0.01305483029 | P101: 0.828 | Q101: 3.312 | R101: 1.31238
A102: 2013-10-04T10:45:00 | B102: 76.79 | C102: 77.12 | F102: 0.09374991059 | G102: 20.44 | H102: 19.94 | I102: 0.04340277778 | J102: 38.65 | L102: 0.01305483029 | M102: -5.765 | O102: 0.01305483029 | P102: 0.86 | Q102: 3.44 | R102: 2.17238
A103: 2013-10-04T11:00:00 | B103: 77.24 | C103: 77.58 | F103: 0.07877598206 | G103: 21.65 | H103: 21.66 | I103: 0.04340277778 | J103: 39.32 | L103: 0.01305483029 | M103: -5.875 | O103: 0.01305483029 | P103: 0.91 | Q103: 3.64 | R103: 3.08238
A104: 2013-10-04T11:15:00 | B104: 77.28 | C104: 77.66 | G104: 24.28 | H104: 23.93 | J104: 37.04 | L104: 0.01305483029 | M104: -10.73 | O104: 0.01305483029 | P104: 1.048 | Q104: 4.192 | R104: 4.13038
A105: 2013-10-04T11:30:00 | B105: 75.47 | C105: 75.37 | G105: 34.27 | H105: 35.2 | J105: 36.91 | L105: 0.01305483029 | M105: -3.541 | O105: 0.01305483029 | P105: 1.09 | Q105: 4.36 | R105: 5.22038
A106: 2013-10-04T11:45:00 | B106: 74.36 | C106: 74.07 | G106: 35.74 | H106: 37.47 | J106: 38.42 | L106: 0.01305483029 | M106: -6.23 | O106: 0.01305483029 | P106: 1.13 | Q106: 4.52 | R106: 6.35038
A107: 2013-10-04T12:00:00 | B107: 73.95 | C107: 73.59 | G107: 35.58 | H107: 36.76 | J107: 39.76 | L107: 0.01305483029 | M107: -4.128 | O107: 0.01305483029 | P107: 1.146 | Q107: 4.584 | R107: 7.49638
A108: 2013-10-04T12:15:00 | B108: 73.83 | C108: 73.43 | G108: 36.07 | H108: 37.1 | J108: 38.83 | L108: 0.01305483029 | M108: -6.407 | O108: 0.01305483029 | P108: 1.162 | Q108: 4.648 | R108: 8.65838
A109: 2013-10-04T12:30:00 | B109: 73.81 | C109: 73.41 | G109: 36.3 | H109: 37.22 | J109: 36.98 | L109: 0.01305483029 | M109: -4.486 | O109: 0.01305483029 | P109: 1.182 | Q109: 4.728 | R109: 9.84038
A110: 2013-10-04T12:45:00 | B110: 73.85 | C110: 73.46 | G110: 36.59 | H110: 37.58 | J110: 37.78 | L110: 0.01305483029 | M110: -6.154 | O110: 0.01305483029 | P110: 1.186 | Q110: 4.744 | R110: 11.0264
A111: 2013-10-04T13:00:00 | B111: 73.95 | C111: 73.6 | G111: 37.01 | H111: 38.03 | J111: 39.31 | L111: 0.01305483029 | M111: -3.033 | O111: 0.01305483029 | P111: 1.17 | Q111: 4.68 | R111: 12.1964
A112: 2013-10-04T13:15:00 | B112: 74.07 | C112: 73.71 | G112: 37.26 | H112: 38.24 | J112: 37.63 | L112: 0.01305483029 | M112: -6.969 | O112: 0.01305483029 | P112: 1.172 | Q112: 4.688 | R112: 13.3684
A113: 2013-10-04T13:30:00 | B113: 74.21 | C113: 73.86 | G113: 37.3 | H113: 38.26 | J113: 36.42 | L113: 0.01305483029 | M113: -3.56 | O113: 0.01305483029 | P113: 1.158 | Q113: 4.632 | R113: 14.5264
A114: 2013-10-04T13:45:00 | B114: 74.31 | C114: 73.98 | G114: 36.98 | H114: 37.95 | J114: 37.61 | L114: 0.01305483029 | M114: -6.001 | O114: 0.01305483029 | P114: 1.136 | Q114: 4.544 | R114: 15.6624
A115: 2013-10-04T14:00:00 | B115: 74.37 | C115: 74.08 | G115: 37.3 | H115: 38.23 | J115: 39.15 | L115: 0.01305483029 | M115: -4.884 | O115: 0.01305483029 | P115: 1.1 | Q115: 4.4 | R115: 16.7624
A116: 2013-10-04T14:15:00 | B116: 74.49 | C116: 74.2 | G116: 37.44 | H116: 38.35 | J116: 38.28 | L116: 0.01305483029 | M116: -6.64 | O116: 0.01305483029 | P116: 1.058 | Q116: 4.232 | R116: 17.8204
A117: 2013-10-04T14:30:00 | B117: 74.9 | C117: 74.74 | G117: 38.14 | H117: 39.39 | J117: 36.56 | L117: 0.01305483029 | M117: -6.479 | O117: 0.01305483029 | P117: 1.04 | Q117: 4.16 | R117: 18.8604
A118: 2013-10-04T14:45:00 | B118: 77.18 | C118: 76.72 | G118: 35.16 | H118: 35.68 | J118: 37.28 | L118: 0.01305483029 | M118: -4.499 | O118: 0.01305483029 | P118: 0.978 | Q118: 3.912 | R118: 19.8384
A119: 2013-10-04T15:00:00 | B119: 75.99 | C119: 75.55 | G119: 35.13 | H119: 36.18 | J119: 38.89 | L119: 0.01305483029 | M119: -4.454 | O119: 0.01305483029 | P119: 0.912 | Q119: 3.648 | R119: 20.7504
A120: 2013-10-04T15:15:00 | B120: 75.57 | C120: 75.21 | G120: 34.87 | H120: 35.93 | J120: 39.03 | L120: 0.01305483029 | M120: -3.896 | O120: 0.01305483029 | P120: 0.614 | Q120: 2.456 | R120: 21.3644
A121: 2013-10-04T15:30:00 | B121: 75.39 | C121: 75.03 | G121: 33.7 | H121: 34.7 | J121: 36.87 | L121: 0.01305483029 | M121: -7.636 | O121: 0.01305483029 | P121: 0.674 | Q121: 2.696 | R121: 22.0384
A122: 2013-10-04T15:45:00 | B122: 75.32 | C122: 74.99 | G122: 32.53 | H122: 33.64 | J122: 36.66 | L122: 0.01305483029 | M122: -3.645 | O122: 0.01305483029 | P122: 0.63 | Q122: 2.52 | R122: 22.6684
A123: 2013-10-04T16:00:00 | B123: 75.41 | C123: 75.12 | G123: 31.76 | H123: 33.09 | J123: 38.17 | L123: 0.01305483029 | M123: -5.368 | O123: 0.01305483029 | P123: 0.668 | Q123: 2.672 | R123: 23.3364
A124: 2013-10-04T16:15:00 | B124: 75.55 | C124: 75.24 | G124: 31.47 | H124: 32.64 | J124: 39.4 | L124: 0.01305483029 | M124: -6.856 | O124: 0.01305483029 | P124: 0.586 | Q124: 2.344 | R124: 23.9224
A125: 2013-10-04T16:30:00 | B125: 75.51 | C125: 75.22 | G125: 30.73 | H125: 31.84 | J125: 37.84 | L125: 0.01305483029 | M125: -7.211 | O125: 0.01305483029 | P125: 0.446 | Q125: 1.784 | R125: 24.3684
A126: 2013-10-04T16:45:00 | B126: 75.5 | C126: 75.21 | G126: 28.09 | H126: 29.23 | J126: 36.55 | L126: 0.01305483029 | M126: -6.393 | O126: 0.01305483029 | P126: 0.39 | Q126: 1.56 | R126: 24.7584
A127: 2013-10-04T17:00:00 | B127: 75.55 | C127: 75.23 | G127: 27.86 | H127: 28.97 | J127: 37.69 | L127: 0.01305483029 | M127: -5.854 | O127: 0.01305483029 | P127: 0.326 | Q127: 1.304 | R127: 25.0844
A128: 2013-10-04T17:15:00 | B128: 75.54 | C128: 75.24 | G128: 28.11 | H128: 29.19 | J128: 39.16 | L128: 0.01305483029 | M128: -4.687 | O128: 0.01305483029 | P128: 0.256 | Q128: 1.024 | R128: 25.3404
A129: 2013-10-04T17:30:00 | B129: 75.55 | C129: 75.27 | G129: 27.96 | H129: 29.01 | J129: 39.6 | L129: 0.01305483029 | M129: -7.615 | O129: 0.01305483029 | P129: 0.12 | Q129: 0.48 | R129: 25.4604
A130: 2013-10-04T17:45:00 | B130: 75.57 | C130: 75.27 | G130: 27.84 | H130: 28.89 | J130: 37.45 | L130: 0.01305483029 | M130: -9.06 | O130: 0.01305483029 | P130: 0.034 | Q130: 0.136 | R130: 25.4944
A131: 2013-10-04T18:00:00 | B131: 75.61 | C131: 75.27 | G131: 27.63 | H131: 28.71 | J131: 37.25 | L131: 0.01305483029 | M131: -5.205 | O131: 0.01305483029 | P131: 0.036 | Q131: 0.144 | R131: 25.5304
A132: 2013-10-04T18:15:00 | B132: 75.56 | C132: 75.26 | G132: 26.99 | H132: 28.04 | J132: 38.61 | L132: 0.01305483029 | M132: -7.372 | O132: 0.01305483029 | P132: -0.024 | Q132: -0.096 | R132: 25.5064
A133: 2013-10-04T18:30:00 | B133: 75.52 | C133: 75.22 | G133: 26.44 | H133: 27.43 | J133: 39.87 | L133: 0.01305483029 | M133: -6.721 | O133: 0.01305483029 | P133: -0.136 | Q133: -0.544 | R133: 25.3704
A134: 2013-10-04T18:45:00 | B134: 75.58 | C134: 75.23 | G134: 25.57 | H134: 26.66 | J134: 40.22 | L134: 0.01161879099 | M134: -6.158 | O134: 0.01305483029 | P134: -0.114 | Q134: -0.456 | R134: 25.2564
A135: 2013-10-04T19:00:00 | B135: 75.47 | C135: 75.1 | G135: 26.36 | H135: 27.47 | J135: 37.72 | L135: 0.01305483029 | M135: -9.1 | O135: 0.01305483029 | P135: -0.094 | Q135: -0.376 | R135: 25.1624
A136: 2013-10-04T19:15:00 | B136: 75.42 | C136: 75.01 | G136: 26.25 | H136: 27.58 | J136: 37.21 | L136: 0.01305483029 | M136: -4.706 | O136: 0.01305483029 | P136: -0.124 | Q136: -0.496 | R136: 25.0384
A137: 2013-10-04T19:30:00 | B137: 75.44 | C137: 75.06 | G137: 25.27 | H137: 26.41 | J137: 38.65 | L137: 0.01305483029 | M137: -6.382 | O137: 0.01305483029 | P137: -0.186 | Q137: -0.744 | R137: 24.8524
A138: 2013-10-04T19:45:00 | B138: 75.36 | C138: 74.99 | G138: 25.97 | H138: 27.05 | J138: 39.93 | L138: 0.01305483029 | M138: -7.567 | O138: 0.01305483029 | P138: -0.174 | Q138: -0.696 | R138: 24.6784
A139: 2013-10-04T20:00:00 | B139: 75.32 | C139: 74.95 | G139: 26.55 | H139: 27.65 | J139: 40.05 | L139: 0.01272846451 | M139: -6.654 | O139: 0.01305483029 | P139: -0.144 | Q139: -0.576 | R139: 24.5344
A140: 2013-10-04T20:15:00 | B140: 75.27 | C140: 74.87 | G140: 26.68 | H140: 27.79 | J140: 37.5 | L140: 0.01305483029 | M140: -11.98 | O140: 0.01305483029 | P140: -0.136 | Q140: -0.544 | R140: 24.3984
A141: 2013-10-04T20:30:00 | B141: 75.24 | C141: 74.84 | G141: 26.99 | H141: 28.09 | J141: 36.21 | L141: 0.01305483029 | M141: -6.511 | O141: 0.01305483029 | P141: -0.204 | Q141: -0.816 | R141: 24.1944
A142: 2013-10-04T20:45:00 | B142: 75.28 | C142: 74.91 | G142: 27.81 | H142: 28.99 | J142: 37.45 | L142: 0.01305483029 | M142: -6.794 | O142: 0.01305483029 | P142: -0.174 | Q142: -0.696 | R142: 24.0204
A143: 2013-10-04T21:00:00 | B143: 75.38 | C143: 74.99 | G143: 29.05 | H143: 30.12 | J143: 39.07 | L143: 0.01305483029 | M143: -4.736 | O143: 0.01305483029 | P143: -0.156 | Q143: -0.624 | R143: 23.8644
A144: 2013-10-04T21:15:00 | B144: 75.48 | C144: 75.06 | G144: 29.66 | H144: 30.78 | J144: 38.76 | L144: 0.01305483029 | M144: -6.547 | O144: 0.01305483029 | P144: -0.174 | Q144: -0.696 | R144: 23.6904
A145: 2013-10-04T21:30:00 | B145: 75.5 | C145: 75.11 | G145: 29.7 | H145: 30.77 | J145: 36.52 | L145: 0.01305483029 | M145: -9.34 | O145: 0.01305483029 | P145: -0.176 | Q145: -0.704 | R145: 23.5144
A146: 2013-10-04T21:45:00 | B146: 75.52 | C146: 75.13 | G146: 29.28 | H146: 30.36 | J146: 36.66 | L146: 0.01305483029 | M146: -4.889 | O146: 0.01305483029 | P146: -0.194 | Q146: -0.776 | R146: 23.3204
A147: 2013-10-04T22:00:00 | B147: 75.55 | C147: 75.17 | G147: 29.37 | H147: 30.43 | J147: 38.25 | L147: 0.01305483029 | M147: -5.967 | O147: 0.01305483029 | P147: -0.146 | Q147: -0.584 | R147: 23.1744
A148: 2013-10-04T22:15:00 | B148: 75.56 | C148: 75.19 | G148: 29.56 | H148: 30.64 | J148: 39.52 | L148: 0.01305483029 | M148: -6.979 | O148: 0.01305483029 | P148: -0.134 | Q148: -0.536 | R148: 23.0404
A149: 2013-10-04T22:30:00 | B149: 75.53 | C149: 75.16 | G149: 29.34 | H149: 30.42 | J149: 39.26 | L149: 0.01305483029 | M149: -5.99 | O149: 0.01305483029 | P149: -0.194 | Q149: -0.776 | R149: 22.8464
A150: 2013-10-04T22:45:00 | B150: 75.48 | C150: 75.07 | G150: 28.67 | H150: 29.63 | J150: 36.7 | L150: 0.01305483029 | M150: -9.94 | O150: 0.01305483029 | P150: -0.216 | Q150: -0.864 | R150: 22.6304
A151: 2013-10-04T23:00:00 | B151: 75.43 | C151: 75.03 | G151: 26.96 | H151: 27.68 | J151: 36.46 | L151: 0.01305483029 | M151: -4.777 | O151: 0.01305483029 | P151: -0.204 | Q151: -0.816 | R151: 22.4264
A152: 2013-10-04T23:15:00 | B152: 76.18 | C152: 75.99 | F152: 0.1243489484 | G152: 17.23 | H152: 16.93 | I152: 0.04340277778 | J152: 37.98 | L152: 0.01305483029 | M152: -6.932 | O152: 0.01305483029 | P152: -0.074 | Q152: -0.296 | R152: 22.3524
A153: 2013-10-04T23:30:00 | B153: 76.7 | C153: 76.53 | F153: 0.1074219743 | G153: 17.08 | H153: 17.8 | I153: 0.04340277778 | J153: 39.31 | L153: 0.01305483029 | M153: -7.271 | O153: 0.01305483029 | P153: -0.056 | Q153: -0.224 | R153: 22.2964
A154: 2013-10-04T23:45:00 | B154: 76.81 | C154: 76.6 | F154: 0.1038412253 | G154: 16.89 | H154: 17.58 | I154: 0.04340277778 | J154: 39.4 | L154: 0.01305483029 | M154: -6.182 | O154: 0.01305483029 | P154: -0.064 | Q154: -0.256 | R154: 22.2324
A155: 2013-10-05 | B155: 76.71 | C155: 76.47 | F155: 0.107096384 | G155: 16.71 | H155: 17.38 | I155: 0.04340277778 | J155: 36.86 | L155: 0.01305483029 | M155: -9.17 | O155: 0.01305483029 | P155: -0.056 | Q155: -0.224 | R155: 22.1764
A156: 2013-10-05T00:15:00 | B156: 76.61 | C156: 76.36 | F156: 0.1103515426 | G156: 16.47 | H156: 17.22 | I156: 0.04340277778 | J156: 36.6 | L156: 0.01305483029 | M156: -3.852 | O156: 0.01305483029 | P156: -0.054 | Q156: -0.216 | R156: 22.1224
A157: 2013-10-05T00:30:00 | B157: 76.45 | C157: 76.18 | F157: 0.1155599952 | G157: 16.43 | H157: 17.26 | I157: 0.04340277778 | J157: 38.07 | L157: 0.01305483029 | M157: -6.856 | O157: 0.01305483029 | P157: -0.054 | Q157: -0.216 | R157: 22.0684
A158: 2013-10-05T00:45:00 | B158: 76.32 | C158: 76.01 | F158: 0.1197916766 | G158: 16.26 | H158: 17.22 | I158: 0.04340277778 | J158: 39.31 | L158: 0.01305483029 | M158: -6.734 | O158: 0.01305483029 | P158: -0.056 | Q158: -0.224 | R158: 22.0124
A159: 2013-10-05T01:00:00 | B159: 76.16 | C159: 75.84 | F159: 0.1249998808 | G159: 16.1 | H159: 17.01 | I159: 0.04340277778 | J159: 38.07 | L159: 0.01305483029 | M159: -8.29 | O159: 0.01305483029 | P159: -0.066 | Q159: -0.264 | R159: 21.9464
A160: 2013-10-05T01:15:00 | B160: 75.96 | C160: 75.65 | F160: 0.1302083333 | G160: 16 | H160: 16.79 | I160: 0.04340277778 | J160: 36.31 | L160: 0.01305483029 | M160: -6.354 | O160: 0.01305483029 | P160: -0.044 | Q160: -0.176 | R160: 21.9024
A161: 2013-10-05T01:30:00 | B161: 75.79 | C161: 75.47 | F161: 0.1302083333 | G161: 16.18 | H161: 17.12 | I161: 0.04340277778 | J161: 37.16 | L161: 0.01305483029 | M161: -6.047 | O161: 0.01305483029 | P161: -0.056 | Q161: -0.224 | R161: 21.8464
A162: 2013-10-05T01:45:00 | B162: 75.69 | C162: 75.31 | F162: 0.1302083333 | G162: 16.28 | H162: 17.27 | I162: 0.04340277778 | J162: 38.63 | L162: 0.01305483029 | M162: -4.868 | O162: 0.01305483029 | P162: -0.054 | Q162: -0.216 | R162: 21.7924
A163: 2013-10-05T02:00:00 | B163: 75.58 | C163: 75.23 | F163: 0.1302083333 | G163: 16.28 | H163: 17.15 | I163: 0.04340277778 | J163: 39.71 | L163: 0.01305483029 | M163: -7.183 | O163: 0.01305483029 | P163: -0.046 | Q163: -0.184 | R163: 21.7464
A164: 2013-10-05T02:15:00 | B164: 75.49 | C164: 75.13 | F164: 0.1302083333 | G164: 16.29 | H164: 17.14 | I164: 0.04340277778 | J164: 38.73 | L164: 0.01305483029 | M164: -6.408 | O164: 0.01305483029 | P164: -0.066 | Q164: -0.264 | R164: 21.6804
A165: 2013-10-05T02:30:00 | B165: 75.36 | C165: 75.01 | F165: 0.1302083333 | G165: 16.32 | H165: 17.31 | I165: 0.04340277778 | J165: 36.5 | L165: 0.01305483029 | M165: -8.5 | O165: 0.01305483029 | P165: -0.056 | Q165: -0.224 | R165: 21.6244
A166: 2013-10-05T02:45:00 | B166: 75.25 | C166: 74.84 | F166: 0.1302083333 | G166: 16.48 | H166: 17.59 | I166: 0.04340277778 | J166: 37.05 | L166: 0.01305483029 | M166: -6.134 | O166: 0.01305483029 | P166: -0.044 | Q166: -0.176 | R166: 21.5804
A167: 2013-10-05T03:00:00 | B167: 75.12 | C167: 74.7 | F167: 0.1302083333 | G167: 16.73 | H167: 17.79 | I167: 0.04340277778 | J167: 38.5 | L167: 0.01305483029 | M167: -5.118 | O167: 0.01305483029 | P167: -0.056 | Q167: -0.224 | R167: 21.5244
A168: 2013-10-05T03:15:00 | B168: 74.97 | C168: 74.56 | F168: 0.1302083333 | G168: 16.65 | H168: 17.68 | I168: 0.04340277778 | J168: 39.59 | L168: 0.01305483029 | M168: -7.824 | O168: 0.01305483029 | P168: -0.056 | Q168: -0.224 | R168: 21.4684
A169: 2013-10-05T03:30:00 | B169: 74.82 | C169: 74.41 | F169: 0.1302083333 | G169: 16.57 | H169: 17.64 | I169: 0.04340277778 | J169: 38.84 | L169: 0.01305483029 | M169: -7.145 | O169: 0.01305483029 | P169: -0.066 | Q169: -0.264 | R169: 21.4024
A170: 2013-10-05T03:45:00 | B170: 74.74 | C170: 74.31 | F170: 0.1302083333 | G170: 16.49 | H170: 17.63 | I170: 0.04340277778 | J170: 36.46 | L170: 0.01305483029 | M170: -7.609 | O170: 0.01305483029 | P170: -0.046 | Q170: -0.184 | R170: 21.3564
A171: 2013-10-05T04:00:00 | B171: 74.63 | C171: 74.23 | F171: 0.1302083333 | G171: 16.5 | H171: 17.64 | I171: 0.04340277778 | J171: 36.92 | L171: 0.01305483029 | M171: -5.838 | O171: 0.01305483029 | P171: -0.054 | Q171: -0.216 | R171: 21.3024
A172: 2013-10-05T04:15:00 | B172: 74.52 | C172: 74.09 | F172: 0.1302083333 | G172: 16.8 | H172: 17.95 | I172: 0.04340277778 | J172: 38.43 | L172: 0.01305483029 | M172: -5.039 | O172: 0.01305483029 | P172: -0.056 | Q172: -0.224 | R172: 21.2464
A173: 2013-10-05T04:30:00 | B173: 74.37 | C173: 73.99 | F173: 0.1302083333 | G173: 16.73 | H173: 17.88 | I173: 0.04340277778 | J173: 39.59 | L173: 0.01305483029 | M173: -7.772 | O173: 0.01305483029 | P173: -0.046 | Q173: -0.184 | R173: 21.2004
A174: 2013-10-05T04:45:00 | B174: 74.31 | C174: 73.91 | F174: 0.1302083333 | G174: 16.49 | H174: 17.63 | I174: 0.04340277778 | J174: 38.66 | L174: 0.01305483029 | M174: -7.404 | O174: 0.01305483029 | P174: -0.066 | Q174: -0.264 | R174: 21.1344
A175: 2013-10-05T05:00:00 | B175: 74.38 | C175: 74.04 | F175: 0.1302083333 | G175: 15.65 | H175: 16.84 | I175: 0.04340277778 | J175: 36.42 | L175: 0.01305483029 | M175: -7.329 | O175: 0.01305483029 | P175: -0.054 | Q175: -0.216 | R175: 21.0804
A176: 2013-10-05T05:15:00 | B176: 74.4 | C176: 74.05 | F176: 0.1302083333 | G176: 15.53 | H176: 16.81 | I176: 0.04340277778 | J176: 36.97 | L176: 0.01305483029 | M176: -5.884 | O176: 0.01305483029 | P176: -0.046 | Q176: -0.184 | R176: 21.0344
A177: 2013-10-05T05:30:00 | B177: 74.37 | C177: 74.01 | F177: 0.1302083333 | G177: 15.55 | H177: 16.62 | I177: 0.04340277778 | J177: 38.43 | L177: 0.01305483029 | M177: -5.014 | O177: 0.01305483029 | P177: -0.056 | Q177: -0.224 | R177: 20.9784
A178: 2013-10-05T05:45:00 | B178: 74.36 | C178: 74.01 | F178: 0.1302083333 | G178: 15.35 | H178: 16.49 | I178: 0.04340277778 | J178: 39.52 | L178: 0.01305483029 | M178: -8.06 | O178: 0.01305483029 | P178: -0.056 | Q178: -0.224 | R178: 20.9224
A179: 2013-10-05T06:00:00 | B179: 74.31 | C179: 73.92 | F179: 0.1302083333 | G179: 15.53 | H179: 16.56 | I179: 0.04340277778 | J179: 38.74 | L179: 0.01305483029 | M179: -7.552 | O179: 0.01305483029 | P179: -0.064 | Q179: -0.256 | R179: 20.8584
A180: 2013-10-05T06:15:00 | B180: 74.25 | C180: 73.83 | F180: 0.1302083333 | G180: 15.59 | H180: 16.66 | I180: 0.04340277778 | J180: 36.56 | L180: 0.01305483029 | M180: -7.23 | O180: 0.01305483029 | P180: -0.046 | Q180: -0.184 | R180: 20.8124
A181: 2013-10-05T06:30:00 | B181: 74.14 | C181: 73.74 | F181: 0.1302083333 | G181: 15.8 | H181: 16.87 | I181: 0.04340277778 | J181: 37.1 | L181: 0.01305483029 | M181: -6.717 | O181: 0.01305483029 | P181: -0.056 | Q181: -0.224 | R181: 20.7564
A182: 2013-10-05T06:45:00 | B182: 74.04 | C182: 73.61 | F182: 0.1302083333 | G182: 16.06 | H182: 17.05 | I182: 0.04340277778 | J182: 38.53 | L182: 0.01305483029 | M182: -5.215 | O182: 0.01305483029 | P182: -0.054 | Q182: -0.216 | R182: 20.7024
A183: 2013-10-05T07:00:00 | B183: 73.95 | C183: 73.5 | F183: 0.1302083333 | G183: 16.17 | H183: 17.24 | I183: 0.04340277778 | J183: 39.62 | L183: 0.01305483029 | M183: -7.809 | O183: 0.01305483029 | P183: -0.038 | Q183: -0.152 | R183: 20.6644
A184: 2013-10-05T07:15:00 | B184: 73.87 | C184: 73.44 | F184: 0.1302083333 | G184: 16.33 | H184: 17.33 | I184: 0.04340277778 | J184: 39.27 | L184: 0.01305483029 | M184: -6.072 | O184: 0.01305483029 | P184: -0.04 | Q184: -0.16 | R184: 20.6244
A185: 2013-10-05T07:30:00 | B185: 74.04 | C185: 73.7 | F185: 0.1302083333 | G185: 17.05 | H185: 18.01 | I185: 0.04340277778 | J185: 36.87 | L185: 0.01305483029 | M185: -8.54 | O185: 0.01305483029 | P185: 0.028 | Q185: 0.112 | R185: 20.6524
A186: 2013-10-05T07:45:00 | B186: 74.44 | C186: 73.99 | F186: 0.1302083333 | G186: 16.42 | H186: 17.09 | I186: 0.04340277778 | J186: 37.17 | L186: 0.01305483029 | M186: -6.211 | O186: 0.01305483029 | P186: 0.072 | Q186: 0.288 | R186: 20.7244
A187: 2013-10-05T08:00:00 | B187: 74.84 | C187: 74.36 | F187: 0.1302083333 | G187: 16.01 | H187: 16.72 | I187: 0.04340277778 | J187: 38.56 | L187: 0.01305483029 | M187: -5.597 | O187: 0.01305483029 | P187: 0.038 | Q187: 0.152 | R187: 20.7624
A188: 2013-10-05T08:15:00 | B188: 75.17 | C188: 74.6 | F188: 0.1302083333 | G188: 15.62 | H188: 16.51 | I188: 0.04340277778 | J188: 39.65 | L188: 0.01305483029 | M188: -8.34 | O188: 0.01305483029 | P188: 0.154 | Q188: 0.616 | R188: 20.9164
A189: 2013-10-05T08:30:00 | B189: 75.41 | C189: 74.93 | F189: 0.1302083333 | G189: 15.86 | H189: 16.96 | I189: 0.04340277778 | J189: 39.54 | L189: 0.01305483029 | M189: -6.038 | O189: 0.01305483029 | P189: -0.17 | Q189: -0.68 | R189: 20.7464
A190: 2013-10-05T08:45:00 | B190: 75.77 | C190: 75.3 | F190: 0.1302083333 | G190: 18.39 | H190: 19.97 | I190: 0.04340277778 | J190: 37.1 | L190: 0.01305483029 | M190: -10.52 | O190: 0.01305483029 | P190: -0.354 | Q190: -1.416 | R190: 20.3924
A191: 2013-10-05T09:00:00 | B191: 76 | C191: 75.49 | F191: 0.1302083333 | G191: 20.43 | H191: 22.07 | I191: 0.04340277778 | J191: 37.13 | L191: 0.01305483029 | M191: -5.866 | O191: 0.01305483029 | P191: -0.164 | Q191: -0.656 | R191: 20.2284
A192: 2013-10-05T09:15:00 | B192: 76.1 | C192: 75.46 | F192: 0.1269531747 | G192: 20.34 | H192: 21.43 | I192: 0.04340277778 | J192: 38.48 | L192: 0.01305483029 | M192: -7.323 | O192: 0.01305483029 | P192: -0.19 | Q192: -0.76 | R192: 20.0384
A193: 2013-10-05T09:30:00 | B193: 76.1 | C193: 75.47 | F193: 0.1269531747 | G193: 19.89 | H193: 21.01 | I193: 0.04340277778 | J193: 39.62 | L193: 0.01305483029 | M193: -7.399 | O193: 0.01305483029 | P193: 0.356 | Q193: 1.424 | R193: 20.3944
A194: 2013-10-05T09:45:00 | B194: 76.61 | C194: 75.9 | F194: 0.1103515426 | G194: 19.67 | H194: 20.52 | I194: 0.04340277778 | J194: 39.66 | L194: 0.01305483029 | M194: -6.658 | O194: 0.01305483029 | P194: 0.472 | Q194: 1.888 | R194: 20.8664
A195: 2013-10-05T10:00:00 | B195: 76.94 | C195: 76.03 | F195: 0.09960929553 | G195: 19.3 | H195: 20.12 | I195: 0.04340277778 | J195: 37.2 | L195: 0.01305483029 | M195: -9.04 | O195: 0.01305483029 | P195: 0.402 | Q195: 1.608 | R195: 21.2684
A196: 2013-10-05T10:15:00 | B196: 77.27 | C196: 76.33 | F196: 0.08886729678 | G196: 18.84 | H196: 20.03 | I196: 0.04340277778 | J196: 37.03 | L196: 0.01305483029 | M196: -5.045 | O196: 0.01305483029 | P196: 0.578 | Q196: 2.312 | R196: 21.8464
A197: 2013-10-05T10:30:00 | B197: 77.32 | C197: 76.37 | F197: 0.08723959327 | G197: 18.75 | H197: 19.67 | I197: 0.04340277778 | J197: 38.38 | L197: 0.01305483029 | M197: -6.342 | O197: 0.01305483029 | P197: 0.604 | Q197: 2.416 | R197: 22.4504
A198: 2013-10-05T10:45:00 | B198: 77.15 | C198: 76.21 | G198: 18.72 | H198: 19.88 | J198: 39.57 | L198: 0.01305483029 | M198: -7.811 | O198: 0.01305483029 | P198: 0.948 | Q198: 3.792 | R198: 23.3984
A199: 2013-10-05T11:00:00 | B199: 76.27 | C199: 75.33 | G199: 22.03 | H199: 23.44 | J199: 39.63 | L199: 0.01305483029 | M199: -6.441 | O199: 0.01305483029 | P199: 1.024 | Q199: 4.096 | R199: 24.4224
A200: 2013-10-05T11:15:00 | B200: 75.15 | C200: 74.4 | G200: 21.59 | H200: 22.73 | J200: 37.2 | L200: 0.01305483029 | M200: -8.86 | O200: 0.01305483029 | P200: 1.092 | Q200: 4.368 | R200: 25.5144
A201: 2013-10-05T11:30:00 | B201: 74.91 | C201: 74.27 | G201: 21.53 | H201: 22.68 | J201: 37.09 | L201: 0.01305483029 | M201: -5.535 | O201: 0.01305483029 | P201: 1.104 | Q201: 4.416 | R201: 26.6184
... 637 more rows

Sheet Lot 104
A1: 104 | B1: Subcontest 6-1 | G1: Subcontest 6-2 | J1: Subcontest 8-1 | M1: Subcontest 8-2 | P1: Contest 10
B2: Temperature | G2: Humidity | J2: Refrigerator | M2: Freezer | P2: Energy Balance
A4: Current score > | B4: 69.33691377 | G4: 24.79596353 | J4: 9.962663177 | M4: 9.468467365
B5: Temp #1 | C5: Temp #2 | D5: Temp #3 | E5: Temp #4 | F5: Points | G5: RH #1 | H5: RH #2 | I5: Points | J5: Temp #1 | K5: Temp #2 | L5: Points | M5: Temp #1 | N5: Temp #2 | O5: Points | P5: Net Energy | Q5: Net Power | R5: Cumulative
A6: Time Stamp | B6: °F | C6: °F | D6: °F | E6: °F | F6: Earned | G6: % | H6: % | I6: Earned | J6: °F | K6: °F | L6: Earned | M6: °F | N6: °F | O6: Earned | P6: kWh | Q6: kW | R6: kWh
A7: 2013-10-03T11:00:00 | B7: 71.63 | C7: 71.21 | G7: 62.29 | H7: 63.5 | J7: 37.17 | M7: 1.131 | P7: 0.48 | Q7: 1.92
A8: 2013-10-03T11:15:00 | B8: 71.54 | C8: 71.31 | G8: 62.27 | H8: 63.14 | J8: 37.3 | L8: 0.01305483029 | M8: -1.394 | O8: 0.01305483029 | P8: 0.256 | Q8: 1.024 | R8: 0.256
A9: 2013-10-03T11:30:00 | B9: 71.49 | C9: 71.32 | G9: 61.64 | H9: 62.34 | J9: 37.1 | L9: 0.01305483029 | M9: -6.921 | O9: 0.01305483029 | P9: 0.94 | Q9: 3.76 | R9: 1.196
A10: 2013-10-03T11:45:00 | B10: 71.46 | C10: 71.32 | G10: 61.23 | H10: 61.87 | J10: 36.71 | L10: 0.01305483029 | M10: -8.15 | O10: 0.01305483029 | P10: 1.148 | Q10: 4.592 | R10: 2.344
A11: 2013-10-03T12:00:00 | B11: 71.48 | C11: 71.41 | G11: 61.81 | H11: 62.42 | J11: 36.62 | L11: 0.01305483029 | M11: -5.207 | O11: 0.01305483029 | P11: 1.196 | Q11: 4.784 | R11: 3.54
A12: 2013-10-03T12:15:00 | B12: 71.71 | C12: 71.67 | G12: 62.33 | H12: 62.83 | J12: 36.78 | L12: 0.01305483029 | M12: -0.918 | O12: 0.01305483029 | P12: 0.666 | Q12: 2.664 | R12: 4.206
A13: 2013-10-03T12:30:00 | B13: 71.76 | C13: 71.76 | G13: 61.71 | H13: 62.16 | J13: 36.97 | L13: 0.01305483029 | M13: 2.174 | O13: 0.01305483029 | P13: 0.282 | Q13: 1.128 | R13: 4.488
A14: 2013-10-03T12:45:00 | B14: 71.78 | C14: 71.75 | G14: 61.51 | H14: 61.98 | J14: 36.9 | L14: 0.01305483029 | M14: -4.394 | O14: 0.01305483029 | P14: 0.454 | Q14: 1.816 | R14: 4.942
A15: 2013-10-03T13:00:00 | B15: 71.8 | C15: 71.74 | G15: 61.59 | H15: 62.05 | J15: 36.64 | L15: 0.01305483029 | M15: -7.56 | O15: 0.01305483029 | P15: 1.238 | Q15: 4.952 | R15: 6.18
A16: 2013-10-03T13:15:00 | B16: 71.81 | C16: 71.74 | G16: 61.76 | H16: 62.2 | J16: 36.34 | L16: 0.01305483029 | M16: -7.482 | O16: 0.01305483029 | P16: 0.708 | Q16: 2.832 | R16: 6.888
A17: 2013-10-03T13:30:00 | B17: 71.84 | C17: 71.78 | G17: 61.69 | H17: 62.08 | J17: 36.43 | L17: 0.01305483029 | M17: -3.32 | O17: 0.01305483029 | P17: 0.59 | Q17: 2.36 | R17: 7.478
A18: 2013-10-03T13:45:00 | B18: 71.9 | C18: 71.81 | G18: 61.77 | H18: 62.14 | J18: 36.62 | L18: 0.01305483029 | M18: 0.671 | O18: 0.01305483029 | P18: 1.034 | Q18: 4.136 | R18: 8.512
A19: 2013-10-03T14:00:00 | B19: 71.94 | C19: 71.91 | G19: 61.75 | H19: 62.11 | J19: 36.72 | L19: 0.01305483029 | M19: 1.524 | O19: 0.01305483029 | P19: 0.758 | Q19: 3.032 | R19: 9.27
A20: 2013-10-03T14:15:00 | B20: 72 | C20: 71.98 | G20: 62.34 | H20: 62.69 | J20: 36.52 | L20: 0.01305483029 | M20: -5.641 | O20: 0.01305483029 | P20: 0.67 | Q20: 2.68 | R20: 9.94
A21: 2013-10-03T14:30:00 | B21: 72.24 | C21: 72.22 | G21: 62.83 | H21: 63.2 | J21: 36.25 | L21: 0.01305483029 | M21: -7.729 | O21: 0.01305483029 | P21: 0.922 | Q21: 3.688 | R21: 10.862
A22: 2013-10-03T14:45:00 | B22: 72.41 | C22: 72.41 | G22: 62.83 | H22: 63.2 | J22: 36.05 | L22: 0.01305483029 | M22: -6.529 | O22: 0.01305483029 | P22: 0.922 | Q22: 3.688 | R22: 11.784
A23: 2013-10-03T15:00:00 | B23: 72.5 | C23: 72.51 | G23: 62.4 | H23: 62.72 | J23: 36.16 | L23: 0.01305483029 | M23: -2.107 | O23: 0.01305483029 | P23: 0.662 | Q23: 2.648 | R23: 12.446
A24: 2013-10-03T15:15:00 | B24: 72.5 | C24: 72.49 | G24: 62.05 | H24: 62.35 | J24: 36.38 | L24: 0.01305483029 | M24: 1.603 | O24: 0.01305483029 | P24: 0.182 | Q24: 0.728 | R24: 12.628
A25: 2013-10-03T15:30:00 | B25: 72.52 | C25: 72.5 | G25: 61.95 | H25: 62.25 | J25: 36.45 | L25: 0.01305483029 | M25: 0.368 | O25: 0.01305483029 | P25: 0.448 | Q25: 1.792 | R25: 13.076
A26: 2013-10-03T15:45:00 | B26: 72.52 | C26: 72.52 | G26: 61.83 | H26: 62.14 | J26: 36.19 | L26: 0.01305483029 | M26: -6.084 | O26: 0.01305483029 | P26: 0.762 | Q26: 3.048 | R26: 13.838
A27: 2013-10-03T16:00:00 | B27: 72.61 | C27: 72.61 | G27: 62.26 | H27: 62.55 | J27: 35.88 | L27: 0.01305483029 | M27: -7.768 | O27: 0.01305483029 | P27: 0.442 | Q27: 1.768 | R27: 14.28
A28: 2013-10-03T16:15:00 | B28: 72.66 | C28: 72.67 | G28: 62.06 | H28: 62.36 | J28: 35.77 | L28: 0.01305483029 | M28: -5.949 | O28: 0.01305483029 | P28: 0.58 | Q28: 2.32 | R28: 14.86
A29: 2013-10-03T16:30:00 | B29: 72.69 | C29: 72.69 | G29: 61.88 | H29: 62.17 | J29: 35.96 | L29: 0.01305483029 | M29: -1.454 | O29: 0.01305483029 | P29: 0.558 | Q29: 2.232 | R29: 15.418
A30: 2013-10-03T16:45:00 | B30: 72.73 | C30: 72.71 | G30: 61.8 | H30: 62.09 | J30: 36.14 | L30: 0.01305483029 | M30: 2.246 | O30: 0.01305483029 | P30: 0.444 | Q30: 1.776 | R30: 15.862
A31: 2013-10-03T17:00:00 | B31: 72.77 | C31: 72.77 | G31: 61.91 | H31: 62.21 | J31: 36.18 | L31: 0.01305483029 | M31: -0.086 | O31: 0.01305483029 | P31: 0.384 | Q31: 1.536 | R31: 16.246
A32: 2013-10-03T17:15:00 | B32: 72.86 | C32: 72.86 | G32: 61.88 | H32: 62.15 | J32: 35.88 | L32: 0.01305483029 | M32: -6.276 | O32: 0.01305483029 | P32: 0.172 | Q32: 0.688 | R32: 16.418
A33: 2013-10-03T17:30:00 | B33: 72.86 | C33: 72.86 | G33: 61.6 | H33: 61.89 | J33: 35.57 | L33: 0.01305483029 | M33: -7.709 | O33: 0.01305483029 | P33: 0.106 | Q33: 0.424 | R33: 16.524
A34: 2013-10-03T17:45:00 | B34: 72.86 | C34: 72.86 | G34: 61.25 | H34: 61.61 | J34: 35.55 | L34: 0.01305483029 | M34: -5.314 | O34: 0.01305483029 | P34: 0.036 | Q34: 0.144 | R34: 16.56
A35: 2013-10-03T18:00:00 | B35: 72.85 | C35: 72.84 | G35: 61.15 | H35: 61.51 | J35: 35.74 | L35: 0.01305483029 | M35: -0.982 | O35: 0.01305483029 | P35: -0.044 | Q35: -0.176 | R35: 16.516
A36: 2013-10-03T18:15:00 | B36: 72.77 | C36: 72.75 | G36: 61.03 | H36: 61.43 | J36: 35.83 | L36: 0.01305483029 | M36: 2.623 | O36: 0.01305483029 | P36: -0.106 | Q36: -0.424 | R36: 16.41
A37: 2013-10-03T18:30:00 | B37: 72.72 | C37: 72.73 | G37: 60.9 | H37: 61.46 | J37: 35.96 | L37: 0.01305483029 | M37: -0.054 | O37: 0.01305483029 | P37: -0.242 | Q37: -0.968 | R37: 16.168
A38: 2013-10-03T18:45:00 | B38: 72.67 | C38: 72.68 | G38: 61.22 | H38: 61.58 | J38: 35.65 | L38: 0.01305483029 | M38: -6.355 | O38: 0.01305483029 | P38: -0.318 | Q38: -1.272 | R38: 15.85
A39: 2013-10-03T19:00:00 | B39: 72.64 | C39: 72.67 | G39: 61.49 | H39: 62.15 | J39: 35.25 | L39: 0.01305483029 | M39: -7.527 | O39: 0.01305483029 | P39: -0.3 | Q39: -1.2 | R39: 15.55
A40: 2013-10-03T19:15:00 | B40: 72.6 | C40: 72.99 | G40: 63.43 | H40: 63.48 | J40: 35.31 | L40: 0.01305483029 | M40: -4.214 | O40: 0.01305483029 | P40: -0.484 | Q40: -1.936 | R40: 15.066
A41: 2013-10-03T19:30:00 | B41: 73.22 | C41: 73.83 | G41: 63.52 | H41: 62.99 | J41: 35.58 | L41: 0.01305483029 | M41: 3.242 | O41: 0.01305483029 | P41: -0.496 | Q41: -1.984 | R41: 14.57
A42: 2013-10-03T19:45:00 | B42: 74.05 | C42: 74.46 | F42: 0.1302083333 | G42: 62.83 | H42: 62.43 | I42: 0.03111978372 | J42: 35.71 | L42: 0.01305483029 | M42: 6.668 | O42: 0.01087728431 | P42: -0.792 | Q42: -3.168 | R42: 13.778
A43: 2013-10-03T20:00:00 | B43: 74.59 | C43: 74.73 | F43: 0.1302083333 | G43: 61.89 | H43: 61.89 | I43: 0.03519965543 | J43: 35.77 | L43: 0.01305483029 | M43: -0.214 | O43: 0.01305483029 | P43: -0.642 | Q43: -2.568 | R43: 13.136
A44: 2013-10-03T20:15:00 | B44: 75 | C44: 74.9 | F44: 0.1302083333 | G44: 61.52 | H44: 61.51 | I44: 0.03680555357 | J44: 35.41 | L44: 0.01305483029 | M44: -5.581 | O44: 0.01305483029 | P44: -0.944 | Q44: -3.776 | R44: 12.192
A45: 2013-10-03T20:30:00 | B45: 75.64 | C45: 75.16 | F45: 0.1302083333 | G45: 61.29 | H45: 61.37 | I45: 0.03745660186 | J45: 35.05 | L45: 0.01305483029 | M45: -7.102 | O45: 0.01305483029 | P45: -0.674 | Q45: -2.696 | R45: 11.518
A46: 2013-10-03T20:45:00 | B46: 75.14 | C46: 75.09 | F46: 0.1302083333 | G46: 61.14 | H46: 61.17 | I46: 0.03832466073 | J46: 34.86 | L46: 0.01305483029 | M46: -6.25 | O46: 0.01305483029 | P46: -0.77 | Q46: -3.08 | R46: 10.748
A47: 2013-10-03T21:00:00 | B47: 74.72 | C47: 75.01 | F47: 0.1302083333 | G47: 61.65 | H47: 61.32 | I47: 0.03624131282 | J47: 35.09 | L47: 0.01305483029 | M47: -0.874 | O47: 0.01305483029 | P47: -1.024 | Q47: -4.096 | R47: 9.724
A48: 2013-10-03T21:15:00 | B48: 74.36 | C48: 74.83 | F48: 0.1302083333 | G48: 62.47 | H48: 61.86 | I48: 0.03268228637 | J48: 35.23 | L48: 0.01305483029 | M48: 3.099 | O48: 0.01305483029 | P48: -0.682 | Q48: -2.728 | R48: 9.042
A49: 2013-10-03T21:30:00 | B49: 74.77 | C49: 74.89 | F49: 0.1302083333 | G49: 62.17 | H49: 62.14 | I49: 0.03398438295 | J49: 35.28 | L49: 0.01305483029 | M49: 5.897 | O49: 0.01188381222 | P49: -0.674 | Q49: -2.696 | R49: 8.368
A50: 2013-10-03T21:45:00 | B50: 74.86 | C50: 74.9 | F50: 0.1302083333 | G50: 62.02 | H50: 62.16 | I50: 0.03402777844 | J50: 35.4 | L50: 0.01305483029 | M50: -2.262 | O50: 0.01305483029 | P50: -0.446 | Q50: -1.784 | R50: 7.922
A51: 2013-10-03T22:00:00 | B51: 74.95 | C51: 74.94 | F51: 0.1302083333 | G51: 61.71 | H51: 61.94 | I51: 0.03498264485 | J51: 35.14 | L51: 0.01305483029 | M51: -5.636 | O51: 0.01305483029 | P51: -0.568 | Q51: -2.272 | R51: 7.354
A52: 2013-10-03T22:15:00 | B52: 74.78 | C52: 74.79 | F52: 0.1302083333 | G52: 61.52 | H52: 61.71 | I52: 0.03598090675 | J52: 34.98 | L52: 0.01305483029 | M52: -6.327 | O52: 0.01305483029 | P52: -0.69 | Q52: -2.76 | R52: 6.664
A53: 2013-10-03T22:30:00 | B53: 74.74 | C53: 74.75 | F53: 0.1302083333 | G53: 61.31 | H53: 61.54 | I53: 0.03671874603 | J53: 34.82 | L53: 0.01305483029 | M53: -7.754 | O53: 0.01305483029 | P53: -0.446 | Q53: -1.784 | R53: 6.218
A54: 2013-10-03T22:45:00 | B54: 74.78 | C54: 74.78 | F54: 0.1302083333 | G54: 60.85 | H54: 61.11 | I54: 0.0385850668 | J54: 34.63 | L54: 0.01305483029 | M54: -8.57 | O54: 0.01305483029 | P54: -0.456 | Q54: -1.824 | R54: 5.762
A55: 2013-10-03T23:00:00 | B55: 74.95 | C55: 74.93 | F55: 0.1302083333 | G55: 60.91 | H55: 61.34 | I55: 0.03758680489 | J55: 34.48 | L55: 0.01305483029 | M55: -8.12 | O55: 0.01305483029 | P55: -0.444 | Q55: -1.776 | R55: 5.318
A56: 2013-10-03T23:15:00 | B56: 75.36 | C56: 75.43 | F56: 0.1302083333 | G56: 61.23 | H56: 61.24 | I56: 0.03802082605 | J56: 34.22 | L56: 0.01305483029 | M56: -8.13 | O56: 0.01305483029 | P56: -0.14 | Q56: -0.56 | R56: 5.178
A57: 2013-10-03T23:30:00 | B57: 75.41 | C57: 75.48 | F57: 0.1302083333 | G57: 61.14 | H57: 61.28 | I57: 0.03784722752 | J57: 34.34 | L57: 0.01305483029 | M57: -3.893 | O57: 0.01305483029 | P57: -0.146 | Q57: -0.584 | R57: 5.032
A58: 2013-10-03T23:45:00 | B58: 75.43 | C58: 75.48 | F58: 0.1302083333 | G58: 60.99 | H58: 61.27 | I58: 0.03789062301 | J58: 34.53 | L58: 0.01305483029 | M58: 0.458 | O58: 0.01305483029 | P58: -0.146 | Q58: -0.584 | R58: 4.886
A59: 2013-10-04 | B59: 75.4 | C59: 75.56 | F59: 0.1302083333 | G59: 60.86 | H59: 61.19 | I59: 0.03823785318 | J59: 34.6 | L59: 0.01305483029 | M59: 3.874 | O59: 0.01305483029 | P59: -0.144 | Q59: -0.576 | R59: 4.742
A60: 2013-10-04T00:15:00 | B60: 75.44 | C60: 75.65 | F60: 0.1302083333 | G60: 60.71 | H60: 61.11 | I60: 0.0385850668 | J60: 34.81 | L60: 0.01305483029 | M60: 6.042 | O60: 0.01169451721 | P60: -0.158 | Q60: -0.632 | R60: 4.584
A61: 2013-10-04T00:30:00 | B61: 75.46 | C61: 75.66 | F61: 0.1302083333 | G61: 60.52 | H61: 61.06 | I61: 0.03880207737 | J61: 34.84 | L61: 0.01305483029 | M61: 6.125 | O61: 0.01158616188 | P61: -0.174 | Q61: -0.696 | R61: 4.41
A62: 2013-10-04T00:45:00 | B62: 75.45 | C62: 75.66 | F62: 0.1302083333 | G62: 60.46 | H62: 61 | I62: 0.0390625 | J62: 34.74 | L62: 0.01305483029 | M62: -4.127 | O62: 0.01305483029 | P62: -0.186 | Q62: -0.744 | R62: 4.224
A63: 2013-10-04T01:00:00 | B63: 75.46 | C63: 75.66 | F63: 0.1302083333 | G63: 60.38 | H63: 60.98 | I63: 0.03914930754 | J63: 34.41 | L63: 0.01305483029 | M63: -6.447 | O63: 0.01305483029 | P63: -0.198 | Q63: -0.792 | R63: 4.026
A64: 2013-10-04T01:15:00 | B64: 75.44 | C64: 75.7 | F64: 0.1302083333 | G64: 60.47 | H64: 60.9 | I64: 0.03949652116 | J64: 34.45 | L64: 0.01305483029 | M64: 17.51 | O64: 0 | P64: -0.26 | Q64: -1.04 | R64: 3.766
A65: 2013-10-04T01:30:00 | B65: 75.43 | C65: 75.73 | F65: 0.1302083333 | G65: 60.43 | H65: 60.88 | I65: 0.0395833287 | J65: 34.62 | L65: 0.01305483029 | M65: 36.93 | O65: 0 | P65: -0.158 | Q65: -0.632 | R65: 3.608
A66: 2013-10-04T01:45:00 | B66: 75.46 | C66: 75.82 | F66: 0.1302083333 | G66: 60.28 | H66: 60.92 | I66: 0.03940973017 | J66: 34.89 | L66: 0.01305483029 | M66: 11.05 | O66: 0.005156657714 | P66: -0.18 | Q66: -0.72 | R66: 3.428
A67: 2013-10-04T02:00:00 | B67: 75.5 | C67: 75.77 | F67: 0.1302083333 | G67: 60.17 | H67: 60.91 | I67: 0.03945312566 | J67: 34.84 | L67: 0.01305483029 | M67: -0.051 | O67: 0.01305483029 | P67: -0.136 | Q67: -0.544 | R67: 3.292
A68: 2013-10-04T02:15:00 | B68: 75.47 | C68: 75.82 | F68: 0.1302083333 | G68: 60.22 | H68: 60.82 | I68: 0.03984375132 | J68: 34.51 | L68: 0.01305483029 | M68: -3.132 | O68: 0.01305483029 | P68: -0.18 | Q68: -0.72 | R68: 3.112
A69: 2013-10-04T02:30:00 | B69: 75.5 | C69: 75.9 | F69: 0.1302083333 | G69: 60.18 | H69: 60.74 | I69: 0.04019096494 | J69: 34.23 | L69: 0.01305483029 | M69: -5.083 | O69: 0.01305483029 | P69: -0.178 | Q69: -0.712 | R69: 2.934
A70: 2013-10-04T02:45:00 | B70: 75.55 | C70: 75.93 | F70: 0.1302083333 | G70: 60.12 | H70: 60.69 | I70: 0.04040799207 | J70: 34.04 | L70: 0.01305483029 | M70: -6.642 | O70: 0.01305483029 | P70: -0.186 | Q70: -0.744 | R70: 2.748
A71: 2013-10-04T03:00:00 | B71: 75.58 | C71: 75.96 | F71: 0.1302083333 | G71: 60.07 | H71: 60.62 | I71: 0.04071181019 | J71: 33.85 | L71: 0.01207570806 | M71: -7.726 | O71: 0.01305483029 | P71: -0.182 | Q71: -0.728 | R71: 2.566
A72: 2013-10-04T03:15:00 | B72: 75.57 | C72: 75.9 | F72: 0.1302083333 | G72: 60.05 | H72: 60.64 | I72: 0.04062500265 | J72: 33.64 | L72: 0.01070495685 | M72: -8.07 | O72: 0.01305483029 | P72: -0.146 | Q72: -0.584 | R72: 2.42
A73: 2013-10-04T03:30:00 | B73: 75.51 | C73: 75.88 | F73: 0.1302083333 | G73: 60.13 | H73: 60.66 | I73: 0.04053819511 | J73: 33.74 | L73: 0.01135771331 | M73: -3.145 | O73: 0.01305483029 | P73: -0.152 | Q73: -0.608 | R73: 2.268
A74: 2013-10-04T03:45:00 | B74: 75.48 | C74: 75.91 | F74: 0.1302083333 | G74: 60.12 | H74: 60.59 | I74: 0.04084201323 | J74: 33.89 | L74: 0.01233681064 | M74: 1.204 | O74: 0.01305483029 | P74: -0.16 | Q74: -0.64 | R74: 2.108
A75: 2013-10-04T04:00:00 | B75: 75.51 | C75: 75.92 | F75: 0.1302083333 | G75: 60.04 | H75: 60.57 | I75: 0.04092882077 | J75: 34.11 | L75: 0.01305483029 | M75: 4.354 | O75: 0.01305483029 | P75: -0.164 | Q75: -0.656 | R75: 1.944
A76: 2013-10-04T04:15:00 | B76: 75.53 | C76: 75.95 | F76: 0.1302083333 | G76: 59.98 | H76: 60.49 | I76: 0.04127603438 | J76: 34.16 | L76: 0.01305483029 | M76: 6.68 | O76: 0.01086161902 | P76: -0.156 | Q76: -0.624 | R76: 1.788
A77: 2013-10-04T04:30:00 | B77: 75.51 | C77: 75.94 | F77: 0.1302083333 | G77: 59.95 | H77: 60.47 | I77: 0.04136284192 | J77: 34.28 | L77: 0.01305483029 | M77: 5.484 | O77: 0.01242297623 | P77: -0.16 | Q77: -0.64 | R77: 1.628
A78: 2013-10-04T04:45:00 | B78: 75.53 | C78: 75.87 | F78: 0.1302083333 | G78: 59.92 | H78: 60.5 | I78: 0.04123263889 | J78: 34.2 | L78: 0.01305483029 | M78: -4.585 | O78: 0.01305483029 | P78: -0.18 | Q78: -0.72 | R78: 1.448
A79: 2013-10-04T05:00:00 | B79: 75.53 | C79: 75.9 | F79: 0.1302083333 | G79: 59.94 | H79: 60.41 | I79: 0.04162326455 | J79: 33.86 | L79: 0.01214099615 | M79: -7.033 | O79: 0.01305483029 | P79: -0.19 | Q79: -0.76 | R79: 1.258
A80: 2013-10-04T05:15:00 | B80: 75.54 | C80: 75.91 | F80: 0.1302083333 | G80: 59.9 | H80: 60.41 | I80: 0.04162326455 | J80: 33.56 | L80: 0.01018277659 | M80: -8.07 | O80: 0.01305483029 | P80: -0.182 | Q80: -0.728 | R80: 1.076
A81: 2013-10-04T05:30:00 | B81: 75.52 | C81: 75.91 | F81: 0.1302083333 | G81: 59.92 | H81: 60.33 | I81: 0.04197047816 | J81: 33.55 | L81: 0.01011748849 | M81: -4.043 | O81: 0.01305483029 | P81: -0.166 | Q81: -0.664 | R81: 0.909999
A82: 2013-10-04T05:45:00 | B82: 75.51 | C82: 75.87 | F82: 0.1302083333 | G82: 59.9 | H82: 60.34 | I82: 0.04192708267 | J82: 33.78 | L82: 0.01161879099 | M82: 0.546 | O82: 0.01305483029 | P82: -0.168 | Q82: -0.672 | R82: 0.741999
A83: 2013-10-04T06:00:00 | B83: 75.53 | C83: 75.86 | F83: 0.1302083333 | G83: 59.75 | H83: 60.26 | I83: 0.04227431284 | J83: 33.91 | L83: 0.01246736193 | M83: 3.795 | O83: 0.01305483029 | P83: -0.186 | Q83: -0.744 | R83: 0.555999
A84: 2013-10-04T06:15:00 | B84: 75.53 | C84: 75.84 | F84: 0.1302083333 | G84: 59.64 | H84: 60.17 | I84: 0.0426649385 | J84: 34.06 | L84: 0.01305483029 | M84: 6.185 | O84: 0.01150783297 | P84: -0.166 | Q84: -0.664 | R84: 0.389999
A85: 2013-10-04T06:30:00 | B85: 75.48 | C85: 75.83 | F85: 0.1302083333 | G85: 59.59 | H85: 60.08 | I85: 0.04305554761 | J85: 34.14 | L85: 0.01305483029 | M85: 7.859 | O85: 0.009322454039 | P85: -0.198 | Q85: -0.792 | R85: 0.191999
A86: 2013-10-04T06:45:00 | B86: 75.48 | C86: 75.83 | F86: 0.1302083333 | G86: 59.51 | H86: 59.93 | I86: 0.04340277778 | J86: 34.21 | L86: 0.01305483029 | M86: -0.85 | O86: 0.01305483029 | P86: -0.198 | Q86: -0.792 | R86: -0.00600061
A87: 2013-10-04T07:00:00 | B87: 75.49 | C87: 75.79 | F87: 0.1302083333 | G87: 59.43 | H87: 59.81 | I87: 0.04340277778 | J87: 33.92 | L87: 0.01253262512 | M87: -5.917 | O87: 0.01305483029 | P87: -0.238 | Q87: -0.952 | R87: -0.244001
A88: 2013-10-04T07:15:00 | B88: 75.49 | C88: 75.87 | F88: 0.1302083333 | G88: 59.4 | H88: 59.74 | I88: 0.04340277778 | J88: 33.6 | L88: 0.01044385427 | M88: -7.544 | O88: 0.01305483029 | P88: -0.296 | Q88: -1.184 | R88: -0.540001
A89: 2013-10-04T07:30:00 | B89: 75.15 | C89: 75.84 | F89: 0.1302083333 | G89: 58.59 | H89: 59.11 | I89: 0.04340277778 | J89: 33.46 | L89: 0.009530020134 | M89: -6.697 | O89: 0.01305483029 | P89: -0.124 | Q89: -0.496 | R89: -0.664001
A90: 2013-10-04T07:45:00 | B90: 74.48 | C90: 75.52 | F90: 0.1302083333 | G90: 59.57 | H90: 59.12 | I90: 0.04340277778 | J90: 33.57 | L90: 0.01024803978 | M90: -1.184 | O90: 0.01305483029 | P90: -0.062 | Q90: -0.248 | R90: -0.726001
A91: 2013-10-04T08:00:00 | B91: 74.66 | C91: 75.56 | F91: 0.1302083333 | G91: 59.99 | H91: 59.55 | I91: 0.04340277778 | J91: 33.81 | L91: 0.01181463037 | M91: 2.3 | O91: 0.01305483029 | P91: -0.014 | Q91: -0.056 | R91: -0.740001
